Workbook

Sheet BUSCAR FECHA
A1: DIA | B1: SEMANA | C1: SEMANA REAL | D1: MES REAL | E1: FECHA | F1: MES REAL
A2: 2009-02-02 | B2: 906 | C2: =RIGHT(B2,2) -> 06 | D2: =MONTH(A2) -> 2 | E2: =#REF! ->  | F2: =VLOOKUP($E2,$A$2:$D$3000,4, FALSE) ->  | G2: =VLOOKUP(F2,H3:I14,2,FALSE) ->  | H2: ESTACION
A3: 2009-02-03 | B3: 906 | C3: =RIGHT(B3,2) -> 06 | D3: =MONTH(A3) -> 2 | E3: =#REF! ->  | F3: =VLOOKUP(E3,J3:K14,2,FALSE) ->  | H3: 1 | I3: INVIERNO | J3: ENERO | K3: 1
A4: 2009-02-04 | B4: 906 | C4: 06 | D4: 2 | F4: =VLOOKUP($E4,$A$2:$D$3000,4, FALSE) ->  | H4: 2 | I4: INVIERNO | J4: FEBRERO | K4: 2
A5: 2009-02-05 | B5: 906 | C5: 06 | D5: 2 | F5: =VLOOKUP($E5,$A$2:$D$3000,4, FALSE) ->  | H5: 3 | I5: TEMPLADO | J5: MARZO | K5: 3
A6: 2009-02-06 | B6: 906 | C6: 06 | D6: 2 | F6: =VLOOKUP($E6,$A$2:$D$3000,4, FALSE) ->  | H6: 4 | I6: TEMPLADO | J6: ABRIL | K6: 4
A7: 2009-02-07 | B7: 906 | C7: 06 | D7: 2 | H7: 5 | I7: TEMPLADO | J7: MAYO | K7: 5
A8: 2009-02-08 | B8: 906 | C8: 06 | D8: 2 | H8: 6 | I8: VERANO | J8: JUNIO | K8: 6
A9: 2009-02-09 | B9: 907 | C9: 07 | D9: 2 | H9: 7 | I9: VERANO | J9: JULIO | K9: 7
A10: 2009-02-10 | B10: 907 | C10: 07 | D10: 2 | H10: 8 | I10: VERANO | J10: AGOSTO | K10: 8
A11: 2009-02-11 | B11: 907 | C11: 07 | D11: 2 | H11: 9 | I11: TEMPLADO | J11: SEPTIEMBRE | K11: 9
A12: 2009-02-12 | B12: 907 | C12: 07 | D12: 2 | H12: 10 | I12: TEMPLADO | J12: OCTUBRE | K12: 10
A13: 2009-02-13 | B13: 907 | C13: 07 | D13: 2 | H13: 11 | I13: INVIERNO | J13: NOVIEMBRE | K13: 11
A14: 2009-02-14 | B14: 907 | C14: 07 | D14: 2 | H14: 12 | I14: INVIERNO | J14: DICIEMBRE | K14: 12
A15: 2009-02-15 | B15: 907 | C15: 07 | D15: 2
A16: 2009-02-16 | B16: 908 | C16: 08 | D16: 2
A17: 2009-02-17 | B17: 908 | C17: 08 | D17: 2
A18: 2009-02-18 | B18: 908 | C18: 08 | D18: 2
A19: 2009-02-19 | B19: 908 | C19: 08 | D19: 2
A20: 2009-02-20 | B20: 908 | C20: 08 | D20: 2
A21: 2009-02-21 | B21: 908 | C21: 08 | D21: 2
A22: 2009-02-22 | B22: 908 | C22: 08 | D22: 2
A23: 2009-02-23 | B23: 909 | C23: 09 | D23: 2
A24: 2009-02-24 | B24: 909 | C24: 09 | D24: 2
A25: 2009-02-25 | B25: 909 | C25: 09 | D25: 2
A26: 2009-02-26 | B26: 909 | C26: 09 | D26: 2
A27: 2009-02-27 | B27: 909 | C27: 09 | D27: 2
A28: 2009-02-28 | B28: 909 | C28: 09 | D28: 2
A29: 2009-03-01 | B29: 909 | C29: 09 | D29: 3
A30: 2009-03-02 | B30: 910 | C30: 10 | D30: 3
A31: 2009-03-03 | B31: 910 | C31: 10 | D31: 3
A32: 2009-03-04 | B32: 910 | C32: 10 | D32: 3
A33: 2009-03-05 | B33: 910 | C33: 10 | D33: 3
A34: 2009-03-06 | B34: 910 | C34: 10 | D34: 3
A35: 2009-03-07 | B35: 910 | C35: 10 | D35: 3
A36: 2009-03-08 | B36: 910 | C36: 10 | D36: 3
A37: 2009-03-09 | B37: 911 | C37: 11 | D37: 3
A38: 2009-03-10 | B38: 911 | C38: 11 | D38: 3
A39: 2009-03-11 | B39: 911 | C39: 11 | D39: 3
A40: 2009-03-12 | B40: 911 | C40: 11 | D40: 3
A41: 2009-03-13 | B41: 911 | C41: 11 | D41: 3
A42: 2009-03-14 | B42: 911 | C42: 11 | D42: 3
A43: 2009-03-15 | B43: 911 | C43: 11 | D43: 3
A44: 2009-03-16 | B44: 912 | C44: 12 | D44: 3
A45: 2009-03-17 | B45: 912 | C45: 12 | D45: 3
A46: 2009-03-18 | B46: 912 | C46: 12 | D46: 3
A47: 2009-03-19 | B47: 912 | C47: 12 | D47: 3
A48: 2009-03-20 | B48: 912 | C48: 12 | D48: 3
A49: 2009-03-21 | B49: 912 | C49: 12 | D49: 3
A50: 2009-03-22 | B50: 912 | C50: 12 | D50: 3
A51: 2009-03-23 | B51: 913 | C51: 13 | D51: 3
A52: 2009-03-24 | B52: 913 | C52: 13 | D52: 3
A53: 2009-03-25 | B53: 913 | C53: 13 | D53: 3
A54: 2009-03-26 | B54: 913 | C54: 13 | D54: 3
A55: 2009-03-27 | B55: 913 | C55: 13 | D55: 3
A56: 2009-03-28 | B56: 913 | C56: 13 | D56: 3
A57: 2009-03-29 | B57: 913 | C57: 13 | D57: 3
A58: 2009-03-30 | B58: 914 | C58: 14 | D58: 3
A59: 2009-03-31 | B59: 914 | C59: 14 | D59: 3
A60: 2009-04-01 | B60: 914 | C60: 14 | D60: 4
A61: 2009-04-02 | B61: 914 | C61: 14 | D61: 4
A62: 2009-04-03 | B62: 914 | C62: 14 | D62: 4
A63: 2009-04-04 | B63: 914 | C63: 14 | D63: 4
A64: 2009-04-05 | B64: 914 | C64: 14 | D64: 4
A65: 2009-04-06 | B65: 915 | C65: 15 | D65: 4
A66: 2009-04-07 | B66: 915 | C66: 15 | D66: 4
A67: 2009-04-08 | B67: 915 | C67: =RIGHT(B67,2) -> 15 | D67: =MONTH(A67) -> 4
A68: 2009-04-09 | B68: 915 | C68: 15 | D68: 4
A69: 2009-04-10 | B69: 915 | C69: 15 | D69: 4
A70: 2009-04-11 | B70: 915 | C70: 15 | D70: 4
A71: 2009-04-12 | B71: 915 | C71: 15 | D71: 4
A72: 2009-04-13 | B72: 916 | C72: 16 | D72: 4
A73: 2009-04-14 | B73: 916 | C73: 16 | D73: 4
A74: 2009-04-15 | B74: 916 | C74: 16 | D74: 4
A75: 2009-04-16 | B75: 916 | C75: 16 | D75: 4
A76: 2009-04-17 | B76: 916 | C76: 16 | D76: 4
A77: 2009-04-18 | B77: 916 | C77: 16 | D77: 4
A78: 2009-04-19 | B78: 916 | C78: 16 | D78: 4
A79: 2009-04-20 | B79: 917 | C79: 17 | D79: 4
A80: 2009-04-21 | B80: 917 | C80: 17 | D80: 4
A81: 2009-04-22 | B81: 917 | C81: 17 | D81: 4
A82: 2009-04-23 | B82: 917 | C82: 17 | D82: 4
A83: 2009-04-24 | B83: 917 | C83: 17 | D83: 4
A84: 2009-04-25 | B84: 917 | C84: 17 | D84: 4
A85: 2009-04-26 | B85: 917 | C85: 17 | D85: 4
A86: 2009-04-27 | B86: 918 | C86: 18 | D86: 4
A87: 2009-04-28 | B87: 918 | C87: 18 | D87: 4
A88: 2009-04-29 | B88: 918 | C88: 18 | D88: 4
A89: 2009-04-30 | B89: 918 | C89: 18 | D89: 4
A90: 2009-05-01 | B90: 918 | C90: 18 | D90: 5
A91: 2009-05-02 | B91: 918 | C91: 18 | D91: 5
A92: 2009-05-03 | B92: 918 | C92: 18 | D92: 5
A93: 2009-05-04 | B93: 919 | C93: 19 | D93: 5
A94: 2009-05-05 | B94: 919 | C94: 19 | D94: 5
A95: 2009-05-06 | B95: 919 | C95: 19 | D95: 5
A96: 2009-05-07 | B96: 919 | C96: 19 | D96: 5
A97: 2009-05-08 | B97: 919 | C97: 19 | D97: 5
A98: 2009-05-09 | B98: 919 | C98: 19 | D98: 5
A99: 2009-05-10 | B99: 919 | C99: 19 | D99: 5
A100: 2009-05-11 | B100: 920 | C100: 20 | D100: 5
A101: 2009-05-12 | B101: 920 | C101: 20 | D101: 5
A102: 2009-05-13 | B102: 920 | C102: 20 | D102: 5
A103: 2009-05-14 | B103: 920 | C103: 20 | D103: 5
A104: 2009-05-15 | B104: 920 | C104: 20 | D104: 5
A105: 2009-05-16 | B105: 920 | C105: 20 | D105: 5
A106: 2009-05-17 | B106: 920 | C106: 20 | D106: 5
A107: 2009-05-18 | B107: 921 | C107: 21 | D107: 5
A108: 2009-05-19 | B108: 921 | C108: 21 | D108: 5
A109: 2009-05-20 | B109: 921 | C109: 21 | D109: 5
A110: 2009-05-21 | B110: 921 | C110: 21 | D110: 5
A111: 2009-05-22 | B111: 921 | C111: 21 | D111: 5
A112: 2009-05-23 | B112: 921 | C112: 21 | D112: 5
A113: 2009-05-24 | B113: 921 | C113: 21 | D113: 5
A114: 2009-05-25 | B114: 922 | C114: 22 | D114: 5
A115: 2009-05-26 | B115: 922 | C115: 22 | D115: 5
A116: 2009-05-27 | B116: 922 | C116: 22 | D116: 5
A117: 2009-05-28 | B117: 922 | C117: 22 | D117: 5
A118: 2009-05-29 | B118: 922 | C118: 22 | D118: 5
A119: 2009-05-30 | B119: 922 | C119: 22 | D119: 5
A120: 2009-05-31 | B120: 922 | C120: 22 | D120: 5
A121: 2009-06-01 | B121: 923 | C121: 23 | D121: 6
A122: 2009-06-02 | B122: 923 | C122: 23 | D122: 6
A123: 2009-06-03 | B123: 923 | C123: 23 | D123: 6
A124: 2009-06-04 | B124: 923 | C124: 23 | D124: 6
A125: 2009-06-05 | B125: 923 | C125: 23 | D125: 6
A126: 2009-06-06 | B126: 923 | C126: 23 | D126: 6
A127: 2009-06-07 | B127: 923 | C127: 23 | D127: 6
A128: 2009-06-08 | B128: 924 | C128: 24 | D128: 6
A129: 2009-06-09 | B129: 924 | C129: 24 | D129: 6
A130: 2009-06-10 | B130: 924 | C130: 24 | D130: 6
A131: 2009-06-11 | B131: 924 | C131: =RIGHT(B131,2) -> 24 | D131: =MONTH(A131) -> 6
A132: 2009-06-12 | B132: 924 | C132: 24 | D132: 6
A133: 2009-06-13 | B133: 924 | C133: 24 | D133: 6
A134: 2009-06-14 | B134: 924 | C134: 24 | D134: 6
A135: 2009-06-15 | B135: 925 | C135: 25 | D135: 6
A136: 2009-06-16 | B136: 925 | C136: 25 | D136: 6
A137: 2009-06-17 | B137: 925 | C137: 25 | D137: 6
A138: 2009-06-18 | B138: 925 | C138: 25 | D138: 6
A139: 2009-06-19 | B139: 925 | C139: 25 | D139: 6
A140: 2009-06-20 | B140: 925 | C140: 25 | D140: 6
A141: 2009-06-21 | B141: 925 | C141: 25 | D141: 6
A142: 2009-06-22 | B142: 926 | C142: 26 | D142: 6
A143: 2009-06-23 | B143: 926 | C143: 26 | D143: 6
A144: 2009-06-24 | B144: 926 | C144: 26 | D144: 6
A145: 2009-06-25 | B145: 926 | C145: 26 | D145: 6
A146: 2009-06-26 | B146: 926 | C146: 26 | D146: 6
A147: 2009-06-27 | B147: 926 | C147: 26 | D147: 6
A148: 2009-06-28 | B148: 926 | C148: 26 | D148: 6
A149: 2009-06-29 | B149: 927 | C149: 27 | D149: 6
A150: 2009-06-30 | B150: 927 | C150: 27 | D150: 6
A151: 2009-07-01 | B151: 927 | C151: 27 | D151: 7
A152: 2009-07-02 | B152: 927 | C152: 27 | D152: 7
A153: 2009-07-03 | B153: 927 | C153: 27 | D153: 7
A154: 2009-07-04 | B154: 927 | C154: 27 | D154: 7
A155: 2009-07-05 | B155: 927 | C155: 27 | D155: 7
A156: 2009-07-06 | B156: 928 | C156: 28 | D156: 7
A157: 2009-07-07 | B157: 928 | C157: 28 | D157: 7
A158: 2009-07-08 | B158: 928 | C158: 28 | D158: 7
A159: 2009-07-09 | B159: 928 | C159: 28 | D159: 7
A160: 2009-07-10 | B160: 928 | C160: 28 | D160: 7
A161: 2009-07-11 | B161: 928 | C161: 28 | D161: 7
A162: 2009-07-12 | B162: 928 | C162: 28 | D162: 7
A163: 2009-07-13 | B163: 929 | C163: 29 | D163: 7
A164: 2009-07-14 | B164: 929 | C164: 29 | D164: 7
A165: 2009-07-15 | B165: 929 | C165: 29 | D165: 7
A166: 2009-07-16 | B166: 929 | C166: 29 | D166: 7
A167: 2009-07-17 | B167: 929 | C167: 29 | D167: 7
A168: 2009-07-18 | B168: 929 | C168: 29 | D168: 7
A169: 2009-07-19 | B169: 929 | C169: 29 | D169: 7
A170: 2009-07-20 | B170: 930 | C170: 30 | D170: 7
A171: 2009-07-21 | B171: 930 | C171: 30 | D171: 7
A172: 2009-07-22 | B172: 930 | C172: 30 | D172: 7
A173: 2009-07-23 | B173: 930 | C173: 30 | D173: 7
A174: 2009-07-24 | B174: 930 | C174: 30 | D174: 7
A175: 2009-07-25 | B175: 930 | C175: 30 | D175: 7
A176: 2009-07-26 | B176: 930 | C176: 30 | D176: 7
A177: 2009-07-27 | B177: 931 | C177: 31 | D177: 7
A178: 2009-07-28 | B178: 931 | C178: 31 | D178: 7
A179: 2009-07-29 | B179: 931 | C179: 31 | D179: 7
A180: 2009-07-30 | B180: 931 | C180: 31 | D180: 7
A181: 2009-07-31 | B181: 931 | C181: 31 | D181: 7
A182: 2009-08-01 | B182: 931 | C182: 31 | D182: 8
A183: 2009-08-02 | B183: 931 | C183: 31 | D183: 8
A184: 2009-08-03 | B184: 932 | C184: 32 | D184: 8
A185: 2009-08-04 | B185: 932 | C185: 32 | D185: 8
A186: 2009-08-05 | B186: 932 | C186: 32 | D186: 8
A187: 2009-08-06 | B187: 932 | C187: 32 | D187: 8
A188: 2009-08-07 | B188: 932 | C188: 32 | D188: 8
A189: 2009-08-08 | B189: 932 | C189: 32 | D189: 8
A190: 2009-08-09 | B190: 932 | C190: 32 | D190: 8
A191: 2009-08-10 | B191: 933 | C191: 33 | D191: 8
A192: 2009-08-11 | B192: 933 | C192: 33 | D192: 8
A193: 2009-08-12 | B193: 933 | C193: 33 | D193: 8
A194: 2009-08-13 | B194: 933 | C194: 33 | D194: 8
A195: 2009-08-14 | B195: 933 | C195: =RIGHT(B195,2) -> 33 | D195: =MONTH(A195) -> 8
A196: 2009-08-15 | B196: 933 | C196: 33 | D196: 8
A197: 2009-08-16 | B197: 933 | C197: 33 | D197: 8
A198: 2009-08-17 | B198: 934 | C198: 34 | D198: 8
A199: 2009-08-18 | B199: 934 | C199: 34 | D199: 8
A200: 2009-08-19 | B200: 934 | C200: 34 | D200: 8
... 2691 more rows

Sheet HOJA DE DATOS
A1: ='[1]HOJA GENERAL DATOS IMPORTADOS'!A1 -> ESPECIE | B1: ='[1]HOJA GENERAL DATOS IMPORTADOS'!B1 -> RAZA | C1: ='[1]HOJA GENERAL DATOS IMPORTADOS'!C1 -> EPOCA | D1: ='[1]HOJA GENERAL DATOS IMPORTADOS'!D1 -> CuentaDeNºREGISTRO | E1: ='[1]HOJA GENERAL DATOS IMPORTADOS'!E1 -> PromedioDeLECHE/ANIMALDIA | F1: ='[1]HOJA GENERAL DATOS IMPORTADOS'!F1 -> PromedioDe%EQ | G1: ='[1]HOJA GENERAL DATOS IMPORTADOS'!G1 -> PromedioDegrEQ/ANIMALDIA | H1: ='[1]HOJA GENERAL DATOS IMPORTADOS'!H1 -> DesvEstDegrEQ/ANIMALDIA | I1: ='[1]HOJA GENERAL DATOS IMPORTADOS'!I1 -> 0 | J1: ='[1]HOJA GENERAL DATOS IMPORTADOS'!J1 -> 0 | K1: ='[1]HOJA GENERAL DATOS IMPORTADOS'!K1 -> 0 | L1: ='[1]HOJA GENERAL DATOS IMPORTADOS'!L1 -> 0 | M1: ='[1]HOJA GENERAL DATOS IMPORTADOS'!M1 -> 0 | N1: ='[1]HOJA GENERAL DATOS IMPORTADOS'!N1 -> 0 | O1: ='[1]HOJA GENERAL DATOS IMPORTADOS'!O1 -> 0 | P1: ='[1]HOJA GENERAL DATOS IMPORTADOS'!P1 -> 0 | Q1: ='[1]HOJA GENERAL DATOS IMPORTADOS'!Q1 -> 0 | R1: ='[1]HOJA GENERAL DATOS IMPORTADOS'!R1 -> 0 | S1: ='[1]HOJA GENERAL DATOS IMPORTADOS'!S1 -> 0 | T1: ='[1]HOJA GENERAL DATOS IMPORTADOS'!T1 -> 0 | U1: ='[1]HOJA GENERAL DATOS IMPORTADOS'!U1 -> 0 | V1: ='[1]HOJA GENERAL DATOS IMPORTADOS'!V1 -> 0 | W1: ='[1]HOJA GENERAL DATOS IMPORTADOS'!W1 -> 0 | X1: ='[1]HOJA GENERAL DATOS IMPORTADOS'!X1 -> 0 | Y1: ='[1]HOJA GENERAL DATOS IMPORTADOS'!Y1 -> 0 | Z1: ='[1]HOJA GENERAL DATOS IMPORTADOS'!Z1 -> 0 | AA1: ='[1]HOJA GENERAL DATOS IMPORTADOS'!AA1 -> 0 | AB1: ='[1]HOJA GENERAL DATOS IMPORTADOS'!AB1 -> 0 | AC1: ='[1]HOJA GENERAL DATOS IMPORTADOS'!AC1 -> 0 | AD1: ='[1]HOJA GENERAL DATOS IMPORTADOS'!AD1 -> 0 | AE1: ='[1]HOJA GENERAL DATOS IMPORTADOS'!AE1 -> 0 | AF1: ='[1]HOJA GENERAL DATOS IMPORTADOS'!AF1 -> 0 | AG1: ='[1]HOJA GENERAL DATOS IMPORTADOS'!AG1 -> 0 | AH1: ='[1]HOJA GENERAL DATOS IMPORTADOS'!AH1 -> 0 | AI1: ='[1]HOJA GENERAL DATOS IMPORTADOS'!AI1 -> 0
I2: ='[1]HOJA GENERAL DATOS IMPORTADOS'!I2 -> 0 | J2: ='[1]HOJA GENERAL DATOS IMPORTADOS'!J2 -> 0 | K2: ='[1]HOJA GENERAL DATOS IMPORTADOS'!K2 -> 0 | L2: ='[1]HOJA GENERAL DATOS IMPORTADOS'!L2 -> 0 | M2: ='[1]HOJA GENERAL DATOS IMPORTADOS'!M2 -> 0 | N2: ='[1]HOJA GENERAL DATOS IMPORTADOS'!N2 -> 0 | O2: ='[1]HOJA GENERAL DATOS IMPORTADOS'!O2 -> 0 | P2: ='[1]HOJA GENERAL DATOS IMPORTADOS'!P2 -> 0 | Q2: ='[1]HOJA GENERAL DATOS IMPORTADOS'!Q2 -> 0 | R2: ='[1]HOJA GENERAL DATOS IMPORTADOS'!R2 -> 0 | S2: ='[1]HOJA GENERAL DATOS IMPORTADOS'!S2 -> 0 | T2: ='[1]HOJA GENERAL DATOS IMPORTADOS'!T2 -> 0 | U2: ='[1]HOJA GENERAL DATOS IMPORTADOS'!U2 -> 0 | V2: ='[1]HOJA GENERAL DATOS IMPORTADOS'!V2 -> 0 | W2: ='[1]HOJA GENERAL DATOS IMPORTADOS'!W2 -> 0 | X2: ='[1]HOJA GENERAL DATOS IMPORTADOS'!X2 -> 0 | Y2: ='[1]HOJA GENERAL DATOS IMPORTADOS'!Y2 -> 0 | Z2: ='[1]HOJA GENERAL DATOS IMPORTADOS'!Z2 -> 0 | AA2: ='[1]HOJA GENERAL DATOS IMPORTADOS'!AA2 -> 0 | AB2: ='[1]HOJA GENERAL DATOS IMPORTADOS'!AB2 -> 0 | AC2: ='[1]HOJA GENERAL DATOS IMPORTADOS'!AC2 -> 0 | AD2: ='[1]HOJA GENERAL DATOS IMPORTADOS'!AD2 -> 0 | AE2: ='[1]HOJA GENERAL DATOS IMPORTADOS'!AE2 -> 0 | AF2: ='[1]HOJA GENERAL DATOS IMPORTADOS'!AF2 -> 0 | AG2: ='[1]HOJA GENERAL DATOS IMPORTADOS'!AG2 -> 0 | AH2: ='[1]HOJA GENERAL DATOS IMPORTADOS'!AH2 -> 0 | AI2: ='[1]HOJA GENERAL DATOS IMPORTADOS'!AI2 -> 0
I3: ='[1]HOJA GENERAL DATOS IMPORTADOS'!I3 -> 0 | J3: ='[1]HOJA GENERAL DATOS IMPORTADOS'!J3 -> 0 | K3: ='[1]HOJA GENERAL DATOS IMPORTADOS'!K3 -> 0 | L3: ='[1]HOJA GENERAL DATOS IMPORTADOS'!L3 -> 0 | M3: ='[1]HOJA GENERAL DATOS IMPORTADOS'!M3 -> 0 | N3: ='[1]HOJA GENERAL DATOS IMPORTADOS'!N3 -> 0 | O3: ='[1]HOJA GENERAL DATOS IMPORTADOS'!O3 -> 0 | P3: ='[1]HOJA GENERAL DATOS IMPORTADOS'!P3 -> 0 | Q3: ='[1]HOJA GENERAL DATOS IMPORTADOS'!Q3 -> 0 | R3: ='[1]HOJA GENERAL DATOS IMPORTADOS'!R3 -> 0 | S3: ='[1]HOJA GENERAL DATOS IMPORTADOS'!S3 -> 0 | T3: ='[1]HOJA GENERAL DATOS IMPORTADOS'!T3 -> 0 | U3: ='[1]HOJA GENERAL DATOS IMPORTADOS'!U3 -> 0 | V3: ='[1]HOJA GENERAL DATOS IMPORTADOS'!V3 -> 0 | W3: ='[1]HOJA GENERAL DATOS IMPORTADOS'!W3 -> 0 | X3: ='[1]HOJA GENERAL DATOS IMPORTADOS'!X3 -> 0 | Y3: ='[1]HOJA GENERAL DATOS IMPORTADOS'!Y3 -> 0 | Z3: ='[1]HOJA GENERAL DATOS IMPORTADOS'!Z3 -> 0 | AA3: ='[1]HOJA GENERAL DATOS IMPORTADOS'!AA3 -> 0 | AB3: ='[1]HOJA GENERAL DATOS IMPORTADOS'!AB3 -> 0 | AC3: ='[1]HOJA GENERAL DATOS IMPORTADOS'!AC3 -> 0 | AD3: ='[1]HOJA GENERAL DATOS IMPORTADOS'!AD3 -> 0 | AE3: ='[1]HOJA GENERAL DATOS IMPORTADOS'!AE3 -> 0 | AF3: ='[1]HOJA GENERAL DATOS IMPORTADOS'!AF3 -> 0 | AG3: ='[1]HOJA GENERAL DATOS IMPORTADOS'!AG3 -> 0 | AH3: ='[1]HOJA GENERAL DATOS IMPORTADOS'!AH3 -> 0 | AI3: ='[1]HOJA GENERAL DATOS IMPORTADOS'!AI3 -> 0
I4: ='[1]HOJA GENERAL DATOS IMPORTADOS'!I4 -> 0 | J4: ='[1]HOJA GENERAL DATOS IMPORTADOS'!J4 -> 0 | K4: ='[1]HOJA GENERAL DATOS IMPORTADOS'!K4 -> 0 | L4: ='[1]HOJA GENERAL DATOS IMPORTADOS'!L4 -> 0 | M4: ='[1]HOJA GENERAL DATOS IMPORTADOS'!M4 -> 0 | N4: ='[1]HOJA GENERAL DATOS IMPORTADOS'!N4 -> 0 | O4: ='[1]HOJA GENERAL DATOS IMPORTADOS'!O4 -> 0 | P4: ='[1]HOJA GENERAL DATOS IMPORTADOS'!P4 -> 0 | Q4: ='[1]HOJA GENERAL DATOS IMPORTADOS'!Q4 -> 0 | R4: ='[1]HOJA GENERAL DATOS IMPORTADOS'!R4 -> 0 | S4: ='[1]HOJA GENERAL DATOS IMPORTADOS'!S4 -> 0 | T4: ='[1]HOJA GENERAL DATOS IMPORTADOS'!T4 -> 0 | U4: ='[1]HOJA GENERAL DATOS IMPORTADOS'!U4 -> 0 | V4: ='[1]HOJA GENERAL DATOS IMPORTADOS'!V4 -> 0 | W4: ='[1]HOJA GENERAL DATOS IMPORTADOS'!W4 -> 0 | X4: ='[1]HOJA GENERAL DATOS IMPORTADOS'!X4 -> 0 | Y4: ='[1]HOJA GENERAL DATOS IMPORTADOS'!Y4 -> 0 | Z4: ='[1]HOJA GENERAL DATOS IMPORTADOS'!Z4 -> 0 | AA4: ='[1]HOJA GENERAL DATOS IMPORTADOS'!AA4 -> 0 | AB4: ='[1]HOJA GENERAL DATOS IMPORTADOS'!AB4 -> 0 | AC4: ='[1]HOJA GENERAL DATOS IMPORTADOS'!AC4 -> 0 | AD4: ='[1]HOJA GENERAL DATOS IMPORTADOS'!AD4 -> 0 | AE4: ='[1]HOJA GENERAL DATOS IMPORTADOS'!AE4 -> 0 | AF4: ='[1]HOJA GENERAL DATOS IMPORTADOS'!AF4 -> 0 | AG4: ='[1]HOJA GENERAL DATOS IMPORTADOS'!AG4 -> 0 | AH4: ='[1]HOJA GENERAL DATOS IMPORTADOS'!AH4 -> 0 | AI4: ='[1]HOJA GENERAL DATOS IMPORTADOS'!AI4 -> 0
I5: ='[1]HOJA GENERAL DATOS IMPORTADOS'!I5 -> 0 | J5: ='[1]HOJA GENERAL DATOS IMPORTADOS'!J5 -> 0 | K5: ='[1]HOJA GENERAL DATOS IMPORTADOS'!K5 -> 0 | L5: ='[1]HOJA GENERAL DATOS IMPORTADOS'!L5 -> 0 | M5: ='[1]HOJA GENERAL DATOS IMPORTADOS'!M5 -> 0 | N5: ='[1]HOJA GENERAL DATOS IMPORTADOS'!N5 -> 0 | O5: ='[1]HOJA GENERAL DATOS IMPORTADOS'!O5 -> 0 | P5: ='[1]HOJA GENERAL DATOS IMPORTADOS'!P5 -> 0 | Q5: ='[1]HOJA GENERAL DATOS IMPORTADOS'!Q5 -> 0 | R5: ='[1]HOJA GENERAL DATOS IMPORTADOS'!R5 -> 0 | S5: ='[1]HOJA GENERAL DATOS IMPORTADOS'!S5 -> 0 | T5: ='[1]HOJA GENERAL DATOS IMPORTADOS'!T5 -> 0 | U5: ='[1]HOJA GENERAL DATOS IMPORTADOS'!U5 -> 0 | V5: ='[1]HOJA GENERAL DATOS IMPORTADOS'!V5 -> 0 | W5: ='[1]HOJA GENERAL DATOS IMPORTADOS'!W5 -> 0 | X5: ='[1]HOJA GENERAL DATOS IMPORTADOS'!X5 -> 0 | Y5: ='[1]HOJA GENERAL DATOS IMPORTADOS'!Y5 -> 0 | Z5: ='[1]HOJA GENERAL DATOS IMPORTADOS'!Z5 -> 0 | AA5: ='[1]HOJA GENERAL DATOS IMPORTADOS'!AA5 -> 0 | AB5: ='[1]HOJA GENERAL DATOS IMPORTADOS'!AB5 -> 0 | AC5: ='[1]HOJA GENERAL DATOS IMPORTADOS'!AC5 -> 0 | AD5: ='[1]HOJA GENERAL DATOS IMPORTADOS'!AD5 -> 0 | AE5: ='[1]HOJA GENERAL DATOS IMPORTADOS'!AE5 -> 0 | AF5: ='[1]HOJA GENERAL DATOS IMPORTADOS'!AF5 -> 0 | AG5: ='[1]HOJA GENERAL DATOS IMPORTADOS'!AG5 -> 0 | AH5: ='[1]HOJA GENERAL DATOS IMPORTADOS'!AH5 -> 0 | AI5: ='[1]HOJA GENERAL DATOS IMPORTADOS'!AI5 -> 0
I6: ='[1]HOJA GENERAL DATOS IMPORTADOS'!I6 -> 0 | J6: ='[1]HOJA GENERAL DATOS IMPORTADOS'!J6 -> 0 | K6: ='[1]HOJA GENERAL DATOS IMPORTADOS'!K6 -> 0 | L6: ='[1]HOJA GENERAL DATOS IMPORTADOS'!L6 -> 0 | M6: ='[1]HOJA GENERAL DATOS IMPORTADOS'!M6 -> 0 | N6: ='[1]HOJA GENERAL DATOS IMPORTADOS'!N6 -> 0 | O6: ='[1]HOJA GENERAL DATOS IMPORTADOS'!O6 -> 0 | P6: ='[1]HOJA GENERAL DATOS IMPORTADOS'!P6 -> 0 | Q6: ='[1]HOJA GENERAL DATOS IMPORTADOS'!Q6 -> 0 | R6: ='[1]HOJA GENERAL DATOS IMPORTADOS'!R6 -> 0 | S6: ='[1]HOJA GENERAL DATOS IMPORTADOS'!S6 -> 0 | T6: ='[1]HOJA GENERAL DATOS IMPORTADOS'!T6 -> 0 | U6: ='[1]HOJA GENERAL DATOS IMPORTADOS'!U6 -> 0 | V6: ='[1]HOJA GENERAL DATOS IMPORTADOS'!V6 -> 0 | W6: ='[1]HOJA GENERAL DATOS IMPORTADOS'!W6 -> 0 | X6: ='[1]HOJA GENERAL DATOS IMPORTADOS'!X6 -> 0 | Y6: ='[1]HOJA GENERAL DATOS IMPORTADOS'!Y6 -> 0 | Z6: ='[1]HOJA GENERAL DATOS IMPORTADOS'!Z6 -> 0 | AA6: ='[1]HOJA GENERAL DATOS IMPORTADOS'!AA6 -> 0 | AB6: ='[1]HOJA GENERAL DATOS IMPORTADOS'!AB6 -> 0 | AC6: ='[1]HOJA GENERAL DATOS IMPORTADOS'!AC6 -> 0 | AD6: ='[1]HOJA GENERAL DATOS IMPORTADOS'!AD6 -> 0 | AE6: ='[1]HOJA GENERAL DATOS IMPORTADOS'!AE6 -> 0 | AF6: ='[1]HOJA GENERAL DATOS IMPORTADOS'!AF6 -> 0 | AG6: ='[1]HOJA GENERAL DATOS IMPORTADOS'!AG6 -> 0 | AH6: ='[1]HOJA GENERAL DATOS IMPORTADOS'!AH6 -> 0 | AI6: ='[1]HOJA GENERAL DATOS IMPORTADOS'!AI6 -> 0
I7: ='[1]HOJA GENERAL DATOS IMPORTADOS'!I7 -> 0 | J7: ='[1]HOJA GENERAL DATOS IMPORTADOS'!J7 -> 0 | K7: ='[1]HOJA GENERAL DATOS IMPORTADOS'!K7 -> 0 | L7: ='[1]HOJA GENERAL DATOS IMPORTADOS'!L7 -> 0 | M7: ='[1]HOJA GENERAL DATOS IMPORTADOS'!M7 -> 0 | N7: ='[1]HOJA GENERAL DATOS IMPORTADOS'!N7 -> 0 | O7: ='[1]HOJA GENERAL DATOS IMPORTADOS'!O7 -> 0 | P7: ='[1]HOJA GENERAL DATOS IMPORTADOS'!P7 -> 0 | Q7: ='[1]HOJA GENERAL DATOS IMPORTADOS'!Q7 -> 0 | R7: ='[1]HOJA GENERAL DATOS IMPORTADOS'!R7 -> 0 | S7: ='[1]HOJA GENERAL DATOS IMPORTADOS'!S7 -> 0 | T7: ='[1]HOJA GENERAL DATOS IMPORTADOS'!T7 -> 0 | U7: ='[1]HOJA GENERAL DATOS IMPORTADOS'!U7 -> 0 | V7: ='[1]HOJA GENERAL DATOS IMPORTADOS'!V7 -> 0 | W7: ='[1]HOJA GENERAL DATOS IMPORTADOS'!W7 -> 0 | X7: ='[1]HOJA GENERAL DATOS IMPORTADOS'!X7 -> 0 | Y7: ='[1]HOJA GENERAL DATOS IMPORTADOS'!Y7 -> 0 | Z7: ='[1]HOJA GENERAL DATOS IMPORTADOS'!Z7 -> 0 | AA7: ='[1]HOJA GENERAL DATOS IMPORTADOS'!AA7 -> 0 | AB7: ='[1]HOJA GENERAL DATOS IMPORTADOS'!AB7 -> 0 | AC7: ='[1]HOJA GENERAL DATOS IMPORTADOS'!AC7 -> 0 | AD7: ='[1]HOJA GENERAL DATOS IMPORTADOS'!AD7 -> 0 | AE7: ='[1]HOJA GENERAL DATOS IMPORTADOS'!AE7 -> 0 | AF7: ='[1]HOJA GENERAL DATOS IMPORTADOS'!AF7 -> 0 | AG7: ='[1]HOJA GENERAL DATOS IMPORTADOS'!AG7 -> 0 | AH7: ='[1]HOJA GENERAL DATOS IMPORTADOS'!AH7 -> 0 | AI7: ='[1]HOJA GENERAL DATOS IMPORTADOS'!AI7 -> 0
I8: ='[1]HOJA GENERAL DATOS IMPORTADOS'!I8 -> 0 | J8: ='[1]HOJA GENERAL DATOS IMPORTADOS'!J8 -> 0 | K8: ='[1]HOJA GENERAL DATOS IMPORTADOS'!K8 -> 0 | L8: ='[1]HOJA GENERAL DATOS IMPORTADOS'!L8 -> 0 | M8: ='[1]HOJA GENERAL DATOS IMPORTADOS'!M8 -> 0 | N8: ='[1]HOJA GENERAL DATOS IMPORTADOS'!N8 -> 0 | O8: ='[1]HOJA GENERAL DATOS IMPORTADOS'!O8 -> 0 | P8: ='[1]HOJA GENERAL DATOS IMPORTADOS'!P8 -> 0 | Q8: ='[1]HOJA GENERAL DATOS IMPORTADOS'!Q8 -> 0 | R8: ='[1]HOJA GENERAL DATOS IMPORTADOS'!R8 -> 0 | S8: ='[1]HOJA GENERAL DATOS IMPORTADOS'!S8 -> 0 | T8: ='[1]HOJA GENERAL DATOS IMPORTADOS'!T8 -> 0 | U8: ='[1]HOJA GENERAL DATOS IMPORTADOS'!U8 -> 0 | V8: ='[1]HOJA GENERAL DATOS IMPORTADOS'!V8 -> 0 | W8: ='[1]HOJA GENERAL DATOS IMPORTADOS'!W8 -> 0 | X8: ='[1]HOJA GENERAL DATOS IMPORTADOS'!X8 -> 0 | Y8: ='[1]HOJA GENERAL DATOS IMPORTADOS'!Y8 -> 0 | Z8: ='[1]HOJA GENERAL DATOS IMPORTADOS'!Z8 -> 0 | AA8: ='[1]HOJA GENERAL DATOS IMPORTADOS'!AA8 -> 0 | AB8: ='[1]HOJA GENERAL DATOS IMPORTADOS'!AB8 -> 0 | AC8: ='[1]HOJA GENERAL DATOS IMPORTADOS'!AC8 -> 0 | AD8: ='[1]HOJA GENERAL DATOS IMPORTADOS'!AD8 -> 0 | AE8: ='[1]HOJA GENERAL DATOS IMPORTADOS'!AE8 -> 0 | AF8: ='[1]HOJA GENERAL DATOS IMPORTADOS'!AF8 -> 0 | AG8: ='[1]HOJA GENERAL DATOS IMPORTADOS'!AG8 -> 0 | AH8: ='[1]HOJA GENERAL DATOS IMPORTADOS'!AH8 -> 0 | AI8: ='[1]HOJA GENERAL DATOS IMPORTADOS'!AI8 -> 0
I9: ='[1]HOJA GENERAL DATOS IMPORTADOS'!I9 -> 0 | J9: ='[1]HOJA GENERAL DATOS IMPORTADOS'!J9 -> 0 | K9: ='[1]HOJA GENERAL DATOS IMPORTADOS'!K9 -> 0 | L9: ='[1]HOJA GENERAL DATOS IMPORTADOS'!L9 -> 0 | M9: ='[1]HOJA GENERAL DATOS IMPORTADOS'!M9 -> 0 | N9: ='[1]HOJA GENERAL DATOS IMPORTADOS'!N9 -> 0 | O9: ='[1]HOJA GENERAL DATOS IMPORTADOS'!O9 -> 0 | P9: ='[1]HOJA GENERAL DATOS IMPORTADOS'!P9 -> 0 | Q9: ='[1]HOJA GENERAL DATOS IMPORTADOS'!Q9 -> 0 | R9: ='[1]HOJA GENERAL DATOS IMPORTADOS'!R9 -> 0 | S9: ='[1]HOJA GENERAL DATOS IMPORTADOS'!S9 -> 0 | T9: ='[1]HOJA GENERAL DATOS IMPORTADOS'!T9 -> 0 | U9: ='[1]HOJA GENERAL DATOS IMPORTADOS'!U9 -> 0 | V9: ='[1]HOJA GENERAL DATOS IMPORTADOS'!V9 -> 0 | W9: ='[1]HOJA GENERAL DATOS IMPORTADOS'!W9 -> 0 | X9: ='[1]HOJA GENERAL DATOS IMPORTADOS'!X9 -> 0 | Y9: ='[1]HOJA GENERAL DATOS IMPORTADOS'!Y9 -> 0 | Z9: ='[1]HOJA GENERAL DATOS IMPORTADOS'!Z9 -> 0 | AA9: ='[1]HOJA GENERAL DATOS IMPORTADOS'!AA9 -> 0 | AB9: ='[1]HOJA GENERAL DATOS IMPORTADOS'!AB9 -> 0 | AC9: ='[1]HOJA GENERAL DATOS IMPORTADOS'!AC9 -> 0 | AD9: ='[1]HOJA GENERAL DATOS IMPORTADOS'!AD9 -> 0 | AE9: ='[1]HOJA GENERAL DATOS IMPORTADOS'!AE9 -> 0 | AF9: ='[1]HOJA GENERAL DATOS IMPORTADOS'!AF9 -> 0 | AG9: ='[1]HOJA GENERAL DATOS IMPORTADOS'!AG9 -> 0 | AH9: ='[1]HOJA GENERAL DATOS IMPORTADOS'!AH9 -> 0 | AI9: ='[1]HOJA GENERAL DATOS IMPORTADOS'!AI9 -> 0
I10: ='[1]HOJA GENERAL DATOS IMPORTADOS'!I10 -> 0 | J10: ='[1]HOJA GENERAL DATOS IMPORTADOS'!J10 -> 0 | K10: ='[1]HOJA GENERAL DATOS IMPORTADOS'!K10 -> 0 | L10: ='[1]HOJA GENERAL DATOS IMPORTADOS'!L10 -> 0 | M10: ='[1]HOJA GENERAL DATOS IMPORTADOS'!M10 -> 0 | N10: ='[1]HOJA GENERAL DATOS IMPORTADOS'!N10 -> 0 | O10: ='[1]HOJA GENERAL DATOS IMPORTADOS'!O10 -> 0 | P10: ='[1]HOJA GENERAL DATOS IMPORTADOS'!P10 -> 0 | Q10: ='[1]HOJA GENERAL DATOS IMPORTADOS'!Q10 -> 0 | R10: ='[1]HOJA GENERAL DATOS IMPORTADOS'!R10 -> 0 | S10: ='[1]HOJA GENERAL DATOS IMPORTADOS'!S10 -> 0 | T10: ='[1]HOJA GENERAL DATOS IMPORTADOS'!T10 -> 0 | U10: ='[1]HOJA GENERAL DATOS IMPORTADOS'!U10 -> 0 | V10: ='[1]HOJA GENERAL DATOS IMPORTADOS'!V10 -> 0 | W10: ='[1]HOJA GENERAL DATOS IMPORTADOS'!W10 -> 0 | X10: ='[1]HOJA GENERAL DATOS IMPORTADOS'!X10 -> 0 | Y10: ='[1]HOJA GENERAL DATOS IMPORTADOS'!Y10 -> 0 | Z10: ='[1]HOJA GENERAL DATOS IMPORTADOS'!Z10 -> 0 | AA10: ='[1]HOJA GENERAL DATOS IMPORTADOS'!AA10 -> 0 | AB10: ='[1]HOJA GENERAL DATOS IMPORTADOS'!AB10 -> 0 | AC10: ='[1]HOJA GENERAL DATOS IMPORTADOS'!AC10 -> 0 | AD10: ='[1]HOJA GENERAL DATOS IMPORTADOS'!AD10 -> 0 | AE10: ='[1]HOJA GENERAL DATOS IMPORTADOS'!AE10 -> 0 | AF10: ='[1]HOJA GENERAL DATOS IMPORTADOS'!AF10 -> 0 | AG10: ='[1]HOJA GENERAL DATOS IMPORTADOS'!AG10 -> 0 | AH10: ='[1]HOJA GENERAL DATOS IMPORTADOS'!AH10 -> 0 | AI10: ='[1]HOJA GENERAL DATOS IMPORTADOS'!AI10 -> 0
I11: ='[1]HOJA GENERAL DATOS IMPORTADOS'!I11 -> 0 | J11: ='[1]HOJA GENERAL DATOS IMPORTADOS'!J11 -> 0 | K11: ='[1]HOJA GENERAL DATOS IMPORTADOS'!K11 -> 0 | L11: ='[1]HOJA GENERAL DATOS IMPORTADOS'!L11 -> 0 | M11: ='[1]HOJA GENERAL DATOS IMPORTADOS'!M11 -> 0 | N11: ='[1]HOJA GENERAL DATOS IMPORTADOS'!N11 -> 0 | O11: ='[1]HOJA GENERAL DATOS IMPORTADOS'!O11 -> 0 | P11: ='[1]HOJA GENERAL DATOS IMPORTADOS'!P11 -> 0 | Q11: ='[1]HOJA GENERAL DATOS IMPORTADOS'!Q11 -> 0 | R11: ='[1]HOJA GENERAL DATOS IMPORTADOS'!R11 -> 0 | S11: ='[1]HOJA GENERAL DATOS IMPORTADOS'!S11 -> 0 | T11: ='[1]HOJA GENERAL DATOS IMPORTADOS'!T11 -> 0 | U11: ='[1]HOJA GENERAL DATOS IMPORTADOS'!U11 -> 0 | V11: ='[1]HOJA GENERAL DATOS IMPORTADOS'!V11 -> 0 | W11: ='[1]HOJA GENERAL DATOS IMPORTADOS'!W11 -> 0 | X11: ='[1]HOJA GENERAL DATOS IMPORTADOS'!X11 -> 0 | Y11: ='[1]HOJA GENERAL DATOS IMPORTADOS'!Y11 -> 0 | Z11: ='[1]HOJA GENERAL DATOS IMPORTADOS'!Z11 -> 0 | AA11: ='[1]HOJA GENERAL DATOS IMPORTADOS'!AA11 -> 0 | AB11: ='[1]HOJA GENERAL DATOS IMPORTADOS'!AB11 -> 0 | AC11: ='[1]HOJA GENERAL DATOS IMPORTADOS'!AC11 -> 0 | AD11: ='[1]HOJA GENERAL DATOS IMPORTADOS'!AD11 -> 0 | AE11: ='[1]HOJA GENERAL DATOS IMPORTADOS'!AE11 -> 0 | AF11: ='[1]HOJA GENERAL DATOS IMPORTADOS'!AF11 -> 0 | AG11: ='[1]HOJA GENERAL DATOS IMPORTADOS'!AG11 -> 0 | AH11: ='[1]HOJA GENERAL DATOS IMPORTADOS'!AH11 -> 0 | AI11: ='[1]HOJA GENERAL DATOS IMPORTADOS'!AI11 -> 0
I12: ='[1]HOJA GENERAL DATOS IMPORTADOS'!I12 -> 0 | J12: ='[1]HOJA GENERAL DATOS IMPORTADOS'!J12 -> 0 | K12: ='[1]HOJA GENERAL DATOS IMPORTADOS'!K12 -> 0 | L12: ='[1]HOJA GENERAL DATOS IMPORTADOS'!L12 -> 0 | M12: ='[1]HOJA GENERAL DATOS IMPORTADOS'!M12 -> 0 | N12: ='[1]HOJA GENERAL DATOS IMPORTADOS'!N12 -> 0 | O12: ='[1]HOJA GENERAL DATOS IMPORTADOS'!O12 -> 0 | P12: ='[1]HOJA GENERAL DATOS IMPORTADOS'!P12 -> 0 | Q12: ='[1]HOJA GENERAL DATOS IMPORTADOS'!Q12 -> 0 | R12: ='[1]HOJA GENERAL DATOS IMPORTADOS'!R12 -> 0 | S12: ='[1]HOJA GENERAL DATOS IMPORTADOS'!S12 -> 0 | T12: ='[1]HOJA GENERAL DATOS IMPORTADOS'!T12 -> 0 | U12: ='[1]HOJA GENERAL DATOS IMPORTADOS'!U12 -> 0 | V12: ='[1]HOJA GENERAL DATOS IMPORTADOS'!V12 -> 0 | W12: ='[1]HOJA GENERAL DATOS IMPORTADOS'!W12 -> 0 | X12: ='[1]HOJA GENERAL DATOS IMPORTADOS'!X12 -> 0 | Y12: ='[1]HOJA GENERAL DATOS IMPORTADOS'!Y12 -> 0 | Z12: ='[1]HOJA GENERAL DATOS IMPORTADOS'!Z12 -> 0 | AA12: ='[1]HOJA GENERAL DATOS IMPORTADOS'!AA12 -> 0 | AB12: ='[1]HOJA GENERAL DATOS IMPORTADOS'!AB12 -> 0 | AC12: ='[1]HOJA GENERAL DATOS IMPORTADOS'!AC12 -> 0 | AD12: ='[1]HOJA GENERAL DATOS IMPORTADOS'!AD12 -> 0 | AE12: ='[1]HOJA GENERAL DATOS IMPORTADOS'!AE12 -> 0 | AF12: ='[1]HOJA GENERAL DATOS IMPORTADOS'!AF12 -> 0 | AG12: ='[1]HOJA GENERAL DATOS IMPORTADOS'!AG12 -> 0 | AH12: ='[1]HOJA GENERAL DATOS IMPORTADOS'!AH12 -> 0 | AI12: ='[1]HOJA GENERAL DATOS IMPORTADOS'!AI12 -> 0
I13: ='[1]HOJA GENERAL DATOS IMPORTADOS'!I13 -> 0 | J13: ='[1]HOJA GENERAL DATOS IMPORTADOS'!J13 -> 0 | K13: ='[1]HOJA GENERAL DATOS IMPORTADOS'!K13 -> 0 | L13: ='[1]HOJA GENERAL DATOS IMPORTADOS'!L13 -> 0 | M13: ='[1]HOJA GENERAL DATOS IMPORTADOS'!M13 -> 0 | N13: ='[1]HOJA GENERAL DATOS IMPORTADOS'!N13 -> 0 | O13: ='[1]HOJA GENERAL DATOS IMPORTADOS'!O13 -> 0 | P13: ='[1]HOJA GENERAL DATOS IMPORTADOS'!P13 -> 0 | Q13: ='[1]HOJA GENERAL DATOS IMPORTADOS'!Q13 -> 0 | R13: ='[1]HOJA GENERAL DATOS IMPORTADOS'!R13 -> 0 | S13: ='[1]HOJA GENERAL DATOS IMPORTADOS'!S13 -> 0 | T13: ='[1]HOJA GENERAL DATOS IMPORTADOS'!T13 -> 0 | U13: ='[1]HOJA GENERAL DATOS IMPORTADOS'!U13 -> 0 | V13: ='[1]HOJA GENERAL DATOS IMPORTADOS'!V13 -> 0 | W13: ='[1]HOJA GENERAL DATOS IMPORTADOS'!W13 -> 0 | X13: ='[1]HOJA GENERAL DATOS IMPORTADOS'!X13 -> 0 | Y13: ='[1]HOJA GENERAL DATOS IMPORTADOS'!Y13 -> 0 | Z13: ='[1]HOJA GENERAL DATOS IMPORTADOS'!Z13 -> 0 | AA13: ='[1]HOJA GENERAL DATOS IMPORTADOS'!AA13 -> 0 | AB13: ='[1]HOJA GENERAL DATOS IMPORTADOS'!AB13 -> 0 | AC13: ='[1]HOJA GENERAL DATOS IMPORTADOS'!AC13 -> 0 | AD13: ='[1]HOJA GENERAL DATOS IMPORTADOS'!AD13 -> 0 | AE13: ='[1]HOJA GENERAL DATOS IMPORTADOS'!AE13 -> 0 | AF13: ='[1]HOJA GENERAL DATOS IMPORTADOS'!AF13 -> 0 | AG13: ='[1]HOJA GENERAL DATOS IMPORTADOS'!AG13 -> 0 | AH13: ='[1]HOJA GENERAL DATOS IMPORTADOS'!AH13 -> 0 | AI13: ='[1]HOJA GENERAL DATOS IMPORTADOS'!AI13 -> 0
I14: ='[1]HOJA GENERAL DATOS IMPORTADOS'!I14 -> 0 | J14: ='[1]HOJA GENERAL DATOS IMPORTADOS'!J14 -> 0 | K14: ='[1]HOJA GENERAL DATOS IMPORTADOS'!K14 -> 0 | L14: ='[1]HOJA GENERAL DATOS IMPORTADOS'!L14 -> 0 | M14: ='[1]HOJA GENERAL DATOS IMPORTADOS'!M14 -> 0 | N14: ='[1]HOJA GENERAL DATOS IMPORTADOS'!N14 -> 0 | O14: ='[1]HOJA GENERAL DATOS IMPORTADOS'!O14 -> 0 | P14: ='[1]HOJA GENERAL DATOS IMPORTADOS'!P14 -> 0 | Q14: ='[1]HOJA GENERAL DATOS IMPORTADOS'!Q14 -> 0 | R14: ='[1]HOJA GENERAL DATOS IMPORTADOS'!R14 -> 0 | S14: ='[1]HOJA GENERAL DATOS IMPORTADOS'!S14 -> 0 | T14: ='[1]HOJA GENERAL DATOS IMPORTADOS'!T14 -> 0 | U14: ='[1]HOJA GENERAL DATOS IMPORTADOS'!U14 -> 0 | V14: ='[1]HOJA GENERAL DATOS IMPORTADOS'!V14 -> 0 | W14: ='[1]HOJA GENERAL DATOS IMPORTADOS'!W14 -> 0 | X14: ='[1]HOJA GENERAL DATOS IMPORTADOS'!X14 -> 0 | Y14: ='[1]HOJA GENERAL DATOS IMPORTADOS'!Y14 -> 0 | Z14: ='[1]HOJA GENERAL DATOS IMPORTADOS'!Z14 -> 0 | AA14: ='[1]HOJA GENERAL DATOS IMPORTADOS'!AA14 -> 0 | AB14: ='[1]HOJA GENERAL DATOS IMPORTADOS'!AB14 -> 0 | AC14: ='[1]HOJA GENERAL DATOS IMPORTADOS'!AC14 -> 0 | AD14: ='[1]HOJA GENERAL DATOS IMPORTADOS'!AD14 -> 0 | AE14: ='[1]HOJA GENERAL DATOS IMPORTADOS'!AE14 -> 0 | AF14: ='[1]HOJA GENERAL DATOS IMPORTADOS'!AF14 -> 0 | AG14: ='[1]HOJA GENERAL DATOS IMPORTADOS'!AG14 -> 0 | AH14: ='[1]HOJA GENERAL DATOS IMPORTADOS'!AH14 -> 0 | AI14: ='[1]HOJA GENERAL DATOS IMPORTADOS'!AI14 -> 0
I15: ='[1]HOJA GENERAL DATOS IMPORTADOS'!I15 -> 0 | J15: ='[1]HOJA GENERAL DATOS IMPORTADOS'!J15 -> 0 | K15: ='[1]HOJA GENERAL DATOS IMPORTADOS'!K15 -> 0 | L15: ='[1]HOJA GENERAL DATOS IMPORTADOS'!L15 -> 0 | M15: ='[1]HOJA GENERAL DATOS IMPORTADOS'!M15 -> 0 | N15: ='[1]HOJA GENERAL DATOS IMPORTADOS'!N15 -> 0 | O15: ='[1]HOJA GENERAL DATOS IMPORTADOS'!O15 -> 0 | P15: ='[1]HOJA GENERAL DATOS IMPORTADOS'!P15 -> 0 | Q15: ='[1]HOJA GENERAL DATOS IMPORTADOS'!Q15 -> 0 | R15: ='[1]HOJA GENERAL DATOS IMPORTADOS'!R15 -> 0 | S15: ='[1]HOJA GENERAL DATOS IMPORTADOS'!S15 -> 0 | T15: ='[1]HOJA GENERAL DATOS IMPORTADOS'!T15 -> 0 | U15: ='[1]HOJA GENERAL DATOS IMPORTADOS'!U15 -> 0 | V15: ='[1]HOJA GENERAL DATOS IMPORTADOS'!V15 -> 0 | W15: ='[1]HOJA GENERAL DATOS IMPORTADOS'!W15 -> 0 | X15: ='[1]HOJA GENERAL DATOS IMPORTADOS'!X15 -> 0 | Y15: ='[1]HOJA GENERAL DATOS IMPORTADOS'!Y15 -> 0 | Z15: ='[1]HOJA GENERAL DATOS IMPORTADOS'!Z15 -> 0 | AA15: ='[1]HOJA GENERAL DATOS IMPORTADOS'!AA15 -> 0 | AB15: ='[1]HOJA GENERAL DATOS IMPORTADOS'!AB15 -> 0 | AC15: ='[1]HOJA GENERAL DATOS IMPORTADOS'!AC15 -> 0 | AD15: ='[1]HOJA GENERAL DATOS IMPORTADOS'!AD15 -> 0 | AE15: ='[1]HOJA GENERAL DATOS IMPORTADOS'!AE15 -> 0 | AF15: ='[1]HOJA GENERAL DATOS IMPORTADOS'!AF15 -> 0 | AG15: ='[1]HOJA GENERAL DATOS IMPORTADOS'!AG15 -> 0 | AH15: ='[1]HOJA GENERAL DATOS IMPORTADOS'!AH15 -> 0 | AI15: ='[1]HOJA GENERAL DATOS IMPORTADOS'!AI15 -> 0
I16: ='[1]HOJA GENERAL DATOS IMPORTADOS'!I16 -> 0 | J16: ='[1]HOJA GENERAL DATOS IMPORTADOS'!J16 -> 0 | K16: ='[1]HOJA GENERAL DATOS IMPORTADOS'!K16 -> 0 | L16: ='[1]HOJA GENERAL DATOS IMPORTADOS'!L16 -> 0 | M16: ='[1]HOJA GENERAL DATOS IMPORTADOS'!M16 -> 0 | N16: ='[1]HOJA GENERAL DATOS IMPORTADOS'!N16 -> 0 | O16: ='[1]HOJA GENERAL DATOS IMPORTADOS'!O16 -> 0 | P16: ='[1]HOJA GENERAL DATOS IMPORTADOS'!P16 -> 0 | Q16: ='[1]HOJA GENERAL DATOS IMPORTADOS'!Q16 -> 0 | R16: ='[1]HOJA GENERAL DATOS IMPORTADOS'!R16 -> 0 | S16: ='[1]HOJA GENERAL DATOS IMPORTADOS'!S16 -> 0 | T16: ='[1]HOJA GENERAL DATOS IMPORTADOS'!T16 -> 0 | U16: ='[1]HOJA GENERAL DATOS IMPORTADOS'!U16 -> 0 | V16: ='[1]HOJA GENERAL DATOS IMPORTADOS'!V16 -> 0 | W16: ='[1]HOJA GENERAL DATOS IMPORTADOS'!W16 -> 0 | X16: ='[1]HOJA GENERAL DATOS IMPORTADOS'!X16 -> 0 | Y16: ='[1]HOJA GENERAL DATOS IMPORTADOS'!Y16 -> 0 | Z16: ='[1]HOJA GENERAL DATOS IMPORTADOS'!Z16 -> 0 | AA16: ='[1]HOJA GENERAL DATOS IMPORTADOS'!AA16 -> 0 | AB16: ='[1]HOJA GENERAL DATOS IMPORTADOS'!AB16 -> 0 | AC16: ='[1]HOJA GENERAL DATOS IMPORTADOS'!AC16 -> 0 | AD16: ='[1]HOJA GENERAL DATOS IMPORTADOS'!AD16 -> 0 | AE16: ='[1]HOJA GENERAL DATOS IMPORTADOS'!AE16 -> 0 | AF16: ='[1]HOJA GENERAL DATOS IMPORTADOS'!AF16 -> 0 | AG16: ='[1]HOJA GENERAL DATOS IMPORTADOS'!AG16 -> 0 | AH16: ='[1]HOJA GENERAL DATOS IMPORTADOS'!AH16 -> 0 | AI16: ='[1]HOJA GENERAL DATOS IMPORTADOS'!AI16 -> 0
I17: ='[1]HOJA GENERAL DATOS IMPORTADOS'!I17 -> 0 | J17: ='[1]HOJA GENERAL DATOS IMPORTADOS'!J17 -> 0 | K17: ='[1]HOJA GENERAL DATOS IMPORTADOS'!K17 -> 0 | L17: ='[1]HOJA GENERAL DATOS IMPORTADOS'!L17 -> 0 | M17: ='[1]HOJA GENERAL DATOS IMPORTADOS'!M17 -> 0 | N17: ='[1]HOJA GENERAL DATOS IMPORTADOS'!N17 -> 0 | O17: ='[1]HOJA GENERAL DATOS IMPORTADOS'!O17 -> 0 | P17: ='[1]HOJA GENERAL DATOS IMPORTADOS'!P17 -> 0 | Q17: ='[1]HOJA GENERAL DATOS IMPORTADOS'!Q17 -> 0 | R17: ='[1]HOJA GENERAL DATOS IMPORTADOS'!R17 -> 0 | S17: ='[1]HOJA GENERAL DATOS IMPORTADOS'!S17 -> 0 | T17: ='[1]HOJA GENERAL DATOS IMPORTADOS'!T17 -> 0 | U17: ='[1]HOJA GENERAL DATOS IMPORTADOS'!U17 -> 0 | V17: ='[1]HOJA GENERAL DATOS IMPORTADOS'!V17 -> 0 | W17: ='[1]HOJA GENERAL DATOS IMPORTADOS'!W17 -> 0 | X17: ='[1]HOJA GENERAL DATOS IMPORTADOS'!X17 -> 0 | Y17: ='[1]HOJA GENERAL DATOS IMPORTADOS'!Y17 -> 0 | Z17: ='[1]HOJA GENERAL DATOS IMPORTADOS'!Z17 -> 0 | AA17: ='[1]HOJA GENERAL DATOS IMPORTADOS'!AA17 -> 0 | AB17: ='[1]HOJA GENERAL DATOS IMPORTADOS'!AB17 -> 0 | AC17: ='[1]HOJA GENERAL DATOS IMPORTADOS'!AC17 -> 0 | AD17: ='[1]HOJA GENERAL DATOS IMPORTADOS'!AD17 -> 0 | AE17: ='[1]HOJA GENERAL DATOS IMPORTADOS'!AE17 -> 0 | AF17: ='[1]HOJA GENERAL DATOS IMPORTADOS'!AF17 -> 0 | AG17: ='[1]HOJA GENERAL DATOS IMPORTADOS'!AG17 -> 0 | AH17: ='[1]HOJA GENERAL DATOS IMPORTADOS'!AH17 -> 0 | AI17: ='[1]HOJA GENERAL DATOS IMPORTADOS'!AI17 -> 0
I18: ='[1]HOJA GENERAL DATOS IMPORTADOS'!I18 -> 0 | J18: ='[1]HOJA GENERAL DATOS IMPORTADOS'!J18 -> 0 | K18: ='[1]HOJA GENERAL DATOS IMPORTADOS'!K18 -> 0 | L18: ='[1]HOJA GENERAL DATOS IMPORTADOS'!L18 -> 0 | M18: ='[1]HOJA GENERAL DATOS IMPORTADOS'!M18 -> 0 | N18: ='[1]HOJA GENERAL DATOS IMPORTADOS'!N18 -> 0 | O18: ='[1]HOJA GENERAL DATOS IMPORTADOS'!O18 -> 0 | P18: ='[1]HOJA GENERAL DATOS IMPORTADOS'!P18 -> 0 | Q18: ='[1]HOJA GENERAL DATOS IMPORTADOS'!Q18 -> 0 | R18: ='[1]HOJA GENERAL DATOS IMPORTADOS'!R18 -> 0 | S18: ='[1]HOJA GENERAL DATOS IMPORTADOS'!S18 -> 0 | T18: ='[1]HOJA GENERAL DATOS IMPORTADOS'!T18 -> 0 | U18: ='[1]HOJA GENERAL DATOS IMPORTADOS'!U18 -> 0 | V18: ='[1]HOJA GENERAL DATOS IMPORTADOS'!V18 -> 0 | W18: ='[1]HOJA GENERAL DATOS IMPORTADOS'!W18 -> 0 | X18: ='[1]HOJA GENERAL DATOS IMPORTADOS'!X18 -> 0 | Y18: ='[1]HOJA GENERAL DATOS IMPORTADOS'!Y18 -> 0 | Z18: ='[1]HOJA GENERAL DATOS IMPORTADOS'!Z18 -> 0 | AA18: ='[1]HOJA GENERAL DATOS IMPORTADOS'!AA18 -> 0 | AB18: ='[1]HOJA GENERAL DATOS IMPORTADOS'!AB18 -> 0 | AC18: ='[1]HOJA GENERAL DATOS IMPORTADOS'!AC18 -> 0 | AD18: ='[1]HOJA GENERAL DATOS IMPORTADOS'!AD18 -> 0 | AE18: ='[1]HOJA GENERAL DATOS IMPORTADOS'!AE18 -> 0 | AF18: ='[1]HOJA GENERAL DATOS IMPORTADOS'!AF18 -> 0 | AG18: ='[1]HOJA GENERAL DATOS IMPORTADOS'!AG18 -> 0 | AH18: ='[1]HOJA GENERAL DATOS IMPORTADOS'!AH18 -> 0 | AI18: ='[1]HOJA GENERAL DATOS IMPORTADOS'!AI18 -> 0
I19: ='[1]HOJA GENERAL DATOS IMPORTADOS'!I19 -> 0 | J19: ='[1]HOJA GENERAL DATOS IMPORTADOS'!J19 -> 0 | K19: ='[1]HOJA GENERAL DATOS IMPORTADOS'!K19 -> 0 | L19: ='[1]HOJA GENERAL DATOS IMPORTADOS'!L19 -> 0 | M19: ='[1]HOJA GENERAL DATOS IMPORTADOS'!M19 -> 0 | N19: ='[1]HOJA GENERAL DATOS IMPORTADOS'!N19 -> 0 | O19: ='[1]HOJA GENERAL DATOS IMPORTADOS'!O19 -> 0 | P19: ='[1]HOJA GENERAL DATOS IMPORTADOS'!P19 -> 0 | Q19: ='[1]HOJA GENERAL DATOS IMPORTADOS'!Q19 -> 0 | R19: ='[1]HOJA GENERAL DATOS IMPORTADOS'!R19 -> 0 | S19: ='[1]HOJA GENERAL DATOS IMPORTADOS'!S19 -> 0 | T19: ='[1]HOJA GENERAL DATOS IMPORTADOS'!T19 -> 0 | U19: ='[1]HOJA GENERAL DATOS IMPORTADOS'!U19 -> 0 | V19: ='[1]HOJA GENERAL DATOS IMPORTADOS'!V19 -> 0 | W19: ='[1]HOJA GENERAL DATOS IMPORTADOS'!W19 -> 0 | X19: ='[1]HOJA GENERAL DATOS IMPORTADOS'!X19 -> 0 | Y19: ='[1]HOJA GENERAL DATOS IMPORTADOS'!Y19 -> 0 | Z19: ='[1]HOJA GENERAL DATOS IMPORTADOS'!Z19 -> 0 | AA19: ='[1]HOJA GENERAL DATOS IMPORTADOS'!AA19 -> 0 | AB19: ='[1]HOJA GENERAL DATOS IMPORTADOS'!AB19 -> 0 | AC19: ='[1]HOJA GENERAL DATOS IMPORTADOS'!AC19 -> 0 | AD19: ='[1]HOJA GENERAL DATOS IMPORTADOS'!AD19 -> 0 | AE19: ='[1]HOJA GENERAL DATOS IMPORTADOS'!AE19 -> 0 | AF19: ='[1]HOJA GENERAL DATOS IMPORTADOS'!AF19 -> 0 | AG19: ='[1]HOJA GENERAL DATOS IMPORTADOS'!AG19 -> 0 | AH19: ='[1]HOJA GENERAL DATOS IMPORTADOS'!AH19 -> 0 | AI19: ='[1]HOJA GENERAL DATOS IMPORTADOS'!AI19 -> 0
A20: ='[1]HOJA GENERAL DATOS IMPORTADOS'!A20 -> 0 | B20: ='[1]HOJA GENERAL DATOS IMPORTADOS'!B20 -> 0 | C20: ='[1]HOJA GENERAL DATOS IMPORTADOS'!C20 -> 0 | D20: ='[1]HOJA GENERAL DATOS IMPORTADOS'!D20 -> 0 | E20: ='[1]HOJA GENERAL DATOS IMPORTADOS'!E20 -> 0 | F20: ='[1]HOJA GENERAL DATOS IMPORTADOS'!F20 -> 0 | G20: ='[1]HOJA GENERAL DATOS IMPORTADOS'!G20 -> 0 | H20: ='[1]HOJA GENERAL DATOS IMPORTADOS'!H20 -> 0 | I20: ='[1]HOJA GENERAL DATOS IMPORTADOS'!I20 -> 0 | J20: ='[1]HOJA GENERAL DATOS IMPORTADOS'!J20 -> 0 | K20: ='[1]HOJA GENERAL DATOS IMPORTADOS'!K20 -> 0 | L20: ='[1]HOJA GENERAL DATOS IMPORTADOS'!L20 -> 0 | M20: ='[1]HOJA GENERAL DATOS IMPORTADOS'!M20 -> 0 | N20: ='[1]HOJA GENERAL DATOS IMPORTADOS'!N20 -> 0 | O20: ='[1]HOJA GENERAL DATOS IMPORTADOS'!O20 -> 0 | P20: ='[1]HOJA GENERAL DATOS IMPORTADOS'!P20 -> 0 | Q20: ='[1]HOJA GENERAL DATOS IMPORTADOS'!Q20 -> 0 | R20: ='[1]HOJA GENERAL DATOS IMPORTADOS'!R20 -> 0 | S20: ='[1]HOJA GENERAL DATOS IMPORTADOS'!S20 -> 0 | T20: ='[1]HOJA GENERAL DATOS IMPORTADOS'!T20 -> 0 | U20: ='[1]HOJA GENERAL DATOS IMPORTADOS'!U20 -> 0 | V20: ='[1]HOJA GENERAL DATOS IMPORTADOS'!V20 -> 0 | W20: ='[1]HOJA GENERAL DATOS IMPORTADOS'!W20 -> 0 | X20: ='[1]HOJA GENERAL DATOS IMPORTADOS'!X20 -> 0 | Y20: ='[1]HOJA GENERAL DATOS IMPORTADOS'!Y20 -> 0 | Z20: ='[1]HOJA GENERAL DATOS IMPORTADOS'!Z20 -> 0 | AA20: ='[1]HOJA GENERAL DATOS IMPORTADOS'!AA20 -> 0 | AB20: ='[1]HOJA GENERAL DATOS IMPORTADOS'!AB20 -> 0 | AC20: ='[1]HOJA GENERAL DATOS IMPORTADOS'!AC20 -> 0 | AD20: ='[1]HOJA GENERAL DATOS IMPORTADOS'!AD20 -> 0 | AE20: ='[1]HOJA GENERAL DATOS IMPORTADOS'!AE20 -> 0 | AF20: ='[1]HOJA GENERAL DATOS IMPORTADOS'!AF20 -> 0 | AG20: ='[1]HOJA GENERAL DATOS IMPORTADOS'!AG20 -> 0 | AH20: ='[1]HOJA GENERAL DATOS IMPORTADOS'!AH20 -> 0 | AI20: ='[1]HOJA GENERAL DATOS IMPORTADOS'!AI20 -> 0
A21: ='[1]HOJA GENERAL DATOS IMPORTADOS'!A21 -> 0 | B21: ='[1]HOJA GENERAL DATOS IMPORTADOS'!B21 -> 0 | C21: ='[1]HOJA GENERAL DATOS IMPORTADOS'!C21 -> 0 | D21: ='[1]HOJA GENERAL DATOS IMPORTADOS'!D21 -> 0 | E21: ='[1]HOJA GENERAL DATOS IMPORTADOS'!E21 -> 0 | F21: ='[1]HOJA GENERAL DATOS IMPORTADOS'!F21 -> 0 | G21: ='[1]HOJA GENERAL DATOS IMPORTADOS'!G21 -> 0 | H21: ='[1]HOJA GENERAL DATOS IMPORTADOS'!H21 -> 0 | I21: ='[1]HOJA GENERAL DATOS IMPORTADOS'!I21 -> 0 | J21: ='[1]HOJA GENERAL DATOS IMPORTADOS'!J21 -> 0 | K21: ='[1]HOJA GENERAL DATOS IMPORTADOS'!K21 -> 0 | L21: ='[1]HOJA GENERAL DATOS IMPORTADOS'!L21 -> 0 | M21: ='[1]HOJA GENERAL DATOS IMPORTADOS'!M21 -> 0 | N21: ='[1]HOJA GENERAL DATOS IMPORTADOS'!N21 -> 0 | O21: ='[1]HOJA GENERAL DATOS IMPORTADOS'!O21 -> 0 | P21: ='[1]HOJA GENERAL DATOS IMPORTADOS'!P21 -> 0 | Q21: ='[1]HOJA GENERAL DATOS IMPORTADOS'!Q21 -> 0 | R21: ='[1]HOJA GENERAL DATOS IMPORTADOS'!R21 -> 0 | S21: ='[1]HOJA GENERAL DATOS IMPORTADOS'!S21 -> 0 | T21: ='[1]HOJA GENERAL DATOS IMPORTADOS'!T21 -> 0 | U21: ='[1]HOJA GENERAL DATOS IMPORTADOS'!U21 -> 0 | V21: ='[1]HOJA GENERAL DATOS IMPORTADOS'!V21 -> 0 | W21: ='[1]HOJA GENERAL DATOS IMPORTADOS'!W21 -> 0 | X21: ='[1]HOJA GENERAL DATOS IMPORTADOS'!X21 -> 0 | Y21: ='[1]HOJA GENERAL DATOS IMPORTADOS'!Y21 -> 0 | Z21: ='[1]HOJA GENERAL DATOS IMPORTADOS'!Z21 -> 0 | AA21: ='[1]HOJA GENERAL DATOS IMPORTADOS'!AA21 -> 0 | AB21: ='[1]HOJA GENERAL DATOS IMPORTADOS'!AB21 -> 0 | AC21: ='[1]HOJA GENERAL DATOS IMPORTADOS'!AC21 -> 0 | AD21: ='[1]HOJA GENERAL DATOS IMPORTADOS'!AD21 -> 0 | AE21: ='[1]HOJA GENERAL DATOS IMPORTADOS'!AE21 -> 0 | AF21: ='[1]HOJA GENERAL DATOS IMPORTADOS'!AF21 -> 0 | AG21: ='[1]HOJA GENERAL DATOS IMPORTADOS'!AG21 -> 0 | AH21: ='[1]HOJA GENERAL DATOS IMPORTADOS'!AH21 -> 0 | AI21: ='[1]HOJA GENERAL DATOS IMPORTADOS'!AI21 -> 0
A22: ='[1]HOJA GENERAL DATOS IMPORTADOS'!A22 -> 0 | B22: ='[1]HOJA GENERAL DATOS IMPORTADOS'!B22 -> 0 | C22: ='[1]HOJA GENERAL DATOS IMPORTADOS'!C22 -> 0 | D22: ='[1]HOJA GENERAL DATOS IMPORTADOS'!D22 -> 0 | E22: ='[1]HOJA GENERAL DATOS IMPORTADOS'!E22 -> 0 | F22: ='[1]HOJA GENERAL DATOS IMPORTADOS'!F22 -> 0 | G22: ='[1]HOJA GENERAL DATOS IMPORTADOS'!G22 -> 0 | H22: ='[1]HOJA GENERAL DATOS IMPORTADOS'!H22 -> 0 | I22: ='[1]HOJA GENERAL DATOS IMPORTADOS'!I22 -> 0 | J22: ='[1]HOJA GENERAL DATOS IMPORTADOS'!J22 -> 0 | K22: ='[1]HOJA GENERAL DATOS IMPORTADOS'!K22 -> 0 | L22: ='[1]HOJA GENERAL DATOS IMPORTADOS'!L22 -> 0 | M22: ='[1]HOJA GENERAL DATOS IMPORTADOS'!M22 -> 0 | N22: ='[1]HOJA GENERAL DATOS IMPORTADOS'!N22 -> 0 | O22: ='[1]HOJA GENERAL DATOS IMPORTADOS'!O22 -> 0 | P22: ='[1]HOJA GENERAL DATOS IMPORTADOS'!P22 -> 0 | Q22: ='[1]HOJA GENERAL DATOS IMPORTADOS'!Q22 -> 0 | R22: ='[1]HOJA GENERAL DATOS IMPORTADOS'!R22 -> 0 | S22: ='[1]HOJA GENERAL DATOS IMPORTADOS'!S22 -> 0 | T22: ='[1]HOJA GENERAL DATOS IMPORTADOS'!T22 -> 0 | U22: ='[1]HOJA GENERAL DATOS IMPORTADOS'!U22 -> 0 | V22: ='[1]HOJA GENERAL DATOS IMPORTADOS'!V22 -> 0 | W22: ='[1]HOJA GENERAL DATOS IMPORTADOS'!W22 -> 0 | X22: ='[1]HOJA GENERAL DATOS IMPORTADOS'!X22 -> 0 | Y22: ='[1]HOJA GENERAL DATOS IMPORTADOS'!Y22 -> 0 | Z22: ='[1]HOJA GENERAL DATOS IMPORTADOS'!Z22 -> 0 | AA22: ='[1]HOJA GENERAL DATOS IMPORTADOS'!AA22 -> 0 | AB22: ='[1]HOJA GENERAL DATOS IMPORTADOS'!AB22 -> 0 | AC22: ='[1]HOJA GENERAL DATOS IMPORTADOS'!AC22 -> 0 | AD22: ='[1]HOJA GENERAL DATOS IMPORTADOS'!AD22 -> 0 | AE22: ='[1]HOJA GENERAL DATOS IMPORTADOS'!AE22 -> 0 | AF22: ='[1]HOJA GENERAL DATOS IMPORTADOS'!AF22 -> 0 | AG22: ='[1]HOJA GENERAL DATOS IMPORTADOS'!AG22 -> 0 | AH22: ='[1]HOJA GENERAL DATOS IMPORTADOS'!AH22 -> 0 | AI22: ='[1]HOJA GENERAL DATOS IMPORTADOS'!AI22 -> 0
A23: ='[1]HOJA GENERAL DATOS IMPORTADOS'!A23 -> ESPECIE | B23: ='[1]HOJA GENERAL DATOS IMPORTADOS'!B23 -> MES CONTROL | C23: ='[1]HOJA GENERAL DATOS IMPORTADOS'!C23 -> PromedioDeANIMALES EN ORDEÑO | D23: ='[1]HOJA GENERAL DATOS IMPORTADOS'!D23 -> PromedioDeLITROS TOTAL MES | E23: ='[1]HOJA GENERAL DATOS IMPORTADOS'!E23 -> PromedioDeGRAMOS GRASA | F23: ='[1]HOJA GENERAL DATOS IMPORTADOS'!F23 -> PromedioDeGRAMOS PROTEINA | G23: ='[1]HOJA GENERAL DATOS IMPORTADOS'!G23 -> LITROS/ANIMAL DIA | H23: ='[1]HOJA GENERAL DATOS IMPORTADOS'!H23 -> EQ | I23: ='[1]HOJA GENERAL DATOS IMPORTADOS'!I23 -> 0 | J23: ='[1]HOJA GENERAL DATOS IMPORTADOS'!J23 -> 0 | K23: ='[1]HOJA GENERAL DATOS IMPORTADOS'!K23 -> 0 | L23: ='[1]HOJA GENERAL DATOS IMPORTADOS'!L23 -> 0 | M23: ='[1]HOJA GENERAL DATOS IMPORTADOS'!M23 -> 0 | N23: ='[1]HOJA GENERAL DATOS IMPORTADOS'!N23 -> 0 | O23: ='[1]HOJA GENERAL DATOS IMPORTADOS'!O23 -> 0 | P23: ='[1]HOJA GENERAL DATOS IMPORTADOS'!P23 -> 0 | Q23: ='[1]HOJA GENERAL DATOS IMPORTADOS'!Q23 -> 0 | R23: ='[1]HOJA GENERAL DATOS IMPORTADOS'!R23 -> 0 | S23: ='[1]HOJA GENERAL DATOS IMPORTADOS'!S23 -> 0 | T23: ='[1]HOJA GENERAL DATOS IMPORTADOS'!T23 -> 0 | U23: ='[1]HOJA GENERAL DATOS IMPORTADOS'!U23 -> 0 | V23: ='[1]HOJA GENERAL DATOS IMPORTADOS'!V23 -> 0 | W23: ='[1]HOJA GENERAL DATOS IMPORTADOS'!W23 -> 0 | X23: ='[1]HOJA GENERAL DATOS IMPORTADOS'!X23 -> 0 | Y23: ='[1]HOJA GENERAL DATOS IMPORTADOS'!Y23 -> 0 | Z23: ='[1]HOJA GENERAL DATOS IMPORTADOS'!Z23 -> 0 | AA23: ='[1]HOJA GENERAL DATOS IMPORTADOS'!AA23 -> 0 | AB23: ='[1]HOJA GENERAL DATOS IMPORTADOS'!AB23 -> 0 | AC23: ='[1]HOJA GENERAL DATOS IMPORTADOS'!AC23 -> 0 | AD23: ='[1]HOJA GENERAL DATOS IMPORTADOS'!AD23 -> 0 | AE23: ='[1]HOJA GENERAL DATOS IMPORTADOS'!AE23 -> 0 | AF23: ='[1]HOJA GENERAL DATOS IMPORTADOS'!AF23 -> 0 | AG23: ='[1]HOJA GENERAL DATOS IMPORTADOS'!AG23 -> 0 | AH23: ='[1]HOJA GENERAL DATOS IMPORTADOS'!AH23 -> 0 | AI23: ='[1]HOJA GENERAL DATOS IMPORTADOS'!AI23 -> 0
A24: ='[1]HOJA GENERAL DATOS IMPORTADOS'!A24 -> CAPRINO | B24: ='[1]HOJA GENERAL DATOS IMPORTADOS'!B24 -> 1 | C24: ='[1]HOJA GENERAL DATOS IMPORTADOS'!C24 -> 296.3030303 | D24: ='[1]HOJA GENERAL DATOS IMPORTADOS'!D24 -> 16367.52941 | E24: ='[1]HOJA GENERAL DATOS IMPORTADOS'!E24 -> 54.73529412 | F24: ='[1]HOJA GENERAL DATOS IMPORTADOS'!F24 -> 37.14705882 | G24: ='[1]HOJA GENERAL DATOS IMPORTADOS'!G24 -> 1.841305211 | H24: ='[1]HOJA GENERAL DATOS IMPORTADOS'!H24 -> 9.188235294 | I24: ='[1]HOJA GENERAL DATOS IMPORTADOS'!I24 -> 0 | J24: ='[1]HOJA GENERAL DATOS IMPORTADOS'!J24 -> 0 | K24: ='[1]HOJA GENERAL DATOS IMPORTADOS'!K24 -> 0 | L24: ='[1]HOJA GENERAL DATOS IMPORTADOS'!L24 -> 0 | M24: ='[1]HOJA GENERAL DATOS IMPORTADOS'!M24 -> 0 | N24: ='[1]HOJA GENERAL DATOS IMPORTADOS'!N24 -> 0 | O24: ='[1]HOJA GENERAL DATOS IMPORTADOS'!O24 -> 0 | P24: ='[1]HOJA GENERAL DATOS IMPORTADOS'!P24 -> 0 | Q24: ='[1]HOJA GENERAL DATOS IMPORTADOS'!Q24 -> 0 | R24: ='[1]HOJA GENERAL DATOS IMPORTADOS'!R24 -> 0 | S24: ='[1]HOJA GENERAL DATOS IMPORTADOS'!S24 -> 0 | T24: ='[1]HOJA GENERAL DATOS IMPORTADOS'!T24 -> 0 | U24: ='[1]HOJA GENERAL DATOS IMPORTADOS'!U24 -> 0 | V24: ='[1]HOJA GENERAL DATOS IMPORTADOS'!V24 -> 0 | W24: ='[1]HOJA GENERAL DATOS IMPORTADOS'!W24 -> 0 | X24: ='[1]HOJA GENERAL DATOS IMPORTADOS'!X24 -> 0 | Y24: ='[1]HOJA GENERAL DATOS IMPORTADOS'!Y24 -> 0 | Z24: ='[1]HOJA GENERAL DATOS IMPORTADOS'!Z24 -> 0 | AA24: ='[1]HOJA GENERAL DATOS IMPORTADOS'!AA24 -> 0 | AB24: ='[1]HOJA GENERAL DATOS IMPORTADOS'!AB24 -> 0 | AC24: ='[1]HOJA GENERAL DATOS IMPORTADOS'!AC24 -> 0 | AD24: ='[1]HOJA GENERAL DATOS IMPORTADOS'!AD24 -> 0 | AE24: ='[1]HOJA GENERAL DATOS IMPORTADOS'!AE24 -> 0 | AF24: ='[1]HOJA GENERAL DATOS IMPORTADOS'!AF24 -> 0 | AG24: ='[1]HOJA GENERAL DATOS IMPORTADOS'!AG24 -> 0 | AH24: ='[1]HOJA GENERAL DATOS IMPORTADOS'!AH24 -> 0 | AI24: ='[1]HOJA GENERAL DATOS IMPORTADOS'!AI24 -> 0
A25: ='[1]HOJA GENERAL DATOS IMPORTADOS'!A25 -> CAPRINO | B25: ='[1]HOJA GENERAL DATOS IMPORTADOS'!B25 -> 2 | C25: ='[1]HOJA GENERAL DATOS IMPORTADOS'!C25 -> 316.5925926 | D25: ='[1]HOJA GENERAL DATOS IMPORTADOS'!D25 -> 15683.25 | E25: ='[1]HOJA GENERAL DATOS IMPORTADOS'!E25 -> 53.64285714 | F25: ='[1]HOJA GENERAL DATOS IMPORTADOS'!F25 -> 37.32142857 | G25: ='[1]HOJA GENERAL DATOS IMPORTADOS'!G25 -> 1.651254679 | H25: ='[1]HOJA GENERAL DATOS IMPORTADOS'!H25 -> 9.096428571 | I25: ='[1]HOJA GENERAL DATOS IMPORTADOS'!I25 -> 0 | J25: ='[1]HOJA GENERAL DATOS IMPORTADOS'!J25 -> 0 | K25: ='[1]HOJA GENERAL DATOS IMPORTADOS'!K25 -> 0 | L25: ='[1]HOJA GENERAL DATOS IMPORTADOS'!L25 -> 0 | M25: ='[1]HOJA GENERAL DATOS IMPORTADOS'!M25 -> 0 | N25: ='[1]HOJA GENERAL DATOS IMPORTADOS'!N25 -> 0 | O25: ='[1]HOJA GENERAL DATOS IMPORTADOS'!O25 -> 0 | P25: ='[1]HOJA GENERAL DATOS IMPORTADOS'!P25 -> 0 | Q25: ='[1]HOJA GENERAL DATOS IMPORTADOS'!Q25 -> 0 | R25: ='[1]HOJA GENERAL DATOS IMPORTADOS'!R25 -> 0 | S25: ='[1]HOJA GENERAL DATOS IMPORTADOS'!S25 -> 0 | T25: ='[1]HOJA GENERAL DATOS IMPORTADOS'!T25 -> 0 | U25: ='[1]HOJA GENERAL DATOS IMPORTADOS'!U25 -> 0 | V25: ='[1]HOJA GENERAL DATOS IMPORTADOS'!V25 -> 0 | W25: ='[1]HOJA GENERAL DATOS IMPORTADOS'!W25 -> 0 | X25: ='[1]HOJA GENERAL DATOS IMPORTADOS'!X25 -> 0 | Y25: ='[1]HOJA GENERAL DATOS IMPORTADOS'!Y25 -> 0 | Z25: ='[1]HOJA GENERAL DATOS IMPORTADOS'!Z25 -> 0 | AA25: ='[1]HOJA GENERAL DATOS IMPORTADOS'!AA25 -> 0 | AB25: ='[1]HOJA GENERAL DATOS IMPORTADOS'!AB25 -> 0 | AC25: ='[1]HOJA GENERAL DATOS IMPORTADOS'!AC25 -> 0 | AD25: ='[1]HOJA GENERAL DATOS IMPORTADOS'!AD25 -> 0 | AE25: ='[1]HOJA GENERAL DATOS IMPORTADOS'!AE25 -> 0 | AF25: ='[1]HOJA GENERAL DATOS IMPORTADOS'!AF25 -> 0 | AG25: ='[1]HOJA GENERAL DATOS IMPORTADOS'!AG25 -> 0 | AH25: ='[1]HOJA GENERAL DATOS IMPORTADOS'!AH25 -> 0 | AI25: ='[1]HOJA GENERAL DATOS IMPORTADOS'!AI25 -> 0
A26: ='[1]HOJA GENERAL DATOS IMPORTADOS'!A26 -> CAPRINO | B26: ='[1]HOJA GENERAL DATOS IMPORTADOS'!B26 -> 3 | C26: ='[1]HOJA GENERAL DATOS IMPORTADOS'!C26 -> 332.96 | D26: ='[1]HOJA GENERAL DATOS IMPORTADOS'!D26 -> 18221.2 | E26: ='[1]HOJA GENERAL DATOS IMPORTADOS'!E26 -> 53.20833333 | F26: ='[1]HOJA GENERAL DATOS IMPORTADOS'!F26 -> 37.16666667 | G26: ='[1]HOJA GENERAL DATOS IMPORTADOS'!G26 -> 1.824163063 | H26: ='[1]HOJA GENERAL DATOS IMPORTADOS'!H26 -> 9.0375 | I26: ='[1]HOJA GENERAL DATOS IMPORTADOS'!I26 -> 0 | J26: ='[1]HOJA GENERAL DATOS IMPORTADOS'!J26 -> 0 | K26: ='[1]HOJA GENERAL DATOS IMPORTADOS'!K26 -> 0 | L26: ='[1]HOJA GENERAL DATOS IMPORTADOS'!L26 -> 0 | M26: ='[1]HOJA GENERAL DATOS IMPORTADOS'!M26 -> 0 | N26: ='[1]HOJA GENERAL DATOS IMPORTADOS'!N26 -> 0 | O26: ='[1]HOJA GENERAL DATOS IMPORTADOS'!O26 -> 0 | P26: ='[1]HOJA GENERAL DATOS IMPORTADOS'!P26 -> 0 | Q26: ='[1]HOJA GENERAL DATOS IMPORTADOS'!Q26 -> 0 | R26: ='[1]HOJA GENERAL DATOS IMPORTADOS'!R26 -> 0 | S26: ='[1]HOJA GENERAL DATOS IMPORTADOS'!S26 -> 0 | T26: ='[1]HOJA GENERAL DATOS IMPORTADOS'!T26 -> 0 | U26: ='[1]HOJA GENERAL DATOS IMPORTADOS'!U26 -> 0 | V26: ='[1]HOJA GENERAL DATOS IMPORTADOS'!V26 -> 0 | W26: ='[1]HOJA GENERAL DATOS IMPORTADOS'!W26 -> 0 | X26: ='[1]HOJA GENERAL DATOS IMPORTADOS'!X26 -> 0 | Y26: ='[1]HOJA GENERAL DATOS IMPORTADOS'!Y26 -> 0 | Z26: ='[1]HOJA GENERAL DATOS IMPORTADOS'!Z26 -> 0 | AA26: ='[1]HOJA GENERAL DATOS IMPORTADOS'!AA26 -> 0 | AB26: ='[1]HOJA GENERAL DATOS IMPORTADOS'!AB26 -> 0 | AC26: ='[1]HOJA GENERAL DATOS IMPORTADOS'!AC26 -> 0 | AD26: ='[1]HOJA GENERAL DATOS IMPORTADOS'!AD26 -> 0 | AE26: ='[1]HOJA GENERAL DATOS IMPORTADOS'!AE26 -> 0 | AF26: ='[1]HOJA GENERAL DATOS IMPORTADOS'!AF26 -> 0 | AG26: ='[1]HOJA GENERAL DATOS IMPORTADOS'!AG26 -> 0 | AH26: ='[1]HOJA GENERAL DATOS IMPORTADOS'!AH26 -> 0 | AI26: ='[1]HOJA GENERAL DATOS IMPORTADOS'!AI26 -> 0
A27: ='[1]HOJA GENERAL DATOS IMPORTADOS'!A27 -> CAPRINO | B27: ='[1]HOJA GENERAL DATOS IMPORTADOS'!B27 -> 4 | C27: ='[1]HOJA GENERAL DATOS IMPORTADOS'!C27 -> 320.1666667 | D27: ='[1]HOJA GENERAL DATOS IMPORTADOS'!D27 -> 18892.91667 | E27: ='[1]HOJA GENERAL DATOS IMPORTADOS'!E27 -> 50.70833333 | F27: ='[1]HOJA GENERAL DATOS IMPORTADOS'!F27 -> 35.58333333 | G27: ='[1]HOJA GENERAL DATOS IMPORTADOS'!G27 -> 1.96698768 | H27: ='[1]HOJA GENERAL DATOS IMPORTADOS'!H27 -> 8.629166667 | I27: ='[1]HOJA GENERAL DATOS IMPORTADOS'!I27 -> 0 | J27: ='[1]HOJA GENERAL DATOS IMPORTADOS'!J27 -> 0 | K27: ='[1]HOJA GENERAL DATOS IMPORTADOS'!K27 -> 0 | L27: ='[1]HOJA GENERAL DATOS IMPORTADOS'!L27 -> 0 | M27: ='[1]HOJA GENERAL DATOS IMPORTADOS'!M27 -> 0 | N27: ='[1]HOJA GENERAL DATOS IMPORTADOS'!N27 -> 0 | O27: ='[1]HOJA GENERAL DATOS IMPORTADOS'!O27 -> 0 | P27: ='[1]HOJA GENERAL DATOS IMPORTADOS'!P27 -> 0 | Q27: ='[1]HOJA GENERAL DATOS IMPORTADOS'!Q27 -> 0 | R27: ='[1]HOJA GENERAL DATOS IMPORTADOS'!R27 -> 0 | S27: ='[1]HOJA GENERAL DATOS IMPORTADOS'!S27 -> 0 | T27: ='[1]HOJA GENERAL DATOS IMPORTADOS'!T27 -> 0 | U27: ='[1]HOJA GENERAL DATOS IMPORTADOS'!U27 -> 0 | V27: ='[1]HOJA GENERAL DATOS IMPORTADOS'!V27 -> 0 | W27: ='[1]HOJA GENERAL DATOS IMPORTADOS'!W27 -> 0 | X27: ='[1]HOJA GENERAL DATOS IMPORTADOS'!X27 -> 0 | Y27: ='[1]HOJA GENERAL DATOS IMPORTADOS'!Y27 -> 0 | Z27: ='[1]HOJA GENERAL DATOS IMPORTADOS'!Z27 -> 0 | AA27: ='[1]HOJA GENERAL DATOS IMPORTADOS'!AA27 -> 0 | AB27: ='[1]HOJA GENERAL DATOS IMPORTADOS'!AB27 -> 0 | AC27: ='[1]HOJA GENERAL DATOS IMPORTADOS'!AC27 -> 0 | AD27: ='[1]HOJA GENERAL DATOS IMPORTADOS'!AD27 -> 0 | AE27: ='[1]HOJA GENERAL DATOS IMPORTADOS'!AE27 -> 0 | AF27: ='[1]HOJA GENERAL DATOS IMPORTADOS'!AF27 -> 0 | AG27: ='[1]HOJA GENERAL DATOS IMPORTADOS'!AG27 -> 0 | AH27: ='[1]HOJA GENERAL DATOS IMPORTADOS'!AH27 -> 0 | AI27: ='[1]HOJA GENERAL DATOS IMPORTADOS'!AI27 -> 0
A28: ='[1]HOJA GENERAL DATOS IMPORTADOS'!A28 -> CAPRINO | B28: ='[1]HOJA GENERAL DATOS IMPORTADOS'!B28 -> 5 | C28: ='[1]HOJA GENERAL DATOS IMPORTADOS'!C28 -> 335.5 | D28: ='[1]HOJA GENERAL DATOS IMPORTADOS'!D28 -> 19728.45455 | E28: ='[1]HOJA GENERAL DATOS IMPORTADOS'!E28 -> 49.81818182 | F28: ='[1]HOJA GENERAL DATOS IMPORTADOS'!F28 -> 34.86363636 | G28: ='[1]HOJA GENERAL DATOS IMPORTADOS'!G28 -> 1.960104774 | H28: ='[1]HOJA GENERAL DATOS IMPORTADOS'!H28 -> 8.468181818 | I28: ='[1]HOJA GENERAL DATOS IMPORTADOS'!I28 -> 0 | J28: ='[1]HOJA GENERAL DATOS IMPORTADOS'!J28 -> 0 | K28: ='[1]HOJA GENERAL DATOS IMPORTADOS'!K28 -> 0 | L28: ='[1]HOJA GENERAL DATOS IMPORTADOS'!L28 -> 0 | M28: ='[1]HOJA GENERAL DATOS IMPORTADOS'!M28 -> 0 | N28: ='[1]HOJA GENERAL DATOS IMPORTADOS'!N28 -> 0 | O28: ='[1]HOJA GENERAL DATOS IMPORTADOS'!O28 -> 0 | P28: ='[1]HOJA GENERAL DATOS IMPORTADOS'!P28 -> 0 | Q28: ='[1]HOJA GENERAL DATOS IMPORTADOS'!Q28 -> 0 | R28: ='[1]HOJA GENERAL DATOS IMPORTADOS'!R28 -> 0 | S28: ='[1]HOJA GENERAL DATOS IMPORTADOS'!S28 -> 0 | T28: ='[1]HOJA GENERAL DATOS IMPORTADOS'!T28 -> 0 | U28: ='[1]HOJA GENERAL DATOS IMPORTADOS'!U28 -> 0 | V28: ='[1]HOJA GENERAL DATOS IMPORTADOS'!V28 -> 0 | W28: ='[1]HOJA GENERAL DATOS IMPORTADOS'!W28 -> 0 | X28: ='[1]HOJA GENERAL DATOS IMPORTADOS'!X28 -> 0 | Y28: ='[1]HOJA GENERAL DATOS IMPORTADOS'!Y28 -> 0 | Z28: ='[1]HOJA GENERAL DATOS IMPORTADOS'!Z28 -> 0 | AA28: ='[1]HOJA GENERAL DATOS IMPORTADOS'!AA28 -> 0 | AB28: ='[1]HOJA GENERAL DATOS IMPORTADOS'!AB28 -> 0 | AC28: ='[1]HOJA GENERAL DATOS IMPORTADOS'!AC28 -> 0 | AD28: ='[1]HOJA GENERAL DATOS IMPORTADOS'!AD28 -> 0 | AE28: ='[1]HOJA GENERAL DATOS IMPORTADOS'!AE28 -> 0 | AF28: ='[1]HOJA GENERAL DATOS IMPORTADOS'!AF28 -> 0 | AG28: ='[1]HOJA GENERAL DATOS IMPORTADOS'!AG28 -> 0 | AH28: ='[1]HOJA GENERAL DATOS IMPORTADOS'!AH28 -> 0 | AI28: ='[1]HOJA GENERAL DATOS IMPORTADOS'!AI28 -> 0
A29: ='[1]HOJA GENERAL DATOS IMPORTADOS'!A29 -> CAPRINO | B29: ='[1]HOJA GENERAL DATOS IMPORTADOS'!B29 -> 6 | C29: ='[1]HOJA GENERAL DATOS IMPORTADOS'!C29 -> 367.7142857 | D29: ='[1]HOJA GENERAL DATOS IMPORTADOS'!D29 -> 20452.71429 | E29: ='[1]HOJA GENERAL DATOS IMPORTADOS'!E29 -> 47.80952381 | F29: ='[1]HOJA GENERAL DATOS IMPORTADOS'!F29 -> 34.76190476 | G29: ='[1]HOJA GENERAL DATOS IMPORTADOS'!G29 -> 1.854040404 | H29: ='[1]HOJA GENERAL DATOS IMPORTADOS'!H29 -> 8.257142857 | I29: ='[1]HOJA GENERAL DATOS IMPORTADOS'!I29 -> 0 | J29: ='[1]HOJA GENERAL DATOS IMPORTADOS'!J29 -> 0 | K29: ='[1]HOJA GENERAL DATOS IMPORTADOS'!K29 -> 0 | L29: ='[1]HOJA GENERAL DATOS IMPORTADOS'!L29 -> 0 | M29: ='[1]HOJA GENERAL DATOS IMPORTADOS'!M29 -> 0 | N29: ='[1]HOJA GENERAL DATOS IMPORTADOS'!N29 -> 0 | O29: ='[1]HOJA GENERAL DATOS IMPORTADOS'!O29 -> 0 | P29: ='[1]HOJA GENERAL DATOS IMPORTADOS'!P29 -> 0 | Q29: ='[1]HOJA GENERAL DATOS IMPORTADOS'!Q29 -> 0 | R29: ='[1]HOJA GENERAL DATOS IMPORTADOS'!R29 -> 0 | S29: ='[1]HOJA GENERAL DATOS IMPORTADOS'!S29 -> 0 | T29: ='[1]HOJA GENERAL DATOS IMPORTADOS'!T29 -> 0 | U29: ='[1]HOJA GENERAL DATOS IMPORTADOS'!U29 -> 0 | V29: ='[1]HOJA GENERAL DATOS IMPORTADOS'!V29 -> 0 | W29: ='[1]HOJA GENERAL DATOS IMPORTADOS'!W29 -> 0 | X29: ='[1]HOJA GENERAL DATOS IMPORTADOS'!X29 -> 0 | Y29: ='[1]HOJA GENERAL DATOS IMPORTADOS'!Y29 -> 0 | Z29: ='[1]HOJA GENERAL DATOS IMPORTADOS'!Z29 -> 0 | AA29: ='[1]HOJA GENERAL DATOS IMPORTADOS'!AA29 -> 0 | AB29: ='[1]HOJA GENERAL DATOS IMPORTADOS'!AB29 -> 0 | AC29: ='[1]HOJA GENERAL DATOS IMPORTADOS'!AC29 -> 0 | AD29: ='[1]HOJA GENERAL DATOS IMPORTADOS'!AD29 -> 0 | AE29: ='[1]HOJA GENERAL DATOS IMPORTADOS'!AE29 -> 0 | AF29: ='[1]HOJA GENERAL DATOS IMPORTADOS'!AF29 -> 0 | AG29: ='[1]HOJA GENERAL DATOS IMPORTADOS'!AG29 -> 0 | AH29: ='[1]HOJA GENERAL DATOS IMPORTADOS'!AH29 -> 0 | AI29: ='[1]HOJA GENERAL DATOS IMPORTADOS'!AI29 -> 0
A30: ='[1]HOJA GENERAL DATOS IMPORTADOS'!A30 -> CAPRINO | B30: ='[1]HOJA GENERAL DATOS IMPORTADOS'!B30 -> 7 | C30: ='[1]HOJA GENERAL DATOS IMPORTADOS'!C30 -> 380.4090909 | D30: ='[1]HOJA GENERAL DATOS IMPORTADOS'!D30 -> 21508.90909 | E30: ='[1]HOJA GENERAL DATOS IMPORTADOS'!E30 -> 47.81818182 | F30: ='[1]HOJA GENERAL DATOS IMPORTADOS'!F30 -> 34.54545455 | G30: ='[1]HOJA GENERAL DATOS IMPORTADOS'!G30 -> 1.884717409 | H30: ='[1]HOJA GENERAL DATOS IMPORTADOS'!H30 -> 8.236363636 | I30: ='[1]HOJA GENERAL DATOS IMPORTADOS'!I30 -> 0 | J30: ='[1]HOJA GENERAL DATOS IMPORTADOS'!J30 -> 0 | K30: ='[1]HOJA GENERAL DATOS IMPORTADOS'!K30 -> 0 | L30: ='[1]HOJA GENERAL DATOS IMPORTADOS'!L30 -> 0 | M30: ='[1]HOJA GENERAL DATOS IMPORTADOS'!M30 -> 0 | N30: ='[1]HOJA GENERAL DATOS IMPORTADOS'!N30 -> 0 | O30: ='[1]HOJA GENERAL DATOS IMPORTADOS'!O30 -> 0 | P30: ='[1]HOJA GENERAL DATOS IMPORTADOS'!P30 -> 0 | Q30: ='[1]HOJA GENERAL DATOS IMPORTADOS'!Q30 -> 0 | R30: ='[1]HOJA GENERAL DATOS IMPORTADOS'!R30 -> 0 | S30: ='[1]HOJA GENERAL DATOS IMPORTADOS'!S30 -> 0 | T30: ='[1]HOJA GENERAL DATOS IMPORTADOS'!T30 -> 0 | U30: ='[1]HOJA GENERAL DATOS IMPORTADOS'!U30 -> 0 | V30: ='[1]HOJA GENERAL DATOS IMPORTADOS'!V30 -> 0 | W30: ='[1]HOJA GENERAL DATOS IMPORTADOS'!W30 -> 0 | X30: ='[1]HOJA GENERAL DATOS IMPORTADOS'!X30 -> 0 | Y30: ='[1]HOJA GENERAL DATOS IMPORTADOS'!Y30 -> 0 | Z30: ='[1]HOJA GENERAL DATOS IMPORTADOS'!Z30 -> 0 | AA30: ='[1]HOJA GENERAL DATOS IMPORTADOS'!AA30 -> 0 | AB30: ='[1]HOJA GENERAL DATOS IMPORTADOS'!AB30 -> 0 | AC30: ='[1]HOJA GENERAL DATOS IMPORTADOS'!AC30 -> 0 | AD30: ='[1]HOJA GENERAL DATOS IMPORTADOS'!AD30 -> 0 | AE30: ='[1]HOJA GENERAL DATOS IMPORTADOS'!AE30 -> 0 | AF30: ='[1]HOJA GENERAL DATOS IMPORTADOS'!AF30 -> 0 | AG30: ='[1]HOJA GENERAL DATOS IMPORTADOS'!AG30 -> 0 | AH30: ='[1]HOJA GENERAL DATOS IMPORTADOS'!AH30 -> 0 | AI30: ='[1]HOJA GENERAL DATOS IMPORTADOS'!AI30 -> 0
A31: ='[1]HOJA GENERAL DATOS IMPORTADOS'!A31 -> CAPRINO | B31: ='[1]HOJA GENERAL DATOS IMPORTADOS'!B31 -> 8 | C31: ='[1]HOJA GENERAL DATOS IMPORTADOS'!C31 -> 301.5714286 | D31: ='[1]HOJA GENERAL DATOS IMPORTADOS'!D31 -> 15942.90476 | E31: ='[1]HOJA GENERAL DATOS IMPORTADOS'!E31 -> 47.57142857 | F31: ='[1]HOJA GENERAL DATOS IMPORTADOS'!F31 -> 34.47619048 | G31: ='[1]HOJA GENERAL DATOS IMPORTADOS'!G31 -> 1.762203274 | H31: ='[1]HOJA GENERAL DATOS IMPORTADOS'!H31 -> 8.204761905 | I31: ='[1]HOJA GENERAL DATOS IMPORTADOS'!I31 -> 0 | J31: ='[1]HOJA GENERAL DATOS IMPORTADOS'!J31 -> 0 | K31: ='[1]HOJA GENERAL DATOS IMPORTADOS'!K31 -> 0 | L31: ='[1]HOJA GENERAL DATOS IMPORTADOS'!L31 -> 0 | M31: ='[1]HOJA GENERAL DATOS IMPORTADOS'!M31 -> 0 | N31: ='[1]HOJA GENERAL DATOS IMPORTADOS'!N31 -> 0 | O31: ='[1]HOJA GENERAL DATOS IMPORTADOS'!O31 -> 0 | P31: ='[1]HOJA GENERAL DATOS IMPORTADOS'!P31 -> 0 | Q31: ='[1]HOJA GENERAL DATOS IMPORTADOS'!Q31 -> 0 | R31: ='[1]HOJA GENERAL DATOS IMPORTADOS'!R31 -> 0 | S31: ='[1]HOJA GENERAL DATOS IMPORTADOS'!S31 -> 0 | T31: ='[1]HOJA GENERAL DATOS IMPORTADOS'!T31 -> 0 | U31: ='[1]HOJA GENERAL DATOS IMPORTADOS'!U31 -> 0 | V31: ='[1]HOJA GENERAL DATOS IMPORTADOS'!V31 -> 0 | W31: ='[1]HOJA GENERAL DATOS IMPORTADOS'!W31 -> 0 | X31: ='[1]HOJA GENERAL DATOS IMPORTADOS'!X31 -> 0 | Y31: ='[1]HOJA GENERAL DATOS IMPORTADOS'!Y31 -> 0 | Z31: ='[1]HOJA GENERAL DATOS IMPORTADOS'!Z31 -> 0 | AA31: ='[1]HOJA GENERAL DATOS IMPORTADOS'!AA31 -> 0 | AB31: ='[1]HOJA GENERAL DATOS IMPORTADOS'!AB31 -> 0 | AC31: ='[1]HOJA GENERAL DATOS IMPORTADOS'!AC31 -> 0 | AD31: ='[1]HOJA GENERAL DATOS IMPORTADOS'!AD31 -> 0 | AE31: ='[1]HOJA GENERAL DATOS IMPORTADOS'!AE31 -> 0 | AF31: ='[1]HOJA GENERAL DATOS IMPORTADOS'!AF31 -> 0 | AG31: ='[1]HOJA GENERAL DATOS IMPORTADOS'!AG31 -> 0 | AH31: ='[1]HOJA GENERAL DATOS IMPORTADOS'!AH31 -> 0 | AI31: ='[1]HOJA GENERAL DATOS IMPORTADOS'!AI31 -> 0
A32: ='[1]HOJA GENERAL DATOS IMPORTADOS'!A32 -> CAPRINO | B32: ='[1]HOJA GENERAL DATOS IMPORTADOS'!B32 -> 9 | C32: ='[1]HOJA GENERAL DATOS IMPORTADOS'!C32 -> 279.7894737 | D32: ='[1]HOJA GENERAL DATOS IMPORTADOS'!D32 -> 11242.15789 | E32: ='[1]HOJA GENERAL DATOS IMPORTADOS'!E32 -> 51 | F32: ='[1]HOJA GENERAL DATOS IMPORTADOS'!F32 -> 36.15789474 | G32: ='[1]HOJA GENERAL DATOS IMPORTADOS'!G32 -> 1.339359167 | H32: ='[1]HOJA GENERAL DATOS IMPORTADOS'!H32 -> 8.715789474 | I32: ='[1]HOJA GENERAL DATOS IMPORTADOS'!I32 -> 0 | J32: ='[1]HOJA GENERAL DATOS IMPORTADOS'!J32 -> 0 | K32: ='[1]HOJA GENERAL DATOS IMPORTADOS'!K32 -> 0 | L32: ='[1]HOJA GENERAL DATOS IMPORTADOS'!L32 -> 0 | M32: ='[1]HOJA GENERAL DATOS IMPORTADOS'!M32 -> 0 | N32: ='[1]HOJA GENERAL DATOS IMPORTADOS'!N32 -> 0 | O32: ='[1]HOJA GENERAL DATOS IMPORTADOS'!O32 -> 0 | P32: ='[1]HOJA GENERAL DATOS IMPORTADOS'!P32 -> 0 | Q32: ='[1]HOJA GENERAL DATOS IMPORTADOS'!Q32 -> 0 | R32: ='[1]HOJA GENERAL DATOS IMPORTADOS'!R32 -> 0 | S32: ='[1]HOJA GENERAL DATOS IMPORTADOS'!S32 -> 0 | T32: ='[1]HOJA GENERAL DATOS IMPORTADOS'!T32 -> 0 | U32: ='[1]HOJA GENERAL DATOS IMPORTADOS'!U32 -> 0 | V32: ='[1]HOJA GENERAL DATOS IMPORTADOS'!V32 -> 0 | W32: ='[1]HOJA GENERAL DATOS IMPORTADOS'!W32 -> 0 | X32: ='[1]HOJA GENERAL DATOS IMPORTADOS'!X32 -> 0 | Y32: ='[1]HOJA GENERAL DATOS IMPORTADOS'!Y32 -> 0 | Z32: ='[1]HOJA GENERAL DATOS IMPORTADOS'!Z32 -> 0 | AA32: ='[1]HOJA GENERAL DATOS IMPORTADOS'!AA32 -> 0 | AB32: ='[1]HOJA GENERAL DATOS IMPORTADOS'!AB32 -> 0 | AC32: ='[1]HOJA GENERAL DATOS IMPORTADOS'!AC32 -> 0 | AD32: ='[1]HOJA GENERAL DATOS IMPORTADOS'!AD32 -> 0 | AE32: ='[1]HOJA GENERAL DATOS IMPORTADOS'!AE32 -> 0 | AF32: ='[1]HOJA GENERAL DATOS IMPORTADOS'!AF32 -> 0 | AG32: ='[1]HOJA GENERAL DATOS IMPORTADOS'!AG32 -> 0 | AH32: ='[1]HOJA GENERAL DATOS IMPORTADOS'!AH32 -> 0 | AI32: ='[1]HOJA GENERAL DATOS IMPORTADOS'!AI32 -> 0
A33: ='[1]HOJA GENERAL DATOS IMPORTADOS'!A33 -> CAPRINO | B33: ='[1]HOJA GENERAL DATOS IMPORTADOS'!B33 -> 10 | C33: ='[1]HOJA GENERAL DATOS IMPORTADOS'!C33 -> 276.5 | D33: ='[1]HOJA GENERAL DATOS IMPORTADOS'!D33 -> 12110 | E33: ='[1]HOJA GENERAL DATOS IMPORTADOS'!E33 -> 56.70833333 | F33: ='[1]HOJA GENERAL DATOS IMPORTADOS'!F33 -> 39.29166667 | G33: ='[1]HOJA GENERAL DATOS IMPORTADOS'!G33 -> 1.459915612 | H33: ='[1]HOJA GENERAL DATOS IMPORTADOS'!H33 -> 9.6 | I33: ='[1]HOJA GENERAL DATOS IMPORTADOS'!I33 -> 0 | J33: ='[1]HOJA GENERAL DATOS IMPORTADOS'!J33 -> 0 | K33: ='[1]HOJA GENERAL DATOS IMPORTADOS'!K33 -> 0 | L33: ='[1]HOJA GENERAL DATOS IMPORTADOS'!L33 -> 0 | M33: ='[1]HOJA GENERAL DATOS IMPORTADOS'!M33 -> 0 | N33: ='[1]HOJA GENERAL DATOS IMPORTADOS'!N33 -> 0 | O33: ='[1]HOJA GENERAL DATOS IMPORTADOS'!O33 -> 0 | P33: ='[1]HOJA GENERAL DATOS IMPORTADOS'!P33 -> 0 | Q33: ='[1]HOJA GENERAL DATOS IMPORTADOS'!Q33 -> 0 | R33: ='[1]HOJA GENERAL DATOS IMPORTADOS'!R33 -> 0 | S33: ='[1]HOJA GENERAL DATOS IMPORTADOS'!S33 -> 0 | T33: ='[1]HOJA GENERAL DATOS IMPORTADOS'!T33 -> 0 | U33: ='[1]HOJA GENERAL DATOS IMPORTADOS'!U33 -> 0 | V33: ='[1]HOJA GENERAL DATOS IMPORTADOS'!V33 -> 0 | W33: ='[1]HOJA GENERAL DATOS IMPORTADOS'!W33 -> 0 | X33: ='[1]HOJA GENERAL DATOS IMPORTADOS'!X33 -> 0 | Y33: ='[1]HOJA GENERAL DATOS IMPORTADOS'!Y33 -> 0 | Z33: ='[1]HOJA GENERAL DATOS IMPORTADOS'!Z33 -> 0 | AA33: ='[1]HOJA GENERAL DATOS IMPORTADOS'!AA33 -> 0 | AB33: ='[1]HOJA GENERAL DATOS IMPORTADOS'!AB33 -> 0 | AC33: ='[1]HOJA GENERAL DATOS IMPORTADOS'!AC33 -> 0 | AD33: ='[1]HOJA GENERAL DATOS IMPORTADOS'!AD33 -> 0 | AE33: ='[1]HOJA GENERAL DATOS IMPORTADOS'!AE33 -> 0 | AF33: ='[1]HOJA GENERAL DATOS IMPORTADOS'!AF33 -> 0 | AG33: ='[1]HOJA GENERAL DATOS IMPORTADOS'!AG33 -> 0 | AH33: ='[1]HOJA GENERAL DATOS IMPORTADOS'!AH33 -> 0 | AI33: ='[1]HOJA GENERAL DATOS IMPORTADOS'!AI33 -> 0
A34: ='[1]HOJA GENERAL DATOS IMPORTADOS'!A34 -> CAPRINO | B34: ='[1]HOJA GENERAL DATOS IMPORTADOS'!B34 -> 11 | C34: ='[1]HOJA GENERAL DATOS IMPORTADOS'!C34 -> 300.7391304 | D34: ='[1]HOJA GENERAL DATOS IMPORTADOS'!D34 -> 14331.30435 | E34: ='[1]HOJA GENERAL DATOS IMPORTADOS'!E34 -> 58.27272727 | F34: ='[1]HOJA GENERAL DATOS IMPORTADOS'!F34 -> 38.54545455 | G34: ='[1]HOJA GENERAL DATOS IMPORTADOS'!G34 -> 1.588453569 | H34: ='[1]HOJA GENERAL DATOS IMPORTADOS'!H34 -> 9.681818182 | I34: ='[1]HOJA GENERAL DATOS IMPORTADOS'!I34 -> 0 | J34: ='[1]HOJA GENERAL DATOS IMPORTADOS'!J34 -> 0 | K34: ='[1]HOJA GENERAL DATOS IMPORTADOS'!K34 -> 0 | L34: ='[1]HOJA GENERAL DATOS IMPORTADOS'!L34 -> 0 | M34: ='[1]HOJA GENERAL DATOS IMPORTADOS'!M34 -> 0 | N34: ='[1]HOJA GENERAL DATOS IMPORTADOS'!N34 -> 0 | O34: ='[1]HOJA GENERAL DATOS IMPORTADOS'!O34 -> 0 | P34: ='[1]HOJA GENERAL DATOS IMPORTADOS'!P34 -> 0 | Q34: ='[1]HOJA GENERAL DATOS IMPORTADOS'!Q34 -> 0 | R34: ='[1]HOJA GENERAL DATOS IMPORTADOS'!R34 -> 0 | S34: ='[1]HOJA GENERAL DATOS IMPORTADOS'!S34 -> 0 | T34: ='[1]HOJA GENERAL DATOS IMPORTADOS'!T34 -> 0 | U34: ='[1]HOJA GENERAL DATOS IMPORTADOS'!U34 -> 0 | V34: ='[1]HOJA GENERAL DATOS IMPORTADOS'!V34 -> 0 | W34: ='[1]HOJA GENERAL DATOS IMPORTADOS'!W34 -> 0 | X34: ='[1]HOJA GENERAL DATOS IMPORTADOS'!X34 -> 0 | Y34: ='[1]HOJA GENERAL DATOS IMPORTADOS'!Y34 -> 0 | Z34: ='[1]HOJA GENERAL DATOS IMPORTADOS'!Z34 -> 0 | AA34: ='[1]HOJA GENERAL DATOS IMPORTADOS'!AA34 -> 0 | AB34: ='[1]HOJA GENERAL DATOS IMPORTADOS'!AB34 -> 0 | AC34: ='[1]HOJA GENERAL DATOS IMPORTADOS'!AC34 -> 0 | AD34: ='[1]HOJA GENERAL DATOS IMPORTADOS'!AD34 -> 0 | AE34: ='[1]HOJA GENERAL DATOS IMPORTADOS'!AE34 -> 0 | AF34: ='[1]HOJA GENERAL DATOS IMPORTADOS'!AF34 -> 0 | AG34: ='[1]HOJA GENERAL DATOS IMPORTADOS'!AG34 -> 0 | AH34: ='[1]HOJA GENERAL DATOS IMPORTADOS'!AH34 -> 0 | AI34: ='[1]HOJA GENERAL DATOS IMPORTADOS'!AI34 -> 0
A35: ='[1]HOJA GENERAL DATOS IMPORTADOS'!A35 -> CAPRINO | B35: ='[1]HOJA GENERAL DATOS IMPORTADOS'!B35 -> 12 | C35: ='[1]HOJA GENERAL DATOS IMPORTADOS'!C35 -> 262.8947368 | D35: ='[1]HOJA GENERAL DATOS IMPORTADOS'!D35 -> 15455.15789 | E35: ='[1]HOJA GENERAL DATOS IMPORTADOS'!E35 -> 57.05263158 | F35: ='[1]HOJA GENERAL DATOS IMPORTADOS'!F35 -> 38.15789474 | G35: ='[1]HOJA GENERAL DATOS IMPORTADOS'!G35 -> 1.959612946 | H35: ='[1]HOJA GENERAL DATOS IMPORTADOS'!H35 -> 9.521052632 | I35: ='[1]HOJA GENERAL DATOS IMPORTADOS'!I35 -> 0 | J35: ='[1]HOJA GENERAL DATOS IMPORTADOS'!J35 -> 0 | K35: ='[1]HOJA GENERAL DATOS IMPORTADOS'!K35 -> 0 | L35: ='[1]HOJA GENERAL DATOS IMPORTADOS'!L35 -> 0 | M35: ='[1]HOJA GENERAL DATOS IMPORTADOS'!M35 -> 0 | N35: ='[1]HOJA GENERAL DATOS IMPORTADOS'!N35 -> 0 | O35: ='[1]HOJA GENERAL DATOS IMPORTADOS'!O35 -> 0 | P35: ='[1]HOJA GENERAL DATOS IMPORTADOS'!P35 -> 0 | Q35: ='[1]HOJA GENERAL DATOS IMPORTADOS'!Q35 -> 0 | R35: ='[1]HOJA GENERAL DATOS IMPORTADOS'!R35 -> 0 | S35: ='[1]HOJA GENERAL DATOS IMPORTADOS'!S35 -> 0 | T35: ='[1]HOJA GENERAL DATOS IMPORTADOS'!T35 -> 0 | U35: ='[1]HOJA GENERAL DATOS IMPORTADOS'!U35 -> 0 | V35: ='[1]HOJA GENERAL DATOS IMPORTADOS'!V35 -> 0 | W35: ='[1]HOJA GENERAL DATOS IMPORTADOS'!W35 -> 0 | X35: ='[1]HOJA GENERAL DATOS IMPORTADOS'!X35 -> 0 | Y35: ='[1]HOJA GENERAL DATOS IMPORTADOS'!Y35 -> 0 | Z35: ='[1]HOJA GENERAL DATOS IMPORTADOS'!Z35 -> 0 | AA35: ='[1]HOJA GENERAL DATOS IMPORTADOS'!AA35 -> 0 | AB35: ='[1]HOJA GENERAL DATOS IMPORTADOS'!AB35 -> 0 | AC35: ='[1]HOJA GENERAL DATOS IMPORTADOS'!AC35 -> 0 | AD35: ='[1]HOJA GENERAL DATOS IMPORTADOS'!AD35 -> 0 | AE35: ='[1]HOJA GENERAL DATOS IMPORTADOS'!AE35 -> 0 | AF35: ='[1]HOJA GENERAL DATOS IMPORTADOS'!AF35 -> 0 | AG35: ='[1]HOJA GENERAL DATOS IMPORTADOS'!AG35 -> 0 | AH35: ='[1]HOJA GENERAL DATOS IMPORTADOS'!AH35 -> 0 | AI35: ='[1]HOJA GENERAL DATOS IMPORTADOS'!AI35 -> 0
A36: ='[1]HOJA GENERAL DATOS IMPORTADOS'!A36 -> OVINO | B36: ='[1]HOJA GENERAL DATOS IMPORTADOS'!B36 -> 1 | C36: ='[1]HOJA GENERAL DATOS IMPORTADOS'!C36 -> 435.0454545 | D36: ='[1]HOJA GENERAL DATOS IMPORTADOS'!D36 -> 19522.08889 | E36: ='[1]HOJA GENERAL DATOS IMPORTADOS'!E36 -> 69.90697674 | F36: ='[1]HOJA GENERAL DATOS IMPORTADOS'!F36 -> 54.48837209 | G36: ='[1]HOJA GENERAL DATOS IMPORTADOS'!G36 -> 1.495789209 | H36: ='[1]HOJA GENERAL DATOS IMPORTADOS'!H36 -> 12.43953488 | I36: ='[1]HOJA GENERAL DATOS IMPORTADOS'!I36 -> 0 | J36: ='[1]HOJA GENERAL DATOS IMPORTADOS'!J36 -> 0 | K36: ='[1]HOJA GENERAL DATOS IMPORTADOS'!K36 -> 0 | L36: ='[1]HOJA GENERAL DATOS IMPORTADOS'!L36 -> 0 | M36: ='[1]HOJA GENERAL DATOS IMPORTADOS'!M36 -> 0 | N36: ='[1]HOJA GENERAL DATOS IMPORTADOS'!N36 -> 0 | O36: ='[1]HOJA GENERAL DATOS IMPORTADOS'!O36 -> 0 | P36: ='[1]HOJA GENERAL DATOS IMPORTADOS'!P36 -> 0 | Q36: ='[1]HOJA GENERAL DATOS IMPORTADOS'!Q36 -> 0 | R36: ='[1]HOJA GENERAL DATOS IMPORTADOS'!R36 -> 0 | S36: ='[1]HOJA GENERAL DATOS IMPORTADOS'!S36 -> 0 | T36: ='[1]HOJA GENERAL DATOS IMPORTADOS'!T36 -> 0 | U36: ='[1]HOJA GENERAL DATOS IMPORTADOS'!U36 -> 0 | V36: ='[1]HOJA GENERAL DATOS IMPORTADOS'!V36 -> 0 | W36: ='[1]HOJA GENERAL DATOS IMPORTADOS'!W36 -> 0 | X36: ='[1]HOJA GENERAL DATOS IMPORTADOS'!X36 -> 0 | Y36: ='[1]HOJA GENERAL DATOS IMPORTADOS'!Y36 -> 0 | Z36: ='[1]HOJA GENERAL DATOS IMPORTADOS'!Z36 -> 0 | AA36: ='[1]HOJA GENERAL DATOS IMPORTADOS'!AA36 -> 0 | AB36: ='[1]HOJA GENERAL DATOS IMPORTADOS'!AB36 -> 0 | AC36: ='[1]HOJA GENERAL DATOS IMPORTADOS'!AC36 -> 0 | AD36: ='[1]HOJA GENERAL DATOS IMPORTADOS'!AD36 -> 0 | AE36: ='[1]HOJA GENERAL DATOS IMPORTADOS'!AE36 -> 0 | AF36: ='[1]HOJA GENERAL DATOS IMPORTADOS'!AF36 -> 0 | AG36: ='[1]HOJA GENERAL DATOS IMPORTADOS'!AG36 -> 0 | AH36: ='[1]HOJA GENERAL DATOS IMPORTADOS'!AH36 -> 0 | AI36: ='[1]HOJA GENERAL DATOS IMPORTADOS'!AI36 -> 0
A37: ='[1]HOJA GENERAL DATOS IMPORTADOS'!A37 -> OVINO | B37: ='[1]HOJA GENERAL DATOS IMPORTADOS'!B37 -> 2 | C37: ='[1]HOJA GENERAL DATOS IMPORTADOS'!C37 -> 454.85 | D37: ='[1]HOJA GENERAL DATOS IMPORTADOS'!D37 -> 22508.26829 | E37: ='[1]HOJA GENERAL DATOS IMPORTADOS'!E37 -> 69.20512821 | F37: ='[1]HOJA GENERAL DATOS IMPORTADOS'!F37 -> 54.41025641 | G37: ='[1]HOJA GENERAL DATOS IMPORTADOS'!G37 -> 1.649501176 | H37: ='[1]HOJA GENERAL DATOS IMPORTADOS'!H37 -> 12.36153846 | I37: ='[1]HOJA GENERAL DATOS IMPORTADOS'!I37 -> 0 | J37: ='[1]HOJA GENERAL DATOS IMPORTADOS'!J37 -> 0 | K37: ='[1]HOJA GENERAL DATOS IMPORTADOS'!K37 -> 0 | L37: ='[1]HOJA GENERAL DATOS IMPORTADOS'!L37 -> 0 | M37: ='[1]HOJA GENERAL DATOS IMPORTADOS'!M37 -> 0 | N37: ='[1]HOJA GENERAL DATOS IMPORTADOS'!N37 -> 0 | O37: ='[1]HOJA GENERAL DATOS IMPORTADOS'!O37 -> 0 | P37: ='[1]HOJA GENERAL DATOS IMPORTADOS'!P37 -> 0 | Q37: ='[1]HOJA GENERAL DATOS IMPORTADOS'!Q37 -> 0 | R37: ='[1]HOJA GENERAL DATOS IMPORTADOS'!R37 -> 0 | S37: ='[1]HOJA GENERAL DATOS IMPORTADOS'!S37 -> 0 | T37: ='[1]HOJA GENERAL DATOS IMPORTADOS'!T37 -> 0 | U37: ='[1]HOJA GENERAL DATOS IMPORTADOS'!U37 -> 0 | V37: ='[1]HOJA GENERAL DATOS IMPORTADOS'!V37 -> 0 | W37: ='[1]HOJA GENERAL DATOS IMPORTADOS'!W37 -> 0 | X37: ='[1]HOJA GENERAL DATOS IMPORTADOS'!X37 -> 0 | Y37: ='[1]HOJA GENERAL DATOS IMPORTADOS'!Y37 -> 0 | Z37: ='[1]HOJA GENERAL DATOS IMPORTADOS'!Z37 -> 0 | AA37: ='[1]HOJA GENERAL DATOS IMPORTADOS'!AA37 -> 0 | AB37: ='[1]HOJA GENERAL DATOS IMPORTADOS'!AB37 -> 0 | AC37: ='[1]HOJA GENERAL DATOS IMPORTADOS'!AC37 -> 0 | AD37: ='[1]HOJA GENERAL DATOS IMPORTADOS'!AD37 -> 0 | AE37: ='[1]HOJA GENERAL DATOS IMPORTADOS'!AE37 -> 0 | AF37: ='[1]HOJA GENERAL DATOS IMPORTADOS'!AF37 -> 0 | AG37: ='[1]HOJA GENERAL DATOS IMPORTADOS'!AG37 -> 0 | AH37: ='[1]HOJA GENERAL DATOS IMPORTADOS'!AH37 -> 0 | AI37: ='[1]HOJA GENERAL DATOS IMPORTADOS'!AI37 -> 0
A38: ='[1]HOJA GENERAL DATOS IMPORTADOS'!A38 -> OVINO | B38: ='[1]HOJA GENERAL DATOS IMPORTADOS'!B38 -> 3 | C38: ='[1]HOJA GENERAL DATOS IMPORTADOS'!C38 -> 617.4358974 | D38: ='[1]HOJA GENERAL DATOS IMPORTADOS'!D38 -> 32108.475 | E38: ='[1]HOJA GENERAL DATOS IMPORTADOS'!E38 -> 64.12820513 | F38: ='[1]HOJA GENERAL DATOS IMPORTADOS'!F38 -> 51.76923077 | G38: ='[1]HOJA GENERAL DATOS IMPORTADOS'!G38 -> 1.733430959 | H38: ='[1]HOJA GENERAL DATOS IMPORTADOS'!H38 -> 11.58974359 | I38: ='[1]HOJA GENERAL DATOS IMPORTADOS'!I38 -> 0 | J38: ='[1]HOJA GENERAL DATOS IMPORTADOS'!J38 -> 0 | K38: ='[1]HOJA GENERAL DATOS IMPORTADOS'!K38 -> 0 | L38: ='[1]HOJA GENERAL DATOS IMPORTADOS'!L38 -> 0 | M38: ='[1]HOJA GENERAL DATOS IMPORTADOS'!M38 -> 0 | N38: ='[1]HOJA GENERAL DATOS IMPORTADOS'!N38 -> 0 | O38: ='[1]HOJA GENERAL DATOS IMPORTADOS'!O38 -> 0 | P38: ='[1]HOJA GENERAL DATOS IMPORTADOS'!P38 -> 0 | Q38: ='[1]HOJA GENERAL DATOS IMPORTADOS'!Q38 -> 0 | R38: ='[1]HOJA GENERAL DATOS IMPORTADOS'!R38 -> 0 | S38: ='[1]HOJA GENERAL DATOS IMPORTADOS'!S38 -> 0 | T38: ='[1]HOJA GENERAL DATOS IMPORTADOS'!T38 -> 0 | U38: ='[1]HOJA GENERAL DATOS IMPORTADOS'!U38 -> 0 | V38: ='[1]HOJA GENERAL DATOS IMPORTADOS'!V38 -> 0 | W38: ='[1]HOJA GENERAL DATOS IMPORTADOS'!W38 -> 0 | X38: ='[1]HOJA GENERAL DATOS IMPORTADOS'!X38 -> 0 | Y38: ='[1]HOJA GENERAL DATOS IMPORTADOS'!Y38 -> 0 | Z38: ='[1]HOJA GENERAL DATOS IMPORTADOS'!Z38 -> 0 | AA38: ='[1]HOJA GENERAL DATOS IMPORTADOS'!AA38 -> 0 | AB38: ='[1]HOJA GENERAL DATOS IMPORTADOS'!AB38 -> 0 | AC38: ='[1]HOJA GENERAL DATOS IMPORTADOS'!AC38 -> 0 | AD38: ='[1]HOJA GENERAL DATOS IMPORTADOS'!AD38 -> 0 | AE38: ='[1]HOJA GENERAL DATOS IMPORTADOS'!AE38 -> 0 | AF38: ='[1]HOJA GENERAL DATOS IMPORTADOS'!AF38 -> 0 | AG38: ='[1]HOJA GENERAL DATOS IMPORTADOS'!AG38 -> 0 | AH38: ='[1]HOJA GENERAL DATOS IMPORTADOS'!AH38 -> 0 | AI38: ='[1]HOJA GENERAL DATOS IMPORTADOS'!AI38 -> 0
A39: ='[1]HOJA GENERAL DATOS IMPORTADOS'!A39 -> OVINO | B39: ='[1]HOJA GENERAL DATOS IMPORTADOS'!B39 -> 4 | C39: ='[1]HOJA GENERAL DATOS IMPORTADOS'!C39 -> 649.4102564 | D39: ='[1]HOJA GENERAL DATOS IMPORTADOS'!D39 -> 36776.225 | E39: ='[1]HOJA GENERAL DATOS IMPORTADOS'!E39 -> 63.46153846 | F39: ='[1]HOJA GENERAL DATOS IMPORTADOS'!F39 -> 50.71794872 | G39: ='[1]HOJA GENERAL DATOS IMPORTADOS'!G39 -> 1.887672938 | H39: ='[1]HOJA GENERAL DATOS IMPORTADOS'!H39 -> 11.41794872 | I39: ='[1]HOJA GENERAL DATOS IMPORTADOS'!I39 -> 0 | J39: ='[1]HOJA GENERAL DATOS IMPORTADOS'!J39 -> 0 | K39: ='[1]HOJA GENERAL DATOS IMPORTADOS'!K39 -> 0 | L39: ='[1]HOJA GENERAL DATOS IMPORTADOS'!L39 -> 0 | M39: ='[1]HOJA GENERAL DATOS IMPORTADOS'!M39 -> 0 | N39: ='[1]HOJA GENERAL DATOS IMPORTADOS'!N39 -> 0 | O39: ='[1]HOJA GENERAL DATOS IMPORTADOS'!O39 -> 0 | P39: ='[1]HOJA GENERAL DATOS IMPORTADOS'!P39 -> 0 | Q39: ='[1]HOJA GENERAL DATOS IMPORTADOS'!Q39 -> 0 | R39: ='[1]HOJA GENERAL DATOS IMPORTADOS'!R39 -> 0 | S39: ='[1]HOJA GENERAL DATOS IMPORTADOS'!S39 -> 0 | T39: ='[1]HOJA GENERAL DATOS IMPORTADOS'!T39 -> 0 | U39: ='[1]HOJA GENERAL DATOS IMPORTADOS'!U39 -> 0 | V39: ='[1]HOJA GENERAL DATOS IMPORTADOS'!V39 -> 0 | W39: ='[1]HOJA GENERAL DATOS IMPORTADOS'!W39 -> 0 | X39: ='[1]HOJA GENERAL DATOS IMPORTADOS'!X39 -> 0 | Y39: ='[1]HOJA GENERAL DATOS IMPORTADOS'!Y39 -> 0 | Z39: ='[1]HOJA GENERAL DATOS IMPORTADOS'!Z39 -> 0 | AA39: ='[1]HOJA GENERAL DATOS IMPORTADOS'!AA39 -> 0 | AB39: ='[1]HOJA GENERAL DATOS IMPORTADOS'!AB39 -> 0 | AC39: ='[1]HOJA GENERAL DATOS IMPORTADOS'!AC39 -> 0 | AD39: ='[1]HOJA GENERAL DATOS IMPORTADOS'!AD39 -> 0 | AE39: ='[1]HOJA GENERAL DATOS IMPORTADOS'!AE39 -> 0 | AF39: ='[1]HOJA GENERAL DATOS IMPORTADOS'!AF39 -> 0 | AG39: ='[1]HOJA GENERAL DATOS IMPORTADOS'!AG39 -> 0 | AH39: ='[1]HOJA GENERAL DATOS IMPORTADOS'!AH39 -> 0 | AI39: ='[1]HOJA GENERAL DATOS IMPORTADOS'!AI39 -> 0
A40: ='[1]HOJA GENERAL DATOS IMPORTADOS'!A40 -> OVINO | B40: ='[1]HOJA GENERAL DATOS IMPORTADOS'!B40 -> 5 | C40: ='[1]HOJA GENERAL DATOS IMPORTADOS'!C40 -> 730.7948718 | D40: ='[1]HOJA GENERAL DATOS IMPORTADOS'!D40 -> 44270.69231 | E40: ='[1]HOJA GENERAL DATOS IMPORTADOS'!E40 -> 62.71052632 | F40: ='[1]HOJA GENERAL DATOS IMPORTADOS'!F40 -> 49.84210526 | G40: ='[1]HOJA GENERAL DATOS IMPORTADOS'!G40 -> 2.01929406 | H40: ='[1]HOJA GENERAL DATOS IMPORTADOS'!H40 -> 11.25526316 | I40: ='[1]HOJA GENERAL DATOS IMPORTADOS'!I40 -> 0 | J40: ='[1]HOJA GENERAL DATOS IMPORTADOS'!J40 -> 0 | K40: ='[1]HOJA GENERAL DATOS IMPORTADOS'!K40 -> 0 | L40: ='[1]HOJA GENERAL DATOS IMPORTADOS'!L40 -> 0 | M40: ='[1]HOJA GENERAL DATOS IMPORTADOS'!M40 -> 0 | N40: ='[1]HOJA GENERAL DATOS IMPORTADOS'!N40 -> 0 | O40: ='[1]HOJA GENERAL DATOS IMPORTADOS'!O40 -> 0 | P40: ='[1]HOJA GENERAL DATOS IMPORTADOS'!P40 -> 0 | Q40: ='[1]HOJA GENERAL DATOS IMPORTADOS'!Q40 -> 0 | R40: ='[1]HOJA GENERAL DATOS IMPORTADOS'!R40 -> 0 | S40: ='[1]HOJA GENERAL DATOS IMPORTADOS'!S40 -> 0 | T40: ='[1]HOJA GENERAL DATOS IMPORTADOS'!T40 -> 0 | U40: ='[1]HOJA GENERAL DATOS IMPORTADOS'!U40 -> 0 | V40: ='[1]HOJA GENERAL DATOS IMPORTADOS'!V40 -> 0 | W40: ='[1]HOJA GENERAL DATOS IMPORTADOS'!W40 -> 0 | X40: ='[1]HOJA GENERAL DATOS IMPORTADOS'!X40 -> 0 | Y40: ='[1]HOJA GENERAL DATOS IMPORTADOS'!Y40 -> 0 | Z40: ='[1]HOJA GENERAL DATOS IMPORTADOS'!Z40 -> 0 | AA40: ='[1]HOJA GENERAL DATOS IMPORTADOS'!AA40 -> 0 | AB40: ='[1]HOJA GENERAL DATOS IMPORTADOS'!AB40 -> 0 | AC40: ='[1]HOJA GENERAL DATOS IMPORTADOS'!AC40 -> 0 | AD40: ='[1]HOJA GENERAL DATOS IMPORTADOS'!AD40 -> 0 | AE40: ='[1]HOJA GENERAL DATOS IMPORTADOS'!AE40 -> 0 | AF40: ='[1]HOJA GENERAL DATOS IMPORTADOS'!AF40 -> 0 | AG40: ='[1]HOJA GENERAL DATOS IMPORTADOS'!AG40 -> 0 | AH40: ='[1]HOJA GENERAL DATOS IMPORTADOS'!AH40 -> 0 | AI40: ='[1]HOJA GENERAL DATOS IMPORTADOS'!AI40 -> 0
A41: ='[1]HOJA GENERAL DATOS IMPORTADOS'!A41 -> OVINO | B41: ='[1]HOJA GENERAL DATOS IMPORTADOS'!B41 -> 6 | C41: ='[1]HOJA GENERAL DATOS IMPORTADOS'!C41 -> 716.1052632 | D41: ='[1]HOJA GENERAL DATOS IMPORTADOS'!D41 -> 40143.74359 | E41: ='[1]HOJA GENERAL DATOS IMPORTADOS'!E41 -> 62.94736842 | F41: ='[1]HOJA GENERAL DATOS IMPORTADOS'!F41 -> 50 | G41: ='[1]HOJA GENERAL DATOS IMPORTADOS'!G41 -> 1.868614651 | H41: ='[1]HOJA GENERAL DATOS IMPORTADOS'!H41 -> 11.29473684 | I41: ='[1]HOJA GENERAL DATOS IMPORTADOS'!I41 -> 0 | J41: ='[1]HOJA GENERAL DATOS IMPORTADOS'!J41 -> 0 | K41: ='[1]HOJA GENERAL DATOS IMPORTADOS'!K41 -> 0 | L41: ='[1]HOJA GENERAL DATOS IMPORTADOS'!L41 -> 0 | M41: ='[1]HOJA GENERAL DATOS IMPORTADOS'!M41 -> 0 | N41: ='[1]HOJA GENERAL DATOS IMPORTADOS'!N41 -> 0 | O41: ='[1]HOJA GENERAL DATOS IMPORTADOS'!O41 -> 0 | P41: ='[1]HOJA GENERAL DATOS IMPORTADOS'!P41 -> 0 | Q41: ='[1]HOJA GENERAL DATOS IMPORTADOS'!Q41 -> 0 | R41: ='[1]HOJA GENERAL DATOS IMPORTADOS'!R41 -> 0 | S41: ='[1]HOJA GENERAL DATOS IMPORTADOS'!S41 -> 0 | T41: ='[1]HOJA GENERAL DATOS IMPORTADOS'!T41 -> 0 | U41: ='[1]HOJA GENERAL DATOS IMPORTADOS'!U41 -> 0 | V41: ='[1]HOJA GENERAL DATOS IMPORTADOS'!V41 -> 0 | W41: ='[1]HOJA GENERAL DATOS IMPORTADOS'!W41 -> 0 | X41: ='[1]HOJA GENERAL DATOS IMPORTADOS'!X41 -> 0 | Y41: ='[1]HOJA GENERAL DATOS IMPORTADOS'!Y41 -> 0 | Z41: ='[1]HOJA GENERAL DATOS IMPORTADOS'!Z41 -> 0 | AA41: ='[1]HOJA GENERAL DATOS IMPORTADOS'!AA41 -> 0 | AB41: ='[1]HOJA GENERAL DATOS IMPORTADOS'!AB41 -> 0 | AC41: ='[1]HOJA GENERAL DATOS IMPORTADOS'!AC41 -> 0 | AD41: ='[1]HOJA GENERAL DATOS IMPORTADOS'!AD41 -> 0 | AE41: ='[1]HOJA GENERAL DATOS IMPORTADOS'!AE41 -> 0 | AF41: ='[1]HOJA GENERAL DATOS IMPORTADOS'!AF41 -> 0 | AG41: ='[1]HOJA GENERAL DATOS IMPORTADOS'!AG41 -> 0 | AH41: ='[1]HOJA GENERAL DATOS IMPORTADOS'!AH41 -> 0 | AI41: ='[1]HOJA GENERAL DATOS IMPORTADOS'!AI41 -> 0
A42: ='[1]HOJA GENERAL DATOS IMPORTADOS'!A42 -> OVINO | B42: ='[1]HOJA GENERAL DATOS IMPORTADOS'!B42 -> 7 | C42: ='[1]HOJA GENERAL DATOS IMPORTADOS'!C42 -> 670.8108108 | D42: ='[1]HOJA GENERAL DATOS IMPORTADOS'!D42 -> 36673.13514 | E42: ='[1]HOJA GENERAL DATOS IMPORTADOS'!E42 -> 62.86111111 | F42: ='[1]HOJA GENERAL DATOS IMPORTADOS'!F42 -> 50.63888889 | G42: ='[1]HOJA GENERAL DATOS IMPORTADOS'!G42 -> 1.822328767 | H42: ='[1]HOJA GENERAL DATOS IMPORTADOS'!H42 -> 11.35 | I42: ='[1]HOJA GENERAL DATOS IMPORTADOS'!I42 -> 0 | J42: ='[1]HOJA GENERAL DATOS IMPORTADOS'!J42 -> 0 | K42: ='[1]HOJA GENERAL DATOS IMPORTADOS'!K42 -> 0 | L42: ='[1]HOJA GENERAL DATOS IMPORTADOS'!L42 -> 0 | M42: ='[1]HOJA GENERAL DATOS IMPORTADOS'!M42 -> 0 | N42: ='[1]HOJA GENERAL DATOS IMPORTADOS'!N42 -> 0 | O42: ='[1]HOJA GENERAL DATOS IMPORTADOS'!O42 -> 0 | P42: ='[1]HOJA GENERAL DATOS IMPORTADOS'!P42 -> 0 | Q42: ='[1]HOJA GENERAL DATOS IMPORTADOS'!Q42 -> 0 | R42: ='[1]HOJA GENERAL DATOS IMPORTADOS'!R42 -> 0 | S42: ='[1]HOJA GENERAL DATOS IMPORTADOS'!S42 -> 0 | T42: ='[1]HOJA GENERAL DATOS IMPORTADOS'!T42 -> 0 | U42: ='[1]HOJA GENERAL DATOS IMPORTADOS'!U42 -> 0 | V42: ='[1]HOJA GENERAL DATOS IMPORTADOS'!V42 -> 0 | W42: ='[1]HOJA GENERAL DATOS IMPORTADOS'!W42 -> 0 | X42: ='[1]HOJA GENERAL DATOS IMPORTADOS'!X42 -> 0 | Y42: ='[1]HOJA GENERAL DATOS IMPORTADOS'!Y42 -> 0 | Z42: ='[1]HOJA GENERAL DATOS IMPORTADOS'!Z42 -> 0 | AA42: ='[1]HOJA GENERAL DATOS IMPORTADOS'!AA42 -> 0 | AB42: ='[1]HOJA GENERAL DATOS IMPORTADOS'!AB42 -> 0 | AC42: ='[1]HOJA GENERAL DATOS IMPORTADOS'!AC42 -> 0 | AD42: ='[1]HOJA GENERAL DATOS IMPORTADOS'!AD42 -> 0 | AE42: ='[1]HOJA GENERAL DATOS IMPORTADOS'!AE42 -> 0 | AF42: ='[1]HOJA GENERAL DATOS IMPORTADOS'!AF42 -> 0 | AG42: ='[1]HOJA GENERAL DATOS IMPORTADOS'!AG42 -> 0 | AH42: ='[1]HOJA GENERAL DATOS IMPORTADOS'!AH42 -> 0 | AI42: ='[1]HOJA GENERAL DATOS IMPORTADOS'!AI42 -> 0
A43: ='[1]HOJA GENERAL DATOS IMPORTADOS'!A43 -> OVINO | B43: ='[1]HOJA GENERAL DATOS IMPORTADOS'!B43 -> 8 | C43: ='[1]HOJA GENERAL DATOS IMPORTADOS'!C43 -> 697.8888889 | D43: ='[1]HOJA GENERAL DATOS IMPORTADOS'!D43 -> 33860.91667 | E43: ='[1]HOJA GENERAL DATOS IMPORTADOS'!E43 -> 64 | F43: ='[1]HOJA GENERAL DATOS IMPORTADOS'!F43 -> 51.14285714 | G43: ='[1]HOJA GENERAL DATOS IMPORTADOS'!G43 -> 1.617302181 | H43: ='[1]HOJA GENERAL DATOS IMPORTADOS'!H43 -> 11.51428571 | I43: ='[1]HOJA GENERAL DATOS IMPORTADOS'!I43 -> 0 | J43: ='[1]HOJA GENERAL DATOS IMPORTADOS'!J43 -> 0 | K43: ='[1]HOJA GENERAL DATOS IMPORTADOS'!K43 -> 0 | L43: ='[1]HOJA GENERAL DATOS IMPORTADOS'!L43 -> 0 | M43: ='[1]HOJA GENERAL DATOS IMPORTADOS'!M43 -> 0 | N43: ='[1]HOJA GENERAL DATOS IMPORTADOS'!N43 -> 0 | O43: ='[1]HOJA GENERAL DATOS IMPORTADOS'!O43 -> 0 | P43: ='[1]HOJA GENERAL DATOS IMPORTADOS'!P43 -> 0 | Q43: ='[1]HOJA GENERAL DATOS IMPORTADOS'!Q43 -> 0 | R43: ='[1]HOJA GENERAL DATOS IMPORTADOS'!R43 -> 0 | S43: ='[1]HOJA GENERAL DATOS IMPORTADOS'!S43 -> 0 | T43: ='[1]HOJA GENERAL DATOS IMPORTADOS'!T43 -> 0 | U43: ='[1]HOJA GENERAL DATOS IMPORTADOS'!U43 -> 0 | V43: ='[1]HOJA GENERAL DATOS IMPORTADOS'!V43 -> 0 | W43: ='[1]HOJA GENERAL DATOS IMPORTADOS'!W43 -> 0 | X43: ='[1]HOJA GENERAL DATOS IMPORTADOS'!X43 -> 0 | Y43: ='[1]HOJA GENERAL DATOS IMPORTADOS'!Y43 -> 0 | Z43: ='[1]HOJA GENERAL DATOS IMPORTADOS'!Z43 -> 0 | AA43: ='[1]HOJA GENERAL DATOS IMPORTADOS'!AA43 -> 0 | AB43: ='[1]HOJA GENERAL DATOS IMPORTADOS'!AB43 -> 0 | AC43: ='[1]HOJA GENERAL DATOS IMPORTADOS'!AC43 -> 0 | AD43: ='[1]HOJA GENERAL DATOS IMPORTADOS'!AD43 -> 0 | AE43: ='[1]HOJA GENERAL DATOS IMPORTADOS'!AE43 -> 0 | AF43: ='[1]HOJA GENERAL DATOS IMPORTADOS'!AF43 -> 0 | AG43: ='[1]HOJA GENERAL DATOS IMPORTADOS'!AG43 -> 0 | AH43: ='[1]HOJA GENERAL DATOS IMPORTADOS'!AH43 -> 0 | AI43: ='[1]HOJA GENERAL DATOS IMPORTADOS'!AI43 -> 0
A44: ='[1]HOJA GENERAL DATOS IMPORTADOS'!A44 -> OVINO | B44: ='[1]HOJA GENERAL DATOS IMPORTADOS'!B44 -> 9 | C44: ='[1]HOJA GENERAL DATOS IMPORTADOS'!C44 -> 609.0526316 | D44: ='[1]HOJA GENERAL DATOS IMPORTADOS'!D44 -> 26917.71053 | E44: ='[1]HOJA GENERAL DATOS IMPORTADOS'!E44 -> 68.21621622 | F44: ='[1]HOJA GENERAL DATOS IMPORTADOS'!F44 -> 53.16216216 | G44: ='[1]HOJA GENERAL DATOS IMPORTADOS'!G44 -> 1.473201118 | H44: ='[1]HOJA GENERAL DATOS IMPORTADOS'!H44 -> 12.13783784 | I44: ='[1]HOJA GENERAL DATOS IMPORTADOS'!I44 -> 0 | J44: ='[1]HOJA GENERAL DATOS IMPORTADOS'!J44 -> 0 | K44: ='[1]HOJA GENERAL DATOS IMPORTADOS'!K44 -> 0 | L44: ='[1]HOJA GENERAL DATOS IMPORTADOS'!L44 -> 0 | M44: ='[1]HOJA GENERAL DATOS IMPORTADOS'!M44 -> 0 | N44: ='[1]HOJA GENERAL DATOS IMPORTADOS'!N44 -> 0 | O44: ='[1]HOJA GENERAL DATOS IMPORTADOS'!O44 -> 0 | P44: ='[1]HOJA GENERAL DATOS IMPORTADOS'!P44 -> 0 | Q44: ='[1]HOJA GENERAL DATOS IMPORTADOS'!Q44 -> 0 | R44: ='[1]HOJA GENERAL DATOS IMPORTADOS'!R44 -> 0 | S44: ='[1]HOJA GENERAL DATOS IMPORTADOS'!S44 -> 0 | T44: ='[1]HOJA GENERAL DATOS IMPORTADOS'!T44 -> 0 | U44: ='[1]HOJA GENERAL DATOS IMPORTADOS'!U44 -> 0 | V44: ='[1]HOJA GENERAL DATOS IMPORTADOS'!V44 -> 0 | W44: ='[1]HOJA GENERAL DATOS IMPORTADOS'!W44 -> 0 | X44: ='[1]HOJA GENERAL DATOS IMPORTADOS'!X44 -> 0 | Y44: ='[1]HOJA GENERAL DATOS IMPORTADOS'!Y44 -> 0 | Z44: ='[1]HOJA GENERAL DATOS IMPORTADOS'!Z44 -> 0 | AA44: ='[1]HOJA GENERAL DATOS IMPORTADOS'!AA44 -> 0 | AB44: ='[1]HOJA GENERAL DATOS IMPORTADOS'!AB44 -> 0 | AC44: ='[1]HOJA GENERAL DATOS IMPORTADOS'!AC44 -> 0 | AD44: ='[1]HOJA GENERAL DATOS IMPORTADOS'!AD44 -> 0 | AE44: ='[1]HOJA GENERAL DATOS IMPORTADOS'!AE44 -> 0 | AF44: ='[1]HOJA GENERAL DATOS IMPORTADOS'!AF44 -> 0 | AG44: ='[1]HOJA GENERAL DATOS IMPORTADOS'!AG44 -> 0 | AH44: ='[1]HOJA GENERAL DATOS IMPORTADOS'!AH44 -> 0 | AI44: ='[1]HOJA GENERAL DATOS IMPORTADOS'!AI44 -> 0
A45: ='[1]HOJA GENERAL DATOS IMPORTADOS'!A45 -> OVINO | B45: ='[1]HOJA GENERAL DATOS IMPORTADOS'!B45 -> 10 | C45: ='[1]HOJA GENERAL DATOS IMPORTADOS'!C45 -> 535.1891892 | D45: ='[1]HOJA GENERAL DATOS IMPORTADOS'!D45 -> 23362.18421 | E45: ='[1]HOJA GENERAL DATOS IMPORTADOS'!E45 -> 71.91891892 | F45: ='[1]HOJA GENERAL DATOS IMPORTADOS'!F45 -> 56.45945946 | G45: ='[1]HOJA GENERAL DATOS IMPORTADOS'!G45 -> 1.455073252 | H45: ='[1]HOJA GENERAL DATOS IMPORTADOS'!H45 -> 12.83783784 | I45: ='[1]HOJA GENERAL DATOS IMPORTADOS'!I45 -> 0 | J45: ='[1]HOJA GENERAL DATOS IMPORTADOS'!J45 -> 0 | K45: ='[1]HOJA GENERAL DATOS IMPORTADOS'!K45 -> 0 | L45: ='[1]HOJA GENERAL DATOS IMPORTADOS'!L45 -> 0 | M45: ='[1]HOJA GENERAL DATOS IMPORTADOS'!M45 -> 0 | N45: ='[1]HOJA GENERAL DATOS IMPORTADOS'!N45 -> 0 | O45: ='[1]HOJA GENERAL DATOS IMPORTADOS'!O45 -> 0 | P45: ='[1]HOJA GENERAL DATOS IMPORTADOS'!P45 -> 0 | Q45: ='[1]HOJA GENERAL DATOS IMPORTADOS'!Q45 -> 0 | R45: ='[1]HOJA GENERAL DATOS IMPORTADOS'!R45 -> 0 | S45: ='[1]HOJA GENERAL DATOS IMPORTADOS'!S45 -> 0 | T45: ='[1]HOJA GENERAL DATOS IMPORTADOS'!T45 -> 0 | U45: ='[1]HOJA GENERAL DATOS IMPORTADOS'!U45 -> 0 | V45: ='[1]HOJA GENERAL DATOS IMPORTADOS'!V45 -> 0 | W45: ='[1]HOJA GENERAL DATOS IMPORTADOS'!W45 -> 0 | X45: ='[1]HOJA GENERAL DATOS IMPORTADOS'!X45 -> 0 | Y45: ='[1]HOJA GENERAL DATOS IMPORTADOS'!Y45 -> 0 | Z45: ='[1]HOJA GENERAL DATOS IMPORTADOS'!Z45 -> 0 | AA45: ='[1]HOJA GENERAL DATOS IMPORTADOS'!AA45 -> 0 | AB45: ='[1]HOJA GENERAL DATOS IMPORTADOS'!AB45 -> 0 | AC45: ='[1]HOJA GENERAL DATOS IMPORTADOS'!AC45 -> 0 | AD45: ='[1]HOJA GENERAL DATOS IMPORTADOS'!AD45 -> 0 | AE45: ='[1]HOJA GENERAL DATOS IMPORTADOS'!AE45 -> 0 | AF45: ='[1]HOJA GENERAL DATOS IMPORTADOS'!AF45 -> 0 | AG45: ='[1]HOJA GENERAL DATOS IMPORTADOS'!AG45 -> 0 | AH45: ='[1]HOJA GENERAL DATOS IMPORTADOS'!AH45 -> 0 | AI45: ='[1]HOJA GENERAL DATOS IMPORTADOS'!AI45 -> 0
A46: ='[1]HOJA GENERAL DATOS IMPORTADOS'!A46 -> OVINO | B46: ='[1]HOJA GENERAL DATOS IMPORTADOS'!B46 -> 11 | C46: ='[1]HOJA GENERAL DATOS IMPORTADOS'!C46 -> 472.75 | D46: ='[1]HOJA GENERAL DATOS IMPORTADOS'!D46 -> 18268.35135 | E46: ='[1]HOJA GENERAL DATOS IMPORTADOS'!E46 -> 76.61111111 | F46: ='[1]HOJA GENERAL DATOS IMPORTADOS'!F46 -> 58.83333333 | G46: ='[1]HOJA GENERAL DATOS IMPORTADOS'!G46 -> 1.288091052 | H46: ='[1]HOJA GENERAL DATOS IMPORTADOS'!H46 -> 13.54444444 | I46: ='[1]HOJA GENERAL DATOS IMPORTADOS'!I46 -> 0 | J46: ='[1]HOJA GENERAL DATOS IMPORTADOS'!J46 -> 0 | K46: ='[1]HOJA GENERAL DATOS IMPORTADOS'!K46 -> 0 | L46: ='[1]HOJA GENERAL DATOS IMPORTADOS'!L46 -> 0 | M46: ='[1]HOJA GENERAL DATOS IMPORTADOS'!M46 -> 0 | N46: ='[1]HOJA GENERAL DATOS IMPORTADOS'!N46 -> 0 | O46: ='[1]HOJA GENERAL DATOS IMPORTADOS'!O46 -> 0 | P46: ='[1]HOJA GENERAL DATOS IMPORTADOS'!P46 -> 0 | Q46: ='[1]HOJA GENERAL DATOS IMPORTADOS'!Q46 -> 0 | R46: ='[1]HOJA GENERAL DATOS IMPORTADOS'!R46 -> 0 | S46: ='[1]HOJA GENERAL DATOS IMPORTADOS'!S46 -> 0 | T46: ='[1]HOJA GENERAL DATOS IMPORTADOS'!T46 -> 0 | U46: ='[1]HOJA GENERAL DATOS IMPORTADOS'!U46 -> 0 | V46: ='[1]HOJA GENERAL DATOS IMPORTADOS'!V46 -> 0 | W46: ='[1]HOJA GENERAL DATOS IMPORTADOS'!W46 -> 0 | X46: ='[1]HOJA GENERAL DATOS IMPORTADOS'!X46 -> 0 | Y46: ='[1]HOJA GENERAL DATOS IMPORTADOS'!Y46 -> 0 | Z46: ='[1]HOJA GENERAL DATOS IMPORTADOS'!Z46 -> 0 | AA46: ='[1]HOJA GENERAL DATOS IMPORTADOS'!AA46 -> 0 | AB46: ='[1]HOJA GENERAL DATOS IMPORTADOS'!AB46 -> 0 | AC46: ='[1]HOJA GENERAL DATOS IMPORTADOS'!AC46 -> 0 | AD46: ='[1]HOJA GENERAL DATOS IMPORTADOS'!AD46 -> 0 | AE46: ='[1]HOJA GENERAL DATOS IMPORTADOS'!AE46 -> 0 | AF46: ='[1]HOJA GENERAL DATOS IMPORTADOS'!AF46 -> 0 | AG46: ='[1]HOJA GENERAL DATOS IMPORTADOS'!AG46 -> 0 | AH46: ='[1]HOJA GENERAL DATOS IMPORTADOS'!AH46 -> 0 | AI46: ='[1]HOJA GENERAL DATOS IMPORTADOS'!AI46 -> 0
A47: ='[1]HOJA GENERAL DATOS IMPORTADOS'!A47 -> OVINO | B47: ='[1]HOJA GENERAL DATOS IMPORTADOS'!B47 -> 12 | C47: ='[1]HOJA GENERAL DATOS IMPORTADOS'!C47 -> 487.0285714 | D47: ='[1]HOJA GENERAL DATOS IMPORTADOS'!D47 -> 21258.51429 | E47: ='[1]HOJA GENERAL DATOS IMPORTADOS'!E47 -> 72.05882353 | F47: ='[1]HOJA GENERAL DATOS IMPORTADOS'!F47 -> 56.47058824 | G47: ='[1]HOJA GENERAL DATOS IMPORTADOS'!G47 -> 1.454980641 | H47: ='[1]HOJA GENERAL DATOS IMPORTADOS'!H47 -> 12.85294118 | I47: ='[1]HOJA GENERAL DATOS IMPORTADOS'!I47 -> 0 | J47: ='[1]HOJA GENERAL DATOS IMPORTADOS'!J47 -> 0 | K47: ='[1]HOJA GENERAL DATOS IMPORTADOS'!K47 -> 0 | L47: ='[1]HOJA GENERAL DATOS IMPORTADOS'!L47 -> 0 | M47: ='[1]HOJA GENERAL DATOS IMPORTADOS'!M47 -> 0 | N47: ='[1]HOJA GENERAL DATOS IMPORTADOS'!N47 -> 0 | O47: ='[1]HOJA GENERAL DATOS IMPORTADOS'!O47 -> 0 | P47: ='[1]HOJA GENERAL DATOS IMPORTADOS'!P47 -> 0 | Q47: ='[1]HOJA GENERAL DATOS IMPORTADOS'!Q47 -> 0 | R47: ='[1]HOJA GENERAL DATOS IMPORTADOS'!R47 -> 0 | S47: ='[1]HOJA GENERAL DATOS IMPORTADOS'!S47 -> 0 | T47: ='[1]HOJA GENERAL DATOS IMPORTADOS'!T47 -> 0 | U47: ='[1]HOJA GENERAL DATOS IMPORTADOS'!U47 -> 0 | V47: ='[1]HOJA GENERAL DATOS IMPORTADOS'!V47 -> 0 | W47: ='[1]HOJA GENERAL DATOS IMPORTADOS'!W47 -> 0 | X47: ='[1]HOJA GENERAL DATOS IMPORTADOS'!X47 -> 0 | Y47: ='[1]HOJA GENERAL DATOS IMPORTADOS'!Y47 -> 0 | Z47: ='[1]HOJA GENERAL DATOS IMPORTADOS'!Z47 -> 0 | AA47: ='[1]HOJA GENERAL DATOS IMPORTADOS'!AA47 -> 0 | AB47: ='[1]HOJA GENERAL DATOS IMPORTADOS'!AB47 -> 0 | AC47: ='[1]HOJA GENERAL DATOS IMPORTADOS'!AC47 -> 0 | AD47: ='[1]HOJA GENERAL DATOS IMPORTADOS'!AD47 -> 0 | AE47: ='[1]HOJA GENERAL DATOS IMPORTADOS'!AE47 -> 0 | AF47: ='[1]HOJA GENERAL DATOS IMPORTADOS'!AF47 -> 0 | AG47: ='[1]HOJA GENERAL DATOS IMPORTADOS'!AG47 -> 0 | AH47: ='[1]HOJA GENERAL DATOS IMPORTADOS'!AH47 -> 0 | AI47: ='[1]HOJA GENERAL DATOS IMPORTADOS'!AI47 -> 0
A48: ='[1]HOJA GENERAL DATOS IMPORTADOS'!A48 -> 0 | B48: ='[1]HOJA GENERAL DATOS IMPORTADOS'!B48 -> 0 | C48: ='[1]HOJA GENERAL DATOS IMPORTADOS'!C48 -> 0 | D48: ='[1]HOJA GENERAL DATOS IMPORTADOS'!D48 -> 0 | E48: ='[1]HOJA GENERAL DATOS IMPORTADOS'!E48 -> 0 | F48: ='[1]HOJA GENERAL DATOS IMPORTADOS'!F48 -> 0 | G48: ='[1]HOJA GENERAL DATOS IMPORTADOS'!G48 -> 0 | H48: ='[1]HOJA GENERAL DATOS IMPORTADOS'!H48 -> 0 | I48: ='[1]HOJA GENERAL DATOS IMPORTADOS'!I48 -> 0 | J48: ='[1]HOJA GENERAL DATOS IMPORTADOS'!J48 -> 0 | K48: ='[1]HOJA GENERAL DATOS IMPORTADOS'!K48 -> 0 | L48: ='[1]HOJA GENERAL DATOS IMPORTADOS'!L48 -> 0 | M48: ='[1]HOJA GENERAL DATOS IMPORTADOS'!M48 -> 0 | N48: ='[1]HOJA GENERAL DATOS IMPORTADOS'!N48 -> 0 | O48: ='[1]HOJA GENERAL DATOS IMPORTADOS'!O48 -> 0 | P48: ='[1]HOJA GENERAL DATOS IMPORTADOS'!P48 -> 0 | Q48: ='[1]HOJA GENERAL DATOS IMPORTADOS'!Q48 -> 0 | R48: ='[1]HOJA GENERAL DATOS IMPORTADOS'!R48 -> 0 | S48: ='[1]HOJA GENERAL DATOS IMPORTADOS'!S48 -> 0 | T48: ='[1]HOJA GENERAL DATOS IMPORTADOS'!T48 -> 0 | U48: ='[1]HOJA GENERAL DATOS IMPORTADOS'!U48 -> 0 | V48: ='[1]HOJA GENERAL DATOS IMPORTADOS'!V48 -> 0 | W48: ='[1]HOJA GENERAL DATOS IMPORTADOS'!W48 -> 0 | X48: ='[1]HOJA GENERAL DATOS IMPORTADOS'!X48 -> 0 | Y48: ='[1]HOJA GENERAL DATOS IMPORTADOS'!Y48 -> 0 | Z48: ='[1]HOJA GENERAL DATOS IMPORTADOS'!Z48 -> 0 | AA48: ='[1]HOJA GENERAL DATOS IMPORTADOS'!AA48 -> 0 | AB48: ='[1]HOJA GENERAL DATOS IMPORTADOS'!AB48 -> 0 | AC48: ='[1]HOJA GENERAL DATOS IMPORTADOS'!AC48 -> 0 | AD48: ='[1]HOJA GENERAL DATOS IMPORTADOS'!AD48 -> 0 | AE48: ='[1]HOJA GENERAL DATOS IMPORTADOS'!AE48 -> 0 | AF48: ='[1]HOJA GENERAL DATOS IMPORTADOS'!AF48 -> 0 | AG48: ='[1]HOJA GENERAL DATOS IMPORTADOS'!AG48 -> 0 | AH48: ='[1]HOJA GENERAL DATOS IMPORTADOS'!AH48 -> 0 | AI48: ='[1]HOJA GENERAL DATOS IMPORTADOS'!AI48 -> 0
A49: ='[1]HOJA GENERAL DATOS IMPORTADOS'!A49 -> 0 | B49: ='[1]HOJA GENERAL DATOS IMPORTADOS'!B49 -> 0 | C49: ='[1]HOJA GENERAL DATOS IMPORTADOS'!C49 -> 0 | D49: ='[1]HOJA GENERAL DATOS IMPORTADOS'!D49 -> 0 | E49: ='[1]HOJA GENERAL DATOS IMPORTADOS'!E49 -> 0 | F49: ='[1]HOJA GENERAL DATOS IMPORTADOS'!F49 -> 0 | G49: ='[1]HOJA GENERAL DATOS IMPORTADOS'!G49 -> 0 | H49: ='[1]HOJA GENERAL DATOS IMPORTADOS'!H49 -> 0 | I49: ='[1]HOJA GENERAL DATOS IMPORTADOS'!I49 -> 0 | J49: ='[1]HOJA GENERAL DATOS IMPORTADOS'!J49 -> 0 | K49: ='[1]HOJA GENERAL DATOS IMPORTADOS'!K49 -> 0 | L49: ='[1]HOJA GENERAL DATOS IMPORTADOS'!L49 -> 0 | M49: ='[1]HOJA GENERAL DATOS IMPORTADOS'!M49 -> 0 | N49: ='[1]HOJA GENERAL DATOS IMPORTADOS'!N49 -> 0 | O49: ='[1]HOJA GENERAL DATOS IMPORTADOS'!O49 -> 0 | P49: ='[1]HOJA GENERAL DATOS IMPORTADOS'!P49 -> 0 | Q49: ='[1]HOJA GENERAL DATOS IMPORTADOS'!Q49 -> 0 | R49: ='[1]HOJA GENERAL DATOS IMPORTADOS'!R49 -> 0 | S49: ='[1]HOJA GENERAL DATOS IMPORTADOS'!S49 -> 0 | T49: ='[1]HOJA GENERAL DATOS IMPORTADOS'!T49 -> 0 | U49: ='[1]HOJA GENERAL DATOS IMPORTADOS'!U49 -> 0 | V49: ='[1]HOJA GENERAL DATOS IMPORTADOS'!V49 -> 0 | W49: ='[1]HOJA GENERAL DATOS IMPORTADOS'!W49 -> 0 | X49: ='[1]HOJA GENERAL DATOS IMPORTADOS'!X49 -> 0 | Y49: ='[1]HOJA GENERAL DATOS IMPORTADOS'!Y49 -> 0 | Z49: ='[1]HOJA GENERAL DATOS IMPORTADOS'!Z49 -> 0 | AA49: ='[1]HOJA GENERAL DATOS IMPORTADOS'!AA49 -> 0 | AB49: ='[1]HOJA GENERAL DATOS IMPORTADOS'!AB49 -> 0 | AC49: ='[1]HOJA GENERAL DATOS IMPORTADOS'!AC49 -> 0 | AD49: ='[1]HOJA GENERAL DATOS IMPORTADOS'!AD49 -> 0 | AE49: ='[1]HOJA GENERAL DATOS IMPORTADOS'!AE49 -> 0 | AF49: ='[1]HOJA GENERAL DATOS IMPORTADOS'!AF49 -> 0 | AG49: ='[1]HOJA GENERAL DATOS IMPORTADOS'!AG49 -> 0 | AH49: ='[1]HOJA GENERAL DATOS IMPORTADOS'!AH49 -> 0 | AI49: ='[1]HOJA GENERAL DATOS IMPORTADOS'!AI49 -> 0
A50: ='[1]HOJA GENERAL DATOS IMPORTADOS'!A50 -> 0 | B50: ='[1]HOJA GENERAL DATOS IMPORTADOS'!B50 -> 0 | C50: ='[1]HOJA GENERAL DATOS IMPORTADOS'!C50 -> 0 | D50: ='[1]HOJA GENERAL DATOS IMPORTADOS'!D50 -> 0 | E50: ='[1]HOJA GENERAL DATOS IMPORTADOS'!E50 -> 0 | F50: ='[1]HOJA GENERAL DATOS IMPORTADOS'!F50 -> 0 | G50: ='[1]HOJA GENERAL DATOS IMPORTADOS'!G50 -> 0 | H50: ='[1]HOJA GENERAL DATOS IMPORTADOS'!H50 -> 0 | I50: ='[1]HOJA GENERAL DATOS IMPORTADOS'!I50 -> 0 | J50: ='[1]HOJA GENERAL DATOS IMPORTADOS'!J50 -> 0 | K50: ='[1]HOJA GENERAL DATOS IMPORTADOS'!K50 -> 0 | L50: ='[1]HOJA GENERAL DATOS IMPORTADOS'!L50 -> 0 | M50: ='[1]HOJA GENERAL DATOS IMPORTADOS'!M50 -> 0 | N50: ='[1]HOJA GENERAL DATOS IMPORTADOS'!N50 -> 0 | O50: ='[1]HOJA GENERAL DATOS IMPORTADOS'!O50 -> 0 | P50: ='[1]HOJA GENERAL DATOS IMPORTADOS'!P50 -> 0 | Q50: ='[1]HOJA GENERAL DATOS IMPORTADOS'!Q50 -> 0 | R50: ='[1]HOJA GENERAL DATOS IMPORTADOS'!R50 -> 0 | S50: ='[1]HOJA GENERAL DATOS IMPORTADOS'!S50 -> 0 | T50: ='[1]HOJA GENERAL DATOS IMPORTADOS'!T50 -> 0 | U50: ='[1]HOJA GENERAL DATOS IMPORTADOS'!U50 -> 0 | V50: ='[1]HOJA GENERAL DATOS IMPORTADOS'!V50 -> 0 | W50: ='[1]HOJA GENERAL DATOS IMPORTADOS'!W50 -> 0 | X50: ='[1]HOJA GENERAL DATOS IMPORTADOS'!X50 -> 0 | Y50: ='[1]HOJA GENERAL DATOS IMPORTADOS'!Y50 -> 0 | Z50: ='[1]HOJA GENERAL DATOS IMPORTADOS'!Z50 -> 0 | AA50: ='[1]HOJA GENERAL DATOS IMPORTADOS'!AA50 -> 0 | AB50: ='[1]HOJA GENERAL DATOS IMPORTADOS'!AB50 -> 0 | AC50: ='[1]HOJA GENERAL DATOS IMPORTADOS'!AC50 -> 0 | AD50: ='[1]HOJA GENERAL DATOS IMPORTADOS'!AD50 -> 0 | AE50: ='[1]HOJA GENERAL DATOS IMPORTADOS'!AE50 -> 0 | AF50: ='[1]HOJA GENERAL DATOS IMPORTADOS'!AF50 -> 0 | AG50: ='[1]HOJA GENERAL DATOS IMPORTADOS'!AG50 -> 0 | AH50: ='[1]HOJA GENERAL DATOS IMPORTADOS'!AH50 -> 0 | AI50: ='[1]HOJA GENERAL DATOS IMPORTADOS'!AI50 -> 0
A51: ='[1]HOJA GENERAL DATOS IMPORTADOS'!A51 -> ESPECIE | B51: ='[1]HOJA GENERAL DATOS IMPORTADOS'!B51 -> CuentaDeMES CONTROL | C51: ='[1]HOJA GENERAL DATOS IMPORTADOS'!C51 -> PromedioDeANIMALES SECOS | D51: ='[1]HOJA GENERAL DATOS IMPORTADOS'!D51 -> PromedioDeANIMALES EN PREPARTO | E51: ='[1]HOJA GENERAL DATOS IMPORTADOS'!E51 -> PromedioDeANIMALES EN ORDEÑO | F51: ='[1]HOJA GENERAL DATOS IMPORTADOS'!F51 -> ANIMALES TOTALES | G51: ='[1]HOJA GENERAL DATOS IMPORTADOS'!G51 -> %ANIMALES SECOS | H51: ='[1]HOJA GENERAL DATOS IMPORTADOS'!H51 -> %ANIMALES EN PREPARTO | I51: ='[1]HOJA GENERAL DATOS IMPORTADOS'!I51 -> %ANIMALES EN ORDEÑO | J51: ='[1]HOJA GENERAL DATOS IMPORTADOS'!J51 -> 0 | K51: ='[1]HOJA GENERAL DATOS IMPORTADOS'!K51 -> 0 | L51: ='[1]HOJA GENERAL DATOS IMPORTADOS'!L51 -> 0 | M51: ='[1]HOJA GENERAL DATOS IMPORTADOS'!M51 -> 0 | N51: ='[1]HOJA GENERAL DATOS IMPORTADOS'!N51 -> 0 | O51: ='[1]HOJA GENERAL DATOS IMPORTADOS'!O51 -> 0 | P51: ='[1]HOJA GENERAL DATOS IMPORTADOS'!P51 -> 0 | Q51: ='[1]HOJA GENERAL DATOS IMPORTADOS'!Q51 -> 0 | R51: ='[1]HOJA GENERAL DATOS IMPORTADOS'!R51 -> 0 | S51: ='[1]HOJA GENERAL DATOS IMPORTADOS'!S51 -> 0 | T51: ='[1]HOJA GENERAL DATOS IMPORTADOS'!T51 -> 0 | U51: ='[1]HOJA GENERAL DATOS IMPORTADOS'!U51 -> 0 | V51: ='[1]HOJA GENERAL DATOS IMPORTADOS'!V51 -> 0 | W51: ='[1]HOJA GENERAL DATOS IMPORTADOS'!W51 -> 0 | X51: ='[1]HOJA GENERAL DATOS IMPORTADOS'!X51 -> 0 | Y51: ='[1]HOJA GENERAL DATOS IMPORTADOS'!Y51 -> 0 | Z51: ='[1]HOJA GENERAL DATOS IMPORTADOS'!Z51 -> 0 | AA51: ='[1]HOJA GENERAL DATOS IMPORTADOS'!AA51 -> 0 | AB51: ='[1]HOJA GENERAL DATOS IMPORTADOS'!AB51 -> 0 | AC51: ='[1]HOJA GENERAL DATOS IMPORTADOS'!AC51 -> 0 | AD51: ='[1]HOJA GENERAL DATOS IMPORTADOS'!AD51 -> 0 | AE51: ='[1]HOJA GENERAL DATOS IMPORTADOS'!AE51 -> 0 | AF51: ='[1]HOJA GENERAL DATOS IMPORTADOS'!AF51 -> 0 | AG51: ='[1]HOJA GENERAL DATOS IMPORTADOS'!AG51 -> 0 | AH51: ='[1]HOJA GENERAL DATOS IMPORTADOS'!AH51 -> 0 | AI51: ='[1]HOJA GENERAL DATOS IMPORTADOS'!AI51 -> 0
A52: ='[1]HOJA GENERAL DATOS IMPORTADOS'!A52 -> CAPRINO | J52: ='[1]HOJA GENERAL DATOS IMPORTADOS'!J52 -> 0 | K52: ='[1]HOJA GENERAL DATOS IMPORTADOS'!K52 -> 0 | L52: ='[1]HOJA GENERAL DATOS IMPORTADOS'!L52 -> 0 | M52: ='[1]HOJA GENERAL DATOS IMPORTADOS'!M52 -> 0 | N52: ='[1]HOJA GENERAL DATOS IMPORTADOS'!N52 -> 0 | O52: ='[1]HOJA GENERAL DATOS IMPORTADOS'!O52 -> 0 | P52: ='[1]HOJA GENERAL DATOS IMPORTADOS'!P52 -> 0 | Q52: ='[1]HOJA GENERAL DATOS IMPORTADOS'!Q52 -> 0 | R52: ='[1]HOJA GENERAL DATOS IMPORTADOS'!R52 -> 0 | S52: ='[1]HOJA GENERAL DATOS IMPORTADOS'!S52 -> 0 | T52: ='[1]HOJA GENERAL DATOS IMPORTADOS'!T52 -> 0 | U52: ='[1]HOJA GENERAL DATOS IMPORTADOS'!U52 -> 0 | V52: ='[1]HOJA GENERAL DATOS IMPORTADOS'!V52 -> 0 | W52: ='[1]HOJA GENERAL DATOS IMPORTADOS'!W52 -> 0 | X52: ='[1]HOJA GENERAL DATOS IMPORTADOS'!X52 -> 0 | Y52: ='[1]HOJA GENERAL DATOS IMPORTADOS'!Y52 -> 0 | Z52: ='[1]HOJA GENERAL DATOS IMPORTADOS'!Z52 -> 0 | AA52: ='[1]HOJA GENERAL DATOS IMPORTADOS'!AA52 -> 0 | AB52: ='[1]HOJA GENERAL DATOS IMPORTADOS'!AB52 -> 0 | AC52: ='[1]HOJA GENERAL DATOS IMPORTADOS'!AC52 -> 0 | AD52: ='[1]HOJA GENERAL DATOS IMPORTADOS'!AD52 -> 0 | AE52: ='[1]HOJA GENERAL DATOS IMPORTADOS'!AE52 -> 0 | AF52: ='[1]HOJA GENERAL DATOS IMPORTADOS'!AF52 -> 0 | AG52: ='[1]HOJA GENERAL DATOS IMPORTADOS'!AG52 -> 0 | AH52: ='[1]HOJA GENERAL DATOS IMPORTADOS'!AH52 -> 0 | AI52: ='[1]HOJA GENERAL DATOS IMPORTADOS'!AI52 -> 0
A53: ='[1]HOJA GENERAL DATOS IMPORTADOS'!A53 -> OVINO | J53: ='[1]HOJA GENERAL DATOS IMPORTADOS'!J53 -> 0 | K53: ='[1]HOJA GENERAL DATOS IMPORTADOS'!K53 -> 0 | L53: ='[1]HOJA GENERAL DATOS IMPORTADOS'!L53 -> 0 | M53: ='[1]HOJA GENERAL DATOS IMPORTADOS'!M53 -> 0 | N53: ='[1]HOJA GENERAL DATOS IMPORTADOS'!N53 -> 0 | O53: ='[1]HOJA GENERAL DATOS IMPORTADOS'!O53 -> 0 | P53: ='[1]HOJA GENERAL DATOS IMPORTADOS'!P53 -> 0 | Q53: ='[1]HOJA GENERAL DATOS IMPORTADOS'!Q53 -> 0 | R53: ='[1]HOJA GENERAL DATOS IMPORTADOS'!R53 -> 0 | S53: ='[1]HOJA GENERAL DATOS IMPORTADOS'!S53 -> 0 | T53: ='[1]HOJA GENERAL DATOS IMPORTADOS'!T53 -> 0 | U53: ='[1]HOJA GENERAL DATOS IMPORTADOS'!U53 -> 0 | V53: ='[1]HOJA GENERAL DATOS IMPORTADOS'!V53 -> 0 | W53: ='[1]HOJA GENERAL DATOS IMPORTADOS'!W53 -> 0 | X53: ='[1]HOJA GENERAL DATOS IMPORTADOS'!X53 -> 0 | Y53: ='[1]HOJA GENERAL DATOS IMPORTADOS'!Y53 -> 0 | Z53: ='[1]HOJA GENERAL DATOS IMPORTADOS'!Z53 -> 0 | AA53: ='[1]HOJA GENERAL DATOS IMPORTADOS'!AA53 -> 0 | AB53: ='[1]HOJA GENERAL DATOS IMPORTADOS'!AB53 -> 0 | AC53: ='[1]HOJA GENERAL DATOS IMPORTADOS'!AC53 -> 0 | AD53: ='[1]HOJA GENERAL DATOS IMPORTADOS'!AD53 -> 0 | AE53: ='[1]HOJA GENERAL DATOS IMPORTADOS'!AE53 -> 0 | AF53: ='[1]HOJA GENERAL DATOS IMPORTADOS'!AF53 -> 0 | AG53: ='[1]HOJA GENERAL DATOS IMPORTADOS'!AG53 -> 0 | AH53: ='[1]HOJA GENERAL DATOS IMPORTADOS'!AH53 -> 0 | AI53: ='[1]HOJA GENERAL DATOS IMPORTADOS'!AI53 -> 0
A54: ='[1]HOJA GENERAL DATOS IMPORTADOS'!A54 -> 0 | B54: ='[1]HOJA GENERAL DATOS IMPORTADOS'!B54 -> 0 | C54: ='[1]HOJA GENERAL DATOS IMPORTADOS'!C54 -> 0 | D54: ='[1]HOJA GENERAL DATOS IMPORTADOS'!D54 -> 0 | E54: ='[1]HOJA GENERAL DATOS IMPORTADOS'!E54 -> 0 | F54: ='[1]HOJA GENERAL DATOS IMPORTADOS'!F54 -> 0 | G54: ='[1]HOJA GENERAL DATOS IMPORTADOS'!G54 -> 0 | H54: ='[1]HOJA GENERAL DATOS IMPORTADOS'!H54 -> 0 | I54: ='[1]HOJA GENERAL DATOS IMPORTADOS'!I54 -> 0 | J54: ='[1]HOJA GENERAL DATOS IMPORTADOS'!J54 -> 0 | K54: ='[1]HOJA GENERAL DATOS IMPORTADOS'!K54 -> 0 | L54: ='[1]HOJA GENERAL DATOS IMPORTADOS'!L54 -> 0 | M54: ='[1]HOJA GENERAL DATOS IMPORTADOS'!M54 -> 0 | N54: ='[1]HOJA GENERAL DATOS IMPORTADOS'!N54 -> 0 | O54: ='[1]HOJA GENERAL DATOS IMPORTADOS'!O54 -> 0 | P54: ='[1]HOJA GENERAL DATOS IMPORTADOS'!P54 -> 0 | Q54: ='[1]HOJA GENERAL DATOS IMPORTADOS'!Q54 -> 0 | R54: ='[1]HOJA GENERAL DATOS IMPORTADOS'!R54 -> 0 | S54: ='[1]HOJA GENERAL DATOS IMPORTADOS'!S54 -> 0 | T54: ='[1]HOJA GENERAL DATOS IMPORTADOS'!T54 -> 0 | U54: ='[1]HOJA GENERAL DATOS IMPORTADOS'!U54 -> 0 | V54: ='[1]HOJA GENERAL DATOS IMPORTADOS'!V54 -> 0 | W54: ='[1]HOJA GENERAL DATOS IMPORTADOS'!W54 -> 0 | X54: ='[1]HOJA GENERAL DATOS IMPORTADOS'!X54 -> 0 | Y54: ='[1]HOJA GENERAL DATOS IMPORTADOS'!Y54 -> 0 | Z54: ='[1]HOJA GENERAL DATOS IMPORTADOS'!Z54 -> 0 | AA54: ='[1]HOJA GENERAL DATOS IMPORTADOS'!AA54 -> 0 | AB54: ='[1]HOJA GENERAL DATOS IMPORTADOS'!AB54 -> 0 | AC54: ='[1]HOJA GENERAL DATOS IMPORTADOS'!AC54 -> 0 | AD54: ='[1]HOJA GENERAL DATOS IMPORTADOS'!AD54 -> 0 | AE54: ='[1]HOJA GENERAL DATOS IMPORTADOS'!AE54 -> 0 | AF54: ='[1]HOJA GENERAL DATOS IMPORTADOS'!AF54 -> 0 | AG54: ='[1]HOJA GENERAL DATOS IMPORTADOS'!AG54 -> 0 | AH54: ='[1]HOJA GENERAL DATOS IMPORTADOS'!AH54 -> 0 | AI54: ='[1]HOJA GENERAL DATOS IMPORTADOS'!AI54 -> 0
A55: ='[1]HOJA GENERAL DATOS IMPORTADOS'!A55 -> 0 | B55: ='[1]HOJA GENERAL DATOS IMPORTADOS'!B55 -> 0 | C55: ='[1]HOJA GENERAL DATOS IMPORTADOS'!C55 -> 0 | D55: ='[1]HOJA GENERAL DATOS IMPORTADOS'!D55 -> 0 | E55: ='[1]HOJA GENERAL DATOS IMPORTADOS'!E55 -> 0 | F55: ='[1]HOJA GENERAL DATOS IMPORTADOS'!F55 -> 0 | G55: ='[1]HOJA GENERAL DATOS IMPORTADOS'!G55 -> 0 | H55: ='[1]HOJA GENERAL DATOS IMPORTADOS'!H55 -> 0 | I55: ='[1]HOJA GENERAL DATOS IMPORTADOS'!I55 -> 0 | J55: ='[1]HOJA GENERAL DATOS IMPORTADOS'!J55 -> 0 | K55: ='[1]HOJA GENERAL DATOS IMPORTADOS'!K55 -> 0 | L55: ='[1]HOJA GENERAL DATOS IMPORTADOS'!L55 -> 0 | M55: ='[1]HOJA GENERAL DATOS IMPORTADOS'!M55 -> 0 | N55: ='[1]HOJA GENERAL DATOS IMPORTADOS'!N55 -> 0 | O55: ='[1]HOJA GENERAL DATOS IMPORTADOS'!O55 -> 0 | P55: ='[1]HOJA GENERAL DATOS IMPORTADOS'!P55 -> 0 | Q55: ='[1]HOJA GENERAL DATOS IMPORTADOS'!Q55 -> 0 | R55: ='[1]HOJA GENERAL DATOS IMPORTADOS'!R55 -> 0 | S55: ='[1]HOJA GENERAL DATOS IMPORTADOS'!S55 -> 0 | T55: ='[1]HOJA GENERAL DATOS IMPORTADOS'!T55 -> 0 | U55: ='[1]HOJA GENERAL DATOS IMPORTADOS'!U55 -> 0 | V55: ='[1]HOJA GENERAL DATOS IMPORTADOS'!V55 -> 0 | W55: ='[1]HOJA GENERAL DATOS IMPORTADOS'!W55 -> 0 | X55: ='[1]HOJA GENERAL DATOS IMPORTADOS'!X55 -> 0 | Y55: ='[1]HOJA GENERAL DATOS IMPORTADOS'!Y55 -> 0 | Z55: ='[1]HOJA GENERAL DATOS IMPORTADOS'!Z55 -> 0 | AA55: ='[1]HOJA GENERAL DATOS IMPORTADOS'!AA55 -> 0 | AB55: ='[1]HOJA GENERAL DATOS IMPORTADOS'!AB55 -> 0 | AC55: ='[1]HOJA GENERAL DATOS IMPORTADOS'!AC55 -> 0 | AD55: ='[1]HOJA GENERAL DATOS IMPORTADOS'!AD55 -> 0 | AE55: ='[1]HOJA GENERAL DATOS IMPORTADOS'!AE55 -> 0 | AF55: ='[1]HOJA GENERAL DATOS IMPORTADOS'!AF55 -> 0 | AG55: ='[1]HOJA GENERAL DATOS IMPORTADOS'!AG55 -> 0 | AH55: ='[1]HOJA GENERAL DATOS IMPORTADOS'!AH55 -> 0 | AI55: ='[1]HOJA GENERAL DATOS IMPORTADOS'!AI55 -> 0
A56: ='[1]HOJA GENERAL DATOS IMPORTADOS'!A56 -> 0 | B56: ='[1]HOJA GENERAL DATOS IMPORTADOS'!B56 -> 0 | C56: ='[1]HOJA GENERAL DATOS IMPORTADOS'!C56 -> 0 | D56: ='[1]HOJA GENERAL DATOS IMPORTADOS'!D56 -> 0 | E56: ='[1]HOJA GENERAL DATOS IMPORTADOS'!E56 -> 0 | F56: ='[1]HOJA GENERAL DATOS IMPORTADOS'!F56 -> 0 | G56: ='[1]HOJA GENERAL DATOS IMPORTADOS'!G56 -> 0 | H56: ='[1]HOJA GENERAL DATOS IMPORTADOS'!H56 -> 0 | I56: ='[1]HOJA GENERAL DATOS IMPORTADOS'!I56 -> 0 | J56: ='[1]HOJA GENERAL DATOS IMPORTADOS'!J56 -> 0 | K56: ='[1]HOJA GENERAL DATOS IMPORTADOS'!K56 -> 0 | L56: ='[1]HOJA GENERAL DATOS IMPORTADOS'!L56 -> 0 | M56: ='[1]HOJA GENERAL DATOS IMPORTADOS'!M56 -> 0 | N56: ='[1]HOJA GENERAL DATOS IMPORTADOS'!N56 -> 0 | O56: ='[1]HOJA GENERAL DATOS IMPORTADOS'!O56 -> 0 | P56: ='[1]HOJA GENERAL DATOS IMPORTADOS'!P56 -> 0 | Q56: ='[1]HOJA GENERAL DATOS IMPORTADOS'!Q56 -> 0 | R56: ='[1]HOJA GENERAL DATOS IMPORTADOS'!R56 -> 0 | S56: ='[1]HOJA GENERAL DATOS IMPORTADOS'!S56 -> 0 | T56: ='[1]HOJA GENERAL DATOS IMPORTADOS'!T56 -> 0 | U56: ='[1]HOJA GENERAL DATOS IMPORTADOS'!U56 -> 0 | V56: ='[1]HOJA GENERAL DATOS IMPORTADOS'!V56 -> 0 | W56: ='[1]HOJA GENERAL DATOS IMPORTADOS'!W56 -> 0 | X56: ='[1]HOJA GENERAL DATOS IMPORTADOS'!X56 -> 0 | Y56: ='[1]HOJA GENERAL DATOS IMPORTADOS'!Y56 -> 0 | Z56: ='[1]HOJA GENERAL DATOS IMPORTADOS'!Z56 -> 0 | AA56: ='[1]HOJA GENERAL DATOS IMPORTADOS'!AA56 -> 0 | AB56: ='[1]HOJA GENERAL DATOS IMPORTADOS'!AB56 -> 0 | AC56: ='[1]HOJA GENERAL DATOS IMPORTADOS'!AC56 -> 0 | AD56: ='[1]HOJA GENERAL DATOS IMPORTADOS'!AD56 -> 0 | AE56: ='[1]HOJA GENERAL DATOS IMPORTADOS'!AE56 -> 0 | AF56: ='[1]HOJA GENERAL DATOS IMPORTADOS'!AF56 -> 0 | AG56: ='[1]HOJA GENERAL DATOS IMPORTADOS'!AG56 -> 0 | AH56: ='[1]HOJA GENERAL DATOS IMPORTADOS'!AH56 -> 0 | AI56: ='[1]HOJA GENERAL DATOS IMPORTADOS'!AI56 -> 0
A57: ='[1]HOJA GENERAL DATOS IMPORTADOS'!A57 -> ESPECIE | B57: ='[1]HOJA GENERAL DATOS IMPORTADOS'!B57 -> MES CONTROL | C57: ='[1]HOJA GENERAL DATOS IMPORTADOS'!C57 -> PromedioDeANIMALES SECOS | D57: ='[1]HOJA GENERAL DATOS IMPORTADOS'!D57 -> PromedioDeANIMALES EN PREPARTO | E57: ='[1]HOJA GENERAL DATOS IMPORTADOS'!E57 -> PromedioDeANIMALES EN ORDEÑO | F57: ='[1]HOJA GENERAL DATOS IMPORTADOS'!F57 -> ANIMALES TOTALES | G57: ='[1]HOJA GENERAL DATOS IMPORTADOS'!G57 -> %ANIMALES SECOS | H57: ='[1]HOJA GENERAL DATOS IMPORTADOS'!H57 -> %ANIMALES EN PREPARTO | I57: ='[1]HOJA GENERAL DATOS IMPORTADOS'!I57 -> %ANIMALES EN ORDEÑO | J57: ='[1]HOJA GENERAL DATOS IMPORTADOS'!J57 -> TOT ANIMALES | K57: ='[1]HOJA GENERAL DATOS IMPORTADOS'!K57 -> 0 | L57: ='[1]HOJA GENERAL DATOS IMPORTADOS'!L57 -> 0 | M57: ='[1]HOJA GENERAL DATOS IMPORTADOS'!M57 -> 0 | N57: ='[1]HOJA GENERAL DATOS IMPORTADOS'!N57 -> 0 | O57: ='[1]HOJA GENERAL DATOS IMPORTADOS'!O57 -> 0 | P57: ='[1]HOJA GENERAL DATOS IMPORTADOS'!P57 -> 0 | Q57: ='[1]HOJA GENERAL DATOS IMPORTADOS'!Q57 -> 0 | R57: ='[1]HOJA GENERAL DATOS IMPORTADOS'!R57 -> 0 | S57: ='[1]HOJA GENERAL DATOS IMPORTADOS'!S57 -> 0 | T57: ='[1]HOJA GENERAL DATOS IMPORTADOS'!T57 -> 0 | U57: ='[1]HOJA GENERAL DATOS IMPORTADOS'!U57 -> 0 | V57: ='[1]HOJA GENERAL DATOS IMPORTADOS'!V57 -> 0 | W57: ='[1]HOJA GENERAL DATOS IMPORTADOS'!W57 -> 0 | X57: ='[1]HOJA GENERAL DATOS IMPORTADOS'!X57 -> 0 | Y57: ='[1]HOJA GENERAL DATOS IMPORTADOS'!Y57 -> 0 | Z57: ='[1]HOJA GENERAL DATOS IMPORTADOS'!Z57 -> 0 | AA57: ='[1]HOJA GENERAL DATOS IMPORTADOS'!AA57 -> 0 | AB57: ='[1]HOJA GENERAL DATOS IMPORTADOS'!AB57 -> 0 | AC57: ='[1]HOJA GENERAL DATOS IMPORTADOS'!AC57 -> 0 | AD57: ='[1]HOJA GENERAL DATOS IMPORTADOS'!AD57 -> 0 | AE57: ='[1]HOJA GENERAL DATOS IMPORTADOS'!AE57 -> 0 | AF57: ='[1]HOJA GENERAL DATOS IMPORTADOS'!AF57 -> 0 | AG57: ='[1]HOJA GENERAL DATOS IMPORTADOS'!AG57 -> 0 | AH57: ='[1]HOJA GENERAL DATOS IMPORTADOS'!AH57 -> 0 | AI57: ='[1]HOJA GENERAL DATOS IMPORTADOS'!AI57 -> 0
A58: ='[1]HOJA GENERAL DATOS IMPORTADOS'!A58 -> CAPRINO | K58: ='[1]HOJA GENERAL DATOS IMPORTADOS'!K58 -> 0 | L58: ='[1]HOJA GENERAL DATOS IMPORTADOS'!L58 -> 0 | M58: ='[1]HOJA GENERAL DATOS IMPORTADOS'!M58 -> 0 | N58: ='[1]HOJA GENERAL DATOS IMPORTADOS'!N58 -> 0 | O58: ='[1]HOJA GENERAL DATOS IMPORTADOS'!O58 -> 0 | P58: ='[1]HOJA GENERAL DATOS IMPORTADOS'!P58 -> 0 | Q58: ='[1]HOJA GENERAL DATOS IMPORTADOS'!Q58 -> 0 | R58: ='[1]HOJA GENERAL DATOS IMPORTADOS'!R58 -> 0 | S58: ='[1]HOJA GENERAL DATOS IMPORTADOS'!S58 -> 0 | T58: ='[1]HOJA GENERAL DATOS IMPORTADOS'!T58 -> 0 | U58: ='[1]HOJA GENERAL DATOS IMPORTADOS'!U58 -> 0 | V58: ='[1]HOJA GENERAL DATOS IMPORTADOS'!V58 -> 0 | W58: ='[1]HOJA GENERAL DATOS IMPORTADOS'!W58 -> 0 | X58: ='[1]HOJA GENERAL DATOS IMPORTADOS'!X58 -> 0 | Y58: ='[1]HOJA GENERAL DATOS IMPORTADOS'!Y58 -> 0 | Z58: ='[1]HOJA GENERAL DATOS IMPORTADOS'!Z58 -> 0 | AA58: ='[1]HOJA GENERAL DATOS IMPORTADOS'!AA58 -> 0 | AB58: ='[1]HOJA GENERAL DATOS IMPORTADOS'!AB58 -> 0 | AC58: ='[1]HOJA GENERAL DATOS IMPORTADOS'!AC58 -> 0 | AD58: ='[1]HOJA GENERAL DATOS IMPORTADOS'!AD58 -> 0 | AE58: ='[1]HOJA GENERAL DATOS IMPORTADOS'!AE58 -> 0 | AF58: ='[1]HOJA GENERAL DATOS IMPORTADOS'!AF58 -> 0 | AG58: ='[1]HOJA GENERAL DATOS IMPORTADOS'!AG58 -> 0 | AH58: ='[1]HOJA GENERAL DATOS IMPORTADOS'!AH58 -> 0 | AI58: ='[1]HOJA GENERAL DATOS IMPORTADOS'!AI58 -> 0
A59: ='[1]HOJA GENERAL DATOS IMPORTADOS'!A59 -> CAPRINO | K59: ='[1]HOJA GENERAL DATOS IMPORTADOS'!K59 -> 0 | L59: ='[1]HOJA GENERAL DATOS IMPORTADOS'!L59 -> 0 | M59: ='[1]HOJA GENERAL DATOS IMPORTADOS'!M59 -> 0 | N59: ='[1]HOJA GENERAL DATOS IMPORTADOS'!N59 -> 0 | O59: ='[1]HOJA GENERAL DATOS IMPORTADOS'!O59 -> 0 | P59: ='[1]HOJA GENERAL DATOS IMPORTADOS'!P59 -> 0 | Q59: ='[1]HOJA GENERAL DATOS IMPORTADOS'!Q59 -> 0 | R59: ='[1]HOJA GENERAL DATOS IMPORTADOS'!R59 -> 0 | S59: ='[1]HOJA GENERAL DATOS IMPORTADOS'!S59 -> 0 | T59: ='[1]HOJA GENERAL DATOS IMPORTADOS'!T59 -> 0 | U59: ='[1]HOJA GENERAL DATOS IMPORTADOS'!U59 -> 0 | V59: ='[1]HOJA GENERAL DATOS IMPORTADOS'!V59 -> 0 | W59: ='[1]HOJA GENERAL DATOS IMPORTADOS'!W59 -> 0 | X59: ='[1]HOJA GENERAL DATOS IMPORTADOS'!X59 -> 0 | Y59: ='[1]HOJA GENERAL DATOS IMPORTADOS'!Y59 -> 0 | Z59: ='[1]HOJA GENERAL DATOS IMPORTADOS'!Z59 -> 0 | AA59: ='[1]HOJA GENERAL DATOS IMPORTADOS'!AA59 -> 0 | AB59: ='[1]HOJA GENERAL DATOS IMPORTADOS'!AB59 -> 0 | AC59: ='[1]HOJA GENERAL DATOS IMPORTADOS'!AC59 -> 0 | AD59: ='[1]HOJA GENERAL DATOS IMPORTADOS'!AD59 -> 0 | AE59: ='[1]HOJA GENERAL DATOS IMPORTADOS'!AE59 -> 0 | AF59: ='[1]HOJA GENERAL DATOS IMPORTADOS'!AF59 -> 0 | AG59: ='[1]HOJA GENERAL DATOS IMPORTADOS'!AG59 -> 0 | AH59: ='[1]HOJA GENERAL DATOS IMPORTADOS'!AH59 -> 0 | AI59: ='[1]HOJA GENERAL DATOS IMPORTADOS'!AI59 -> 0
A60: ='[1]HOJA GENERAL DATOS IMPORTADOS'!A60 -> CAPRINO | K60: ='[1]HOJA GENERAL DATOS IMPORTADOS'!K60 -> 0 | L60: ='[1]HOJA GENERAL DATOS IMPORTADOS'!L60 -> 0 | M60: ='[1]HOJA GENERAL DATOS IMPORTADOS'!M60 -> 0 | N60: ='[1]HOJA GENERAL DATOS IMPORTADOS'!N60 -> 0 | O60: ='[1]HOJA GENERAL DATOS IMPORTADOS'!O60 -> 0 | P60: ='[1]HOJA GENERAL DATOS IMPORTADOS'!P60 -> 0 | Q60: ='[1]HOJA GENERAL DATOS IMPORTADOS'!Q60 -> 0 | R60: ='[1]HOJA GENERAL DATOS IMPORTADOS'!R60 -> 0 | S60: ='[1]HOJA GENERAL DATOS IMPORTADOS'!S60 -> 0 | T60: ='[1]HOJA GENERAL DATOS IMPORTADOS'!T60 -> 0 | U60: ='[1]HOJA GENERAL DATOS IMPORTADOS'!U60 -> 0 | V60: ='[1]HOJA GENERAL DATOS IMPORTADOS'!V60 -> 0 | W60: ='[1]HOJA GENERAL DATOS IMPORTADOS'!W60 -> 0 | X60: ='[1]HOJA GENERAL DATOS IMPORTADOS'!X60 -> 0 | Y60: ='[1]HOJA GENERAL DATOS IMPORTADOS'!Y60 -> 0 | Z60: ='[1]HOJA GENERAL DATOS IMPORTADOS'!Z60 -> 0 | AA60: ='[1]HOJA GENERAL DATOS IMPORTADOS'!AA60 -> 0 | AB60: ='[1]HOJA GENERAL DATOS IMPORTADOS'!AB60 -> 0 | AC60: ='[1]HOJA GENERAL DATOS IMPORTADOS'!AC60 -> 0 | AD60: ='[1]HOJA GENERAL DATOS IMPORTADOS'!AD60 -> 0 | AE60: ='[1]HOJA GENERAL DATOS IMPORTADOS'!AE60 -> 0 | AF60: ='[1]HOJA GENERAL DATOS IMPORTADOS'!AF60 -> 0 | AG60: ='[1]HOJA GENERAL DATOS IMPORTADOS'!AG60 -> 0 | AH60: ='[1]HOJA GENERAL DATOS IMPORTADOS'!AH60 -> 0 | AI60: ='[1]HOJA GENERAL DATOS IMPORTADOS'!AI60 -> 0
A61: ='[1]HOJA GENERAL DATOS IMPORTADOS'!A61 -> CAPRINO | K61: ='[1]HOJA GENERAL DATOS IMPORTADOS'!K61 -> 0 | L61: ='[1]HOJA GENERAL DATOS IMPORTADOS'!L61 -> 0 | M61: ='[1]HOJA GENERAL DATOS IMPORTADOS'!M61 -> 0 | N61: ='[1]HOJA GENERAL DATOS IMPORTADOS'!N61 -> 0 | O61: ='[1]HOJA GENERAL DATOS IMPORTADOS'!O61 -> 0 | P61: ='[1]HOJA GENERAL DATOS IMPORTADOS'!P61 -> 0 | Q61: ='[1]HOJA GENERAL DATOS IMPORTADOS'!Q61 -> 0 | R61: ='[1]HOJA GENERAL DATOS IMPORTADOS'!R61 -> 0 | S61: ='[1]HOJA GENERAL DATOS IMPORTADOS'!S61 -> 0 | T61: ='[1]HOJA GENERAL DATOS IMPORTADOS'!T61 -> 0 | U61: ='[1]HOJA GENERAL DATOS IMPORTADOS'!U61 -> 0 | V61: ='[1]HOJA GENERAL DATOS IMPORTADOS'!V61 -> 0 | W61: ='[1]HOJA GENERAL DATOS IMPORTADOS'!W61 -> 0 | X61: ='[1]HOJA GENERAL DATOS IMPORTADOS'!X61 -> 0 | Y61: ='[1]HOJA GENERAL DATOS IMPORTADOS'!Y61 -> 0 | Z61: ='[1]HOJA GENERAL DATOS IMPORTADOS'!Z61 -> 0 | AA61: ='[1]HOJA GENERAL DATOS IMPORTADOS'!AA61 -> 0 | AB61: ='[1]HOJA GENERAL DATOS IMPORTADOS'!AB61 -> 0 | AC61: ='[1]HOJA GENERAL DATOS IMPORTADOS'!AC61 -> 0 | AD61: ='[1]HOJA GENERAL DATOS IMPORTADOS'!AD61 -> 0 | AE61: ='[1]HOJA GENERAL DATOS IMPORTADOS'!AE61 -> 0 | AF61: ='[1]HOJA GENERAL DATOS IMPORTADOS'!AF61 -> 0 | AG61: ='[1]HOJA GENERAL DATOS IMPORTADOS'!AG61 -> 0 | AH61: ='[1]HOJA GENERAL DATOS IMPORTADOS'!AH61 -> 0 | AI61: ='[1]HOJA GENERAL DATOS IMPORTADOS'!AI61 -> 0
A62: ='[1]HOJA GENERAL DATOS IMPORTADOS'!A62 -> CAPRINO | K62: ='[1]HOJA GENERAL DATOS IMPORTADOS'!K62 -> 0 | L62: ='[1]HOJA GENERAL DATOS IMPORTADOS'!L62 -> 0 | M62: ='[1]HOJA GENERAL DATOS IMPORTADOS'!M62 -> 0 | N62: ='[1]HOJA GENERAL DATOS IMPORTADOS'!N62 -> 0 | O62: ='[1]HOJA GENERAL DATOS IMPORTADOS'!O62 -> 0 | P62: ='[1]HOJA GENERAL DATOS IMPORTADOS'!P62 -> 0 | Q62: ='[1]HOJA GENERAL DATOS IMPORTADOS'!Q62 -> 0 | R62: ='[1]HOJA GENERAL DATOS IMPORTADOS'!R62 -> 0 | S62: ='[1]HOJA GENERAL DATOS IMPORTADOS'!S62 -> 0 | T62: ='[1]HOJA GENERAL DATOS IMPORTADOS'!T62 -> 0 | U62: ='[1]HOJA GENERAL DATOS IMPORTADOS'!U62 -> 0 | V62: ='[1]HOJA GENERAL DATOS IMPORTADOS'!V62 -> 0 | W62: ='[1]HOJA GENERAL DATOS IMPORTADOS'!W62 -> 0 | X62: ='[1]HOJA GENERAL DATOS IMPORTADOS'!X62 -> 0 | Y62: ='[1]HOJA GENERAL DATOS IMPORTADOS'!Y62 -> 0 | Z62: ='[1]HOJA GENERAL DATOS IMPORTADOS'!Z62 -> 0 | AA62: ='[1]HOJA GENERAL DATOS IMPORTADOS'!AA62 -> 0 | AB62: ='[1]HOJA GENERAL DATOS IMPORTADOS'!AB62 -> 0 | AC62: ='[1]HOJA GENERAL DATOS IMPORTADOS'!AC62 -> 0 | AD62: ='[1]HOJA GENERAL DATOS IMPORTADOS'!AD62 -> 0 | AE62: ='[1]HOJA GENERAL DATOS IMPORTADOS'!AE62 -> 0 | AF62: ='[1]HOJA GENERAL DATOS IMPORTADOS'!AF62 -> 0 | AG62: ='[1]HOJA GENERAL DATOS IMPORTADOS'!AG62 -> 0 | AH62: ='[1]HOJA GENERAL DATOS IMPORTADOS'!AH62 -> 0 | AI62: ='[1]HOJA GENERAL DATOS IMPORTADOS'!AI62 -> 0
A63: ='[1]HOJA GENERAL DATOS IMPORTADOS'!A63 -> CAPRINO | K63: ='[1]HOJA GENERAL DATOS IMPORTADOS'!K63 -> 0 | L63: ='[1]HOJA GENERAL DATOS IMPORTADOS'!L63 -> 0 | M63: ='[1]HOJA GENERAL DATOS IMPORTADOS'!M63 -> 0 | N63: ='[1]HOJA GENERAL DATOS IMPORTADOS'!N63 -> 0 | O63: ='[1]HOJA GENERAL DATOS IMPORTADOS'!O63 -> 0 | P63: ='[1]HOJA GENERAL DATOS IMPORTADOS'!P63 -> 0 | Q63: ='[1]HOJA GENERAL DATOS IMPORTADOS'!Q63 -> 0 | R63: ='[1]HOJA GENERAL DATOS IMPORTADOS'!R63 -> 0 | S63: ='[1]HOJA GENERAL DATOS IMPORTADOS'!S63 -> 0 | T63: ='[1]HOJA GENERAL DATOS IMPORTADOS'!T63 -> 0 | U63: ='[1]HOJA GENERAL DATOS IMPORTADOS'!U63 -> 0 | V63: ='[1]HOJA GENERAL DATOS IMPORTADOS'!V63 -> 0 | W63: ='[1]HOJA GENERAL DATOS IMPORTADOS'!W63 -> 0 | X63: ='[1]HOJA GENERAL DATOS IMPORTADOS'!X63 -> 0 | Y63: ='[1]HOJA GENERAL DATOS IMPORTADOS'!Y63 -> 0 | Z63: ='[1]HOJA GENERAL DATOS IMPORTADOS'!Z63 -> 0 | AA63: ='[1]HOJA GENERAL DATOS IMPORTADOS'!AA63 -> 0 | AB63: ='[1]HOJA GENERAL DATOS IMPORTADOS'!AB63 -> 0 | AC63: ='[1]HOJA GENERAL DATOS IMPORTADOS'!AC63 -> 0 | AD63: ='[1]HOJA GENERAL DATOS IMPORTADOS'!AD63 -> 0 | AE63: ='[1]HOJA GENERAL DATOS IMPORTADOS'!AE63 -> 0 | AF63: ='[1]HOJA GENERAL DATOS IMPORTADOS'!AF63 -> 0 | AG63: ='[1]HOJA GENERAL DATOS IMPORTADOS'!AG63 -> 0 | AH63: ='[1]HOJA GENERAL DATOS IMPORTADOS'!AH63 -> 0 | AI63: ='[1]HOJA GENERAL DATOS IMPORTADOS'!AI63 -> 0
A64: ='[1]HOJA GENERAL DATOS IMPORTADOS'!A64 -> CAPRINO | K64: ='[1]HOJA GENERAL DATOS IMPORTADOS'!K64 -> 0 | L64: ='[1]HOJA GENERAL DATOS IMPORTADOS'!L64 -> 0 | M64: ='[1]HOJA GENERAL DATOS IMPORTADOS'!M64 -> 0 | N64: ='[1]HOJA GENERAL DATOS IMPORTADOS'!N64 -> 0 | O64: ='[1]HOJA GENERAL DATOS IMPORTADOS'!O64 -> 0 | P64: ='[1]HOJA GENERAL DATOS IMPORTADOS'!P64 -> 0 | Q64: ='[1]HOJA GENERAL DATOS IMPORTADOS'!Q64 -> 0 | R64: ='[1]HOJA GENERAL DATOS IMPORTADOS'!R64 -> 0 | S64: ='[1]HOJA GENERAL DATOS IMPORTADOS'!S64 -> 0 | T64: ='[1]HOJA GENERAL DATOS IMPORTADOS'!T64 -> 0 | U64: ='[1]HOJA GENERAL DATOS IMPORTADOS'!U64 -> 0 | V64: ='[1]HOJA GENERAL DATOS IMPORTADOS'!V64 -> 0 | W64: ='[1]HOJA GENERAL DATOS IMPORTADOS'!W64 -> 0 | X64: ='[1]HOJA GENERAL DATOS IMPORTADOS'!X64 -> 0 | Y64: ='[1]HOJA GENERAL DATOS IMPORTADOS'!Y64 -> 0 | Z64: ='[1]HOJA GENERAL DATOS IMPORTADOS'!Z64 -> 0 | AA64: ='[1]HOJA GENERAL DATOS IMPORTADOS'!AA64 -> 0 | AB64: ='[1]HOJA GENERAL DATOS IMPORTADOS'!AB64 -> 0 | AC64: ='[1]HOJA GENERAL DATOS IMPORTADOS'!AC64 -> 0 | AD64: ='[1]HOJA GENERAL DATOS IMPORTADOS'!AD64 -> 0 | AE64: ='[1]HOJA GENERAL DATOS IMPORTADOS'!AE64 -> 0 | AF64: ='[1]HOJA GENERAL DATOS IMPORTADOS'!AF64 -> 0 | AG64: ='[1]HOJA GENERAL DATOS IMPORTADOS'!AG64 -> 0 | AH64: ='[1]HOJA GENERAL DATOS IMPORTADOS'!AH64 -> 0 | AI64: ='[1]HOJA GENERAL DATOS IMPORTADOS'!AI64 -> 0
A65: ='[1]HOJA GENERAL DATOS IMPORTADOS'!A65 -> CAPRINO | K65: ='[1]HOJA GENERAL DATOS IMPORTADOS'!K65 -> 0 | L65: ='[1]HOJA GENERAL DATOS IMPORTADOS'!L65 -> 0 | M65: ='[1]HOJA GENERAL DATOS IMPORTADOS'!M65 -> 0 | N65: ='[1]HOJA GENERAL DATOS IMPORTADOS'!N65 -> 0 | O65: ='[1]HOJA GENERAL DATOS IMPORTADOS'!O65 -> 0 | P65: ='[1]HOJA GENERAL DATOS IMPORTADOS'!P65 -> 0 | Q65: ='[1]HOJA GENERAL DATOS IMPORTADOS'!Q65 -> 0 | R65: ='[1]HOJA GENERAL DATOS IMPORTADOS'!R65 -> 0 | S65: ='[1]HOJA GENERAL DATOS IMPORTADOS'!S65 -> 0 | T65: ='[1]HOJA GENERAL DATOS IMPORTADOS'!T65 -> 0 | U65: ='[1]HOJA GENERAL DATOS IMPORTADOS'!U65 -> 0 | V65: ='[1]HOJA GENERAL DATOS IMPORTADOS'!V65 -> 0 | W65: ='[1]HOJA GENERAL DATOS IMPORTADOS'!W65 -> 0 | X65: ='[1]HOJA GENERAL DATOS IMPORTADOS'!X65 -> 0 | Y65: ='[1]HOJA GENERAL DATOS IMPORTADOS'!Y65 -> 0 | Z65: ='[1]HOJA GENERAL DATOS IMPORTADOS'!Z65 -> 0 | AA65: ='[1]HOJA GENERAL DATOS IMPORTADOS'!AA65 -> 0 | AB65: ='[1]HOJA GENERAL DATOS IMPORTADOS'!AB65 -> 0 | AC65: ='[1]HOJA GENERAL DATOS IMPORTADOS'!AC65 -> 0 | AD65: ='[1]HOJA GENERAL DATOS IMPORTADOS'!AD65 -> 0 | AE65: ='[1]HOJA GENERAL DATOS IMPORTADOS'!AE65 -> 0 | AF65: ='[1]HOJA GENERAL DATOS IMPORTADOS'!AF65 -> 0 | AG65: ='[1]HOJA GENERAL DATOS IMPORTADOS'!AG65 -> 0 | AH65: ='[1]HOJA GENERAL DATOS IMPORTADOS'!AH65 -> 0 | AI65: ='[1]HOJA GENERAL DATOS IMPORTADOS'!AI65 -> 0
A66: ='[1]HOJA GENERAL DATOS IMPORTADOS'!A66 -> CAPRINO | K66: ='[1]HOJA GENERAL DATOS IMPORTADOS'!K66 -> 0 | L66: ='[1]HOJA GENERAL DATOS IMPORTADOS'!L66 -> 0 | M66: ='[1]HOJA GENERAL DATOS IMPORTADOS'!M66 -> 0 | N66: ='[1]HOJA GENERAL DATOS IMPORTADOS'!N66 -> 0 | O66: ='[1]HOJA GENERAL DATOS IMPORTADOS'!O66 -> 0 | P66: ='[1]HOJA GENERAL DATOS IMPORTADOS'!P66 -> 0 | Q66: ='[1]HOJA GENERAL DATOS IMPORTADOS'!Q66 -> 0 | R66: ='[1]HOJA GENERAL DATOS IMPORTADOS'!R66 -> 0 | S66: ='[1]HOJA GENERAL DATOS IMPORTADOS'!S66 -> 0 | T66: ='[1]HOJA GENERAL DATOS IMPORTADOS'!T66 -> 0 | U66: ='[1]HOJA GENERAL DATOS IMPORTADOS'!U66 -> 0 | V66: ='[1]HOJA GENERAL DATOS IMPORTADOS'!V66 -> 0 | W66: ='[1]HOJA GENERAL DATOS IMPORTADOS'!W66 -> 0 | X66: ='[1]HOJA GENERAL DATOS IMPORTADOS'!X66 -> 0 | Y66: ='[1]HOJA GENERAL DATOS IMPORTADOS'!Y66 -> 0 | Z66: ='[1]HOJA GENERAL DATOS IMPORTADOS'!Z66 -> 0 | AA66: ='[1]HOJA GENERAL DATOS IMPORTADOS'!AA66 -> 0 | AB66: ='[1]HOJA GENERAL DATOS IMPORTADOS'!AB66 -> 0 | AC66: ='[1]HOJA GENERAL DATOS IMPORTADOS'!AC66 -> 0 | AD66: ='[1]HOJA GENERAL DATOS IMPORTADOS'!AD66 -> 0 | AE66: ='[1]HOJA GENERAL DATOS IMPORTADOS'!AE66 -> 0 | AF66: ='[1]HOJA GENERAL DATOS IMPORTADOS'!AF66 -> 0 | AG66: ='[1]HOJA GENERAL DATOS IMPORTADOS'!AG66 -> 0 | AH66: ='[1]HOJA GENERAL DATOS IMPORTADOS'!AH66 -> 0 | AI66: ='[1]HOJA GENERAL DATOS IMPORTADOS'!AI66 -> 0
A67: ='[1]HOJA GENERAL DATOS IMPORTADOS'!A67 -> CAPRINO | K67: ='[1]HOJA GENERAL DATOS IMPORTADOS'!K67 -> 0 | L67: ='[1]HOJA GENERAL DATOS IMPORTADOS'!L67 -> 0 | M67: ='[1]HOJA GENERAL DATOS IMPORTADOS'!M67 -> 0 | N67: ='[1]HOJA GENERAL DATOS IMPORTADOS'!N67 -> 0 | O67: ='[1]HOJA GENERAL DATOS IMPORTADOS'!O67 -> 0 | P67: ='[1]HOJA GENERAL DATOS IMPORTADOS'!P67 -> 0 | Q67: ='[1]HOJA GENERAL DATOS IMPORTADOS'!Q67 -> 0 | R67: ='[1]HOJA GENERAL DATOS IMPORTADOS'!R67 -> 0 | S67: ='[1]HOJA GENERAL DATOS IMPORTADOS'!S67 -> 0 | T67: ='[1]HOJA GENERAL DATOS IMPORTADOS'!T67 -> 0 | U67: ='[1]HOJA GENERAL DATOS IMPORTADOS'!U67 -> 0 | V67: ='[1]HOJA GENERAL DATOS IMPORTADOS'!V67 -> 0 | W67: ='[1]HOJA GENERAL DATOS IMPORTADOS'!W67 -> 0 | X67: ='[1]HOJA GENERAL DATOS IMPORTADOS'!X67 -> 0 | Y67: ='[1]HOJA GENERAL DATOS IMPORTADOS'!Y67 -> 0 | Z67: ='[1]HOJA GENERAL DATOS IMPORTADOS'!Z67 -> 0 | AA67: ='[1]HOJA GENERAL DATOS IMPORTADOS'!AA67 -> 0 | AB67: ='[1]HOJA GENERAL DATOS IMPORTADOS'!AB67 -> 0 | AC67: ='[1]HOJA GENERAL DATOS IMPORTADOS'!AC67 -> 0 | AD67: ='[1]HOJA GENERAL DATOS IMPORTADOS'!AD67 -> 0 | AE67: ='[1]HOJA GENERAL DATOS IMPORTADOS'!AE67 -> 0 | AF67: ='[1]HOJA GENERAL DATOS IMPORTADOS'!AF67 -> 0 | AG67: ='[1]HOJA GENERAL DATOS IMPORTADOS'!AG67 -> 0 | AH67: ='[1]HOJA GENERAL DATOS IMPORTADOS'!AH67 -> 0 | AI67: ='[1]HOJA GENERAL DATOS IMPORTADOS'!AI67 -> 0
A68: ='[1]HOJA GENERAL DATOS IMPORTADOS'!A68 -> CAPRINO | K68: ='[1]HOJA GENERAL DATOS IMPORTADOS'!K68 -> 0 | L68: ='[1]HOJA GENERAL DATOS IMPORTADOS'!L68 -> 0 | M68: ='[1]HOJA GENERAL DATOS IMPORTADOS'!M68 -> 0 | N68: ='[1]HOJA GENERAL DATOS IMPORTADOS'!N68 -> 0 | O68: ='[1]HOJA GENERAL DATOS IMPORTADOS'!O68 -> 0 | P68: ='[1]HOJA GENERAL DATOS IMPORTADOS'!P68 -> 0 | Q68: ='[1]HOJA GENERAL DATOS IMPORTADOS'!Q68 -> 0 | R68: ='[1]HOJA GENERAL DATOS IMPORTADOS'!R68 -> 0 | S68: ='[1]HOJA GENERAL DATOS IMPORTADOS'!S68 -> 0 | T68: ='[1]HOJA GENERAL DATOS IMPORTADOS'!T68 -> 0 | U68: ='[1]HOJA GENERAL DATOS IMPORTADOS'!U68 -> 0 | V68: ='[1]HOJA GENERAL DATOS IMPORTADOS'!V68 -> 0 | W68: ='[1]HOJA GENERAL DATOS IMPORTADOS'!W68 -> 0 | X68: ='[1]HOJA GENERAL DATOS IMPORTADOS'!X68 -> 0 | Y68: ='[1]HOJA GENERAL DATOS IMPORTADOS'!Y68 -> 0 | Z68: ='[1]HOJA GENERAL DATOS IMPORTADOS'!Z68 -> 0 | AA68: ='[1]HOJA GENERAL DATOS IMPORTADOS'!AA68 -> 0 | AB68: ='[1]HOJA GENERAL DATOS IMPORTADOS'!AB68 -> 0 | AC68: ='[1]HOJA GENERAL DATOS IMPORTADOS'!AC68 -> 0 | AD68: ='[1]HOJA GENERAL DATOS IMPORTADOS'!AD68 -> 0 | AE68: ='[1]HOJA GENERAL DATOS IMPORTADOS'!AE68 -> 0 | AF68: ='[1]HOJA GENERAL DATOS IMPORTADOS'!AF68 -> 0 | AG68: ='[1]HOJA GENERAL DATOS IMPORTADOS'!AG68 -> 0 | AH68: ='[1]HOJA GENERAL DATOS IMPORTADOS'!AH68 -> 0 | AI68: ='[1]HOJA GENERAL DATOS IMPORTADOS'!AI68 -> 0
A69: ='[1]HOJA GENERAL DATOS IMPORTADOS'!A69 -> CAPRINO | K69: ='[1]HOJA GENERAL DATOS IMPORTADOS'!K69 -> 0 | L69: ='[1]HOJA GENERAL DATOS IMPORTADOS'!L69 -> 0 | M69: ='[1]HOJA GENERAL DATOS IMPORTADOS'!M69 -> 0 | N69: ='[1]HOJA GENERAL DATOS IMPORTADOS'!N69 -> 0 | O69: ='[1]HOJA GENERAL DATOS IMPORTADOS'!O69 -> 0 | P69: ='[1]HOJA GENERAL DATOS IMPORTADOS'!P69 -> 0 | Q69: ='[1]HOJA GENERAL DATOS IMPORTADOS'!Q69 -> 0 | R69: ='[1]HOJA GENERAL DATOS IMPORTADOS'!R69 -> 0 | S69: ='[1]HOJA GENERAL DATOS IMPORTADOS'!S69 -> 0 | T69: ='[1]HOJA GENERAL DATOS IMPORTADOS'!T69 -> 0 | U69: ='[1]HOJA GENERAL DATOS IMPORTADOS'!U69 -> 0 | V69: ='[1]HOJA GENERAL DATOS IMPORTADOS'!V69 -> 0 | W69: ='[1]HOJA GENERAL DATOS IMPORTADOS'!W69 -> 0 | X69: ='[1]HOJA GENERAL DATOS IMPORTADOS'!X69 -> 0 | Y69: ='[1]HOJA GENERAL DATOS IMPORTADOS'!Y69 -> 0 | Z69: ='[1]HOJA GENERAL DATOS IMPORTADOS'!Z69 -> 0 | AA69: ='[1]HOJA GENERAL DATOS IMPORTADOS'!AA69 -> 0 | AB69: ='[1]HOJA GENERAL DATOS IMPORTADOS'!AB69 -> 0 | AC69: ='[1]HOJA GENERAL DATOS IMPORTADOS'!AC69 -> 0 | AD69: ='[1]HOJA GENERAL DATOS IMPORTADOS'!AD69 -> 0 | AE69: ='[1]HOJA GENERAL DATOS IMPORTADOS'!AE69 -> 0 | AF69: ='[1]HOJA GENERAL DATOS IMPORTADOS'!AF69 -> 0 | AG69: ='[1]HOJA GENERAL DATOS IMPORTADOS'!AG69 -> 0 | AH69: ='[1]HOJA GENERAL DATOS IMPORTADOS'!AH69 -> 0 | AI69: ='[1]HOJA GENERAL DATOS IMPORTADOS'!AI69 -> 0
A70: ='[1]HOJA GENERAL DATOS IMPORTADOS'!A70 -> OVINO | K70: ='[1]HOJA GENERAL DATOS IMPORTADOS'!K70 -> 0 | L70: ='[1]HOJA GENERAL DATOS IMPORTADOS'!L70 -> 0 | M70: ='[1]HOJA GENERAL DATOS IMPORTADOS'!M70 -> 0 | N70: ='[1]HOJA GENERAL DATOS IMPORTADOS'!N70 -> 0 | O70: ='[1]HOJA GENERAL DATOS IMPORTADOS'!O70 -> 0 | P70: ='[1]HOJA GENERAL DATOS IMPORTADOS'!P70 -> 0 | Q70: ='[1]HOJA GENERAL DATOS IMPORTADOS'!Q70 -> 0 | R70: ='[1]HOJA GENERAL DATOS IMPORTADOS'!R70 -> 0 | S70: ='[1]HOJA GENERAL DATOS IMPORTADOS'!S70 -> 0 | T70: ='[1]HOJA GENERAL DATOS IMPORTADOS'!T70 -> 0 | U70: ='[1]HOJA GENERAL DATOS IMPORTADOS'!U70 -> 0 | V70: ='[1]HOJA GENERAL DATOS IMPORTADOS'!V70 -> 0 | W70: ='[1]HOJA GENERAL DATOS IMPORTADOS'!W70 -> 0 | X70: ='[1]HOJA GENERAL DATOS IMPORTADOS'!X70 -> 0 | Y70: ='[1]HOJA GENERAL DATOS IMPORTADOS'!Y70 -> 0 | Z70: ='[1]HOJA GENERAL DATOS IMPORTADOS'!Z70 -> 0 | AA70: ='[1]HOJA GENERAL DATOS IMPORTADOS'!AA70 -> 0 | AB70: ='[1]HOJA GENERAL DATOS IMPORTADOS'!AB70 -> 0 | AC70: ='[1]HOJA GENERAL DATOS IMPORTADOS'!AC70 -> 0 | AD70: ='[1]HOJA GENERAL DATOS IMPORTADOS'!AD70 -> 0 | AE70: ='[1]HOJA GENERAL DATOS IMPORTADOS'!AE70 -> 0 | AF70: ='[1]HOJA GENERAL DATOS IMPORTADOS'!AF70 -> 0 | AG70: ='[1]HOJA GENERAL DATOS IMPORTADOS'!AG70 -> 0 | AH70: ='[1]HOJA GENERAL DATOS IMPORTADOS'!AH70 -> 0 | AI70: ='[1]HOJA GENERAL DATOS IMPORTADOS'!AI70 -> 0
A71: ='[1]HOJA GENERAL DATOS IMPORTADOS'!A71 -> OVINO | K71: ='[1]HOJA GENERAL DATOS IMPORTADOS'!K71 -> 0 | L71: ='[1]HOJA GENERAL DATOS IMPORTADOS'!L71 -> 0 | M71: ='[1]HOJA GENERAL DATOS IMPORTADOS'!M71 -> 0 | N71: ='[1]HOJA GENERAL DATOS IMPORTADOS'!N71 -> 0 | O71: ='[1]HOJA GENERAL DATOS IMPORTADOS'!O71 -> 0 | P71: ='[1]HOJA GENERAL DATOS IMPORTADOS'!P71 -> 0 | Q71: ='[1]HOJA GENERAL DATOS IMPORTADOS'!Q71 -> 0 | R71: ='[1]HOJA GENERAL DATOS IMPORTADOS'!R71 -> 0 | S71: ='[1]HOJA GENERAL DATOS IMPORTADOS'!S71 -> 0 | T71: ='[1]HOJA GENERAL DATOS IMPORTADOS'!T71 -> 0 | U71: ='[1]HOJA GENERAL DATOS IMPORTADOS'!U71 -> 0 | V71: ='[1]HOJA GENERAL DATOS IMPORTADOS'!V71 -> 0 | W71: ='[1]HOJA GENERAL DATOS IMPORTADOS'!W71 -> 0 | X71: ='[1]HOJA GENERAL DATOS IMPORTADOS'!X71 -> 0 | Y71: ='[1]HOJA GENERAL DATOS IMPORTADOS'!Y71 -> 0 | Z71: ='[1]HOJA GENERAL DATOS IMPORTADOS'!Z71 -> 0 | AA71: ='[1]HOJA GENERAL DATOS IMPORTADOS'!AA71 -> 0 | AB71: ='[1]HOJA GENERAL DATOS IMPORTADOS'!AB71 -> 0 | AC71: ='[1]HOJA GENERAL DATOS IMPORTADOS'!AC71 -> 0 | AD71: ='[1]HOJA GENERAL DATOS IMPORTADOS'!AD71 -> 0 | AE71: ='[1]HOJA GENERAL DATOS IMPORTADOS'!AE71 -> 0 | AF71: ='[1]HOJA GENERAL DATOS IMPORTADOS'!AF71 -> 0 | AG71: ='[1]HOJA GENERAL DATOS IMPORTADOS'!AG71 -> 0 | AH71: ='[1]HOJA GENERAL DATOS IMPORTADOS'!AH71 -> 0 | AI71: ='[1]HOJA GENERAL DATOS IMPORTADOS'!AI71 -> 0
A72: ='[1]HOJA GENERAL DATOS IMPORTADOS'!A72 -> OVINO | K72: ='[1]HOJA GENERAL DATOS IMPORTADOS'!K72 -> 0 | L72: ='[1]HOJA GENERAL DATOS IMPORTADOS'!L72 -> 0 | M72: ='[1]HOJA GENERAL DATOS IMPORTADOS'!M72 -> 0 | N72: ='[1]HOJA GENERAL DATOS IMPORTADOS'!N72 -> 0 | O72: ='[1]HOJA GENERAL DATOS IMPORTADOS'!O72 -> 0 | P72: ='[1]HOJA GENERAL DATOS IMPORTADOS'!P72 -> 0 | Q72: ='[1]HOJA GENERAL DATOS IMPORTADOS'!Q72 -> 0 | R72: ='[1]HOJA GENERAL DATOS IMPORTADOS'!R72 -> 0 | S72: ='[1]HOJA GENERAL DATOS IMPORTADOS'!S72 -> 0 | T72: ='[1]HOJA GENERAL DATOS IMPORTADOS'!T72 -> 0 | U72: ='[1]HOJA GENERAL DATOS IMPORTADOS'!U72 -> 0 | V72: ='[1]HOJA GENERAL DATOS IMPORTADOS'!V72 -> 0 | W72: ='[1]HOJA GENERAL DATOS IMPORTADOS'!W72 -> 0 | X72: ='[1]HOJA GENERAL DATOS IMPORTADOS'!X72 -> 0 | Y72: ='[1]HOJA GENERAL DATOS IMPORTADOS'!Y72 -> 0 | Z72: ='[1]HOJA GENERAL DATOS IMPORTADOS'!Z72 -> 0 | AA72: ='[1]HOJA GENERAL DATOS IMPORTADOS'!AA72 -> 0 | AB72: ='[1]HOJA GENERAL DATOS IMPORTADOS'!AB72 -> 0 | AC72: ='[1]HOJA GENERAL DATOS IMPORTADOS'!AC72 -> 0 | AD72: ='[1]HOJA GENERAL DATOS IMPORTADOS'!AD72 -> 0 | AE72: ='[1]HOJA GENERAL DATOS IMPORTADOS'!AE72 -> 0 | AF72: ='[1]HOJA GENERAL DATOS IMPORTADOS'!AF72 -> 0 | AG72: ='[1]HOJA GENERAL DATOS IMPORTADOS'!AG72 -> 0 | AH72: ='[1]HOJA GENERAL DATOS IMPORTADOS'!AH72 -> 0 | AI72: ='[1]HOJA GENERAL DATOS IMPORTADOS'!AI72 -> 0
A73: ='[1]HOJA GENERAL DATOS IMPORTADOS'!A73 -> OVINO | K73: ='[1]HOJA GENERAL DATOS IMPORTADOS'!K73 -> 0 | L73: ='[1]HOJA GENERAL DATOS IMPORTADOS'!L73 -> 0 | M73: ='[1]HOJA GENERAL DATOS IMPORTADOS'!M73 -> 0 | N73: ='[1]HOJA GENERAL DATOS IMPORTADOS'!N73 -> 0 | O73: ='[1]HOJA GENERAL DATOS IMPORTADOS'!O73 -> 0 | P73: ='[1]HOJA GENERAL DATOS IMPORTADOS'!P73 -> 0 | Q73: ='[1]HOJA GENERAL DATOS IMPORTADOS'!Q73 -> 0 | R73: ='[1]HOJA GENERAL DATOS IMPORTADOS'!R73 -> 0 | S73: ='[1]HOJA GENERAL DATOS IMPORTADOS'!S73 -> 0 | T73: ='[1]HOJA GENERAL DATOS IMPORTADOS'!T73 -> 0 | U73: ='[1]HOJA GENERAL DATOS IMPORTADOS'!U73 -> 0 | V73: ='[1]HOJA GENERAL DATOS IMPORTADOS'!V73 -> 0 | W73: ='[1]HOJA GENERAL DATOS IMPORTADOS'!W73 -> 0 | X73: ='[1]HOJA GENERAL DATOS IMPORTADOS'!X73 -> 0 | Y73: ='[1]HOJA GENERAL DATOS IMPORTADOS'!Y73 -> 0 | Z73: ='[1]HOJA GENERAL DATOS IMPORTADOS'!Z73 -> 0 | AA73: ='[1]HOJA GENERAL DATOS IMPORTADOS'!AA73 -> 0 | AB73: ='[1]HOJA GENERAL DATOS IMPORTADOS'!AB73 -> 0 | AC73: ='[1]HOJA GENERAL DATOS IMPORTADOS'!AC73 -> 0 | AD73: ='[1]HOJA GENERAL DATOS IMPORTADOS'!AD73 -> 0 | AE73: ='[1]HOJA GENERAL DATOS IMPORTADOS'!AE73 -> 0 | AF73: ='[1]HOJA GENERAL DATOS IMPORTADOS'!AF73 -> 0 | AG73: ='[1]HOJA GENERAL DATOS IMPORTADOS'!AG73 -> 0 | AH73: ='[1]HOJA GENERAL DATOS IMPORTADOS'!AH73 -> 0 | AI73: ='[1]HOJA GENERAL DATOS IMPORTADOS'!AI73 -> 0
A74: ='[1]HOJA GENERAL DATOS IMPORTADOS'!A74 -> OVINO | K74: ='[1]HOJA GENERAL DATOS IMPORTADOS'!K74 -> 0 | L74: ='[1]HOJA GENERAL DATOS IMPORTADOS'!L74 -> 0 | M74: ='[1]HOJA GENERAL DATOS IMPORTADOS'!M74 -> 0 | N74: ='[1]HOJA GENERAL DATOS IMPORTADOS'!N74 -> 0 | O74: ='[1]HOJA GENERAL DATOS IMPORTADOS'!O74 -> 0 | P74: ='[1]HOJA GENERAL DATOS IMPORTADOS'!P74 -> 0 | Q74: ='[1]HOJA GENERAL DATOS IMPORTADOS'!Q74 -> 0 | R74: ='[1]HOJA GENERAL DATOS IMPORTADOS'!R74 -> 0 | S74: ='[1]HOJA GENERAL DATOS IMPORTADOS'!S74 -> 0 | T74: ='[1]HOJA GENERAL DATOS IMPORTADOS'!T74 -> 0 | U74: ='[1]HOJA GENERAL DATOS IMPORTADOS'!U74 -> 0 | V74: ='[1]HOJA GENERAL DATOS IMPORTADOS'!V74 -> 0 | W74: ='[1]HOJA GENERAL DATOS IMPORTADOS'!W74 -> 0 | X74: ='[1]HOJA GENERAL DATOS IMPORTADOS'!X74 -> 0 | Y74: ='[1]HOJA GENERAL DATOS IMPORTADOS'!Y74 -> 0 | Z74: ='[1]HOJA GENERAL DATOS IMPORTADOS'!Z74 -> 0 | AA74: ='[1]HOJA GENERAL DATOS IMPORTADOS'!AA74 -> 0 | AB74: ='[1]HOJA GENERAL DATOS IMPORTADOS'!AB74 -> 0 | AC74: ='[1]HOJA GENERAL DATOS IMPORTADOS'!AC74 -> 0 | AD74: ='[1]HOJA GENERAL DATOS IMPORTADOS'!AD74 -> 0 | AE74: ='[1]HOJA GENERAL DATOS IMPORTADOS'!AE74 -> 0 | AF74: ='[1]HOJA GENERAL DATOS IMPORTADOS'!AF74 -> 0 | AG74: ='[1]HOJA GENERAL DATOS IMPORTADOS'!AG74 -> 0 | AH74: ='[1]HOJA GENERAL DATOS IMPORTADOS'!AH74 -> 0 | AI74: ='[1]HOJA GENERAL DATOS IMPORTADOS'!AI74 -> 0
A75: ='[1]HOJA GENERAL DATOS IMPORTADOS'!A75 -> OVINO | K75: ='[1]HOJA GENERAL DATOS IMPORTADOS'!K75 -> 0 | L75: ='[1]HOJA GENERAL DATOS IMPORTADOS'!L75 -> 0 | M75: ='[1]HOJA GENERAL DATOS IMPORTADOS'!M75 -> 0 | N75: ='[1]HOJA GENERAL DATOS IMPORTADOS'!N75 -> 0 | O75: ='[1]HOJA GENERAL DATOS IMPORTADOS'!O75 -> 0 | P75: ='[1]HOJA GENERAL DATOS IMPORTADOS'!P75 -> 0 | Q75: ='[1]HOJA GENERAL DATOS IMPORTADOS'!Q75 -> 0 | R75: ='[1]HOJA GENERAL DATOS IMPORTADOS'!R75 -> 0 | S75: ='[1]HOJA GENERAL DATOS IMPORTADOS'!S75 -> 0 | T75: ='[1]HOJA GENERAL DATOS IMPORTADOS'!T75 -> 0 | U75: ='[1]HOJA GENERAL DATOS IMPORTADOS'!U75 -> 0 | V75: ='[1]HOJA GENERAL DATOS IMPORTADOS'!V75 -> 0 | W75: ='[1]HOJA GENERAL DATOS IMPORTADOS'!W75 -> 0 | X75: ='[1]HOJA GENERAL DATOS IMPORTADOS'!X75 -> 0 | Y75: ='[1]HOJA GENERAL DATOS IMPORTADOS'!Y75 -> 0 | Z75: ='[1]HOJA GENERAL DATOS IMPORTADOS'!Z75 -> 0 | AA75: ='[1]HOJA GENERAL DATOS IMPORTADOS'!AA75 -> 0 | AB75: ='[1]HOJA GENERAL DATOS IMPORTADOS'!AB75 -> 0 | AC75: ='[1]HOJA GENERAL DATOS IMPORTADOS'!AC75 -> 0 | AD75: ='[1]HOJA GENERAL DATOS IMPORTADOS'!AD75 -> 0 | AE75: ='[1]HOJA GENERAL DATOS IMPORTADOS'!AE75 -> 0 | AF75: ='[1]HOJA GENERAL DATOS IMPORTADOS'!AF75 -> 0 | AG75: ='[1]HOJA GENERAL DATOS IMPORTADOS'!AG75 -> 0 | AH75: ='[1]HOJA GENERAL DATOS IMPORTADOS'!AH75 -> 0 | AI75: ='[1]HOJA GENERAL DATOS IMPORTADOS'!AI75 -> 0
A76: ='[1]HOJA GENERAL DATOS IMPORTADOS'!A76 -> OVINO | K76: ='[1]HOJA GENERAL DATOS IMPORTADOS'!K76 -> 0 | L76: ='[1]HOJA GENERAL DATOS IMPORTADOS'!L76 -> 0 | M76: ='[1]HOJA GENERAL DATOS IMPORTADOS'!M76 -> 0 | N76: ='[1]HOJA GENERAL DATOS IMPORTADOS'!N76 -> 0 | O76: ='[1]HOJA GENERAL DATOS IMPORTADOS'!O76 -> 0 | P76: ='[1]HOJA GENERAL DATOS IMPORTADOS'!P76 -> 0 | Q76: ='[1]HOJA GENERAL DATOS IMPORTADOS'!Q76 -> 0 | R76: ='[1]HOJA GENERAL DATOS IMPORTADOS'!R76 -> 0 | S76: ='[1]HOJA GENERAL DATOS IMPORTADOS'!S76 -> 0 | T76: ='[1]HOJA GENERAL DATOS IMPORTADOS'!T76 -> 0 | U76: ='[1]HOJA GENERAL DATOS IMPORTADOS'!U76 -> 0 | V76: ='[1]HOJA GENERAL DATOS IMPORTADOS'!V76 -> 0 | W76: ='[1]HOJA GENERAL DATOS IMPORTADOS'!W76 -> 0 | X76: ='[1]HOJA GENERAL DATOS IMPORTADOS'!X76 -> 0 | Y76: ='[1]HOJA GENERAL DATOS IMPORTADOS'!Y76 -> 0 | Z76: ='[1]HOJA GENERAL DATOS IMPORTADOS'!Z76 -> 0 | AA76: ='[1]HOJA GENERAL DATOS IMPORTADOS'!AA76 -> 0 | AB76: ='[1]HOJA GENERAL DATOS IMPORTADOS'!AB76 -> 0 | AC76: ='[1]HOJA GENERAL DATOS IMPORTADOS'!AC76 -> 0 | AD76: ='[1]HOJA GENERAL DATOS IMPORTADOS'!AD76 -> 0 | AE76: ='[1]HOJA GENERAL DATOS IMPORTADOS'!AE76 -> 0 | AF76: ='[1]HOJA GENERAL DATOS IMPORTADOS'!AF76 -> 0 | AG76: ='[1]HOJA GENERAL DATOS IMPORTADOS'!AG76 -> 0 | AH76: ='[1]HOJA GENERAL DATOS IMPORTADOS'!AH76 -> 0 | AI76: ='[1]HOJA GENERAL DATOS IMPORTADOS'!AI76 -> 0
A77: ='[1]HOJA GENERAL DATOS IMPORTADOS'!A77 -> OVINO | K77: ='[1]HOJA GENERAL DATOS IMPORTADOS'!K77 -> 0 | L77: ='[1]HOJA GENERAL DATOS IMPORTADOS'!L77 -> 0 | M77: ='[1]HOJA GENERAL DATOS IMPORTADOS'!M77 -> 0 | N77: ='[1]HOJA GENERAL DATOS IMPORTADOS'!N77 -> 0 | O77: ='[1]HOJA GENERAL DATOS IMPORTADOS'!O77 -> 0 | P77: ='[1]HOJA GENERAL DATOS IMPORTADOS'!P77 -> 0 | Q77: ='[1]HOJA GENERAL DATOS IMPORTADOS'!Q77 -> 0 | R77: ='[1]HOJA GENERAL DATOS IMPORTADOS'!R77 -> 0 | S77: ='[1]HOJA GENERAL DATOS IMPORTADOS'!S77 -> 0 | T77: ='[1]HOJA GENERAL DATOS IMPORTADOS'!T77 -> 0 | U77: ='[1]HOJA GENERAL DATOS IMPORTADOS'!U77 -> 0 | V77: ='[1]HOJA GENERAL DATOS IMPORTADOS'!V77 -> 0 | W77: ='[1]HOJA GENERAL DATOS IMPORTADOS'!W77 -> 0 | X77: ='[1]HOJA GENERAL DATOS IMPORTADOS'!X77 -> 0 | Y77: ='[1]HOJA GENERAL DATOS IMPORTADOS'!Y77 -> 0 | Z77: ='[1]HOJA GENERAL DATOS IMPORTADOS'!Z77 -> 0 | AA77: ='[1]HOJA GENERAL DATOS IMPORTADOS'!AA77 -> 0 | AB77: ='[1]HOJA GENERAL DATOS IMPORTADOS'!AB77 -> 0 | AC77: ='[1]HOJA GENERAL DATOS IMPORTADOS'!AC77 -> 0 | AD77: ='[1]HOJA GENERAL DATOS IMPORTADOS'!AD77 -> 0 | AE77: ='[1]HOJA GENERAL DATOS IMPORTADOS'!AE77 -> 0 | AF77: ='[1]HOJA GENERAL DATOS IMPORTADOS'!AF77 -> 0 | AG77: ='[1]HOJA GENERAL DATOS IMPORTADOS'!AG77 -> 0 | AH77: ='[1]HOJA GENERAL DATOS IMPORTADOS'!AH77 -> 0 | AI77: ='[1]HOJA GENERAL DATOS IMPORTADOS'!AI77 -> 0
A78: ='[1]HOJA GENERAL DATOS IMPORTADOS'!A78 -> OVINO | K78: ='[1]HOJA GENERAL DATOS IMPORTADOS'!K78 -> 0 | L78: ='[1]HOJA GENERAL DATOS IMPORTADOS'!L78 -> 0 | M78: ='[1]HOJA GENERAL DATOS IMPORTADOS'!M78 -> 0 | N78: ='[1]HOJA GENERAL DATOS IMPORTADOS'!N78 -> 0 | O78: ='[1]HOJA GENERAL DATOS IMPORTADOS'!O78 -> 0 | P78: ='[1]HOJA GENERAL DATOS IMPORTADOS'!P78 -> 0 | Q78: ='[1]HOJA GENERAL DATOS IMPORTADOS'!Q78 -> 0 | R78: ='[1]HOJA GENERAL DATOS IMPORTADOS'!R78 -> 0 | S78: ='[1]HOJA GENERAL DATOS IMPORTADOS'!S78 -> 0 | T78: ='[1]HOJA GENERAL DATOS IMPORTADOS'!T78 -> 0 | U78: ='[1]HOJA GENERAL DATOS IMPORTADOS'!U78 -> 0 | V78: ='[1]HOJA GENERAL DATOS IMPORTADOS'!V78 -> 0 | W78: ='[1]HOJA GENERAL DATOS IMPORTADOS'!W78 -> 0 | X78: ='[1]HOJA GENERAL DATOS IMPORTADOS'!X78 -> 0 | Y78: ='[1]HOJA GENERAL DATOS IMPORTADOS'!Y78 -> 0 | Z78: ='[1]HOJA GENERAL DATOS IMPORTADOS'!Z78 -> 0 | AA78: ='[1]HOJA GENERAL DATOS IMPORTADOS'!AA78 -> 0 | AB78: ='[1]HOJA GENERAL DATOS IMPORTADOS'!AB78 -> 0 | AC78: ='[1]HOJA GENERAL DATOS IMPORTADOS'!AC78 -> 0 | AD78: ='[1]HOJA GENERAL DATOS IMPORTADOS'!AD78 -> 0 | AE78: ='[1]HOJA GENERAL DATOS IMPORTADOS'!AE78 -> 0 | AF78: ='[1]HOJA GENERAL DATOS IMPORTADOS'!AF78 -> 0 | AG78: ='[1]HOJA GENERAL DATOS IMPORTADOS'!AG78 -> 0 | AH78: ='[1]HOJA GENERAL DATOS IMPORTADOS'!AH78 -> 0 | AI78: ='[1]HOJA GENERAL DATOS IMPORTADOS'!AI78 -> 0
A79: ='[1]HOJA GENERAL DATOS IMPORTADOS'!A79 -> OVINO | K79: ='[1]HOJA GENERAL DATOS IMPORTADOS'!K79 -> 0 | L79: ='[1]HOJA GENERAL DATOS IMPORTADOS'!L79 -> 0 | M79: ='[1]HOJA GENERAL DATOS IMPORTADOS'!M79 -> 0 | N79: ='[1]HOJA GENERAL DATOS IMPORTADOS'!N79 -> 0 | O79: ='[1]HOJA GENERAL DATOS IMPORTADOS'!O79 -> 0 | P79: ='[1]HOJA GENERAL DATOS IMPORTADOS'!P79 -> 0 | Q79: ='[1]HOJA GENERAL DATOS IMPORTADOS'!Q79 -> 0 | R79: ='[1]HOJA GENERAL DATOS IMPORTADOS'!R79 -> 0 | S79: ='[1]HOJA GENERAL DATOS IMPORTADOS'!S79 -> 0 | T79: ='[1]HOJA GENERAL DATOS IMPORTADOS'!T79 -> 0 | U79: ='[1]HOJA GENERAL DATOS IMPORTADOS'!U79 -> 0 | V79: ='[1]HOJA GENERAL DATOS IMPORTADOS'!V79 -> 0 | W79: ='[1]HOJA GENERAL DATOS IMPORTADOS'!W79 -> 0 | X79: ='[1]HOJA GENERAL DATOS IMPORTADOS'!X79 -> 0 | Y79: ='[1]HOJA GENERAL DATOS IMPORTADOS'!Y79 -> 0 | Z79: ='[1]HOJA GENERAL DATOS IMPORTADOS'!Z79 -> 0 | AA79: ='[1]HOJA GENERAL DATOS IMPORTADOS'!AA79 -> 0 | AB79: ='[1]HOJA GENERAL DATOS IMPORTADOS'!AB79 -> 0 | AC79: ='[1]HOJA GENERAL DATOS IMPORTADOS'!AC79 -> 0 | AD79: ='[1]HOJA GENERAL DATOS IMPORTADOS'!AD79 -> 0 | AE79: ='[1]HOJA GENERAL DATOS IMPORTADOS'!AE79 -> 0 | AF79: ='[1]HOJA GENERAL DATOS IMPORTADOS'!AF79 -> 0 | AG79: ='[1]HOJA GENERAL DATOS IMPORTADOS'!AG79 -> 0 | AH79: ='[1]HOJA GENERAL DATOS IMPORTADOS'!AH79 -> 0 | AI79: ='[1]HOJA GENERAL DATOS IMPORTADOS'!AI79 -> 0
A80: ='[1]HOJA GENERAL DATOS IMPORTADOS'!A80 -> OVINO | K80: ='[1]HOJA GENERAL DATOS IMPORTADOS'!K80 -> 0 | L80: ='[1]HOJA GENERAL DATOS IMPORTADOS'!L80 -> 0 | M80: ='[1]HOJA GENERAL DATOS IMPORTADOS'!M80 -> 0 | N80: ='[1]HOJA GENERAL DATOS IMPORTADOS'!N80 -> 0 | O80: ='[1]HOJA GENERAL DATOS IMPORTADOS'!O80 -> 0 | P80: ='[1]HOJA GENERAL DATOS IMPORTADOS'!P80 -> 0 | Q80: ='[1]HOJA GENERAL DATOS IMPORTADOS'!Q80 -> 0 | R80: ='[1]HOJA GENERAL DATOS IMPORTADOS'!R80 -> 0 | S80: ='[1]HOJA GENERAL DATOS IMPORTADOS'!S80 -> 0 | T80: ='[1]HOJA GENERAL DATOS IMPORTADOS'!T80 -> 0 | U80: ='[1]HOJA GENERAL DATOS IMPORTADOS'!U80 -> 0 | V80: ='[1]HOJA GENERAL DATOS IMPORTADOS'!V80 -> 0 | W80: ='[1]HOJA GENERAL DATOS IMPORTADOS'!W80 -> 0 | X80: ='[1]HOJA GENERAL DATOS IMPORTADOS'!X80 -> 0 | Y80: ='[1]HOJA GENERAL DATOS IMPORTADOS'!Y80 -> 0 | Z80: ='[1]HOJA GENERAL DATOS IMPORTADOS'!Z80 -> 0 | AA80: ='[1]HOJA GENERAL DATOS IMPORTADOS'!AA80 -> 0 | AB80: ='[1]HOJA GENERAL DATOS IMPORTADOS'!AB80 -> 0 | AC80: ='[1]HOJA GENERAL DATOS IMPORTADOS'!AC80 -> 0 | AD80: ='[1]HOJA GENERAL DATOS IMPORTADOS'!AD80 -> 0 | AE80: ='[1]HOJA GENERAL DATOS IMPORTADOS'!AE80 -> 0 | AF80: ='[1]HOJA GENERAL DATOS IMPORTADOS'!AF80 -> 0 | AG80: ='[1]HOJA GENERAL DATOS IMPORTADOS'!AG80 -> 0 | AH80: ='[1]HOJA GENERAL DATOS IMPORTADOS'!AH80 -> 0 | AI80: ='[1]HOJA GENERAL DATOS IMPORTADOS'!AI80 -> 0
A81: ='[1]HOJA GENERAL DATOS IMPORTADOS'!A81 -> OVINO | K81: ='[1]HOJA GENERAL DATOS IMPORTADOS'!K81 -> 0 | L81: ='[1]HOJA GENERAL DATOS IMPORTADOS'!L81 -> 0 | M81: ='[1]HOJA GENERAL DATOS IMPORTADOS'!M81 -> 0 | N81: ='[1]HOJA GENERAL DATOS IMPORTADOS'!N81 -> 0 | O81: ='[1]HOJA GENERAL DATOS IMPORTADOS'!O81 -> 0 | P81: ='[1]HOJA GENERAL DATOS IMPORTADOS'!P81 -> 0 | Q81: ='[1]HOJA GENERAL DATOS IMPORTADOS'!Q81 -> 0 | R81: ='[1]HOJA GENERAL DATOS IMPORTADOS'!R81 -> 0 | S81: ='[1]HOJA GENERAL DATOS IMPORTADOS'!S81 -> 0 | T81: ='[1]HOJA GENERAL DATOS IMPORTADOS'!T81 -> 0 | U81: ='[1]HOJA GENERAL DATOS IMPORTADOS'!U81 -> 0 | V81: ='[1]HOJA GENERAL DATOS IMPORTADOS'!V81 -> 0 | W81: ='[1]HOJA GENERAL DATOS IMPORTADOS'!W81 -> 0 | X81: ='[1]HOJA GENERAL DATOS IMPORTADOS'!X81 -> 0 | Y81: ='[1]HOJA GENERAL DATOS IMPORTADOS'!Y81 -> 0 | Z81: ='[1]HOJA GENERAL DATOS IMPORTADOS'!Z81 -> 0 | AA81: ='[1]HOJA GENERAL DATOS IMPORTADOS'!AA81 -> 0 | AB81: ='[1]HOJA GENERAL DATOS IMPORTADOS'!AB81 -> 0 | AC81: ='[1]HOJA GENERAL DATOS IMPORTADOS'!AC81 -> 0 | AD81: ='[1]HOJA GENERAL DATOS IMPORTADOS'!AD81 -> 0 | AE81: ='[1]HOJA GENERAL DATOS IMPORTADOS'!AE81 -> 0 | AF81: ='[1]HOJA GENERAL DATOS IMPORTADOS'!AF81 -> 0 | AG81: ='[1]HOJA GENERAL DATOS IMPORTADOS'!AG81 -> 0 | AH81: ='[1]HOJA GENERAL DATOS IMPORTADOS'!AH81 -> 0 | AI81: ='[1]HOJA GENERAL DATOS IMPORTADOS'!AI81 -> 0
A82: ='[1]HOJA GENERAL DATOS IMPORTADOS'!A82 -> 0 | K82: ='[1]HOJA GENERAL DATOS IMPORTADOS'!K82 -> 0 | L82: ='[1]HOJA GENERAL DATOS IMPORTADOS'!L82 -> 0 | M82: ='[1]HOJA GENERAL DATOS IMPORTADOS'!M82 -> 0 | N82: ='[1]HOJA GENERAL DATOS IMPORTADOS'!N82 -> 0 | O82: ='[1]HOJA GENERAL DATOS IMPORTADOS'!O82 -> 0 | P82: ='[1]HOJA GENERAL DATOS IMPORTADOS'!P82 -> 0 | Q82: ='[1]HOJA GENERAL DATOS IMPORTADOS'!Q82 -> 0 | R82: ='[1]HOJA GENERAL DATOS IMPORTADOS'!R82 -> 0 | S82: ='[1]HOJA GENERAL DATOS IMPORTADOS'!S82 -> 0 | T82: ='[1]HOJA GENERAL DATOS IMPORTADOS'!T82 -> 0 | U82: ='[1]HOJA GENERAL DATOS IMPORTADOS'!U82 -> 0 | V82: ='[1]HOJA GENERAL DATOS IMPORTADOS'!V82 -> 0 | W82: ='[1]HOJA GENERAL DATOS IMPORTADOS'!W82 -> 0 | X82: ='[1]HOJA GENERAL DATOS IMPORTADOS'!X82 -> 0 | Y82: ='[1]HOJA GENERAL DATOS IMPORTADOS'!Y82 -> 0 | Z82: ='[1]HOJA GENERAL DATOS IMPORTADOS'!Z82 -> 0 | AA82: ='[1]HOJA GENERAL DATOS IMPORTADOS'!AA82 -> 0 | AB82: ='[1]HOJA GENERAL DATOS IMPORTADOS'!AB82 -> 0 | AC82: ='[1]HOJA GENERAL DATOS IMPORTADOS'!AC82 -> 0 | AD82: ='[1]HOJA GENERAL DATOS IMPORTADOS'!AD82 -> 0 | AE82: ='[1]HOJA GENERAL DATOS IMPORTADOS'!AE82 -> 0 | AF82: ='[1]HOJA GENERAL DATOS IMPORTADOS'!AF82 -> 0 | AG82: ='[1]HOJA GENERAL DATOS IMPORTADOS'!AG82 -> 0 | AH82: ='[1]HOJA GENERAL DATOS IMPORTADOS'!AH82 -> 0 | AI82: ='[1]HOJA GENERAL DATOS IMPORTADOS'!AI82 -> 0
A83: ='[1]HOJA GENERAL DATOS IMPORTADOS'!A83 -> 0 | B83: ='[1]HOJA GENERAL DATOS IMPORTADOS'!B83 -> 0 | C83: ='[1]HOJA GENERAL DATOS IMPORTADOS'!C83 -> 0 | D83: ='[1]HOJA GENERAL DATOS IMPORTADOS'!D83 -> 0 | E83: ='[1]HOJA GENERAL DATOS IMPORTADOS'!E83 -> 0 | F83: ='[1]HOJA GENERAL DATOS IMPORTADOS'!F83 -> 0 | G83: ='[1]HOJA GENERAL DATOS IMPORTADOS'!G83 -> 0 | H83: ='[1]HOJA GENERAL DATOS IMPORTADOS'!H83 -> 0 | I83: ='[1]HOJA GENERAL DATOS IMPORTADOS'!I83 -> 0 | J83: ='[1]HOJA GENERAL DATOS IMPORTADOS'!J83 -> 0 | K83: ='[1]HOJA GENERAL DATOS IMPORTADOS'!K83 -> 0 | L83: ='[1]HOJA GENERAL DATOS IMPORTADOS'!L83 -> 0 | M83: ='[1]HOJA GENERAL DATOS IMPORTADOS'!M83 -> 0 | N83: ='[1]HOJA GENERAL DATOS IMPORTADOS'!N83 -> 0 | O83: ='[1]HOJA GENERAL DATOS IMPORTADOS'!O83 -> 0 | P83: ='[1]HOJA GENERAL DATOS IMPORTADOS'!P83 -> 0 | Q83: ='[1]HOJA GENERAL DATOS IMPORTADOS'!Q83 -> 0 | R83: ='[1]HOJA GENERAL DATOS IMPORTADOS'!R83 -> 0 | S83: ='[1]HOJA GENERAL DATOS IMPORTADOS'!S83 -> 0 | T83: ='[1]HOJA GENERAL DATOS IMPORTADOS'!T83 -> 0 | U83: ='[1]HOJA GENERAL DATOS IMPORTADOS'!U83 -> 0 | V83: ='[1]HOJA GENERAL DATOS IMPORTADOS'!V83 -> 0 | W83: ='[1]HOJA GENERAL DATOS IMPORTADOS'!W83 -> 0 | X83: ='[1]HOJA GENERAL DATOS IMPORTADOS'!X83 -> 0 | Y83: ='[1]HOJA GENERAL DATOS IMPORTADOS'!Y83 -> 0 | Z83: ='[1]HOJA GENERAL DATOS IMPORTADOS'!Z83 -> 0 | AA83: ='[1]HOJA GENERAL DATOS IMPORTADOS'!AA83 -> 0 | AB83: ='[1]HOJA GENERAL DATOS IMPORTADOS'!AB83 -> 0 | AC83: ='[1]HOJA GENERAL DATOS IMPORTADOS'!AC83 -> 0 | AD83: ='[1]HOJA GENERAL DATOS IMPORTADOS'!AD83 -> 0 | AE83: ='[1]HOJA GENERAL DATOS IMPORTADOS'!AE83 -> 0 | AF83: ='[1]HOJA GENERAL DATOS IMPORTADOS'!AF83 -> 0 | AG83: ='[1]HOJA GENERAL DATOS IMPORTADOS'!AG83 -> 0 | AH83: ='[1]HOJA GENERAL DATOS IMPORTADOS'!AH83 -> 0 | AI83: ='[1]HOJA GENERAL DATOS IMPORTADOS'!AI83 -> 0
A84: ='[1]HOJA GENERAL DATOS IMPORTADOS'!A84 -> 0 | B84: ='[1]HOJA GENERAL DATOS IMPORTADOS'!B84 -> 0 | C84: ='[1]HOJA GENERAL DATOS IMPORTADOS'!C84 -> 0 | D84: ='[1]HOJA GENERAL DATOS IMPORTADOS'!D84 -> 0 | E84: ='[1]HOJA GENERAL DATOS IMPORTADOS'!E84 -> 0 | F84: ='[1]HOJA GENERAL DATOS IMPORTADOS'!F84 -> 0 | G84: ='[1]HOJA GENERAL DATOS IMPORTADOS'!G84 -> 0 | H84: ='[1]HOJA GENERAL DATOS IMPORTADOS'!H84 -> 0 | I84: ='[1]HOJA GENERAL DATOS IMPORTADOS'!I84 -> 0 | J84: ='[1]HOJA GENERAL DATOS IMPORTADOS'!J84 -> 0 | K84: ='[1]HOJA GENERAL DATOS IMPORTADOS'!K84 -> 0 | L84: ='[1]HOJA GENERAL DATOS IMPORTADOS'!L84 -> 0 | M84: ='[1]HOJA GENERAL DATOS IMPORTADOS'!M84 -> 0 | N84: ='[1]HOJA GENERAL DATOS IMPORTADOS'!N84 -> 0 | O84: ='[1]HOJA GENERAL DATOS IMPORTADOS'!O84 -> 0 | P84: ='[1]HOJA GENERAL DATOS IMPORTADOS'!P84 -> 0 | Q84: ='[1]HOJA GENERAL DATOS IMPORTADOS'!Q84 -> 0 | R84: ='[1]HOJA GENERAL DATOS IMPORTADOS'!R84 -> 0 | S84: ='[1]HOJA GENERAL DATOS IMPORTADOS'!S84 -> 0 | T84: ='[1]HOJA GENERAL DATOS IMPORTADOS'!T84 -> 0 | U84: ='[1]HOJA GENERAL DATOS IMPORTADOS'!U84 -> 0 | V84: ='[1]HOJA GENERAL DATOS IMPORTADOS'!V84 -> 0 | W84: ='[1]HOJA GENERAL DATOS IMPORTADOS'!W84 -> 0 | X84: ='[1]HOJA GENERAL DATOS IMPORTADOS'!X84 -> 0 | Y84: ='[1]HOJA GENERAL DATOS IMPORTADOS'!Y84 -> 0 | Z84: ='[1]HOJA GENERAL DATOS IMPORTADOS'!Z84 -> 0 | AA84: ='[1]HOJA GENERAL DATOS IMPORTADOS'!AA84 -> 0 | AB84: ='[1]HOJA GENERAL DATOS IMPORTADOS'!AB84 -> 0 | AC84: ='[1]HOJA GENERAL DATOS IMPORTADOS'!AC84 -> 0 | AD84: ='[1]HOJA GENERAL DATOS IMPORTADOS'!AD84 -> 0 | AE84: ='[1]HOJA GENERAL DATOS IMPORTADOS'!AE84 -> 0 | AF84: ='[1]HOJA GENERAL DATOS IMPORTADOS'!AF84 -> 0 | AG84: ='[1]HOJA GENERAL DATOS IMPORTADOS'!AG84 -> 0 | AH84: ='[1]HOJA GENERAL DATOS IMPORTADOS'!AH84 -> 0 | AI84: ='[1]HOJA GENERAL DATOS IMPORTADOS'!AI84 -> 0
A85: ='[1]HOJA GENERAL DATOS IMPORTADOS'!A85 -> ESPECIE | B85: ='[1]HOJA GENERAL DATOS IMPORTADOS'!B85 -> CuentaDeMES CONTROL | C85: ='[1]HOJA GENERAL DATOS IMPORTADOS'!C85 -> PromedioDeANIMALES SECOS | D85: ='[1]HOJA GENERAL DATOS IMPORTADOS'!D85 -> PromedioDeANIMALES EN PREPARTO | E85: ='[1]HOJA GENERAL DATOS IMPORTADOS'!E85 -> PromedioDeANIMALES EN ORDEÑO | F85: ='[1]HOJA GENERAL DATOS IMPORTADOS'!F85 -> ANIMALES TOTALES | G85: ='[1]HOJA GENERAL DATOS IMPORTADOS'!G85 -> SumaDeNº PARTOS | H85: ='[1]HOJA GENERAL DATOS IMPORTADOS'!H85 -> SumaDeNº ABORTOS | I85: ='[1]HOJA GENERAL DATOS IMPORTADOS'!I85 -> SumaDeNº BAJAS ADULTAS | J85: ='[1]HOJA GENERAL DATOS IMPORTADOS'!J85 -> SumaDeNº MAMITIS TRATADAS | K85: ='[1]HOJA GENERAL DATOS IMPORTADOS'!K85 -> PromedioDeNº PARTOS | L85: ='[1]HOJA GENERAL DATOS IMPORTADOS'!L85 -> PARTOS/ANIMAL | M85: ='[1]HOJA GENERAL DATOS IMPORTADOS'!M85 -> %ABORTOS | N85: ='[1]HOJA GENERAL DATOS IMPORTADOS'!N85 -> %BAJAS | O85: ='[1]HOJA GENERAL DATOS IMPORTADOS'!O85 -> %MAMITIS | P85: ='[1]HOJA GENERAL DATOS IMPORTADOS'!P85 -> TOT ANIM | Q85: ='[1]HOJA GENERAL DATOS IMPORTADOS'!Q85 -> PARTOS | R85: ='[1]HOJA GENERAL DATOS IMPORTADOS'!R85 -> ABORTOS | S85: ='[1]HOJA GENERAL DATOS IMPORTADOS'!S85 -> BAJAS | T85: ='[1]HOJA GENERAL DATOS IMPORTADOS'!T85 -> MAMITIS | U85: ='[1]HOJA GENERAL DATOS IMPORTADOS'!U85 -> 0 | V85: ='[1]HOJA GENERAL DATOS IMPORTADOS'!V85 -> 0 | W85: ='[1]HOJA GENERAL DATOS IMPORTADOS'!W85 -> 0 | X85: ='[1]HOJA GENERAL DATOS IMPORTADOS'!X85 -> 0 | Y85: ='[1]HOJA GENERAL DATOS IMPORTADOS'!Y85 -> 0 | Z85: ='[1]HOJA GENERAL DATOS IMPORTADOS'!Z85 -> 0 | AA85: ='[1]HOJA GENERAL DATOS IMPORTADOS'!AA85 -> 0 | AB85: ='[1]HOJA GENERAL DATOS IMPORTADOS'!AB85 -> 0 | AC85: ='[1]HOJA GENERAL DATOS IMPORTADOS'!AC85 -> 0 | AD85: ='[1]HOJA GENERAL DATOS IMPORTADOS'!AD85 -> 0 | AE85: ='[1]HOJA GENERAL DATOS IMPORTADOS'!AE85 -> 0 | AF85: ='[1]HOJA GENERAL DATOS IMPORTADOS'!AF85 -> 0 | AG85: ='[1]HOJA GENERAL DATOS IMPORTADOS'!AG85 -> 0 | AH85: ='[1]HOJA GENERAL DATOS IMPORTADOS'!AH85 -> 0 | AI85: ='[1]HOJA GENERAL DATOS IMPORTADOS'!AI85 -> 0
A86: ='[1]HOJA GENERAL DATOS IMPORTADOS'!A86 -> CAPRINO | H86: ='[1]HOJA GENERAL DATOS IMPORTADOS'!H86 -> 315 | I86: ='[1]HOJA GENERAL DATOS IMPORTADOS'!I86 -> 1108 | J86: ='[1]HOJA GENERAL DATOS IMPORTADOS'!J86 -> 392 | K86: ='[1]HOJA GENERAL DATOS IMPORTADOS'!K86 -> 36.63701068 | L86: ='[1]HOJA GENERAL DATOS IMPORTADOS'!L86 -> 1.003693606 | M86: ='[1]HOJA GENERAL DATOS IMPORTADOS'!M86 -> 0.03060148992 | N86: ='[1]HOJA GENERAL DATOS IMPORTADOS'!N86 -> 0.1076395265 | O86: ='[1]HOJA GENERAL DATOS IMPORTADOS'!O86 -> 0.03808185413 | P86: ='[1]HOJA GENERAL DATOS IMPORTADOS'!P86 -> 438.0262318 | Q86: ='[1]HOJA GENERAL DATOS IMPORTADOS'!Q86 -> 36.63701068 | R86: ='[1]HOJA GENERAL DATOS IMPORTADOS'!R86 -> 315 | S86: ='[1]HOJA GENERAL DATOS IMPORTADOS'!S86 -> 1108 | T86: ='[1]HOJA GENERAL DATOS IMPORTADOS'!T86 -> 392 | U86: ='[1]HOJA GENERAL DATOS IMPORTADOS'!U86 -> 0 | V86: ='[1]HOJA GENERAL DATOS IMPORTADOS'!V86 -> 0 | W86: ='[1]HOJA GENERAL DATOS IMPORTADOS'!W86 -> 0 | X86: ='[1]HOJA GENERAL DATOS IMPORTADOS'!X86 -> 0 | Y86: ='[1]HOJA GENERAL DATOS IMPORTADOS'!Y86 -> 0 | Z86: ='[1]HOJA GENERAL DATOS IMPORTADOS'!Z86 -> 0 | AA86: ='[1]HOJA GENERAL DATOS IMPORTADOS'!AA86 -> 0 | AB86: ='[1]HOJA GENERAL DATOS IMPORTADOS'!AB86 -> 0 | AC86: ='[1]HOJA GENERAL DATOS IMPORTADOS'!AC86 -> 0 | AD86: ='[1]HOJA GENERAL DATOS IMPORTADOS'!AD86 -> 0 | AE86: ='[1]HOJA GENERAL DATOS IMPORTADOS'!AE86 -> 0 | AF86: ='[1]HOJA GENERAL DATOS IMPORTADOS'!AF86 -> 0 | AG86: ='[1]HOJA GENERAL DATOS IMPORTADOS'!AG86 -> 0 | AH86: ='[1]HOJA GENERAL DATOS IMPORTADOS'!AH86 -> 0 | AI86: ='[1]HOJA GENERAL DATOS IMPORTADOS'!AI86 -> 0
A87: ='[1]HOJA GENERAL DATOS IMPORTADOS'!A87 -> OVINO | H87: ='[1]HOJA GENERAL DATOS IMPORTADOS'!H87 -> 651 | I87: ='[1]HOJA GENERAL DATOS IMPORTADOS'!I87 -> 5861 | J87: ='[1]HOJA GENERAL DATOS IMPORTADOS'!J87 -> 273 | K87: ='[1]HOJA GENERAL DATOS IMPORTADOS'!K87 -> 105.4049774 | L87: ='[1]HOJA GENERAL DATOS IMPORTADOS'!L87 -> 1.199680229 | M87: ='[1]HOJA GENERAL DATOS IMPORTADOS'!M87 -> 0.0159000853 | N87: ='[1]HOJA GENERAL DATOS IMPORTADOS'!N87 -> 0.1431496159 | O87: ='[1]HOJA GENERAL DATOS IMPORTADOS'!O87 -> 0.006667777707 | P87: ='[1]HOJA GENERAL DATOS IMPORTADOS'!P87 -> 1054.330727 | Q87: ='[1]HOJA GENERAL DATOS IMPORTADOS'!Q87 -> 105.4049774 | R87: ='[1]HOJA GENERAL DATOS IMPORTADOS'!R87 -> 651 | S87: ='[1]HOJA GENERAL DATOS IMPORTADOS'!S87 -> 5861 | T87: ='[1]HOJA GENERAL DATOS IMPORTADOS'!T87 -> 273 | U87: ='[1]HOJA GENERAL DATOS IMPORTADOS'!U87 -> 0 | V87: ='[1]HOJA GENERAL DATOS IMPORTADOS'!V87 -> 0 | W87: ='[1]HOJA GENERAL DATOS IMPORTADOS'!W87 -> 0 | X87: ='[1]HOJA GENERAL DATOS IMPORTADOS'!X87 -> 0 | Y87: ='[1]HOJA GENERAL DATOS IMPORTADOS'!Y87 -> 0 | Z87: ='[1]HOJA GENERAL DATOS IMPORTADOS'!Z87 -> 0 | AA87: ='[1]HOJA GENERAL DATOS IMPORTADOS'!AA87 -> 0 | AB87: ='[1]HOJA GENERAL DATOS IMPORTADOS'!AB87 -> 0 | AC87: ='[1]HOJA GENERAL DATOS IMPORTADOS'!AC87 -> 0 | AD87: ='[1]HOJA GENERAL DATOS IMPORTADOS'!AD87 -> 0 | AE87: ='[1]HOJA GENERAL DATOS IMPORTADOS'!AE87 -> 0 | AF87: ='[1]HOJA GENERAL DATOS IMPORTADOS'!AF87 -> 0 | AG87: ='[1]HOJA GENERAL DATOS IMPORTADOS'!AG87 -> 0 | AH87: ='[1]HOJA GENERAL DATOS IMPORTADOS'!AH87 -> 0 | AI87: ='[1]HOJA GENERAL DATOS IMPORTADOS'!AI87 -> 0
A88: ='[1]HOJA GENERAL DATOS IMPORTADOS'!A88 -> 0 | B88: ='[1]HOJA GENERAL DATOS IMPORTADOS'!B88 -> 0 | C88: ='[1]HOJA GENERAL DATOS IMPORTADOS'!C88 -> 0 | D88: ='[1]HOJA GENERAL DATOS IMPORTADOS'!D88 -> 0 | E88: ='[1]HOJA GENERAL DATOS IMPORTADOS'!E88 -> 0 | F88: ='[1]HOJA GENERAL DATOS IMPORTADOS'!F88 -> 0 | G88: ='[1]HOJA GENERAL DATOS IMPORTADOS'!G88 -> 0 | H88: ='[1]HOJA GENERAL DATOS IMPORTADOS'!H88 -> 0 | I88: ='[1]HOJA GENERAL DATOS IMPORTADOS'!I88 -> 0 | J88: ='[1]HOJA GENERAL DATOS IMPORTADOS'!J88 -> 0 | K88: ='[1]HOJA GENERAL DATOS IMPORTADOS'!K88 -> 0 | L88: ='[1]HOJA GENERAL DATOS IMPORTADOS'!L88 -> 0 | M88: ='[1]HOJA GENERAL DATOS IMPORTADOS'!M88 -> 0 | N88: ='[1]HOJA GENERAL DATOS IMPORTADOS'!N88 -> 0 | O88: ='[1]HOJA GENERAL DATOS IMPORTADOS'!O88 -> 0 | P88: ='[1]HOJA GENERAL DATOS IMPORTADOS'!P88 -> 0 | Q88: ='[1]HOJA GENERAL DATOS IMPORTADOS'!Q88 -> 0 | R88: ='[1]HOJA GENERAL DATOS IMPORTADOS'!R88 -> 0 | S88: ='[1]HOJA GENERAL DATOS IMPORTADOS'!S88 -> 0 | T88: ='[1]HOJA GENERAL DATOS IMPORTADOS'!T88 -> 0 | U88: ='[1]HOJA GENERAL DATOS IMPORTADOS'!U88 -> 0 | V88: ='[1]HOJA GENERAL DATOS IMPORTADOS'!V88 -> 0 | W88: ='[1]HOJA GENERAL DATOS IMPORTADOS'!W88 -> 0 | X88: ='[1]HOJA GENERAL DATOS IMPORTADOS'!X88 -> 0 | Y88: ='[1]HOJA GENERAL DATOS IMPORTADOS'!Y88 -> 0 | Z88: ='[1]HOJA GENERAL DATOS IMPORTADOS'!Z88 -> 0 | AA88: ='[1]HOJA GENERAL DATOS IMPORTADOS'!AA88 -> 0 | AB88: ='[1]HOJA GENERAL DATOS IMPORTADOS'!AB88 -> 0 | AC88: ='[1]HOJA GENERAL DATOS IMPORTADOS'!AC88 -> 0 | AD88: ='[1]HOJA GENERAL DATOS IMPORTADOS'!AD88 -> 0 | AE88: ='[1]HOJA GENERAL DATOS IMPORTADOS'!AE88 -> 0 | AF88: ='[1]HOJA GENERAL DATOS IMPORTADOS'!AF88 -> 0 | AG88: ='[1]HOJA GENERAL DATOS IMPORTADOS'!AG88 -> 0 | AH88: ='[1]HOJA GENERAL DATOS IMPORTADOS'!AH88 -> 0 | AI88: ='[1]HOJA GENERAL DATOS IMPORTADOS'!AI88 -> 0
A89: ='[1]HOJA GENERAL DATOS IMPORTADOS'!A89 -> 0 | B89: ='[1]HOJA GENERAL DATOS IMPORTADOS'!B89 -> 0 | C89: ='[1]HOJA GENERAL DATOS IMPORTADOS'!C89 -> 0 | D89: ='[1]HOJA GENERAL DATOS IMPORTADOS'!D89 -> 0 | E89: ='[1]HOJA GENERAL DATOS IMPORTADOS'!E89 -> 0 | F89: ='[1]HOJA GENERAL DATOS IMPORTADOS'!F89 -> 0 | G89: ='[1]HOJA GENERAL DATOS IMPORTADOS'!G89 -> 0 | H89: ='[1]HOJA GENERAL DATOS IMPORTADOS'!H89 -> 0 | I89: ='[1]HOJA GENERAL DATOS IMPORTADOS'!I89 -> 0 | J89: ='[1]HOJA GENERAL DATOS IMPORTADOS'!J89 -> 0 | K89: ='[1]HOJA GENERAL DATOS IMPORTADOS'!K89 -> 0 | L89: ='[1]HOJA GENERAL DATOS IMPORTADOS'!L89 -> 0 | M89: ='[1]HOJA GENERAL DATOS IMPORTADOS'!M89 -> 0 | N89: ='[1]HOJA GENERAL DATOS IMPORTADOS'!N89 -> 0 | O89: ='[1]HOJA GENERAL DATOS IMPORTADOS'!O89 -> 0 | P89: ='[1]HOJA GENERAL DATOS IMPORTADOS'!P89 -> 0 | Q89: ='[1]HOJA GENERAL DATOS IMPORTADOS'!Q89 -> 0 | R89: ='[1]HOJA GENERAL DATOS IMPORTADOS'!R89 -> 0 | S89: ='[1]HOJA GENERAL DATOS IMPORTADOS'!S89 -> 0 | T89: ='[1]HOJA GENERAL DATOS IMPORTADOS'!T89 -> 0 | U89: ='[1]HOJA GENERAL DATOS IMPORTADOS'!U89 -> 0 | V89: ='[1]HOJA GENERAL DATOS IMPORTADOS'!V89 -> 0 | W89: ='[1]HOJA GENERAL DATOS IMPORTADOS'!W89 -> 0 | X89: ='[1]HOJA GENERAL DATOS IMPORTADOS'!X89 -> 0 | Y89: ='[1]HOJA GENERAL DATOS IMPORTADOS'!Y89 -> 0 | Z89: ='[1]HOJA GENERAL DATOS IMPORTADOS'!Z89 -> 0 | AA89: ='[1]HOJA GENERAL DATOS IMPORTADOS'!AA89 -> 0 | AB89: ='[1]HOJA GENERAL DATOS IMPORTADOS'!AB89 -> 0 | AC89: ='[1]HOJA GENERAL DATOS IMPORTADOS'!AC89 -> 0 | AD89: ='[1]HOJA GENERAL DATOS IMPORTADOS'!AD89 -> 0 | AE89: ='[1]HOJA GENERAL DATOS IMPORTADOS'!AE89 -> 0 | AF89: ='[1]HOJA GENERAL DATOS IMPORTADOS'!AF89 -> 0 | AG89: ='[1]HOJA GENERAL DATOS IMPORTADOS'!AG89 -> 0 | AH89: ='[1]HOJA GENERAL DATOS IMPORTADOS'!AH89 -> 0 | AI89: ='[1]HOJA GENERAL DATOS IMPORTADOS'!AI89 -> 0
A90: ='[1]HOJA GENERAL DATOS IMPORTADOS'!A90 -> 0 | B90: ='[1]HOJA GENERAL DATOS IMPORTADOS'!B90 -> 0 | C90: ='[1]HOJA GENERAL DATOS IMPORTADOS'!C90 -> 0 | D90: ='[1]HOJA GENERAL DATOS IMPORTADOS'!D90 -> 0 | E90: ='[1]HOJA GENERAL DATOS IMPORTADOS'!E90 -> 0 | F90: ='[1]HOJA GENERAL DATOS IMPORTADOS'!F90 -> 0 | G90: ='[1]HOJA GENERAL DATOS IMPORTADOS'!G90 -> 0 | H90: ='[1]HOJA GENERAL DATOS IMPORTADOS'!H90 -> 0 | I90: ='[1]HOJA GENERAL DATOS IMPORTADOS'!I90 -> 0 | J90: ='[1]HOJA GENERAL DATOS IMPORTADOS'!J90 -> 0 | K90: ='[1]HOJA GENERAL DATOS IMPORTADOS'!K90 -> 0 | L90: ='[1]HOJA GENERAL DATOS IMPORTADOS'!L90 -> 0 | M90: ='[1]HOJA GENERAL DATOS IMPORTADOS'!M90 -> 0 | N90: ='[1]HOJA GENERAL DATOS IMPORTADOS'!N90 -> 0 | O90: ='[1]HOJA GENERAL DATOS IMPORTADOS'!O90 -> 0 | P90: ='[1]HOJA GENERAL DATOS IMPORTADOS'!P90 -> 0 | Q90: ='[1]HOJA GENERAL DATOS IMPORTADOS'!Q90 -> 0 | R90: ='[1]HOJA GENERAL DATOS IMPORTADOS'!R90 -> 0 | S90: ='[1]HOJA GENERAL DATOS IMPORTADOS'!S90 -> 0 | T90: ='[1]HOJA GENERAL DATOS IMPORTADOS'!T90 -> 0 | U90: ='[1]HOJA GENERAL DATOS IMPORTADOS'!U90 -> 0 | V90: ='[1]HOJA GENERAL DATOS IMPORTADOS'!V90 -> 0 | W90: ='[1]HOJA GENERAL DATOS IMPORTADOS'!W90 -> 0 | X90: ='[1]HOJA GENERAL DATOS IMPORTADOS'!X90 -> 0 | Y90: ='[1]HOJA GENERAL DATOS IMPORTADOS'!Y90 -> 0 | Z90: ='[1]HOJA GENERAL DATOS IMPORTADOS'!Z90 -> 0 | AA90: ='[1]HOJA GENERAL DATOS IMPORTADOS'!AA90 -> 0 | AB90: ='[1]HOJA GENERAL DATOS IMPORTADOS'!AB90 -> 0 | AC90: ='[1]HOJA GENERAL DATOS IMPORTADOS'!AC90 -> 0 | AD90: ='[1]HOJA GENERAL DATOS IMPORTADOS'!AD90 -> 0 | AE90: ='[1]HOJA GENERAL DATOS IMPORTADOS'!AE90 -> 0 | AF90: ='[1]HOJA GENERAL DATOS IMPORTADOS'!AF90 -> 0 | AG90: ='[1]HOJA GENERAL DATOS IMPORTADOS'!AG90 -> 0 | AH90: ='[1]HOJA GENERAL DATOS IMPORTADOS'!AH90 -> 0 | AI90: ='[1]HOJA GENERAL DATOS IMPORTADOS'!AI90 -> 0
A91: ='[1]HOJA GENERAL DATOS IMPORTADOS'!A91 -> ESPECIE | B91: ='[1]HOJA GENERAL DATOS IMPORTADOS'!B91 -> MES CONTROL | C91: ='[1]HOJA GENERAL DATOS IMPORTADOS'!C91 -> PromedioDeANIMALES SECOS | D91: ='[1]HOJA GENERAL DATOS IMPORTADOS'!D91 -> PromedioDeANIMALES EN PREPARTO | E91: ='[1]HOJA GENERAL DATOS IMPORTADOS'!E91 -> PromedioDeANIMALES EN ORDEÑO | F91: ='[1]HOJA GENERAL DATOS IMPORTADOS'!F91 -> ANIMALES TOTALES | G91: ='[1]HOJA GENERAL DATOS IMPORTADOS'!G91 -> SumaDeNº PARTOS | H91: ='[1]HOJA GENERAL DATOS IMPORTADOS'!H91 -> SumaDeNº ABORTOS | I91: ='[1]HOJA GENERAL DATOS IMPORTADOS'!I91 -> SumaDeNº BAJAS ADULTAS | J91: ='[1]HOJA GENERAL DATOS IMPORTADOS'!J91 -> SumaDeNº MAMITIS TRATADAS | K91: ='[1]HOJA GENERAL DATOS IMPORTADOS'!K91 -> PromedioDeNº PARTOS | L91: ='[1]HOJA GENERAL DATOS IMPORTADOS'!L91 -> PARTOS/ANIMAL | M91: ='[1]HOJA GENERAL DATOS IMPORTADOS'!M91 -> %ABORTOS SOBRE TOTALES | N91: ='[1]HOJA GENERAL DATOS IMPORTADOS'!N91 -> %BAJAS | O91: ='[1]HOJA GENERAL DATOS IMPORTADOS'!O91 -> %MAMITIS SOBRE TOTALES | P91: ='[1]HOJA GENERAL DATOS IMPORTADOS'!P91 -> TOT ANIM | Q91: ='[1]HOJA GENERAL DATOS IMPORTADOS'!Q91 -> PARTOS | R91: ='[1]HOJA GENERAL DATOS IMPORTADOS'!R91 -> ABORTOS | S91: ='[1]HOJA GENERAL DATOS IMPORTADOS'!S91 -> BAJAS | T91: ='[1]HOJA GENERAL DATOS IMPORTADOS'!T91 -> MAMITIS | U91: ='[1]HOJA GENERAL DATOS IMPORTADOS'!U91 -> 0 | V91: ='[1]HOJA GENERAL DATOS IMPORTADOS'!V91 -> 0 | W91: ='[1]HOJA GENERAL DATOS IMPORTADOS'!W91 -> 0 | X91: ='[1]HOJA GENERAL DATOS IMPORTADOS'!X91 -> 0 | Y91: ='[1]HOJA GENERAL DATOS IMPORTADOS'!Y91 -> 0 | Z91: ='[1]HOJA GENERAL DATOS IMPORTADOS'!Z91 -> 0 | AA91: ='[1]HOJA GENERAL DATOS IMPORTADOS'!AA91 -> 0 | AB91: ='[1]HOJA GENERAL DATOS IMPORTADOS'!AB91 -> 0 | AC91: ='[1]HOJA GENERAL DATOS IMPORTADOS'!AC91 -> 0 | AD91: ='[1]HOJA GENERAL DATOS IMPORTADOS'!AD91 -> 0 | AE91: ='[1]HOJA GENERAL DATOS IMPORTADOS'!AE91 -> 0 | AF91: ='[1]HOJA GENERAL DATOS IMPORTADOS'!AF91 -> 0 | AG91: ='[1]HOJA GENERAL DATOS IMPORTADOS'!AG91 -> 0 | AH91: ='[1]HOJA GENERAL DATOS IMPORTADOS'!AH91 -> 0 | AI91: ='[1]HOJA GENERAL DATOS IMPORTADOS'!AI91 -> 0
A92: ='[1]HOJA GENERAL DATOS IMPORTADOS'!A92 -> CAPRINO | H92: ='[1]HOJA GENERAL DATOS IMPORTADOS'!H92 -> 33 | I92: ='[1]HOJA GENERAL DATOS IMPORTADOS'!I92 -> 132 | J92: ='[1]HOJA GENERAL DATOS IMPORTADOS'!J92 -> 72 | K92: ='[1]HOJA GENERAL DATOS IMPORTADOS'!K92 -> 30.90909091 | L92: ='[1]HOJA GENERAL DATOS IMPORTADOS'!L92 -> 0.05430268958 | M92: ='[1]HOJA GENERAL DATOS IMPORTADOS'!M92 -> 0.05797610682 | N92: ='[1]HOJA GENERAL DATOS IMPORTADOS'!N92 -> 0.2319044273 | O92: ='[1]HOJA GENERAL DATOS IMPORTADOS'!O92 -> 0.126493324 | P92: ='[1]HOJA GENERAL DATOS IMPORTADOS'!P92 -> 569.2 | Q92: ='[1]HOJA GENERAL DATOS IMPORTADOS'!Q92 -> 30.90909091 | R92: ='[1]HOJA GENERAL DATOS IMPORTADOS'!R92 -> 33 | S92: ='[1]HOJA GENERAL DATOS IMPORTADOS'!S92 -> 132 | T92: ='[1]HOJA GENERAL DATOS IMPORTADOS'!T92 -> 72 | U92: ='[1]HOJA GENERAL DATOS IMPORTADOS'!U92 -> 0 | V92: ='[1]HOJA GENERAL DATOS IMPORTADOS'!V92 -> 0 | W92: ='[1]HOJA GENERAL DATOS IMPORTADOS'!W92 -> 0 | X92: ='[1]HOJA GENERAL DATOS IMPORTADOS'!X92 -> 0 | Y92: ='[1]HOJA GENERAL DATOS IMPORTADOS'!Y92 -> 0 | Z92: ='[1]HOJA GENERAL DATOS IMPORTADOS'!Z92 -> 0 | AA92: ='[1]HOJA GENERAL DATOS IMPORTADOS'!AA92 -> 0 | AB92: ='[1]HOJA GENERAL DATOS IMPORTADOS'!AB92 -> 0 | AC92: ='[1]HOJA GENERAL DATOS IMPORTADOS'!AC92 -> 0 | AD92: ='[1]HOJA GENERAL DATOS IMPORTADOS'!AD92 -> 0 | AE92: ='[1]HOJA GENERAL DATOS IMPORTADOS'!AE92 -> 0 | AF92: ='[1]HOJA GENERAL DATOS IMPORTADOS'!AF92 -> 0 | AG92: ='[1]HOJA GENERAL DATOS IMPORTADOS'!AG92 -> 0 | AH92: ='[1]HOJA GENERAL DATOS IMPORTADOS'!AH92 -> 0 | AI92: ='[1]HOJA GENERAL DATOS IMPORTADOS'!AI92 -> 0
A93: ='[1]HOJA GENERAL DATOS IMPORTADOS'!A93 -> CAPRINO | H93: ='[1]HOJA GENERAL DATOS IMPORTADOS'!H93 -> 16 | I93: ='[1]HOJA GENERAL DATOS IMPORTADOS'!I93 -> 72 | J93: ='[1]HOJA GENERAL DATOS IMPORTADOS'!J93 -> 13 | K93: ='[1]HOJA GENERAL DATOS IMPORTADOS'!K93 -> 36 | L93: ='[1]HOJA GENERAL DATOS IMPORTADOS'!L93 -> 0.0854816825 | M93: ='[1]HOJA GENERAL DATOS IMPORTADOS'!M93 -> 0.03799185889 | N93: ='[1]HOJA GENERAL DATOS IMPORTADOS'!N93 -> 0.170963365 | O93: ='[1]HOJA GENERAL DATOS IMPORTADOS'!O93 -> 0.03086838535 | P93: ='[1]HOJA GENERAL DATOS IMPORTADOS'!P93 -> 421.1428571 | Q93: ='[1]HOJA GENERAL DATOS IMPORTADOS'!Q93 -> 36 | R93: ='[1]HOJA GENERAL DATOS IMPORTADOS'!R93 -> 16 | S93: ='[1]HOJA GENERAL DATOS IMPORTADOS'!S93 -> 72 | T93: ='[1]HOJA GENERAL DATOS IMPORTADOS'!T93 -> 13 | U93: ='[1]HOJA GENERAL DATOS IMPORTADOS'!U93 -> 0 | V93: ='[1]HOJA GENERAL DATOS IMPORTADOS'!V93 -> 0 | W93: ='[1]HOJA GENERAL DATOS IMPORTADOS'!W93 -> 0 | X93: ='[1]HOJA GENERAL DATOS IMPORTADOS'!X93 -> 0 | Y93: ='[1]HOJA GENERAL DATOS IMPORTADOS'!Y93 -> 0 | Z93: ='[1]HOJA GENERAL DATOS IMPORTADOS'!Z93 -> 0 | AA93: ='[1]HOJA GENERAL DATOS IMPORTADOS'!AA93 -> 0 | AB93: ='[1]HOJA GENERAL DATOS IMPORTADOS'!AB93 -> 0 | AC93: ='[1]HOJA GENERAL DATOS IMPORTADOS'!AC93 -> 0 | AD93: ='[1]HOJA GENERAL DATOS IMPORTADOS'!AD93 -> 0 | AE93: ='[1]HOJA GENERAL DATOS IMPORTADOS'!AE93 -> 0 | AF93: ='[1]HOJA GENERAL DATOS IMPORTADOS'!AF93 -> 0 | AG93: ='[1]HOJA GENERAL DATOS IMPORTADOS'!AG93 -> 0 | AH93: ='[1]HOJA GENERAL DATOS IMPORTADOS'!AH93 -> 0 | AI93: ='[1]HOJA GENERAL DATOS IMPORTADOS'!AI93 -> 0
A94: ='[1]HOJA GENERAL DATOS IMPORTADOS'!A94 -> CAPRINO | H94: ='[1]HOJA GENERAL DATOS IMPORTADOS'!H94 -> 8 | I94: ='[1]HOJA GENERAL DATOS IMPORTADOS'!I94 -> 71 | J94: ='[1]HOJA GENERAL DATOS IMPORTADOS'!J94 -> 11 | K94: ='[1]HOJA GENERAL DATOS IMPORTADOS'!K94 -> 71.75 | L94: ='[1]HOJA GENERAL DATOS IMPORTADOS'!L94 -> 0.1793189628 | M94: ='[1]HOJA GENERAL DATOS IMPORTADOS'!M94 -> 0.01999375195 | N94: ='[1]HOJA GENERAL DATOS IMPORTADOS'!N94 -> 0.1774445486 | O94: ='[1]HOJA GENERAL DATOS IMPORTADOS'!O94 -> 0.02749140893 | P94: ='[1]HOJA GENERAL DATOS IMPORTADOS'!P94 -> 400.125 | Q94: ='[1]HOJA GENERAL DATOS IMPORTADOS'!Q94 -> 71.75 | R94: ='[1]HOJA GENERAL DATOS IMPORTADOS'!R94 -> 8 | S94: ='[1]HOJA GENERAL DATOS IMPORTADOS'!S94 -> 71 | T94: ='[1]HOJA GENERAL DATOS IMPORTADOS'!T94 -> 11 | U94: ='[1]HOJA GENERAL DATOS IMPORTADOS'!U94 -> 0 | V94: ='[1]HOJA GENERAL DATOS IMPORTADOS'!V94 -> 0 | W94: ='[1]HOJA GENERAL DATOS IMPORTADOS'!W94 -> 0 | X94: ='[1]HOJA GENERAL DATOS IMPORTADOS'!X94 -> 0 | Y94: ='[1]HOJA GENERAL DATOS IMPORTADOS'!Y94 -> 0 | Z94: ='[1]HOJA GENERAL DATOS IMPORTADOS'!Z94 -> 0 | AA94: ='[1]HOJA GENERAL DATOS IMPORTADOS'!AA94 -> 0 | AB94: ='[1]HOJA GENERAL DATOS IMPORTADOS'!AB94 -> 0 | AC94: ='[1]HOJA GENERAL DATOS IMPORTADOS'!AC94 -> 0 | AD94: ='[1]HOJA GENERAL DATOS IMPORTADOS'!AD94 -> 0 | AE94: ='[1]HOJA GENERAL DATOS IMPORTADOS'!AE94 -> 0 | AF94: ='[1]HOJA GENERAL DATOS IMPORTADOS'!AF94 -> 0 | AG94: ='[1]HOJA GENERAL DATOS IMPORTADOS'!AG94 -> 0 | AH94: ='[1]HOJA GENERAL DATOS IMPORTADOS'!AH94 -> 0 | AI94: ='[1]HOJA GENERAL DATOS IMPORTADOS'!AI94 -> 0
A95: ='[1]HOJA GENERAL DATOS IMPORTADOS'!A95 -> CAPRINO | H95: ='[1]HOJA GENERAL DATOS IMPORTADOS'!H95 -> 0 | I95: ='[1]HOJA GENERAL DATOS IMPORTADOS'!I95 -> 31 | J95: ='[1]HOJA GENERAL DATOS IMPORTADOS'!J95 -> 4 | K95: ='[1]HOJA GENERAL DATOS IMPORTADOS'!K95 -> 3.166666667 | L95: ='[1]HOJA GENERAL DATOS IMPORTADOS'!L95 -> 0.008057675997 | M95: ='[1]HOJA GENERAL DATOS IMPORTADOS'!M95 -> 0 | N95: ='[1]HOJA GENERAL DATOS IMPORTADOS'!N95 -> 0.07888040712 | O95: ='[1]HOJA GENERAL DATOS IMPORTADOS'!O95 -> 0.01017811705 | P95: ='[1]HOJA GENERAL DATOS IMPORTADOS'!P95 -> 393 | Q95: ='[1]HOJA GENERAL DATOS IMPORTADOS'!Q95 -> 3.166666667 | R95: ='[1]HOJA GENERAL DATOS IMPORTADOS'!R95 -> 0 | S95: ='[1]HOJA GENERAL DATOS IMPORTADOS'!S95 -> 31 | T95: ='[1]HOJA GENERAL DATOS IMPORTADOS'!T95 -> 4 | U95: ='[1]HOJA GENERAL DATOS IMPORTADOS'!U95 -> 0 | V95: ='[1]HOJA GENERAL DATOS IMPORTADOS'!V95 -> 0 | W95: ='[1]HOJA GENERAL DATOS IMPORTADOS'!W95 -> 0 | X95: ='[1]HOJA GENERAL DATOS IMPORTADOS'!X95 -> 0 | Y95: ='[1]HOJA GENERAL DATOS IMPORTADOS'!Y95 -> 0 | Z95: ='[1]HOJA GENERAL DATOS IMPORTADOS'!Z95 -> 0 | AA95: ='[1]HOJA GENERAL DATOS IMPORTADOS'!AA95 -> 0 | AB95: ='[1]HOJA GENERAL DATOS IMPORTADOS'!AB95 -> 0 | AC95: ='[1]HOJA GENERAL DATOS IMPORTADOS'!AC95 -> 0 | AD95: ='[1]HOJA GENERAL DATOS IMPORTADOS'!AD95 -> 0 | AE95: ='[1]HOJA GENERAL DATOS IMPORTADOS'!AE95 -> 0 | AF95: ='[1]HOJA GENERAL DATOS IMPORTADOS'!AF95 -> 0 | AG95: ='[1]HOJA GENERAL DATOS IMPORTADOS'!AG95 -> 0 | AH95: ='[1]HOJA GENERAL DATOS IMPORTADOS'!AH95 -> 0 | AI95: ='[1]HOJA GENERAL DATOS IMPORTADOS'!AI95 -> 0
A96: ='[1]HOJA GENERAL DATOS IMPORTADOS'!A96 -> CAPRINO | H96: ='[1]HOJA GENERAL DATOS IMPORTADOS'!H96 -> 6 | I96: ='[1]HOJA GENERAL DATOS IMPORTADOS'!I96 -> 27 | J96: ='[1]HOJA GENERAL DATOS IMPORTADOS'!J96 -> 3 | K96: ='[1]HOJA GENERAL DATOS IMPORTADOS'!K96 -> 11.42857143 | L96: ='[1]HOJA GENERAL DATOS IMPORTADOS'!L96 -> 0.02278553119 | M96: ='[1]HOJA GENERAL DATOS IMPORTADOS'!M96 -> 0.01196240387 | N96: ='[1]HOJA GENERAL DATOS IMPORTADOS'!N96 -> 0.05383081743 | O96: ='[1]HOJA GENERAL DATOS IMPORTADOS'!O96 -> 0.005981201937 | P96: ='[1]HOJA GENERAL DATOS IMPORTADOS'!P96 -> 501.5714286 | Q96: ='[1]HOJA GENERAL DATOS IMPORTADOS'!Q96 -> 11.42857143 | R96: ='[1]HOJA GENERAL DATOS IMPORTADOS'!R96 -> 6 | S96: ='[1]HOJA GENERAL DATOS IMPORTADOS'!S96 -> 27 | T96: ='[1]HOJA GENERAL DATOS IMPORTADOS'!T96 -> 3 | U96: ='[1]HOJA GENERAL DATOS IMPORTADOS'!U96 -> 0 | V96: ='[1]HOJA GENERAL DATOS IMPORTADOS'!V96 -> 0 | W96: ='[1]HOJA GENERAL DATOS IMPORTADOS'!W96 -> 0 | X96: ='[1]HOJA GENERAL DATOS IMPORTADOS'!X96 -> 0 | Y96: ='[1]HOJA GENERAL DATOS IMPORTADOS'!Y96 -> 0 | Z96: ='[1]HOJA GENERAL DATOS IMPORTADOS'!Z96 -> 0 | AA96: ='[1]HOJA GENERAL DATOS IMPORTADOS'!AA96 -> 0 | AB96: ='[1]HOJA GENERAL DATOS IMPORTADOS'!AB96 -> 0 | AC96: ='[1]HOJA GENERAL DATOS IMPORTADOS'!AC96 -> 0 | AD96: ='[1]HOJA GENERAL DATOS IMPORTADOS'!AD96 -> 0 | AE96: ='[1]HOJA GENERAL DATOS IMPORTADOS'!AE96 -> 0 | AF96: ='[1]HOJA GENERAL DATOS IMPORTADOS'!AF96 -> 0 | AG96: ='[1]HOJA GENERAL DATOS IMPORTADOS'!AG96 -> 0 | AH96: ='[1]HOJA GENERAL DATOS IMPORTADOS'!AH96 -> 0 | AI96: ='[1]HOJA GENERAL DATOS IMPORTADOS'!AI96 -> 0
A97: ='[1]HOJA GENERAL DATOS IMPORTADOS'!A97 -> CAPRINO | H97: ='[1]HOJA GENERAL DATOS IMPORTADOS'!H97 -> 1 | I97: ='[1]HOJA GENERAL DATOS IMPORTADOS'!I97 -> 18 | J97: ='[1]HOJA GENERAL DATOS IMPORTADOS'!J97 -> 5 | K97: ='[1]HOJA GENERAL DATOS IMPORTADOS'!K97 -> 11.42857143 | L97: ='[1]HOJA GENERAL DATOS IMPORTADOS'!L97 -> 0.02354326074 | M97: ='[1]HOJA GENERAL DATOS IMPORTADOS'!M97 -> 0.002060035315 | N97: ='[1]HOJA GENERAL DATOS IMPORTADOS'!N97 -> 0.03708063567 | O97: ='[1]HOJA GENERAL DATOS IMPORTADOS'!O97 -> 0.01030017657 | P97: ='[1]HOJA GENERAL DATOS IMPORTADOS'!P97 -> 485.4285714 | Q97: ='[1]HOJA GENERAL DATOS IMPORTADOS'!Q97 -> 11.42857143 | R97: ='[1]HOJA GENERAL DATOS IMPORTADOS'!R97 -> 1 | S97: ='[1]HOJA GENERAL DATOS IMPORTADOS'!S97 -> 18 | T97: ='[1]HOJA GENERAL DATOS IMPORTADOS'!T97 -> 5 | U97: ='[1]HOJA GENERAL DATOS IMPORTADOS'!U97 -> 0 | V97: ='[1]HOJA GENERAL DATOS IMPORTADOS'!V97 -> 0 | W97: ='[1]HOJA GENERAL DATOS IMPORTADOS'!W97 -> 0 | X97: ='[1]HOJA GENERAL DATOS IMPORTADOS'!X97 -> 0 | Y97: ='[1]HOJA GENERAL DATOS IMPORTADOS'!Y97 -> 0 | Z97: ='[1]HOJA GENERAL DATOS IMPORTADOS'!Z97 -> 0 | AA97: ='[1]HOJA GENERAL DATOS IMPORTADOS'!AA97 -> 0 | AB97: ='[1]HOJA GENERAL DATOS IMPORTADOS'!AB97 -> 0 | AC97: ='[1]HOJA GENERAL DATOS IMPORTADOS'!AC97 -> 0 | AD97: ='[1]HOJA GENERAL DATOS IMPORTADOS'!AD97 -> 0 | AE97: ='[1]HOJA GENERAL DATOS IMPORTADOS'!AE97 -> 0 | AF97: ='[1]HOJA GENERAL DATOS IMPORTADOS'!AF97 -> 0 | AG97: ='[1]HOJA GENERAL DATOS IMPORTADOS'!AG97 -> 0 | AH97: ='[1]HOJA GENERAL DATOS IMPORTADOS'!AH97 -> 0 | AI97: ='[1]HOJA GENERAL DATOS IMPORTADOS'!AI97 -> 0
A98: ='[1]HOJA GENERAL DATOS IMPORTADOS'!A98 -> CAPRINO | H98: ='[1]HOJA GENERAL DATOS IMPORTADOS'!H98 -> 3 | I98: ='[1]HOJA GENERAL DATOS IMPORTADOS'!I98 -> 15 | J98: ='[1]HOJA GENERAL DATOS IMPORTADOS'!J98 -> 4 | K98: ='[1]HOJA GENERAL DATOS IMPORTADOS'!K98 -> 14 | L98: ='[1]HOJA GENERAL DATOS IMPORTADOS'!L98 -> 0.0265654649 | M98: ='[1]HOJA GENERAL DATOS IMPORTADOS'!M98 -> 0.00569259962 | N98: ='[1]HOJA GENERAL DATOS IMPORTADOS'!N98 -> 0.0284629981 | O98: ='[1]HOJA GENERAL DATOS IMPORTADOS'!O98 -> 0.007590132827 | P98: ='[1]HOJA GENERAL DATOS IMPORTADOS'!P98 -> 527 | Q98: ='[1]HOJA GENERAL DATOS IMPORTADOS'!Q98 -> 14 | R98: ='[1]HOJA GENERAL DATOS IMPORTADOS'!R98 -> 3 | S98: ='[1]HOJA GENERAL DATOS IMPORTADOS'!S98 -> 15 | T98: ='[1]HOJA GENERAL DATOS IMPORTADOS'!T98 -> 4 | U98: ='[1]HOJA GENERAL DATOS IMPORTADOS'!U98 -> 0 | V98: ='[1]HOJA GENERAL DATOS IMPORTADOS'!V98 -> 0 | W98: ='[1]HOJA GENERAL DATOS IMPORTADOS'!W98 -> 0 | X98: ='[1]HOJA GENERAL DATOS IMPORTADOS'!X98 -> 0 | Y98: ='[1]HOJA GENERAL DATOS IMPORTADOS'!Y98 -> 0 | Z98: ='[1]HOJA GENERAL DATOS IMPORTADOS'!Z98 -> 0 | AA98: ='[1]HOJA GENERAL DATOS IMPORTADOS'!AA98 -> 0 | AB98: ='[1]HOJA GENERAL DATOS IMPORTADOS'!AB98 -> 0 | AC98: ='[1]HOJA GENERAL DATOS IMPORTADOS'!AC98 -> 0 | AD98: ='[1]HOJA GENERAL DATOS IMPORTADOS'!AD98 -> 0 | AE98: ='[1]HOJA GENERAL DATOS IMPORTADOS'!AE98 -> 0 | AF98: ='[1]HOJA GENERAL DATOS IMPORTADOS'!AF98 -> 0 | AG98: ='[1]HOJA GENERAL DATOS IMPORTADOS'!AG98 -> 0 | AH98: ='[1]HOJA GENERAL DATOS IMPORTADOS'!AH98 -> 0 | AI98: ='[1]HOJA GENERAL DATOS IMPORTADOS'!AI98 -> 0
A99: ='[1]HOJA GENERAL DATOS IMPORTADOS'!A99 -> CAPRINO | H99: ='[1]HOJA GENERAL DATOS IMPORTADOS'!H99 -> 7 | I99: ='[1]HOJA GENERAL DATOS IMPORTADOS'!I99 -> 19 | J99: ='[1]HOJA GENERAL DATOS IMPORTADOS'!J99 -> 11 | K99: ='[1]HOJA GENERAL DATOS IMPORTADOS'!K99 -> 32.4 | L99: ='[1]HOJA GENERAL DATOS IMPORTADOS'!L99 -> 0.06902428632 | M99: ='[1]HOJA GENERAL DATOS IMPORTADOS'!M99 -> 0.01491265445 | N99: ='[1]HOJA GENERAL DATOS IMPORTADOS'!N99 -> 0.04047720494 | O99: ='[1]HOJA GENERAL DATOS IMPORTADOS'!O99 -> 0.02343417128 | P99: ='[1]HOJA GENERAL DATOS IMPORTADOS'!P99 -> 469.4 | Q99: ='[1]HOJA GENERAL DATOS IMPORTADOS'!Q99 -> 32.4 | R99: ='[1]HOJA GENERAL DATOS IMPORTADOS'!R99 -> 7 | S99: ='[1]HOJA GENERAL DATOS IMPORTADOS'!S99 -> 19 | T99: ='[1]HOJA GENERAL DATOS IMPORTADOS'!T99 -> 11 | U99: ='[1]HOJA GENERAL DATOS IMPORTADOS'!U99 -> 0 | V99: ='[1]HOJA GENERAL DATOS IMPORTADOS'!V99 -> 0 | W99: ='[1]HOJA GENERAL DATOS IMPORTADOS'!W99 -> 0 | X99: ='[1]HOJA GENERAL DATOS IMPORTADOS'!X99 -> 0 | Y99: ='[1]HOJA GENERAL DATOS IMPORTADOS'!Y99 -> 0 | Z99: ='[1]HOJA GENERAL DATOS IMPORTADOS'!Z99 -> 0 | AA99: ='[1]HOJA GENERAL DATOS IMPORTADOS'!AA99 -> 0 | AB99: ='[1]HOJA GENERAL DATOS IMPORTADOS'!AB99 -> 0 | AC99: ='[1]HOJA GENERAL DATOS IMPORTADOS'!AC99 -> 0 | AD99: ='[1]HOJA GENERAL DATOS IMPORTADOS'!AD99 -> 0 | AE99: ='[1]HOJA GENERAL DATOS IMPORTADOS'!AE99 -> 0 | AF99: ='[1]HOJA GENERAL DATOS IMPORTADOS'!AF99 -> 0 | AG99: ='[1]HOJA GENERAL DATOS IMPORTADOS'!AG99 -> 0 | AH99: ='[1]HOJA GENERAL DATOS IMPORTADOS'!AH99 -> 0 | AI99: ='[1]HOJA GENERAL DATOS IMPORTADOS'!AI99 -> 0
A100: ='[1]HOJA GENERAL DATOS IMPORTADOS'!A100 -> CAPRINO | H100: ='[1]HOJA GENERAL DATOS IMPORTADOS'!H100 -> 2 | I100: ='[1]HOJA GENERAL DATOS IMPORTADOS'!I100 -> 9 | J100: ='[1]HOJA GENERAL DATOS IMPORTADOS'!J100 -> 4 | K100: ='[1]HOJA GENERAL DATOS IMPORTADOS'!K100 -> 0.4 | L100: ='[1]HOJA GENERAL DATOS IMPORTADOS'!L100 -> 0.0008485362749 | M100: ='[1]HOJA GENERAL DATOS IMPORTADOS'!M100 -> 0.004242681375 | N100: ='[1]HOJA GENERAL DATOS IMPORTADOS'!N100 -> 0.01909206619 | O100: ='[1]HOJA GENERAL DATOS IMPORTADOS'!O100 -> 0.008485362749 | P100: ='[1]HOJA GENERAL DATOS IMPORTADOS'!P100 -> 471.4 | Q100: ='[1]HOJA GENERAL DATOS IMPORTADOS'!Q100 -> 0.4 | R100: ='[1]HOJA GENERAL DATOS IMPORTADOS'!R100 -> 2 | S100: ='[1]HOJA GENERAL DATOS IMPORTADOS'!S100 -> 9 | T100: ='[1]HOJA GENERAL DATOS IMPORTADOS'!T100 -> 4 | U100: ='[1]HOJA GENERAL DATOS IMPORTADOS'!U100 -> 0 | V100: ='[1]HOJA GENERAL DATOS IMPORTADOS'!V100 -> 0 | W100: ='[1]HOJA GENERAL DATOS IMPORTADOS'!W100 -> 0 | X100: ='[1]HOJA GENERAL DATOS IMPORTADOS'!X100 -> 0 | Y100: ='[1]HOJA GENERAL DATOS IMPORTADOS'!Y100 -> 0 | Z100: ='[1]HOJA GENERAL DATOS IMPORTADOS'!Z100 -> 0 | AA100: ='[1]HOJA GENERAL DATOS IMPORTADOS'!AA100 -> 0 | AB100: ='[1]HOJA GENERAL DATOS IMPORTADOS'!AB100 -> 0 | AC100: ='[1]HOJA GENERAL DATOS IMPORTADOS'!AC100 -> 0 | AD100: ='[1]HOJA GENERAL DATOS IMPORTADOS'!AD100 -> 0 | AE100: ='[1]HOJA GENERAL DATOS IMPORTADOS'!AE100 -> 0 | AF100: ='[1]HOJA GENERAL DATOS IMPORTADOS'!AF100 -> 0 | AG100: ='[1]HOJA GENERAL DATOS IMPORTADOS'!AG100 -> 0 | AH100: ='[1]HOJA GENERAL DATOS IMPORTADOS'!AH100 -> 0 | AI100: ='[1]HOJA GENERAL DATOS IMPORTADOS'!AI100 -> 0
A101: ='[1]HOJA GENERAL DATOS IMPORTADOS'!A101 -> CAPRINO | H101: ='[1]HOJA GENERAL DATOS IMPORTADOS'!H101 -> 8 | I101: ='[1]HOJA GENERAL DATOS IMPORTADOS'!I101 -> 36 | J101: ='[1]HOJA GENERAL DATOS IMPORTADOS'!J101 -> 11 | K101: ='[1]HOJA GENERAL DATOS IMPORTADOS'!K101 -> 40.85714286 | L101: ='[1]HOJA GENERAL DATOS IMPORTADOS'!L101 -> 0.07426642431 | M101: ='[1]HOJA GENERAL DATOS IMPORTADOS'!M101 -> 0.01454167749 | N101: ='[1]HOJA GENERAL DATOS IMPORTADOS'!N101 -> 0.06543754869 | O101: ='[1]HOJA GENERAL DATOS IMPORTADOS'!O101 -> 0.01999480654 | P101: ='[1]HOJA GENERAL DATOS IMPORTADOS'!P101 -> 550.1428571 | Q101: ='[1]HOJA GENERAL DATOS IMPORTADOS'!Q101 -> 40.85714286 | R101: ='[1]HOJA GENERAL DATOS IMPORTADOS'!R101 -> 8 | S101: ='[1]HOJA GENERAL DATOS IMPORTADOS'!S101 -> 36 | T101: ='[1]HOJA GENERAL DATOS IMPORTADOS'!T101 -> 11 | U101: ='[1]HOJA GENERAL DATOS IMPORTADOS'!U101 -> 0 | V101: ='[1]HOJA GENERAL DATOS IMPORTADOS'!V101 -> 0 | W101: ='[1]HOJA GENERAL DATOS IMPORTADOS'!W101 -> 0 | X101: ='[1]HOJA GENERAL DATOS IMPORTADOS'!X101 -> 0 | Y101: ='[1]HOJA GENERAL DATOS IMPORTADOS'!Y101 -> 0 | Z101: ='[1]HOJA GENERAL DATOS IMPORTADOS'!Z101 -> 0 | AA101: ='[1]HOJA GENERAL DATOS IMPORTADOS'!AA101 -> 0 | AB101: ='[1]HOJA GENERAL DATOS IMPORTADOS'!AB101 -> 0 | AC101: ='[1]HOJA GENERAL DATOS IMPORTADOS'!AC101 -> 0 | AD101: ='[1]HOJA GENERAL DATOS IMPORTADOS'!AD101 -> 0 | AE101: ='[1]HOJA GENERAL DATOS IMPORTADOS'!AE101 -> 0 | AF101: ='[1]HOJA GENERAL DATOS IMPORTADOS'!AF101 -> 0 | AG101: ='[1]HOJA GENERAL DATOS IMPORTADOS'!AG101 -> 0 | AH101: ='[1]HOJA GENERAL DATOS IMPORTADOS'!AH101 -> 0 | AI101: ='[1]HOJA GENERAL DATOS IMPORTADOS'!AI101 -> 0
A102: ='[1]HOJA GENERAL DATOS IMPORTADOS'!A102 -> CAPRINO | H102: ='[1]HOJA GENERAL DATOS IMPORTADOS'!H102 -> 21 | I102: ='[1]HOJA GENERAL DATOS IMPORTADOS'!I102 -> 44 | J102: ='[1]HOJA GENERAL DATOS IMPORTADOS'!J102 -> 14 | K102: ='[1]HOJA GENERAL DATOS IMPORTADOS'!K102 -> 138.8571429 | L102: ='[1]HOJA GENERAL DATOS IMPORTADOS'!L102 -> 0.2679162073 | M102: ='[1]HOJA GENERAL DATOS IMPORTADOS'!M102 -> 0.04051819184 | N102: ='[1]HOJA GENERAL DATOS IMPORTADOS'!N102 -> 0.0848952591 | O102: ='[1]HOJA GENERAL DATOS IMPORTADOS'!O102 -> 0.02701212789 | P102: ='[1]HOJA GENERAL DATOS IMPORTADOS'!P102 -> 518.2857143 | Q102: ='[1]HOJA GENERAL DATOS IMPORTADOS'!Q102 -> 138.8571429 | R102: ='[1]HOJA GENERAL DATOS IMPORTADOS'!R102 -> 21 | S102: ='[1]HOJA GENERAL DATOS IMPORTADOS'!S102 -> 44 | T102: ='[1]HOJA GENERAL DATOS IMPORTADOS'!T102 -> 14 | U102: ='[1]HOJA GENERAL DATOS IMPORTADOS'!U102 -> 0 | V102: ='[1]HOJA GENERAL DATOS IMPORTADOS'!V102 -> 0 | W102: ='[1]HOJA GENERAL DATOS IMPORTADOS'!W102 -> 0 | X102: ='[1]HOJA GENERAL DATOS IMPORTADOS'!X102 -> 0 | Y102: ='[1]HOJA GENERAL DATOS IMPORTADOS'!Y102 -> 0 | Z102: ='[1]HOJA GENERAL DATOS IMPORTADOS'!Z102 -> 0 | AA102: ='[1]HOJA GENERAL DATOS IMPORTADOS'!AA102 -> 0 | AB102: ='[1]HOJA GENERAL DATOS IMPORTADOS'!AB102 -> 0 | AC102: ='[1]HOJA GENERAL DATOS IMPORTADOS'!AC102 -> 0 | AD102: ='[1]HOJA GENERAL DATOS IMPORTADOS'!AD102 -> 0 | AE102: ='[1]HOJA GENERAL DATOS IMPORTADOS'!AE102 -> 0 | AF102: ='[1]HOJA GENERAL DATOS IMPORTADOS'!AF102 -> 0 | AG102: ='[1]HOJA GENERAL DATOS IMPORTADOS'!AG102 -> 0 | AH102: ='[1]HOJA GENERAL DATOS IMPORTADOS'!AH102 -> 0 | AI102: ='[1]HOJA GENERAL DATOS IMPORTADOS'!AI102 -> 0
A103: ='[1]HOJA GENERAL DATOS IMPORTADOS'!A103 -> CAPRINO | H103: ='[1]HOJA GENERAL DATOS IMPORTADOS'!H103 -> 3 | I103: ='[1]HOJA GENERAL DATOS IMPORTADOS'!I103 -> 20 | J103: ='[1]HOJA GENERAL DATOS IMPORTADOS'!J103 -> 8 | K103: ='[1]HOJA GENERAL DATOS IMPORTADOS'!K103 -> 1.5 | L103: ='[1]HOJA GENERAL DATOS IMPORTADOS'!L103 -> 0.00269058296 | M103: ='[1]HOJA GENERAL DATOS IMPORTADOS'!M103 -> 0.005381165919 | N103: ='[1]HOJA GENERAL DATOS IMPORTADOS'!N103 -> 0.03587443946 | O103: ='[1]HOJA GENERAL DATOS IMPORTADOS'!O103 -> 0.01434977578 | P103: ='[1]HOJA GENERAL DATOS IMPORTADOS'!P103 -> 557.5 | Q103: ='[1]HOJA GENERAL DATOS IMPORTADOS'!Q103 -> 1.5 | R103: ='[1]HOJA GENERAL DATOS IMPORTADOS'!R103 -> 3 | S103: ='[1]HOJA GENERAL DATOS IMPORTADOS'!S103 -> 20 | T103: ='[1]HOJA GENERAL DATOS IMPORTADOS'!T103 -> 8 | U103: ='[1]HOJA GENERAL DATOS IMPORTADOS'!U103 -> 0 | V103: ='[1]HOJA GENERAL DATOS IMPORTADOS'!V103 -> 0 | W103: ='[1]HOJA GENERAL DATOS IMPORTADOS'!W103 -> 0 | X103: ='[1]HOJA GENERAL DATOS IMPORTADOS'!X103 -> 0 | Y103: ='[1]HOJA GENERAL DATOS IMPORTADOS'!Y103 -> 0 | Z103: ='[1]HOJA GENERAL DATOS IMPORTADOS'!Z103 -> 0 | AA103: ='[1]HOJA GENERAL DATOS IMPORTADOS'!AA103 -> 0 | AB103: ='[1]HOJA GENERAL DATOS IMPORTADOS'!AB103 -> 0 | AC103: ='[1]HOJA GENERAL DATOS IMPORTADOS'!AC103 -> 0 | AD103: ='[1]HOJA GENERAL DATOS IMPORTADOS'!AD103 -> 0 | AE103: ='[1]HOJA GENERAL DATOS IMPORTADOS'!AE103 -> 0 | AF103: ='[1]HOJA GENERAL DATOS IMPORTADOS'!AF103 -> 0 | AG103: ='[1]HOJA GENERAL DATOS IMPORTADOS'!AG103 -> 0 | AH103: ='[1]HOJA GENERAL DATOS IMPORTADOS'!AH103 -> 0 | AI103: ='[1]HOJA GENERAL DATOS IMPORTADOS'!AI103 -> 0
A104: ='[1]HOJA GENERAL DATOS IMPORTADOS'!A104 -> OVINO | H104: ='[1]HOJA GENERAL DATOS IMPORTADOS'!H104 -> 3 | I104: ='[1]HOJA GENERAL DATOS IMPORTADOS'!I104 -> 14 | J104: ='[1]HOJA GENERAL DATOS IMPORTADOS'!J104 -> 6 | K104: ='[1]HOJA GENERAL DATOS IMPORTADOS'!K104 -> 32.16666667 | L104: ='[1]HOJA GENERAL DATOS IMPORTADOS'!L104 -> 0.03004225039 | M104: ='[1]HOJA GENERAL DATOS IMPORTADOS'!M104 -> 0.002801867912 | N104: ='[1]HOJA GENERAL DATOS IMPORTADOS'!N104 -> 0.01307538359 | O104: ='[1]HOJA GENERAL DATOS IMPORTADOS'!O104 -> 0.005603735824 | P104: ='[1]HOJA GENERAL DATOS IMPORTADOS'!P104 -> 1070.714286 | Q104: ='[1]HOJA GENERAL DATOS IMPORTADOS'!Q104 -> 32.16666667 | R104: ='[1]HOJA GENERAL DATOS IMPORTADOS'!R104 -> 3 | S104: ='[1]HOJA GENERAL DATOS IMPORTADOS'!S104 -> 14 | T104: ='[1]HOJA GENERAL DATOS IMPORTADOS'!T104 -> 6 | U104: ='[1]HOJA GENERAL DATOS IMPORTADOS'!U104 -> 0 | V104: ='[1]HOJA GENERAL DATOS IMPORTADOS'!V104 -> 0 | W104: ='[1]HOJA GENERAL DATOS IMPORTADOS'!W104 -> 0 | X104: ='[1]HOJA GENERAL DATOS IMPORTADOS'!X104 -> 0 | Y104: ='[1]HOJA GENERAL DATOS IMPORTADOS'!Y104 -> 0 | Z104: ='[1]HOJA GENERAL DATOS IMPORTADOS'!Z104 -> 0 | AA104: ='[1]HOJA GENERAL DATOS IMPORTADOS'!AA104 -> 0 | AB104: ='[1]HOJA GENERAL DATOS IMPORTADOS'!AB104 -> 0 | AC104: ='[1]HOJA GENERAL DATOS IMPORTADOS'!AC104 -> 0 | AD104: ='[1]HOJA GENERAL DATOS IMPORTADOS'!AD104 -> 0 | AE104: ='[1]HOJA GENERAL DATOS IMPORTADOS'!AE104 -> 0 | AF104: ='[1]HOJA GENERAL DATOS IMPORTADOS'!AF104 -> 0 | AG104: ='[1]HOJA GENERAL DATOS IMPORTADOS'!AG104 -> 0 | AH104: ='[1]HOJA GENERAL DATOS IMPORTADOS'!AH104 -> 0 | AI104: ='[1]HOJA GENERAL DATOS IMPORTADOS'!AI104 -> 0
A105: ='[1]HOJA GENERAL DATOS IMPORTADOS'!A105 -> OVINO | H105: ='[1]HOJA GENERAL DATOS IMPORTADOS'!H105 -> 30 | I105: ='[1]HOJA GENERAL DATOS IMPORTADOS'!I105 -> 44 | J105: ='[1]HOJA GENERAL DATOS IMPORTADOS'!J105 -> 2 | K105: ='[1]HOJA GENERAL DATOS IMPORTADOS'!K105 -> 234.6666667 | L105: ='[1]HOJA GENERAL DATOS IMPORTADOS'!L105 -> 0.2270915417 | M105: ='[1]HOJA GENERAL DATOS IMPORTADOS'!M105 -> 0.02903158913 | N105: ='[1]HOJA GENERAL DATOS IMPORTADOS'!N105 -> 0.04257966406 | O105: ='[1]HOJA GENERAL DATOS IMPORTADOS'!O105 -> 0.001935439276 | P105: ='[1]HOJA GENERAL DATOS IMPORTADOS'!P105 -> 1033.357143 | Q105: ='[1]HOJA GENERAL DATOS IMPORTADOS'!Q105 -> 234.6666667 | R105: ='[1]HOJA GENERAL DATOS IMPORTADOS'!R105 -> 30 | S105: ='[1]HOJA GENERAL DATOS IMPORTADOS'!S105 -> 44 | T105: ='[1]HOJA GENERAL DATOS IMPORTADOS'!T105 -> 2 | U105: ='[1]HOJA GENERAL DATOS IMPORTADOS'!U105 -> 0 | V105: ='[1]HOJA GENERAL DATOS IMPORTADOS'!V105 -> 0 | W105: ='[1]HOJA GENERAL DATOS IMPORTADOS'!W105 -> 0 | X105: ='[1]HOJA GENERAL DATOS IMPORTADOS'!X105 -> 0 | Y105: ='[1]HOJA GENERAL DATOS IMPORTADOS'!Y105 -> 0 | Z105: ='[1]HOJA GENERAL DATOS IMPORTADOS'!Z105 -> 0 | AA105: ='[1]HOJA GENERAL DATOS IMPORTADOS'!AA105 -> 0 | AB105: ='[1]HOJA GENERAL DATOS IMPORTADOS'!AB105 -> 0 | AC105: ='[1]HOJA GENERAL DATOS IMPORTADOS'!AC105 -> 0 | AD105: ='[1]HOJA GENERAL DATOS IMPORTADOS'!AD105 -> 0 | AE105: ='[1]HOJA GENERAL DATOS IMPORTADOS'!AE105 -> 0 | AF105: ='[1]HOJA GENERAL DATOS IMPORTADOS'!AF105 -> 0 | AG105: ='[1]HOJA GENERAL DATOS IMPORTADOS'!AG105 -> 0 | AH105: ='[1]HOJA GENERAL DATOS IMPORTADOS'!AH105 -> 0 | AI105: ='[1]HOJA GENERAL DATOS IMPORTADOS'!AI105 -> 0
A106: ='[1]HOJA GENERAL DATOS IMPORTADOS'!A106 -> OVINO | H106: ='[1]HOJA GENERAL DATOS IMPORTADOS'!H106 -> 11 | I106: ='[1]HOJA GENERAL DATOS IMPORTADOS'!I106 -> 70 | J106: ='[1]HOJA GENERAL DATOS IMPORTADOS'!J106 -> 6 | K106: ='[1]HOJA GENERAL DATOS IMPORTADOS'!K106 -> 164.8333333 | L106: ='[1]HOJA GENERAL DATOS IMPORTADOS'!L106 -> 0.1577065014 | M106: ='[1]HOJA GENERAL DATOS IMPORTADOS'!M106 -> 0.01052439747 | N106: ='[1]HOJA GENERAL DATOS IMPORTADOS'!N106 -> 0.06697343843 | O106: ='[1]HOJA GENERAL DATOS IMPORTADOS'!O106 -> 0.005740580436 | P106: ='[1]HOJA GENERAL DATOS IMPORTADOS'!P106 -> 1045.190476 | Q106: ='[1]HOJA GENERAL DATOS IMPORTADOS'!Q106 -> 164.8333333 | R106: ='[1]HOJA GENERAL DATOS IMPORTADOS'!R106 -> 11 | S106: ='[1]HOJA GENERAL DATOS IMPORTADOS'!S106 -> 70 | T106: ='[1]HOJA GENERAL DATOS IMPORTADOS'!T106 -> 6 | U106: ='[1]HOJA GENERAL DATOS IMPORTADOS'!U106 -> 0 | V106: ='[1]HOJA GENERAL DATOS IMPORTADOS'!V106 -> 0 | W106: ='[1]HOJA GENERAL DATOS IMPORTADOS'!W106 -> 0 | X106: ='[1]HOJA GENERAL DATOS IMPORTADOS'!X106 -> 0 | Y106: ='[1]HOJA GENERAL DATOS IMPORTADOS'!Y106 -> 0 | Z106: ='[1]HOJA GENERAL DATOS IMPORTADOS'!Z106 -> 0 | AA106: ='[1]HOJA GENERAL DATOS IMPORTADOS'!AA106 -> 0 | AB106: ='[1]HOJA GENERAL DATOS IMPORTADOS'!AB106 -> 0 | AC106: ='[1]HOJA GENERAL DATOS IMPORTADOS'!AC106 -> 0 | AD106: ='[1]HOJA GENERAL DATOS IMPORTADOS'!AD106 -> 0 | AE106: ='[1]HOJA GENERAL DATOS IMPORTADOS'!AE106 -> 0 | AF106: ='[1]HOJA GENERAL DATOS IMPORTADOS'!AF106 -> 0 | AG106: ='[1]HOJA GENERAL DATOS IMPORTADOS'!AG106 -> 0 | AH106: ='[1]HOJA GENERAL DATOS IMPORTADOS'!AH106 -> 0 | AI106: ='[1]HOJA GENERAL DATOS IMPORTADOS'!AI106 -> 0
A107: ='[1]HOJA GENERAL DATOS IMPORTADOS'!A107 -> OVINO | H107: ='[1]HOJA GENERAL DATOS IMPORTADOS'!H107 -> 3 | I107: ='[1]HOJA GENERAL DATOS IMPORTADOS'!I107 -> 71 | J107: ='[1]HOJA GENERAL DATOS IMPORTADOS'!J107 -> 2 | K107: ='[1]HOJA GENERAL DATOS IMPORTADOS'!K107 -> 103.1666667 | L107: ='[1]HOJA GENERAL DATOS IMPORTADOS'!L107 -> 0.1050628001 | M107: ='[1]HOJA GENERAL DATOS IMPORTADOS'!M107 -> 0.003055137966 | N107: ='[1]HOJA GENERAL DATOS IMPORTADOS'!N107 -> 0.07230493187 | O107: ='[1]HOJA GENERAL DATOS IMPORTADOS'!O107 -> 0.002036758644 | P107: ='[1]HOJA GENERAL DATOS IMPORTADOS'!P107 -> 981.952381 | Q107: ='[1]HOJA GENERAL DATOS IMPORTADOS'!Q107 -> 103.1666667 | R107: ='[1]HOJA GENERAL DATOS IMPORTADOS'!R107 -> 3 | S107: ='[1]HOJA GENERAL DATOS IMPORTADOS'!S107 -> 71 | T107: ='[1]HOJA GENERAL DATOS IMPORTADOS'!T107 -> 2 | U107: ='[1]HOJA GENERAL DATOS IMPORTADOS'!U107 -> 0 | V107: ='[1]HOJA GENERAL DATOS IMPORTADOS'!V107 -> 0 | W107: ='[1]HOJA GENERAL DATOS IMPORTADOS'!W107 -> 0 | X107: ='[1]HOJA GENERAL DATOS IMPORTADOS'!X107 -> 0 | Y107: ='[1]HOJA GENERAL DATOS IMPORTADOS'!Y107 -> 0 | Z107: ='[1]HOJA GENERAL DATOS IMPORTADOS'!Z107 -> 0 | AA107: ='[1]HOJA GENERAL DATOS IMPORTADOS'!AA107 -> 0 | AB107: ='[1]HOJA GENERAL DATOS IMPORTADOS'!AB107 -> 0 | AC107: ='[1]HOJA GENERAL DATOS IMPORTADOS'!AC107 -> 0 | AD107: ='[1]HOJA GENERAL DATOS IMPORTADOS'!AD107 -> 0 | AE107: ='[1]HOJA GENERAL DATOS IMPORTADOS'!AE107 -> 0 | AF107: ='[1]HOJA GENERAL DATOS IMPORTADOS'!AF107 -> 0 | AG107: ='[1]HOJA GENERAL DATOS IMPORTADOS'!AG107 -> 0 | AH107: ='[1]HOJA GENERAL DATOS IMPORTADOS'!AH107 -> 0 | AI107: ='[1]HOJA GENERAL DATOS IMPORTADOS'!AI107 -> 0
A108: ='[1]HOJA GENERAL DATOS IMPORTADOS'!A108 -> OVINO | H108: ='[1]HOJA GENERAL DATOS IMPORTADOS'!H108 -> 3 | I108: ='[1]HOJA GENERAL DATOS IMPORTADOS'!I108 -> 63 | J108: ='[1]HOJA GENERAL DATOS IMPORTADOS'!J108 -> 2 | K108: ='[1]HOJA GENERAL DATOS IMPORTADOS'!K108 -> 50.83333333 | L108: ='[1]HOJA GENERAL DATOS IMPORTADOS'!L108 -> 0.05312266733 | M108: ='[1]HOJA GENERAL DATOS IMPORTADOS'!M108 -> 0.003135108236 | N108: ='[1]HOJA GENERAL DATOS IMPORTADOS'!N108 -> 0.06583727295 | O108: ='[1]HOJA GENERAL DATOS IMPORTADOS'!O108 -> 0.002090072157 | P108: ='[1]HOJA GENERAL DATOS IMPORTADOS'!P108 -> 956.9047619 | Q108: ='[1]HOJA GENERAL DATOS IMPORTADOS'!Q108 -> 50.83333333 | R108: ='[1]HOJA GENERAL DATOS IMPORTADOS'!R108 -> 3 | S108: ='[1]HOJA GENERAL DATOS IMPORTADOS'!S108 -> 63 | T108: ='[1]HOJA GENERAL DATOS IMPORTADOS'!T108 -> 2 | U108: ='[1]HOJA GENERAL DATOS IMPORTADOS'!U108 -> 0 | V108: ='[1]HOJA GENERAL DATOS IMPORTADOS'!V108 -> 0 | W108: ='[1]HOJA GENERAL DATOS IMPORTADOS'!W108 -> 0 | X108: ='[1]HOJA GENERAL DATOS IMPORTADOS'!X108 -> 0 | Y108: ='[1]HOJA GENERAL DATOS IMPORTADOS'!Y108 -> 0 | Z108: ='[1]HOJA GENERAL DATOS IMPORTADOS'!Z108 -> 0 | AA108: ='[1]HOJA GENERAL DATOS IMPORTADOS'!AA108 -> 0 | AB108: ='[1]HOJA GENERAL DATOS IMPORTADOS'!AB108 -> 0 | AC108: ='[1]HOJA GENERAL DATOS IMPORTADOS'!AC108 -> 0 | AD108: ='[1]HOJA GENERAL DATOS IMPORTADOS'!AD108 -> 0 | AE108: ='[1]HOJA GENERAL DATOS IMPORTADOS'!AE108 -> 0 | AF108: ='[1]HOJA GENERAL DATOS IMPORTADOS'!AF108 -> 0 | AG108: ='[1]HOJA GENERAL DATOS IMPORTADOS'!AG108 -> 0 | AH108: ='[1]HOJA GENERAL DATOS IMPORTADOS'!AH108 -> 0 | AI108: ='[1]HOJA GENERAL DATOS IMPORTADOS'!AI108 -> 0
A109: ='[1]HOJA GENERAL DATOS IMPORTADOS'!A109 -> OVINO | H109: ='[1]HOJA GENERAL DATOS IMPORTADOS'!H109 -> 2 | I109: ='[1]HOJA GENERAL DATOS IMPORTADOS'!I109 -> 68 | J109: ='[1]HOJA GENERAL DATOS IMPORTADOS'!J109 -> 0 | K109: ='[1]HOJA GENERAL DATOS IMPORTADOS'!K109 -> 1.833333333 | L109: ='[1]HOJA GENERAL DATOS IMPORTADOS'!L109 -> 0.00194562361 | M109: ='[1]HOJA GENERAL DATOS IMPORTADOS'!M109 -> 0.002122498484 | N109: ='[1]HOJA GENERAL DATOS IMPORTADOS'!N109 -> 0.07216494845 | O109: ='[1]HOJA GENERAL DATOS IMPORTADOS'!O109 -> 0 | P109: ='[1]HOJA GENERAL DATOS IMPORTADOS'!P109 -> 942.2857143 | Q109: ='[1]HOJA GENERAL DATOS IMPORTADOS'!Q109 -> 1.833333333 | R109: ='[1]HOJA GENERAL DATOS IMPORTADOS'!R109 -> 2 | S109: ='[1]HOJA GENERAL DATOS IMPORTADOS'!S109 -> 68 | T109: ='[1]HOJA GENERAL DATOS IMPORTADOS'!T109 -> 0 | U109: ='[1]HOJA GENERAL DATOS IMPORTADOS'!U109 -> 0 | V109: ='[1]HOJA GENERAL DATOS IMPORTADOS'!V109 -> 0 | W109: ='[1]HOJA GENERAL DATOS IMPORTADOS'!W109 -> 0 | X109: ='[1]HOJA GENERAL DATOS IMPORTADOS'!X109 -> 0 | Y109: ='[1]HOJA GENERAL DATOS IMPORTADOS'!Y109 -> 0 | Z109: ='[1]HOJA GENERAL DATOS IMPORTADOS'!Z109 -> 0 | AA109: ='[1]HOJA GENERAL DATOS IMPORTADOS'!AA109 -> 0 | AB109: ='[1]HOJA GENERAL DATOS IMPORTADOS'!AB109 -> 0 | AC109: ='[1]HOJA GENERAL DATOS IMPORTADOS'!AC109 -> 0 | AD109: ='[1]HOJA GENERAL DATOS IMPORTADOS'!AD109 -> 0 | AE109: ='[1]HOJA GENERAL DATOS IMPORTADOS'!AE109 -> 0 | AF109: ='[1]HOJA GENERAL DATOS IMPORTADOS'!AF109 -> 0 | AG109: ='[1]HOJA GENERAL DATOS IMPORTADOS'!AG109 -> 0 | AH109: ='[1]HOJA GENERAL DATOS IMPORTADOS'!AH109 -> 0 | AI109: ='[1]HOJA GENERAL DATOS IMPORTADOS'!AI109 -> 0
A110: ='[1]HOJA GENERAL DATOS IMPORTADOS'!A110 -> OVINO | H110: ='[1]HOJA GENERAL DATOS IMPORTADOS'!H110 -> 7 | I110: ='[1]HOJA GENERAL DATOS IMPORTADOS'!I110 -> 46 | J110: ='[1]HOJA GENERAL DATOS IMPORTADOS'!J110 -> 1 | K110: ='[1]HOJA GENERAL DATOS IMPORTADOS'!K110 -> 110.6666667 | L110: ='[1]HOJA GENERAL DATOS IMPORTADOS'!L110 -> 0.1176589712 | M110: ='[1]HOJA GENERAL DATOS IMPORTADOS'!M110 -> 0.007442284326 | N110: ='[1]HOJA GENERAL DATOS IMPORTADOS'!N110 -> 0.04890643985 | O110: ='[1]HOJA GENERAL DATOS IMPORTADOS'!O110 -> 0.001063183475 | P110: ='[1]HOJA GENERAL DATOS IMPORTADOS'!P110 -> 940.5714286 | Q110: ='[1]HOJA GENERAL DATOS IMPORTADOS'!Q110 -> 110.6666667 | R110: ='[1]HOJA GENERAL DATOS IMPORTADOS'!R110 -> 7 | S110: ='[1]HOJA GENERAL DATOS IMPORTADOS'!S110 -> 46 | T110: ='[1]HOJA GENERAL DATOS IMPORTADOS'!T110 -> 1 | U110: ='[1]HOJA GENERAL DATOS IMPORTADOS'!U110 -> 0 | V110: ='[1]HOJA GENERAL DATOS IMPORTADOS'!V110 -> 0 | W110: ='[1]HOJA GENERAL DATOS IMPORTADOS'!W110 -> 0 | X110: ='[1]HOJA GENERAL DATOS IMPORTADOS'!X110 -> 0 | Y110: ='[1]HOJA GENERAL DATOS IMPORTADOS'!Y110 -> 0 | Z110: ='[1]HOJA GENERAL DATOS IMPORTADOS'!Z110 -> 0 | AA110: ='[1]HOJA GENERAL DATOS IMPORTADOS'!AA110 -> 0 | AB110: ='[1]HOJA GENERAL DATOS IMPORTADOS'!AB110 -> 0 | AC110: ='[1]HOJA GENERAL DATOS IMPORTADOS'!AC110 -> 0 | AD110: ='[1]HOJA GENERAL DATOS IMPORTADOS'!AD110 -> 0 | AE110: ='[1]HOJA GENERAL DATOS IMPORTADOS'!AE110 -> 0 | AF110: ='[1]HOJA GENERAL DATOS IMPORTADOS'!AF110 -> 0 | AG110: ='[1]HOJA GENERAL DATOS IMPORTADOS'!AG110 -> 0 | AH110: ='[1]HOJA GENERAL DATOS IMPORTADOS'!AH110 -> 0 | AI110: ='[1]HOJA GENERAL DATOS IMPORTADOS'!AI110 -> 0
A111: ='[1]HOJA GENERAL DATOS IMPORTADOS'!A111 -> OVINO | H111: ='[1]HOJA GENERAL DATOS IMPORTADOS'!H111 -> 1 | I111: ='[1]HOJA GENERAL DATOS IMPORTADOS'!I111 -> 69 | J111: ='[1]HOJA GENERAL DATOS IMPORTADOS'!J111 -> 3 | K111: ='[1]HOJA GENERAL DATOS IMPORTADOS'!K111 -> 61.16666667 | L111: ='[1]HOJA GENERAL DATOS IMPORTADOS'!L111 -> 0.06748095613 | M111: ='[1]HOJA GENERAL DATOS IMPORTADOS'!M111 -> 0.00110323089 | N111: ='[1]HOJA GENERAL DATOS IMPORTADOS'!N111 -> 0.07612293144 | O111: ='[1]HOJA GENERAL DATOS IMPORTADOS'!O111 -> 0.003309692671 | P111: ='[1]HOJA GENERAL DATOS IMPORTADOS'!P111 -> 906.4285714 | Q111: ='[1]HOJA GENERAL DATOS IMPORTADOS'!Q111 -> 61.16666667 | R111: ='[1]HOJA GENERAL DATOS IMPORTADOS'!R111 -> 1 | S111: ='[1]HOJA GENERAL DATOS IMPORTADOS'!S111 -> 69 | T111: ='[1]HOJA GENERAL DATOS IMPORTADOS'!T111 -> 3 | U111: ='[1]HOJA GENERAL DATOS IMPORTADOS'!U111 -> 0 | V111: ='[1]HOJA GENERAL DATOS IMPORTADOS'!V111 -> 0 | W111: ='[1]HOJA GENERAL DATOS IMPORTADOS'!W111 -> 0 | X111: ='[1]HOJA GENERAL DATOS IMPORTADOS'!X111 -> 0 | Y111: ='[1]HOJA GENERAL DATOS IMPORTADOS'!Y111 -> 0 | Z111: ='[1]HOJA GENERAL DATOS IMPORTADOS'!Z111 -> 0 | AA111: ='[1]HOJA GENERAL DATOS IMPORTADOS'!AA111 -> 0 | AB111: ='[1]HOJA GENERAL DATOS IMPORTADOS'!AB111 -> 0 | AC111: ='[1]HOJA GENERAL DATOS IMPORTADOS'!AC111 -> 0 | AD111: ='[1]HOJA GENERAL DATOS IMPORTADOS'!AD111 -> 0 | AE111: ='[1]HOJA GENERAL DATOS IMPORTADOS'!AE111 -> 0 | AF111: ='[1]HOJA GENERAL DATOS IMPORTADOS'!AF111 -> 0 | AG111: ='[1]HOJA GENERAL DATOS IMPORTADOS'!AG111 -> 0 | AH111: ='[1]HOJA GENERAL DATOS IMPORTADOS'!AH111 -> 0 | AI111: ='[1]HOJA GENERAL DATOS IMPORTADOS'!AI111 -> 0
A112: ='[1]HOJA GENERAL DATOS IMPORTADOS'!A112 -> OVINO | H112: ='[1]HOJA GENERAL DATOS IMPORTADOS'!H112 -> 9 | I112: ='[1]HOJA GENERAL DATOS IMPORTADOS'!I112 -> 77 | J112: ='[1]HOJA GENERAL DATOS IMPORTADOS'!J112 -> 3 | K112: ='[1]HOJA GENERAL DATOS IMPORTADOS'!K112 -> 62.25 | L112: ='[1]HOJA GENERAL DATOS IMPORTADOS'!L112 -> 0.07098061574 | M112: ='[1]HOJA GENERAL DATOS IMPORTADOS'!M112 -> 0.0102622577 | N112: ='[1]HOJA GENERAL DATOS IMPORTADOS'!N112 -> 0.08779931585 | O112: ='[1]HOJA GENERAL DATOS IMPORTADOS'!O112 -> 0.003420752566 | P112: ='[1]HOJA GENERAL DATOS IMPORTADOS'!P112 -> 877 | Q112: ='[1]HOJA GENERAL DATOS IMPORTADOS'!Q112 -> 62.25 | R112: ='[1]HOJA GENERAL DATOS IMPORTADOS'!R112 -> 9 | S112: ='[1]HOJA GENERAL DATOS IMPORTADOS'!S112 -> 77 | T112: ='[1]HOJA GENERAL DATOS IMPORTADOS'!T112 -> 3 | U112: ='[1]HOJA GENERAL DATOS IMPORTADOS'!U112 -> 0 | V112: ='[1]HOJA GENERAL DATOS IMPORTADOS'!V112 -> 0 | W112: ='[1]HOJA GENERAL DATOS IMPORTADOS'!W112 -> 0 | X112: ='[1]HOJA GENERAL DATOS IMPORTADOS'!X112 -> 0 | Y112: ='[1]HOJA GENERAL DATOS IMPORTADOS'!Y112 -> 0 | Z112: ='[1]HOJA GENERAL DATOS IMPORTADOS'!Z112 -> 0 | AA112: ='[1]HOJA GENERAL DATOS IMPORTADOS'!AA112 -> 0 | AB112: ='[1]HOJA GENERAL DATOS IMPORTADOS'!AB112 -> 0 | AC112: ='[1]HOJA GENERAL DATOS IMPORTADOS'!AC112 -> 0 | AD112: ='[1]HOJA GENERAL DATOS IMPORTADOS'!AD112 -> 0 | AE112: ='[1]HOJA GENERAL DATOS IMPORTADOS'!AE112 -> 0 | AF112: ='[1]HOJA GENERAL DATOS IMPORTADOS'!AF112 -> 0 | AG112: ='[1]HOJA GENERAL DATOS IMPORTADOS'!AG112 -> 0 | AH112: ='[1]HOJA GENERAL DATOS IMPORTADOS'!AH112 -> 0 | AI112: ='[1]HOJA GENERAL DATOS IMPORTADOS'!AI112 -> 0
A113: ='[1]HOJA GENERAL DATOS IMPORTADOS'!A113 -> OVINO | H113: ='[1]HOJA GENERAL DATOS IMPORTADOS'!H113 -> 1 | I113: ='[1]HOJA GENERAL DATOS IMPORTADOS'!I113 -> 63 | J113: ='[1]HOJA GENERAL DATOS IMPORTADOS'!J113 -> 2 | K113: ='[1]HOJA GENERAL DATOS IMPORTADOS'!K113 -> 20.625 | L113: ='[1]HOJA GENERAL DATOS IMPORTADOS'!L113 -> 0.02567782543 | M113: ='[1]HOJA GENERAL DATOS IMPORTADOS'!M113 -> 0.001244985475 | N113: ='[1]HOJA GENERAL DATOS IMPORTADOS'!N113 -> 0.07843408494 | O113: ='[1]HOJA GENERAL DATOS IMPORTADOS'!O113 -> 0.00248997095 | P113: ='[1]HOJA GENERAL DATOS IMPORTADOS'!P113 -> 803.2222222 | Q113: ='[1]HOJA GENERAL DATOS IMPORTADOS'!Q113 -> 20.625 | R113: ='[1]HOJA GENERAL DATOS IMPORTADOS'!R113 -> 1 | S113: ='[1]HOJA GENERAL DATOS IMPORTADOS'!S113 -> 63 | T113: ='[1]HOJA GENERAL DATOS IMPORTADOS'!T113 -> 2 | U113: ='[1]HOJA GENERAL DATOS IMPORTADOS'!U113 -> 0 | V113: ='[1]HOJA GENERAL DATOS IMPORTADOS'!V113 -> 0 | W113: ='[1]HOJA GENERAL DATOS IMPORTADOS'!W113 -> 0 | X113: ='[1]HOJA GENERAL DATOS IMPORTADOS'!X113 -> 0 | Y113: ='[1]HOJA GENERAL DATOS IMPORTADOS'!Y113 -> 0 | Z113: ='[1]HOJA GENERAL DATOS IMPORTADOS'!Z113 -> 0 | AA113: ='[1]HOJA GENERAL DATOS IMPORTADOS'!AA113 -> 0 | AB113: ='[1]HOJA GENERAL DATOS IMPORTADOS'!AB113 -> 0 | AC113: ='[1]HOJA GENERAL DATOS IMPORTADOS'!AC113 -> 0 | AD113: ='[1]HOJA GENERAL DATOS IMPORTADOS'!AD113 -> 0 | AE113: ='[1]HOJA GENERAL DATOS IMPORTADOS'!AE113 -> 0 | AF113: ='[1]HOJA GENERAL DATOS IMPORTADOS'!AF113 -> 0 | AG113: ='[1]HOJA GENERAL DATOS IMPORTADOS'!AG113 -> 0 | AH113: ='[1]HOJA GENERAL DATOS IMPORTADOS'!AH113 -> 0 | AI113: ='[1]HOJA GENERAL DATOS IMPORTADOS'!AI113 -> 0
A114: ='[1]HOJA GENERAL DATOS IMPORTADOS'!A114 -> OVINO | H114: ='[1]HOJA GENERAL DATOS IMPORTADOS'!H114 -> 11 | I114: ='[1]HOJA GENERAL DATOS IMPORTADOS'!I114 -> 41 | J114: ='[1]HOJA GENERAL DATOS IMPORTADOS'!J114 -> 2 | K114: ='[1]HOJA GENERAL DATOS IMPORTADOS'!K114 -> 86.75 | L114: ='[1]HOJA GENERAL DATOS IMPORTADOS'!L114 -> 0.1083021223 | M114: ='[1]HOJA GENERAL DATOS IMPORTADOS'!M114 -> 0.01373283396 | N114: ='[1]HOJA GENERAL DATOS IMPORTADOS'!N114 -> 0.05118601748 | O114: ='[1]HOJA GENERAL DATOS IMPORTADOS'!O114 -> 0.002496878901 | P114: ='[1]HOJA GENERAL DATOS IMPORTADOS'!P114 -> 801 | Q114: ='[1]HOJA GENERAL DATOS IMPORTADOS'!Q114 -> 86.75 | R114: ='[1]HOJA GENERAL DATOS IMPORTADOS'!R114 -> 11 | S114: ='[1]HOJA GENERAL DATOS IMPORTADOS'!S114 -> 41 | T114: ='[1]HOJA GENERAL DATOS IMPORTADOS'!T114 -> 2 | U114: ='[1]HOJA GENERAL DATOS IMPORTADOS'!U114 -> 0 | V114: ='[1]HOJA GENERAL DATOS IMPORTADOS'!V114 -> 0 | W114: ='[1]HOJA GENERAL DATOS IMPORTADOS'!W114 -> 0 | X114: ='[1]HOJA GENERAL DATOS IMPORTADOS'!X114 -> 0 | Y114: ='[1]HOJA GENERAL DATOS IMPORTADOS'!Y114 -> 0 | Z114: ='[1]HOJA GENERAL DATOS IMPORTADOS'!Z114 -> 0 | AA114: ='[1]HOJA GENERAL DATOS IMPORTADOS'!AA114 -> 0 | AB114: ='[1]HOJA GENERAL DATOS IMPORTADOS'!AB114 -> 0 | AC114: ='[1]HOJA GENERAL DATOS IMPORTADOS'!AC114 -> 0 | AD114: ='[1]HOJA GENERAL DATOS IMPORTADOS'!AD114 -> 0 | AE114: ='[1]HOJA GENERAL DATOS IMPORTADOS'!AE114 -> 0 | AF114: ='[1]HOJA GENERAL DATOS IMPORTADOS'!AF114 -> 0 | AG114: ='[1]HOJA GENERAL DATOS IMPORTADOS'!AG114 -> 0 | AH114: ='[1]HOJA GENERAL DATOS IMPORTADOS'!AH114 -> 0 | AI114: ='[1]HOJA GENERAL DATOS IMPORTADOS'!AI114 -> 0
A115: ='[1]HOJA GENERAL DATOS IMPORTADOS'!A115 -> OVINO | H115: ='[1]HOJA GENERAL DATOS IMPORTADOS'!H115 -> 8 | I115: ='[1]HOJA GENERAL DATOS IMPORTADOS'!I115 -> 104 | J115: ='[1]HOJA GENERAL DATOS IMPORTADOS'!J115 -> 9 | K115: ='[1]HOJA GENERAL DATOS IMPORTADOS'!K115 -> 103.25 | L115: ='[1]HOJA GENERAL DATOS IMPORTADOS'!L115 -> 0.1296748535 | M115: ='[1]HOJA GENERAL DATOS IMPORTADOS'!M115 -> 0.01004744627 | N115: ='[1]HOJA GENERAL DATOS IMPORTADOS'!N115 -> 0.1306168016 | O115: ='[1]HOJA GENERAL DATOS IMPORTADOS'!O115 -> 0.01130337706 | P115: ='[1]HOJA GENERAL DATOS IMPORTADOS'!P115 -> 796.2222222 | Q115: ='[1]HOJA GENERAL DATOS IMPORTADOS'!Q115 -> 103.25 | R115: ='[1]HOJA GENERAL DATOS IMPORTADOS'!R115 -> 8 | S115: ='[1]HOJA GENERAL DATOS IMPORTADOS'!S115 -> 104 | T115: ='[1]HOJA GENERAL DATOS IMPORTADOS'!T115 -> 9 | U115: ='[1]HOJA GENERAL DATOS IMPORTADOS'!U115 -> 0 | V115: ='[1]HOJA GENERAL DATOS IMPORTADOS'!V115 -> 0 | W115: ='[1]HOJA GENERAL DATOS IMPORTADOS'!W115 -> 0 | X115: ='[1]HOJA GENERAL DATOS IMPORTADOS'!X115 -> 0 | Y115: ='[1]HOJA GENERAL DATOS IMPORTADOS'!Y115 -> 0 | Z115: ='[1]HOJA GENERAL DATOS IMPORTADOS'!Z115 -> 0 | AA115: ='[1]HOJA GENERAL DATOS IMPORTADOS'!AA115 -> 0 | AB115: ='[1]HOJA GENERAL DATOS IMPORTADOS'!AB115 -> 0 | AC115: ='[1]HOJA GENERAL DATOS IMPORTADOS'!AC115 -> 0 | AD115: ='[1]HOJA GENERAL DATOS IMPORTADOS'!AD115 -> 0 | AE115: ='[1]HOJA GENERAL DATOS IMPORTADOS'!AE115 -> 0 | AF115: ='[1]HOJA GENERAL DATOS IMPORTADOS'!AF115 -> 0 | AG115: ='[1]HOJA GENERAL DATOS IMPORTADOS'!AG115 -> 0 | AH115: ='[1]HOJA GENERAL DATOS IMPORTADOS'!AH115 -> 0 | AI115: ='[1]HOJA GENERAL DATOS IMPORTADOS'!AI115 -> 0
A116: ='[1]HOJA GENERAL DATOS IMPORTADOS'!A116 -> 0 | B116: ='[1]HOJA GENERAL DATOS IMPORTADOS'!B116 -> 0 | C116: ='[1]HOJA GENERAL DATOS IMPORTADOS'!C116 -> 0 | D116: ='[1]HOJA GENERAL DATOS IMPORTADOS'!D116 -> 0 | E116: ='[1]HOJA GENERAL DATOS IMPORTADOS'!E116 -> 0 | F116: ='[1]HOJA GENERAL DATOS IMPORTADOS'!F116 -> 0 | G116: ='[1]HOJA GENERAL DATOS IMPORTADOS'!G116 -> 0 | H116: ='[1]HOJA GENERAL DATOS IMPORTADOS'!H116 -> 0 | I116: ='[1]HOJA GENERAL DATOS IMPORTADOS'!I116 -> 0 | J116: ='[1]HOJA GENERAL DATOS IMPORTADOS'!J116 -> 0 | K116: ='[1]HOJA GENERAL DATOS IMPORTADOS'!K116 -> 0 | L116: ='[1]HOJA GENERAL DATOS IMPORTADOS'!L116 -> 0 | M116: ='[1]HOJA GENERAL DATOS IMPORTADOS'!M116 -> 0 | N116: ='[1]HOJA GENERAL DATOS IMPORTADOS'!N116 -> 0 | O116: ='[1]HOJA GENERAL DATOS IMPORTADOS'!O116 -> 0 | P116: ='[1]HOJA GENERAL DATOS IMPORTADOS'!P116 -> 0 | Q116: ='[1]HOJA GENERAL DATOS IMPORTADOS'!Q116 -> 0 | R116: ='[1]HOJA GENERAL DATOS IMPORTADOS'!R116 -> 0 | S116: ='[1]HOJA GENERAL DATOS IMPORTADOS'!S116 -> 0 | T116: ='[1]HOJA GENERAL DATOS IMPORTADOS'!T116 -> 0 | U116: ='[1]HOJA GENERAL DATOS IMPORTADOS'!U116 -> 0 | V116: ='[1]HOJA GENERAL DATOS IMPORTADOS'!V116 -> 0 | W116: ='[1]HOJA GENERAL DATOS IMPORTADOS'!W116 -> 0 | X116: ='[1]HOJA GENERAL DATOS IMPORTADOS'!X116 -> 0 | Y116: ='[1]HOJA GENERAL DATOS IMPORTADOS'!Y116 -> 0 | Z116: ='[1]HOJA GENERAL DATOS IMPORTADOS'!Z116 -> 0 | AA116: ='[1]HOJA GENERAL DATOS IMPORTADOS'!AA116 -> 0 | AB116: ='[1]HOJA GENERAL DATOS IMPORTADOS'!AB116 -> 0 | AC116: ='[1]HOJA GENERAL DATOS IMPORTADOS'!AC116 -> 0 | AD116: ='[1]HOJA GENERAL DATOS IMPORTADOS'!AD116 -> 0 | AE116: ='[1]HOJA GENERAL DATOS IMPORTADOS'!AE116 -> 0 | AF116: ='[1]HOJA GENERAL DATOS IMPORTADOS'!AF116 -> 0 | AG116: ='[1]HOJA GENERAL DATOS IMPORTADOS'!AG116 -> 0 | AH116: ='[1]HOJA GENERAL DATOS IMPORTADOS'!AH116 -> 0 | AI116: ='[1]HOJA GENERAL DATOS IMPORTADOS'!AI116 -> 0
A117: ='[1]HOJA GENERAL DATOS IMPORTADOS'!A117 -> 0 | B117: ='[1]HOJA GENERAL DATOS IMPORTADOS'!B117 -> 0 | C117: ='[1]HOJA GENERAL DATOS IMPORTADOS'!C117 -> 0 | D117: ='[1]HOJA GENERAL DATOS IMPORTADOS'!D117 -> 0 | E117: ='[1]HOJA GENERAL DATOS IMPORTADOS'!E117 -> 0 | F117: ='[1]HOJA GENERAL DATOS IMPORTADOS'!F117 -> 0 | G117: ='[1]HOJA GENERAL DATOS IMPORTADOS'!G117 -> 0 | H117: ='[1]HOJA GENERAL DATOS IMPORTADOS'!H117 -> 0 | I117: ='[1]HOJA GENERAL DATOS IMPORTADOS'!I117 -> 0 | J117: ='[1]HOJA GENERAL DATOS IMPORTADOS'!J117 -> 0 | K117: ='[1]HOJA GENERAL DATOS IMPORTADOS'!K117 -> 0 | L117: ='[1]HOJA GENERAL DATOS IMPORTADOS'!L117 -> 0 | M117: ='[1]HOJA GENERAL DATOS IMPORTADOS'!M117 -> 0 | N117: ='[1]HOJA GENERAL DATOS IMPORTADOS'!N117 -> 0 | O117: ='[1]HOJA GENERAL DATOS IMPORTADOS'!O117 -> 0 | P117: ='[1]HOJA GENERAL DATOS IMPORTADOS'!P117 -> 0 | Q117: ='[1]HOJA GENERAL DATOS IMPORTADOS'!Q117 -> 0 | R117: ='[1]HOJA GENERAL DATOS IMPORTADOS'!R117 -> 0 | S117: ='[1]HOJA GENERAL DATOS IMPORTADOS'!S117 -> 0 | T117: ='[1]HOJA GENERAL DATOS IMPORTADOS'!T117 -> 0 | U117: ='[1]HOJA GENERAL DATOS IMPORTADOS'!U117 -> 0 | V117: ='[1]HOJA GENERAL DATOS IMPORTADOS'!V117 -> 0 | W117: ='[1]HOJA GENERAL DATOS IMPORTADOS'!W117 -> 0 | X117: ='[1]HOJA GENERAL DATOS IMPORTADOS'!X117 -> 0 | Y117: ='[1]HOJA GENERAL DATOS IMPORTADOS'!Y117 -> 0 | Z117: ='[1]HOJA GENERAL DATOS IMPORTADOS'!Z117 -> 0 | AA117: ='[1]HOJA GENERAL DATOS IMPORTADOS'!AA117 -> 0 | AB117: ='[1]HOJA GENERAL DATOS IMPORTADOS'!AB117 -> 0 | AC117: ='[1]HOJA GENERAL DATOS IMPORTADOS'!AC117 -> 0 | AD117: ='[1]HOJA GENERAL DATOS IMPORTADOS'!AD117 -> 0 | AE117: ='[1]HOJA GENERAL DATOS IMPORTADOS'!AE117 -> 0 | AF117: ='[1]HOJA GENERAL DATOS IMPORTADOS'!AF117 -> 0 | AG117: ='[1]HOJA GENERAL DATOS IMPORTADOS'!AG117 -> 0 | AH117: ='[1]HOJA GENERAL DATOS IMPORTADOS'!AH117 -> 0 | AI117: ='[1]HOJA GENERAL DATOS IMPORTADOS'!AI117 -> 0
A118: ='[1]HOJA GENERAL DATOS IMPORTADOS'!A118 -> COND CORP | B118: ='[1]HOJA GENERAL DATOS IMPORTADOS'!B118 -> ESPECIE | C118: ='[1]HOJA GENERAL DATOS IMPORTADOS'!C118 -> TIPO EXPLOTACION | D118: ='[1]HOJA GENERAL DATOS IMPORTADOS'!D118 -> PromedioDeTEMPERATURA | E118: ='[1]HOJA GENERAL DATOS IMPORTADOS'!E118 -> PromedioDeCORRIENTES AIRE | F118: ='[1]HOJA GENERAL DATOS IMPORTADOS'!F118 -> PromedioDeVENTILACION | G118: ='[1]HOJA GENERAL DATOS IMPORTADOS'!G118 -> PromedioDeAMBIENTE CARGADO | H118: ='[1]HOJA GENERAL DATOS IMPORTADOS'!H118 -> PromedioDeDENSIDAD ANIMALES | I118: ='[1]HOJA GENERAL DATOS IMPORTADOS'!I118 -> PromedioDeCALIDAD CAMA | J118: ='[1]HOJA GENERAL DATOS IMPORTADOS'!J118 -> PromedioDeCONFORT ANIMALES | K118: ='[1]HOJA GENERAL DATOS IMPORTADOS'!K118 -> PromedioDeANIMALES ESTRESADOS | L118: ='[1]HOJA GENERAL DATOS IMPORTADOS'!L118 -> PromedioDeCOMEDEROS PIENSO | M118: ='[1]HOJA GENERAL DATOS IMPORTADOS'!M118 -> PromedioDeCOMEDEROS PAJA | N118: ='[1]HOJA GENERAL DATOS IMPORTADOS'!N118 -> PromedioDeBEBEDEROS | O118: ='[1]HOJA GENERAL DATOS IMPORTADOS'!O118 -> PromedioDeCONSISTENCIA HECES | P118: ='[1]HOJA GENERAL DATOS IMPORTADOS'!P118 -> PromedioDeESTADO CORPORAL | Q118: ='[1]HOJA GENERAL DATOS IMPORTADOS'!Q118 -> PromedioDeLIMPIEZA ANIMALES | R118: ='[1]HOJA GENERAL DATOS IMPORTADOS'!R118 -> CuentaDeNº VISITA | S118: ='[1]HOJA GENERAL DATOS IMPORTADOS'!S118 -> PromedioDeESTADO PEZUÑAS | T118: ='[1]HOJA GENERAL DATOS IMPORTADOS'!T118 -> 0 | U118: ='[1]HOJA GENERAL DATOS IMPORTADOS'!U118 -> 0 | V118: ='[1]HOJA GENERAL DATOS IMPORTADOS'!V118 -> 0 | W118: ='[1]HOJA GENERAL DATOS IMPORTADOS'!W118 -> 0 | X118: ='[1]HOJA GENERAL DATOS IMPORTADOS'!X118 -> 0 | Y118: ='[1]HOJA GENERAL DATOS IMPORTADOS'!Y118 -> 0 | Z118: ='[1]HOJA GENERAL DATOS IMPORTADOS'!Z118 -> 0 | AA118: ='[1]HOJA GENERAL DATOS IMPORTADOS'!AA118 -> 0 | AB118: ='[1]HOJA GENERAL DATOS IMPORTADOS'!AB118 -> 0 | AC118: ='[1]HOJA GENERAL DATOS IMPORTADOS'!AC118 -> 0 | AD118: ='[1]HOJA GENERAL DATOS IMPORTADOS'!AD118 -> 0 | AE118: ='[1]HOJA GENERAL DATOS IMPORTADOS'!AE118 -> 0 | AF118: ='[1]HOJA GENERAL DATOS IMPORTADOS'!AF118 -> 0 | AG118: ='[1]HOJA GENERAL DATOS IMPORTADOS'!AG118 -> 0 | AH118: ='[1]HOJA GENERAL DATOS IMPORTADOS'!AH118 -> 0 | AI118: ='[1]HOJA GENERAL DATOS IMPORTADOS'!AI118 -> 0
A119: ='[1]HOJA GENERAL DATOS IMPORTADOS'!A119 -> 2.904301075 | B119: ='[1]HOJA GENERAL DATOS IMPORTADOS'!B119 -> CAPRINO | C119: ='[1]HOJA GENERAL DATOS IMPORTADOS'!C119 -> ORDEÑO | D119: ='[1]HOJA GENERAL DATOS IMPORTADOS'!D119 -> 6.150537634 | E119: ='[1]HOJA GENERAL DATOS IMPORTADOS'!E119 -> 6.247311828 | F119: ='[1]HOJA GENERAL DATOS IMPORTADOS'!F119 -> 5.591397849 | G119: ='[1]HOJA GENERAL DATOS IMPORTADOS'!G119 -> 5.580645161 | H119: ='[1]HOJA GENERAL DATOS IMPORTADOS'!H119 -> 6.279569892 | I119: ='[1]HOJA GENERAL DATOS IMPORTADOS'!I119 -> 6.11827957 | J119: ='[1]HOJA GENERAL DATOS IMPORTADOS'!J119 -> 6 | K119: ='[1]HOJA GENERAL DATOS IMPORTADOS'!K119 -> 5.827956989 | L119: ='[1]HOJA GENERAL DATOS IMPORTADOS'!L119 -> 5.924731183 | M119: ='[1]HOJA GENERAL DATOS IMPORTADOS'!M119 -> 6.344086022 | N119: ='[1]HOJA GENERAL DATOS IMPORTADOS'!N119 -> 5.76344086 | O119: ='[1]HOJA GENERAL DATOS IMPORTADOS'!O119 -> 3.333333333 | P119: ='[1]HOJA GENERAL DATOS IMPORTADOS'!P119 -> 290.4301075 | Q119: ='[1]HOJA GENERAL DATOS IMPORTADOS'!Q119 -> 6.860215054 | R119: ='[1]HOJA GENERAL DATOS IMPORTADOS'!R119 -> 93 | S119: ='[1]HOJA GENERAL DATOS IMPORTADOS'!S119 -> 5.866666667 | T119: ='[1]HOJA GENERAL DATOS IMPORTADOS'!T119 -> 0 | U119: ='[1]HOJA GENERAL DATOS IMPORTADOS'!U119 -> 0 | V119: ='[1]HOJA GENERAL DATOS IMPORTADOS'!V119 -> 0 | W119: ='[1]HOJA GENERAL DATOS IMPORTADOS'!W119 -> 0 | X119: ='[1]HOJA GENERAL DATOS IMPORTADOS'!X119 -> 0 | Y119: ='[1]HOJA GENERAL DATOS IMPORTADOS'!Y119 -> 0 | Z119: ='[1]HOJA GENERAL DATOS IMPORTADOS'!Z119 -> 0 | AA119: ='[1]HOJA GENERAL DATOS IMPORTADOS'!AA119 -> 0 | AB119: ='[1]HOJA GENERAL DATOS IMPORTADOS'!AB119 -> 0 | AC119: ='[1]HOJA GENERAL DATOS IMPORTADOS'!AC119 -> 0 | AD119: ='[1]HOJA GENERAL DATOS IMPORTADOS'!AD119 -> 0 | AE119: ='[1]HOJA GENERAL DATOS IMPORTADOS'!AE119 -> 0 | AF119: ='[1]HOJA GENERAL DATOS IMPORTADOS'!AF119 -> 0 | AG119: ='[1]HOJA GENERAL DATOS IMPORTADOS'!AG119 -> 0 | AH119: ='[1]HOJA GENERAL DATOS IMPORTADOS'!AH119 -> 0 | AI119: ='[1]HOJA GENERAL DATOS IMPORTADOS'!AI119 -> 0
A120: ='[1]HOJA GENERAL DATOS IMPORTADOS'!A120 -> 3.079207921 | B120: ='[1]HOJA GENERAL DATOS IMPORTADOS'!B120 -> OVINO | C120: ='[1]HOJA GENERAL DATOS IMPORTADOS'!C120 -> ORDEÑO | D120: ='[1]HOJA GENERAL DATOS IMPORTADOS'!D120 -> 6.227722772 | E120: ='[1]HOJA GENERAL DATOS IMPORTADOS'!E120 -> 6.287128713 | F120: ='[1]HOJA GENERAL DATOS IMPORTADOS'!F120 -> 5.881188119 | G120: ='[1]HOJA GENERAL DATOS IMPORTADOS'!G120 -> 5.712871287 | H120: ='[1]HOJA GENERAL DATOS IMPORTADOS'!H120 -> 6.059405941 | I120: ='[1]HOJA GENERAL DATOS IMPORTADOS'!I120 -> 6 | J120: ='[1]HOJA GENERAL DATOS IMPORTADOS'!J120 -> 5.940594059 | K120: ='[1]HOJA GENERAL DATOS IMPORTADOS'!K120 -> 5.663366337 | L120: ='[1]HOJA GENERAL DATOS IMPORTADOS'!L120 -> 6.00990099 | M120: ='[1]HOJA GENERAL DATOS IMPORTADOS'!M120 -> 6.00990099 | N120: ='[1]HOJA GENERAL DATOS IMPORTADOS'!N120 -> 5.683168317 | O120: ='[1]HOJA GENERAL DATOS IMPORTADOS'!O120 -> 3.465346535 | P120: ='[1]HOJA GENERAL DATOS IMPORTADOS'!P120 -> 307.9207921 | Q120: ='[1]HOJA GENERAL DATOS IMPORTADOS'!Q120 -> 6.158415842 | R120: ='[1]HOJA GENERAL DATOS IMPORTADOS'!R120 -> 101 | S120: ='[1]HOJA GENERAL DATOS IMPORTADOS'!S120 -> 5.352941176 | T120: ='[1]HOJA GENERAL DATOS IMPORTADOS'!T120 -> 0 | U120: ='[1]HOJA GENERAL DATOS IMPORTADOS'!U120 -> 0 | V120: ='[1]HOJA GENERAL DATOS IMPORTADOS'!V120 -> 0 | W120: ='[1]HOJA GENERAL DATOS IMPORTADOS'!W120 -> 0 | X120: ='[1]HOJA GENERAL DATOS IMPORTADOS'!X120 -> 0 | Y120: ='[1]HOJA GENERAL DATOS IMPORTADOS'!Y120 -> 0 | Z120: ='[1]HOJA GENERAL DATOS IMPORTADOS'!Z120 -> 0 | AA120: ='[1]HOJA GENERAL DATOS IMPORTADOS'!AA120 -> 0 | AB120: ='[1]HOJA GENERAL DATOS IMPORTADOS'!AB120 -> 0 | AC120: ='[1]HOJA GENERAL DATOS IMPORTADOS'!AC120 -> 0 | AD120: ='[1]HOJA GENERAL DATOS IMPORTADOS'!AD120 -> 0 | AE120: ='[1]HOJA GENERAL DATOS IMPORTADOS'!AE120 -> 0 | AF120: ='[1]HOJA GENERAL DATOS IMPORTADOS'!AF120 -> 0 | AG120: ='[1]HOJA GENERAL DATOS IMPORTADOS'!AG120 -> 0 | AH120: ='[1]HOJA GENERAL DATOS IMPORTADOS'!AH120 -> 0 | AI120: ='[1]HOJA GENERAL DATOS IMPORTADOS'!AI120 -> 0
A121: ='[1]HOJA GENERAL DATOS IMPORTADOS'!A121 -> 0 | B121: ='[1]HOJA GENERAL DATOS IMPORTADOS'!B121 -> 0 | C121: ='[1]HOJA GENERAL DATOS IMPORTADOS'!C121 -> 0 | D121: ='[1]HOJA GENERAL DATOS IMPORTADOS'!D121 -> 0 | E121: ='[1]HOJA GENERAL DATOS IMPORTADOS'!E121 -> 0 | F121: ='[1]HOJA GENERAL DATOS IMPORTADOS'!F121 -> 0 | G121: ='[1]HOJA GENERAL DATOS IMPORTADOS'!G121 -> 0 | H121: ='[1]HOJA GENERAL DATOS IMPORTADOS'!H121 -> 0 | I121: ='[1]HOJA GENERAL DATOS IMPORTADOS'!I121 -> 0 | J121: ='[1]HOJA GENERAL DATOS IMPORTADOS'!J121 -> 0 | K121: ='[1]HOJA GENERAL DATOS IMPORTADOS'!K121 -> 0 | L121: ='[1]HOJA GENERAL DATOS IMPORTADOS'!L121 -> 0 | M121: ='[1]HOJA GENERAL DATOS IMPORTADOS'!M121 -> 0 | N121: ='[1]HOJA GENERAL DATOS IMPORTADOS'!N121 -> 0 | O121: ='[1]HOJA GENERAL DATOS IMPORTADOS'!O121 -> 0 | P121: ='[1]HOJA GENERAL DATOS IMPORTADOS'!P121 -> 0 | Q121: ='[1]HOJA GENERAL DATOS IMPORTADOS'!Q121 -> 0 | R121: ='[1]HOJA GENERAL DATOS IMPORTADOS'!R121 -> 0 | S121: ='[1]HOJA GENERAL DATOS IMPORTADOS'!S121 -> 0 | T121: ='[1]HOJA GENERAL DATOS IMPORTADOS'!T121 -> 0 | U121: ='[1]HOJA GENERAL DATOS IMPORTADOS'!U121 -> 0 | V121: ='[1]HOJA GENERAL DATOS IMPORTADOS'!V121 -> 0 | W121: ='[1]HOJA GENERAL DATOS IMPORTADOS'!W121 -> 0 | X121: ='[1]HOJA GENERAL DATOS IMPORTADOS'!X121 -> 0 | Y121: ='[1]HOJA GENERAL DATOS IMPORTADOS'!Y121 -> 0 | Z121: ='[1]HOJA GENERAL DATOS IMPORTADOS'!Z121 -> 0 | AA121: ='[1]HOJA GENERAL DATOS IMPORTADOS'!AA121 -> 0 | AB121: ='[1]HOJA GENERAL DATOS IMPORTADOS'!AB121 -> 0 | AC121: ='[1]HOJA GENERAL DATOS IMPORTADOS'!AC121 -> 0 | AD121: ='[1]HOJA GENERAL DATOS IMPORTADOS'!AD121 -> 0 | AE121: ='[1]HOJA GENERAL DATOS IMPORTADOS'!AE121 -> 0 | AF121: ='[1]HOJA GENERAL DATOS IMPORTADOS'!AF121 -> 0 | AG121: ='[1]HOJA GENERAL DATOS IMPORTADOS'!AG121 -> 0 | AH121: ='[1]HOJA GENERAL DATOS IMPORTADOS'!AH121 -> 0 | AI121: ='[1]HOJA GENERAL DATOS IMPORTADOS'!AI121 -> 0
A122: ='[1]HOJA GENERAL DATOS IMPORTADOS'!A122 -> 0 | B122: ='[1]HOJA GENERAL DATOS IMPORTADOS'!B122 -> 0 | C122: ='[1]HOJA GENERAL DATOS IMPORTADOS'!C122 -> 0 | D122: ='[1]HOJA GENERAL DATOS IMPORTADOS'!D122 -> 0 | E122: ='[1]HOJA GENERAL DATOS IMPORTADOS'!E122 -> 0 | F122: ='[1]HOJA GENERAL DATOS IMPORTADOS'!F122 -> 0 | G122: ='[1]HOJA GENERAL DATOS IMPORTADOS'!G122 -> 0 | H122: ='[1]HOJA GENERAL DATOS IMPORTADOS'!H122 -> 0 | I122: ='[1]HOJA GENERAL DATOS IMPORTADOS'!I122 -> 0 | J122: ='[1]HOJA GENERAL DATOS IMPORTADOS'!J122 -> 0 | K122: ='[1]HOJA GENERAL DATOS IMPORTADOS'!K122 -> 0 | L122: ='[1]HOJA GENERAL DATOS IMPORTADOS'!L122 -> 0 | M122: ='[1]HOJA GENERAL DATOS IMPORTADOS'!M122 -> 0 | N122: ='[1]HOJA GENERAL DATOS IMPORTADOS'!N122 -> 0 | O122: ='[1]HOJA GENERAL DATOS IMPORTADOS'!O122 -> 0 | P122: ='[1]HOJA GENERAL DATOS IMPORTADOS'!P122 -> 0 | Q122: ='[1]HOJA GENERAL DATOS IMPORTADOS'!Q122 -> 0 | R122: ='[1]HOJA GENERAL DATOS IMPORTADOS'!R122 -> 0 | S122: ='[1]HOJA GENERAL DATOS IMPORTADOS'!S122 -> 0 | T122: ='[1]HOJA GENERAL DATOS IMPORTADOS'!T122 -> 0 | U122: ='[1]HOJA GENERAL DATOS IMPORTADOS'!U122 -> 0 | V122: ='[1]HOJA GENERAL DATOS IMPORTADOS'!V122 -> 0 | W122: ='[1]HOJA GENERAL DATOS IMPORTADOS'!W122 -> 0 | X122: ='[1]HOJA GENERAL DATOS IMPORTADOS'!X122 -> 0 | Y122: ='[1]HOJA GENERAL DATOS IMPORTADOS'!Y122 -> 0 | Z122: ='[1]HOJA GENERAL DATOS IMPORTADOS'!Z122 -> 0 | AA122: ='[1]HOJA GENERAL DATOS IMPORTADOS'!AA122 -> 0 | AB122: ='[1]HOJA GENERAL DATOS IMPORTADOS'!AB122 -> 0 | AC122: ='[1]HOJA GENERAL DATOS IMPORTADOS'!AC122 -> 0 | AD122: ='[1]HOJA GENERAL DATOS IMPORTADOS'!AD122 -> 0 | AE122: ='[1]HOJA GENERAL DATOS IMPORTADOS'!AE122 -> 0 | AF122: ='[1]HOJA GENERAL DATOS IMPORTADOS'!AF122 -> 0 | AG122: ='[1]HOJA GENERAL DATOS IMPORTADOS'!AG122 -> 0 | AH122: ='[1]HOJA GENERAL DATOS IMPORTADOS'!AH122 -> 0 | AI122: ='[1]HOJA GENERAL DATOS IMPORTADOS'!AI122 -> 0
A123: ='[1]HOJA GENERAL DATOS IMPORTADOS'!A123 -> COND CORP | B123: ='[1]HOJA GENERAL DATOS IMPORTADOS'!B123 -> ESPECIE | C123: ='[1]HOJA GENERAL DATOS IMPORTADOS'!C123 -> TIPO EXPLOTACION | D123: ='[1]HOJA GENERAL DATOS IMPORTADOS'!D123 -> DesvEstDeTEMPERATURA | E123: ='[1]HOJA GENERAL DATOS IMPORTADOS'!E123 -> DesvEstDeCORRIENTES AIRE | F123: ='[1]HOJA GENERAL DATOS IMPORTADOS'!F123 -> DesvEstDeVENTILACION | G123: ='[1]HOJA GENERAL DATOS IMPORTADOS'!G123 -> DesvEstDeAMBIENTE CARGADO | H123: ='[1]HOJA GENERAL DATOS IMPORTADOS'!H123 -> DesvEstDeDENSIDAD ANIMALES | I123: ='[1]HOJA GENERAL DATOS IMPORTADOS'!I123 -> DesvEstDeCALIDAD CAMA | J123: ='[1]HOJA GENERAL DATOS IMPORTADOS'!J123 -> DesvEstDeCONFORT ANIMALES | K123: ='[1]HOJA GENERAL DATOS IMPORTADOS'!K123 -> DesvEstDeANIMALES ESTRESADOS | L123: ='[1]HOJA GENERAL DATOS IMPORTADOS'!L123 -> DesvEstDeCOMEDEROS PIENSO | M123: ='[1]HOJA GENERAL DATOS IMPORTADOS'!M123 -> DesvEstDeCOMEDEROS PAJA | N123: ='[1]HOJA GENERAL DATOS IMPORTADOS'!N123 -> DesvEstDeBEBEDEROS | O123: ='[1]HOJA GENERAL DATOS IMPORTADOS'!O123 -> DesvEstDeCONSISTENCIA HECES | P123: ='[1]HOJA GENERAL DATOS IMPORTADOS'!P123 -> DesvEstDeESTADO CORPORAL | Q123: ='[1]HOJA GENERAL DATOS IMPORTADOS'!Q123 -> DesvEstDeLIMPIEZA ANIMALES | R123: ='[1]HOJA GENERAL DATOS IMPORTADOS'!R123 -> DesvEstDeESTADO PEZUÑAS | S123: ='[1]HOJA GENERAL DATOS IMPORTADOS'!S123 -> 0 | T123: ='[1]HOJA GENERAL DATOS IMPORTADOS'!T123 -> 0 | U123: ='[1]HOJA GENERAL DATOS IMPORTADOS'!U123 -> 0 | V123: ='[1]HOJA GENERAL DATOS IMPORTADOS'!V123 -> 0 | W123: ='[1]HOJA GENERAL DATOS IMPORTADOS'!W123 -> 0 | X123: ='[1]HOJA GENERAL DATOS IMPORTADOS'!X123 -> 0 | Y123: ='[1]HOJA GENERAL DATOS IMPORTADOS'!Y123 -> 0 | Z123: ='[1]HOJA GENERAL DATOS IMPORTADOS'!Z123 -> 0 | AA123: ='[1]HOJA GENERAL DATOS IMPORTADOS'!AA123 -> 0 | AB123: ='[1]HOJA GENERAL DATOS IMPORTADOS'!AB123 -> 0 | AC123: ='[1]HOJA GENERAL DATOS IMPORTADOS'!AC123 -> 0 | AD123: ='[1]HOJA GENERAL DATOS IMPORTADOS'!AD123 -> 0 | AE123: ='[1]HOJA GENERAL DATOS IMPORTADOS'!AE123 -> 0 | AF123: ='[1]HOJA GENERAL DATOS IMPORTADOS'!AF123 -> 0 | AG123: ='[1]HOJA GENERAL DATOS IMPORTADOS'!AG123 -> 0 | AH123: ='[1]HOJA GENERAL DATOS IMPORTADOS'!AH123 -> 0 | AI123: ='[1]HOJA GENERAL DATOS IMPORTADOS'!AI123 -> 0
A124: ='[1]HOJA GENERAL DATOS IMPORTADOS'!A124 -> 0.3515227677 | B124: ='[1]HOJA GENERAL DATOS IMPORTADOS'!B124 -> CAPRINO | C124: ='[1]HOJA GENERAL DATOS IMPORTADOS'!C124 -> ORDEÑO | D124: ='[1]HOJA GENERAL DATOS IMPORTADOS'!D124 -> 0.9662369473 | E124: ='[1]HOJA GENERAL DATOS IMPORTADOS'!E124 -> 0.7892747631 | F124: ='[1]HOJA GENERAL DATOS IMPORTADOS'!F124 -> 0.9582202608 | G124: ='[1]HOJA GENERAL DATOS IMPORTADOS'!G124 -> 0.9926094359 | H124: ='[1]HOJA GENERAL DATOS IMPORTADOS'!H124 -> 0.9132549456 | I124: ='[1]HOJA GENERAL DATOS IMPORTADOS'!I124 -> 1.051391029 | J124: ='[1]HOJA GENERAL DATOS IMPORTADOS'!J124 -> 0.8340576562 | K124: ='[1]HOJA GENERAL DATOS IMPORTADOS'!K124 -> 0.8675760324 | L124: ='[1]HOJA GENERAL DATOS IMPORTADOS'!L124 -> 1.04503546 | M124: ='[1]HOJA GENERAL DATOS IMPORTADOS'!M124 -> 0.8533135371 | N124: ='[1]HOJA GENERAL DATOS IMPORTADOS'!N124 -> 1.036275201 | O124: ='[1]HOJA GENERAL DATOS IMPORTADOS'!O124 -> 0.5582062369 | P124: ='[1]HOJA GENERAL DATOS IMPORTADOS'!P124 -> 35.15227677 | Q124: ='[1]HOJA GENERAL DATOS IMPORTADOS'!Q124 -> 0.6357364413 | R124: ='[1]HOJA GENERAL DATOS IMPORTADOS'!R124 -> 1.125462868 | S124: ='[1]HOJA GENERAL DATOS IMPORTADOS'!S124 -> 0 | T124: ='[1]HOJA GENERAL DATOS IMPORTADOS'!T124 -> 0 | U124: ='[1]HOJA GENERAL DATOS IMPORTADOS'!U124 -> 0 | V124: ='[1]HOJA GENERAL DATOS IMPORTADOS'!V124 -> 0 | W124: ='[1]HOJA GENERAL DATOS IMPORTADOS'!W124 -> 0 | X124: ='[1]HOJA GENERAL DATOS IMPORTADOS'!X124 -> 0 | Y124: ='[1]HOJA GENERAL DATOS IMPORTADOS'!Y124 -> 0 | Z124: ='[1]HOJA GENERAL DATOS IMPORTADOS'!Z124 -> 0 | AA124: ='[1]HOJA GENERAL DATOS IMPORTADOS'!AA124 -> 0 | AB124: ='[1]HOJA GENERAL DATOS IMPORTADOS'!AB124 -> 0 | AC124: ='[1]HOJA GENERAL DATOS IMPORTADOS'!AC124 -> 0 | AD124: ='[1]HOJA GENERAL DATOS IMPORTADOS'!AD124 -> 0 | AE124: ='[1]HOJA GENERAL DATOS IMPORTADOS'!AE124 -> 0 | AF124: ='[1]HOJA GENERAL DATOS IMPORTADOS'!AF124 -> 0 | AG124: ='[1]HOJA GENERAL DATOS IMPORTADOS'!AG124 -> 0 | AH124: ='[1]HOJA GENERAL DATOS IMPORTADOS'!AH124 -> 0 | AI124: ='[1]HOJA GENERAL DATOS IMPORTADOS'!AI124 -> 0
A125: ='[1]HOJA GENERAL DATOS IMPORTADOS'!A125 -> 0.3239033287 | B125: ='[1]HOJA GENERAL DATOS IMPORTADOS'!B125 -> OVINO | C125: ='[1]HOJA GENERAL DATOS IMPORTADOS'!C125 -> ORDEÑO | D125: ='[1]HOJA GENERAL DATOS IMPORTADOS'!D125 -> 0.9368157569 | E125: ='[1]HOJA GENERAL DATOS IMPORTADOS'!E125 -> 0.8406739399 | F125: ='[1]HOJA GENERAL DATOS IMPORTADOS'!F125 -> 0.8400848613 | G125: ='[1]HOJA GENERAL DATOS IMPORTADOS'!G125 -> 0.9309847868 | H125: ='[1]HOJA GENERAL DATOS IMPORTADOS'!H125 -> 1.129794514 | I125: ='[1]HOJA GENERAL DATOS IMPORTADOS'!I125 -> 1.039230485 | J125: ='[1]HOJA GENERAL DATOS IMPORTADOS'!J125 -> 0.8924324308 | K125: ='[1]HOJA GENERAL DATOS IMPORTADOS'!K125 -> 0.972391153 | L125: ='[1]HOJA GENERAL DATOS IMPORTADOS'!L125 -> 0.9326848289 | M125: ='[1]HOJA GENERAL DATOS IMPORTADOS'!M125 -> 0.9848355142 | N125: ='[1]HOJA GENERAL DATOS IMPORTADOS'!N125 -> 0.9266141923 | O125: ='[1]HOJA GENERAL DATOS IMPORTADOS'!O125 -> 0.6413167148 | P125: ='[1]HOJA GENERAL DATOS IMPORTADOS'!P125 -> 32.39033287 | Q125: ='[1]HOJA GENERAL DATOS IMPORTADOS'!Q125 -> 1.065201138 | R125: ='[1]HOJA GENERAL DATOS IMPORTADOS'!R125 -> 1.411611511 | S125: ='[1]HOJA GENERAL DATOS IMPORTADOS'!S125 -> 0 | T125: ='[1]HOJA GENERAL DATOS IMPORTADOS'!T125 -> 0 | U125: ='[1]HOJA GENERAL DATOS IMPORTADOS'!U125 -> 0 | V125: ='[1]HOJA GENERAL DATOS IMPORTADOS'!V125 -> 0 | W125: ='[1]HOJA GENERAL DATOS IMPORTADOS'!W125 -> 0 | X125: ='[1]HOJA GENERAL DATOS IMPORTADOS'!X125 -> 0 | Y125: ='[1]HOJA GENERAL DATOS IMPORTADOS'!Y125 -> 0 | Z125: ='[1]HOJA GENERAL DATOS IMPORTADOS'!Z125 -> 0 | AA125: ='[1]HOJA GENERAL DATOS IMPORTADOS'!AA125 -> 0 | AB125: ='[1]HOJA GENERAL DATOS IMPORTADOS'!AB125 -> 0 | AC125: ='[1]HOJA GENERAL DATOS IMPORTADOS'!AC125 -> 0 | AD125: ='[1]HOJA GENERAL DATOS IMPORTADOS'!AD125 -> 0 | AE125: ='[1]HOJA GENERAL DATOS IMPORTADOS'!AE125 -> 0 | AF125: ='[1]HOJA GENERAL DATOS IMPORTADOS'!AF125 -> 0 | AG125: ='[1]HOJA GENERAL DATOS IMPORTADOS'!AG125 -> 0 | AH125: ='[1]HOJA GENERAL DATOS IMPORTADOS'!AH125 -> 0 | AI125: ='[1]HOJA GENERAL DATOS IMPORTADOS'!AI125 -> 0
A126: ='[1]HOJA GENERAL DATOS IMPORTADOS'!A126 -> 0 | B126: ='[1]HOJA GENERAL DATOS IMPORTADOS'!B126 -> 0 | C126: ='[1]HOJA GENERAL DATOS IMPORTADOS'!C126 -> 0 | D126: ='[1]HOJA GENERAL DATOS IMPORTADOS'!D126 -> 0 | E126: ='[1]HOJA GENERAL DATOS IMPORTADOS'!E126 -> 0 | F126: ='[1]HOJA GENERAL DATOS IMPORTADOS'!F126 -> 0 | G126: ='[1]HOJA GENERAL DATOS IMPORTADOS'!G126 -> 0 | H126: ='[1]HOJA GENERAL DATOS IMPORTADOS'!H126 -> 0 | I126: ='[1]HOJA GENERAL DATOS IMPORTADOS'!I126 -> 0 | J126: ='[1]HOJA GENERAL DATOS IMPORTADOS'!J126 -> 0 | K126: ='[1]HOJA GENERAL DATOS IMPORTADOS'!K126 -> 0 | L126: ='[1]HOJA GENERAL DATOS IMPORTADOS'!L126 -> 0 | M126: ='[1]HOJA GENERAL DATOS IMPORTADOS'!M126 -> 0 | N126: ='[1]HOJA GENERAL DATOS IMPORTADOS'!N126 -> 0 | O126: ='[1]HOJA GENERAL DATOS IMPORTADOS'!O126 -> 0 | P126: ='[1]HOJA GENERAL DATOS IMPORTADOS'!P126 -> 0 | Q126: ='[1]HOJA GENERAL DATOS IMPORTADOS'!Q126 -> 0 | R126: ='[1]HOJA GENERAL DATOS IMPORTADOS'!R126 -> 0 | S126: ='[1]HOJA GENERAL DATOS IMPORTADOS'!S126 -> 0 | T126: ='[1]HOJA GENERAL DATOS IMPORTADOS'!T126 -> 0 | U126: ='[1]HOJA GENERAL DATOS IMPORTADOS'!U126 -> 0 | V126: ='[1]HOJA GENERAL DATOS IMPORTADOS'!V126 -> 0 | W126: ='[1]HOJA GENERAL DATOS IMPORTADOS'!W126 -> 0 | X126: ='[1]HOJA GENERAL DATOS IMPORTADOS'!X126 -> 0 | Y126: ='[1]HOJA GENERAL DATOS IMPORTADOS'!Y126 -> 0 | Z126: ='[1]HOJA GENERAL DATOS IMPORTADOS'!Z126 -> 0 | AA126: ='[1]HOJA GENERAL DATOS IMPORTADOS'!AA126 -> 0 | AB126: ='[1]HOJA GENERAL DATOS IMPORTADOS'!AB126 -> 0 | AC126: ='[1]HOJA GENERAL DATOS IMPORTADOS'!AC126 -> 0 | AD126: ='[1]HOJA GENERAL DATOS IMPORTADOS'!AD126 -> 0 | AE126: ='[1]HOJA GENERAL DATOS IMPORTADOS'!AE126 -> 0 | AF126: ='[1]HOJA GENERAL DATOS IMPORTADOS'!AF126 -> 0 | AG126: ='[1]HOJA GENERAL DATOS IMPORTADOS'!AG126 -> 0 | AH126: ='[1]HOJA GENERAL DATOS IMPORTADOS'!AH126 -> 0 | AI126: ='[1]HOJA GENERAL DATOS IMPORTADOS'!AI126 -> 0
A127: ='[1]HOJA GENERAL DATOS IMPORTADOS'!A127 -> 0 | B127: ='[1]HOJA GENERAL DATOS IMPORTADOS'!B127 -> 0 | C127: ='[1]HOJA GENERAL DATOS IMPORTADOS'!C127 -> 0 | D127: ='[1]HOJA GENERAL DATOS IMPORTADOS'!D127 -> 0 | E127: ='[1]HOJA GENERAL DATOS IMPORTADOS'!E127 -> 0 | F127: ='[1]HOJA GENERAL DATOS IMPORTADOS'!F127 -> 0 | G127: ='[1]HOJA GENERAL DATOS IMPORTADOS'!G127 -> 0 | H127: ='[1]HOJA GENERAL DATOS IMPORTADOS'!H127 -> 0 | I127: ='[1]HOJA GENERAL DATOS IMPORTADOS'!I127 -> 0 | J127: ='[1]HOJA GENERAL DATOS IMPORTADOS'!J127 -> 0 | K127: ='[1]HOJA GENERAL DATOS IMPORTADOS'!K127 -> 0 | L127: ='[1]HOJA GENERAL DATOS IMPORTADOS'!L127 -> 0 | M127: ='[1]HOJA GENERAL DATOS IMPORTADOS'!M127 -> 0 | N127: ='[1]HOJA GENERAL DATOS IMPORTADOS'!N127 -> 0 | O127: ='[1]HOJA GENERAL DATOS IMPORTADOS'!O127 -> 0 | P127: ='[1]HOJA GENERAL DATOS IMPORTADOS'!P127 -> 0 | Q127: ='[1]HOJA GENERAL DATOS IMPORTADOS'!Q127 -> 0 | R127: ='[1]HOJA GENERAL DATOS IMPORTADOS'!R127 -> 0 | S127: ='[1]HOJA GENERAL DATOS IMPORTADOS'!S127 -> 0 | T127: ='[1]HOJA GENERAL DATOS IMPORTADOS'!T127 -> 0 | U127: ='[1]HOJA GENERAL DATOS IMPORTADOS'!U127 -> 0 | V127: ='[1]HOJA GENERAL DATOS IMPORTADOS'!V127 -> 0 | W127: ='[1]HOJA GENERAL DATOS IMPORTADOS'!W127 -> 0 | X127: ='[1]HOJA GENERAL DATOS IMPORTADOS'!X127 -> 0 | Y127: ='[1]HOJA GENERAL DATOS IMPORTADOS'!Y127 -> 0 | Z127: ='[1]HOJA GENERAL DATOS IMPORTADOS'!Z127 -> 0 | AA127: ='[1]HOJA GENERAL DATOS IMPORTADOS'!AA127 -> 0 | AB127: ='[1]HOJA GENERAL DATOS IMPORTADOS'!AB127 -> 0 | AC127: ='[1]HOJA GENERAL DATOS IMPORTADOS'!AC127 -> 0 | AD127: ='[1]HOJA GENERAL DATOS IMPORTADOS'!AD127 -> 0 | AE127: ='[1]HOJA GENERAL DATOS IMPORTADOS'!AE127 -> 0 | AF127: ='[1]HOJA GENERAL DATOS IMPORTADOS'!AF127 -> 0 | AG127: ='[1]HOJA GENERAL DATOS IMPORTADOS'!AG127 -> 0 | AH127: ='[1]HOJA GENERAL DATOS IMPORTADOS'!AH127 -> 0 | AI127: ='[1]HOJA GENERAL DATOS IMPORTADOS'!AI127 -> 0
A128: ='[1]HOJA GENERAL DATOS IMPORTADOS'!A128 -> PromedioDeOL ALI SISTEMA ALIMENTACION | B128: ='[1]HOJA GENERAL DATOS IMPORTADOS'!B128 -> PromedioDeOL ALI CALIDAD Y DISPONIBILIDAD DE FORRAJES | C128: ='[1]HOJA GENERAL DATOS IMPORTADOS'!C128 -> PromedioDeOL ALI LOTES ALIMENTACION | D128: ='[1]HOJA GENERAL DATOS IMPORTADOS'!D128 -> PromedioDeOL ALI APROVECHAMIENTO RECURSOS NATURALES | E128: ='[1]HOJA GENERAL DATOS IMPORTADOS'!E128 -> PromedioDeOL ALI AUTOMATIZACION | F128: ='[1]HOJA GENERAL DATOS IMPORTADOS'!F128 -> PromedioDeOL SA PLAN SANITARIO | G128: ='[1]HOJA GENERAL DATOS IMPORTADOS'!G128 -> PromedioDeOL SA MORTALIDAD CORDEROS | H128: ='[1]HOJA GENERAL DATOS IMPORTADOS'!H128 -> PromedioDeOL SA MORTALIDAD ADULTOS | I128: ='[1]HOJA GENERAL DATOS IMPORTADOS'!I128 -> PromedioDeOL SA INCIDENCIA PATOLOGIA MAS FRECUENTE | J128: ='[1]HOJA GENERAL DATOS IMPORTADOS'!J128 -> PromedioDeOL SA PORCENTAJE DE MAMITIS | K128: ='[1]HOJA GENERAL DATOS IMPORTADOS'!K128 -> PromedioDeOL IBA LACTANCIA ARTIFICIAL | L128: ='[1]HOJA GENERAL DATOS IMPORTADOS'!L128 -> PromedioDeOL IBA SALA ORDEÑO | M128: ='[1]HOJA GENERAL DATOS IMPORTADOS'!M128 -> PromedioDeOL IBA VENTILACION Y AMBIENTE | N128: ='[1]HOJA GENERAL DATOS IMPORTADOS'!N128 -> PromedioDeOL IBA NAVES PARA LOTES | O128: ='[1]HOJA GENERAL DATOS IMPORTADOS'!O128 -> PromedioDeOL IBA COMEDEROS, BEBEDEROS | P128: ='[1]HOJA GENERAL DATOS IMPORTADOS'!P128 -> PromedioDeOL PRI LECHE/OVEJA AÑO | Q128: ='[1]HOJA GENERAL DATOS IMPORTADOS'!Q128 -> PromedioDeOL PRI CORDEROS VENDIDOS | R128: ='[1]HOJA GENERAL DATOS IMPORTADOS'!R128 -> PromedioDeOL PRI OVEJAS/ UTH | S128: ='[1]HOJA GENERAL DATOS IMPORTADOS'!S128 -> PromedioDeOL PRI CALIDAD DE LECHE | T128: ='[1]HOJA GENERAL DATOS IMPORTADOS'!T128 -> PromedioDeOL PRI TASA REPOSICION | U128: ='[1]HOJA GENERAL DATOS IMPORTADOS'!U128 -> PromedioDeOL REC INGRESOS BRUTOS LECHE | V128: ='[1]HOJA GENERAL DATOS IMPORTADOS'!V128 -> PromedioDeOL REC INGRESOS BRUTOS VENTA ANIMALES | W128: ='[1]HOJA GENERAL DATOS IMPORTADOS'!W128 -> PromedioDeOL REC GASTOS ALIMENTACION | X128: ='[1]HOJA GENERAL DATOS IMPORTADOS'!X128 -> PromedioDeOL REC AMORTIZACION | Y128: ='[1]HOJA GENERAL DATOS IMPORTADOS'!Y128 -> PromedioDeOL REC MANO DE OBRA | Z128: ='[1]HOJA GENERAL DATOS IMPORTADOS'!Z128 -> CuentaDeNº REGISTRO | AA128: ='[1]HOJA GENERAL DATOS IMPORTADOS'!AA128 -> 0 | AB128: ='[1]HOJA GENERAL DATOS IMPORTADOS'!AB128 -> 0 | AC128: ='[1]HOJA GENERAL DATOS IMPORTADOS'!AC128 -> 0 | AD128: ='[1]HOJA GENERAL DATOS IMPORTADOS'!AD128 -> 0 | AE128: ='[1]HOJA GENERAL DATOS IMPORTADOS'!AE128 -> 0 | AF128: ='[1]HOJA GENERAL DATOS IMPORTADOS'!AF128 -> 0 | AG128: ='[1]HOJA GENERAL DATOS IMPORTADOS'!AG128 -> 0 | AH128: ='[1]HOJA GENERAL DATOS IMPORTADOS'!AH128 -> 0 | AI128: ='[1]HOJA GENERAL DATOS IMPORTADOS'!AI128 -> 0
A129: ='[1]HOJA GENERAL DATOS IMPORTADOS'!A129 -> 3 | B129: ='[1]HOJA GENERAL DATOS IMPORTADOS'!B129 -> 2.833333333 | C129: ='[1]HOJA GENERAL DATOS IMPORTADOS'!C129 -> 2.933333333 | D129: ='[1]HOJA GENERAL DATOS IMPORTADOS'!D129 -> 2.466666667 | E129: ='[1]HOJA GENERAL DATOS IMPORTADOS'!E129 -> 2.933333333 | F129: ='[1]HOJA GENERAL DATOS IMPORTADOS'!F129 -> 3.1 | G129: ='[1]HOJA GENERAL DATOS IMPORTADOS'!G129 -> 2.866666667 | H129: ='[1]HOJA GENERAL DATOS IMPORTADOS'!H129 -> 3.133333333 | I129: ='[1]HOJA GENERAL DATOS IMPORTADOS'!I129 -> 2.8 | J129: ='[1]HOJA GENERAL DATOS IMPORTADOS'!J129 -> 2.633333333 | K129: ='[1]HOJA GENERAL DATOS IMPORTADOS'!K129 -> 1.433333333 | L129: ='[1]HOJA GENERAL DATOS IMPORTADOS'!L129 -> 2.9 | M129: ='[1]HOJA GENERAL DATOS IMPORTADOS'!M129 -> 2.5 | N129: ='[1]HOJA GENERAL DATOS IMPORTADOS'!N129 -> 2.166666667 | O129: ='[1]HOJA GENERAL DATOS IMPORTADOS'!O129 -> 2.8 | P129: ='[1]HOJA GENERAL DATOS IMPORTADOS'!P129 -> 2.433333333 | Q129: ='[1]HOJA GENERAL DATOS IMPORTADOS'!Q129 -> 2.366666667 | R129: ='[1]HOJA GENERAL DATOS IMPORTADOS'!R129 -> 2.666666667 | S129: ='[1]HOJA GENERAL DATOS IMPORTADOS'!S129 -> 2.266666667 | T129: ='[1]HOJA GENERAL DATOS IMPORTADOS'!T129 -> 2.533333333 | U129: ='[1]HOJA GENERAL DATOS IMPORTADOS'!U129 -> 3.133333333 | V129: ='[1]HOJA GENERAL DATOS IMPORTADOS'!V129 -> 3.133333333 | W129: ='[1]HOJA GENERAL DATOS IMPORTADOS'!W129 -> 3.166666667 | X129: ='[1]HOJA GENERAL DATOS IMPORTADOS'!X129 -> 3.066666667 | Y129: ='[1]HOJA GENERAL DATOS IMPORTADOS'!Y129 -> 2.966666667 | Z129: ='[1]HOJA GENERAL DATOS IMPORTADOS'!Z129 -> 30 | AA129: ='[1]HOJA GENERAL DATOS IMPORTADOS'!AA129 -> 0 | AB129: ='[1]HOJA GENERAL DATOS IMPORTADOS'!AB129 -> 0 | AC129: ='[1]HOJA GENERAL DATOS IMPORTADOS'!AC129 -> 0 | AD129: ='[1]HOJA GENERAL DATOS IMPORTADOS'!AD129 -> 0 | AE129: ='[1]HOJA GENERAL DATOS IMPORTADOS'!AE129 -> 0 | AF129: ='[1]HOJA GENERAL DATOS IMPORTADOS'!AF129 -> 0 | AG129: ='[1]HOJA GENERAL DATOS IMPORTADOS'!AG129 -> 0 | AH129: ='[1]HOJA GENERAL DATOS IMPORTADOS'!AH129 -> 0 | AI129: ='[1]HOJA GENERAL DATOS IMPORTADOS'!AI129 -> 0
A130: ='[1]HOJA GENERAL DATOS IMPORTADOS'!A130 -> 0 | B130: ='[1]HOJA GENERAL DATOS IMPORTADOS'!B130 -> 0 | C130: ='[1]HOJA GENERAL DATOS IMPORTADOS'!C130 -> 0 | D130: ='[1]HOJA GENERAL DATOS IMPORTADOS'!D130 -> 0 | E130: ='[1]HOJA GENERAL DATOS IMPORTADOS'!E130 -> 0 | F130: ='[1]HOJA GENERAL DATOS IMPORTADOS'!F130 -> 0 | G130: ='[1]HOJA GENERAL DATOS IMPORTADOS'!G130 -> 0 | H130: ='[1]HOJA GENERAL DATOS IMPORTADOS'!H130 -> 0 | I130: ='[1]HOJA GENERAL DATOS IMPORTADOS'!I130 -> 0 | J130: ='[1]HOJA GENERAL DATOS IMPORTADOS'!J130 -> 0 | K130: ='[1]HOJA GENERAL DATOS IMPORTADOS'!K130 -> 0 | L130: ='[1]HOJA GENERAL DATOS IMPORTADOS'!L130 -> 0 | M130: ='[1]HOJA GENERAL DATOS IMPORTADOS'!M130 -> 0 | N130: ='[1]HOJA GENERAL DATOS IMPORTADOS'!N130 -> 0 | O130: ='[1]HOJA GENERAL DATOS IMPORTADOS'!O130 -> 0 | P130: ='[1]HOJA GENERAL DATOS IMPORTADOS'!P130 -> 0 | Q130: ='[1]HOJA GENERAL DATOS IMPORTADOS'!Q130 -> 0 | R130: ='[1]HOJA GENERAL DATOS IMPORTADOS'!R130 -> 0 | S130: ='[1]HOJA GENERAL DATOS IMPORTADOS'!S130 -> 0 | T130: ='[1]HOJA GENERAL DATOS IMPORTADOS'!T130 -> 0 | U130: ='[1]HOJA GENERAL DATOS IMPORTADOS'!U130 -> 0 | V130: ='[1]HOJA GENERAL DATOS IMPORTADOS'!V130 -> 0 | W130: ='[1]HOJA GENERAL DATOS IMPORTADOS'!W130 -> 0 | X130: ='[1]HOJA GENERAL DATOS IMPORTADOS'!X130 -> 0 | Y130: ='[1]HOJA GENERAL DATOS IMPORTADOS'!Y130 -> 0 | Z130: ='[1]HOJA GENERAL DATOS IMPORTADOS'!Z130 -> 0 | AA130: ='[1]HOJA GENERAL DATOS IMPORTADOS'!AA130 -> 0 | AB130: ='[1]HOJA GENERAL DATOS IMPORTADOS'!AB130 -> 0 | AC130: ='[1]HOJA GENERAL DATOS IMPORTADOS'!AC130 -> 0 | AD130: ='[1]HOJA GENERAL DATOS IMPORTADOS'!AD130 -> 0 | AE130: ='[1]HOJA GENERAL DATOS IMPORTADOS'!AE130 -> 0 | AF130: ='[1]HOJA GENERAL DATOS IMPORTADOS'!AF130 -> 0 | AG130: ='[1]HOJA GENERAL DATOS IMPORTADOS'!AG130 -> 0 | AH130: ='[1]HOJA GENERAL DATOS IMPORTADOS'!AH130 -> 0 | AI130: ='[1]HOJA GENERAL DATOS IMPORTADOS'!AI130 -> 0
A131: ='[1]HOJA GENERAL DATOS IMPORTADOS'!A131 -> DesvEstDeOL ALI SISTEMA ALIMENTACION | B131: ='[1]HOJA GENERAL DATOS IMPORTADOS'!B131 -> DesvEstDeOL ALI CALIDAD Y DISPONIBILIDAD DE FORRAJES | C131: ='[1]HOJA GENERAL DATOS IMPORTADOS'!C131 -> DesvEstDeOL ALI LOTES ALIMENTACION | D131: ='[1]HOJA GENERAL DATOS IMPORTADOS'!D131 -> DesvEstDeOL ALI APROVECHAMIENTO RECURSOS NATURALES | E131: ='[1]HOJA GENERAL DATOS IMPORTADOS'!E131 -> DesvEstDeOL ALI AUTOMATIZACION | F131: ='[1]HOJA GENERAL DATOS IMPORTADOS'!F131 -> DesvEstDeOL SA PLAN SANITARIO | G131: ='[1]HOJA GENERAL DATOS IMPORTADOS'!G131 -> DesvEstDeOL SA MORTALIDAD CORDEROS | H131: ='[1]HOJA GENERAL DATOS IMPORTADOS'!H131 -> DesvEstDeOL SA MORTALIDAD ADULTOS | I131: ='[1]HOJA GENERAL DATOS IMPORTADOS'!I131 -> DesvEstDeOL SA INCIDENCIA PATOLOGIA MAS FRECUENTE | J131: ='[1]HOJA GENERAL DATOS IMPORTADOS'!J131 -> DesvEstDeOL SA PORCENTAJE DE MAMITIS | K131: ='[1]HOJA GENERAL DATOS IMPORTADOS'!K131 -> DesvEstDeOL IBA LACTANCIA ARTIFICIAL | L131: ='[1]HOJA GENERAL DATOS IMPORTADOS'!L131 -> DesvEstDeOL IBA SALA ORDEÑO | M131: ='[1]HOJA GENERAL DATOS IMPORTADOS'!M131 -> DesvEstDeOL IBA VENTILACION Y AMBIENTE | N131: ='[1]HOJA GENERAL DATOS IMPORTADOS'!N131 -> DesvEstDeOL IBA NAVES PARA LOTES | O131: ='[1]HOJA GENERAL DATOS IMPORTADOS'!O131 -> DesvEstDeOL IBA COMEDEROS, BEBEDEROS | P131: ='[1]HOJA GENERAL DATOS IMPORTADOS'!P131 -> DesvEstDeOL PRI LECHE/OVEJA AÑO | Q131: ='[1]HOJA GENERAL DATOS IMPORTADOS'!Q131 -> DesvEstDeOL PRI CORDEROS VENDIDOS | R131: ='[1]HOJA GENERAL DATOS IMPORTADOS'!R131 -> DesvEstDeOL PRI OVEJAS/ UTH | S131: ='[1]HOJA GENERAL DATOS IMPORTADOS'!S131 -> DesvEstDeOL PRI CALIDAD DE LECHE | T131: ='[1]HOJA GENERAL DATOS IMPORTADOS'!T131 -> DesvEstDeOL PRI TASA REPOSICION | U131: ='[1]HOJA GENERAL DATOS IMPORTADOS'!U131 -> DesvEstDeOL REC INGRESOS BRUTOS LECHE | V131: ='[1]HOJA GENERAL DATOS IMPORTADOS'!V131 -> DesvEstDeOL REC INGRESOS BRUTOS VENTA ANIMALES | W131: ='[1]HOJA GENERAL DATOS IMPORTADOS'!W131 -> DesvEstDeOL REC GASTOS ALIMENTACION | X131: ='[1]HOJA GENERAL DATOS IMPORTADOS'!X131 -> DesvEstDeOL REC AMORTIZACION | Y131: ='[1]HOJA GENERAL DATOS IMPORTADOS'!Y131 -> DesvEstDeOL REC MANO DE OBRA | Z131: ='[1]HOJA GENERAL DATOS IMPORTADOS'!Z131 -> CuentaDeNº REGISTRO | AA131: ='[1]HOJA GENERAL DATOS IMPORTADOS'!AA131 -> 0 | AB131: ='[1]HOJA GENERAL DATOS IMPORTADOS'!AB131 -> 0 | AC131: ='[1]HOJA GENERAL DATOS IMPORTADOS'!AC131 -> 0 | AD131: ='[1]HOJA GENERAL DATOS IMPORTADOS'!AD131 -> 0 | AE131: ='[1]HOJA GENERAL DATOS IMPORTADOS'!AE131 -> 0 | AF131: ='[1]HOJA GENERAL DATOS IMPORTADOS'!AF131 -> 0 | AG131: ='[1]HOJA GENERAL DATOS IMPORTADOS'!AG131 -> 0 | AH131: ='[1]HOJA GENERAL DATOS IMPORTADOS'!AH131 -> 0 | AI131: ='[1]HOJA GENERAL DATOS IMPORTADOS'!AI131 -> 0
A132: ='[1]HOJA GENERAL DATOS IMPORTADOS'!A132 -> 0.7427813527 | B132: ='[1]HOJA GENERAL DATOS IMPORTADOS'!B132 -> 0.874281314 | C132: ='[1]HOJA GENERAL DATOS IMPORTADOS'!C132 -> 0.8683449709 | D132: ='[1]HOJA GENERAL DATOS IMPORTADOS'!D132 -> 1.357821108 | E132: ='[1]HOJA GENERAL DATOS IMPORTADOS'!E132 -> 1.080655399 | F132: ='[1]HOJA GENERAL DATOS IMPORTADOS'!F132 -> 1.093870067 | G132: ='[1]HOJA GENERAL DATOS IMPORTADOS'!G132 -> 0.8603661343 | H132: ='[1]HOJA GENERAL DATOS IMPORTADOS'!H132 -> 1.136641554 | I132: ='[1]HOJA GENERAL DATOS IMPORTADOS'!I132 -> 0.8469010446 | J132: ='[1]HOJA GENERAL DATOS IMPORTADOS'!J132 -> 1.129031728 | K132: 0.4 | L132: ='[1]HOJA GENERAL DATOS IMPORTADOS'!L132 -> 0.8030115729 | M132: ='[1]HOJA GENERAL DATOS IMPORTADOS'!M132 -> 0.8610338613 | N132: ='[1]HOJA GENERAL DATOS IMPORTADOS'!N132 -> 1.019916607 | O132: ='[1]HOJA GENERAL DATOS IMPORTADOS'!O132 -> 1.186126701 | P132: ='[1]HOJA GENERAL DATOS IMPORTADOS'!P132 -> 1.165105688 | Q132: ='[1]HOJA GENERAL DATOS IMPORTADOS'!Q132 -> 1.06619961 | R132: ='[1]HOJA GENERAL DATOS IMPORTADOS'!R132 -> 1.21295687 | S132: ='[1]HOJA GENERAL DATOS IMPORTADOS'!S132 -> 1.112106834 | T132: ='[1]HOJA GENERAL DATOS IMPORTADOS'!T132 -> 1.195778013 | U132: ='[1]HOJA GENERAL DATOS IMPORTADOS'!U132 -> 0.7302967433 | V132: ='[1]HOJA GENERAL DATOS IMPORTADOS'!V132 -> 0.6814453875 | W132: ='[1]HOJA GENERAL DATOS IMPORTADOS'!W132 -> 1.053183461 | X132: ='[1]HOJA GENERAL DATOS IMPORTADOS'!X132 -> 1.048260738 | Y132: ='[1]HOJA GENERAL DATOS IMPORTADOS'!Y132 -> 1.06619961 | Z132: ='[1]HOJA GENERAL DATOS IMPORTADOS'!Z132 -> 30 | AA132: ='[1]HOJA GENERAL DATOS IMPORTADOS'!AA132 -> 0 | AB132: ='[1]HOJA GENERAL DATOS IMPORTADOS'!AB132 -> 0 | AC132: ='[1]HOJA GENERAL DATOS IMPORTADOS'!AC132 -> 0 | AD132: ='[1]HOJA GENERAL DATOS IMPORTADOS'!AD132 -> 0 | AE132: ='[1]HOJA GENERAL DATOS IMPORTADOS'!AE132 -> 0 | AF132: ='[1]HOJA GENERAL DATOS IMPORTADOS'!AF132 -> 0 | AG132: ='[1]HOJA GENERAL DATOS IMPORTADOS'!AG132 -> 0 | AH132: ='[1]HOJA GENERAL DATOS IMPORTADOS'!AH132 -> 0 | AI132: ='[1]HOJA GENERAL DATOS IMPORTADOS'!AI132 -> 0
A133: ='[1]HOJA GENERAL DATOS IMPORTADOS'!A133 -> 0 | B133: ='[1]HOJA GENERAL DATOS IMPORTADOS'!B133 -> 0 | C133: ='[1]HOJA GENERAL DATOS IMPORTADOS'!C133 -> 0 | D133: ='[1]HOJA GENERAL DATOS IMPORTADOS'!D133 -> 0 | E133: ='[1]HOJA GENERAL DATOS IMPORTADOS'!E133 -> 0 | F133: ='[1]HOJA GENERAL DATOS IMPORTADOS'!F133 -> 0 | G133: ='[1]HOJA GENERAL DATOS IMPORTADOS'!G133 -> 0 | H133: ='[1]HOJA GENERAL DATOS IMPORTADOS'!H133 -> 0 | I133: ='[1]HOJA GENERAL DATOS IMPORTADOS'!I133 -> 0 | J133: ='[1]HOJA GENERAL DATOS IMPORTADOS'!J133 -> 0 | K133: ='[1]HOJA GENERAL DATOS IMPORTADOS'!K133 -> 0 | L133: ='[1]HOJA GENERAL DATOS IMPORTADOS'!L133 -> 0 | M133: ='[1]HOJA GENERAL DATOS IMPORTADOS'!M133 -> 0 | N133: ='[1]HOJA GENERAL DATOS IMPORTADOS'!N133 -> 0 | O133: ='[1]HOJA GENERAL DATOS IMPORTADOS'!O133 -> 0 | P133: ='[1]HOJA GENERAL DATOS IMPORTADOS'!P133 -> 0 | Q133: ='[1]HOJA GENERAL DATOS IMPORTADOS'!Q133 -> 0 | R133: ='[1]HOJA GENERAL DATOS IMPORTADOS'!R133 -> 0 | S133: ='[1]HOJA GENERAL DATOS IMPORTADOS'!S133 -> 0 | T133: ='[1]HOJA GENERAL DATOS IMPORTADOS'!T133 -> 0 | U133: ='[1]HOJA GENERAL DATOS IMPORTADOS'!U133 -> 0 | V133: ='[1]HOJA GENERAL DATOS IMPORTADOS'!V133 -> 0 | W133: ='[1]HOJA GENERAL DATOS IMPORTADOS'!W133 -> 0 | X133: ='[1]HOJA GENERAL DATOS IMPORTADOS'!X133 -> 0 | Y133: ='[1]HOJA GENERAL DATOS IMPORTADOS'!Y133 -> 0 | Z133: ='[1]HOJA GENERAL DATOS IMPORTADOS'!Z133 -> 0 | AA133: ='[1]HOJA GENERAL DATOS IMPORTADOS'!AA133 -> 0 | AB133: ='[1]HOJA GENERAL DATOS IMPORTADOS'!AB133 -> 0 | AC133: ='[1]HOJA GENERAL DATOS IMPORTADOS'!AC133 -> 0 | AD133: ='[1]HOJA GENERAL DATOS IMPORTADOS'!AD133 -> 0 | AE133: ='[1]HOJA GENERAL DATOS IMPORTADOS'!AE133 -> 0 | AF133: ='[1]HOJA GENERAL DATOS IMPORTADOS'!AF133 -> 0 | AG133: ='[1]HOJA GENERAL DATOS IMPORTADOS'!AG133 -> 0 | AH133: ='[1]HOJA GENERAL DATOS IMPORTADOS'!AH133 -> 0 | AI133: ='[1]HOJA GENERAL DATOS IMPORTADOS'!AI133 -> 0
A134: ='[1]HOJA GENERAL DATOS IMPORTADOS'!A134 -> PromedioDeCL ALI SISTEMA ALIMENTACION | B134: ='[1]HOJA GENERAL DATOS IMPORTADOS'!B134 -> PromedioDeCL ALI CALIDAD DISPONIBILIDAD FORRAJES | C134: ='[1]HOJA GENERAL DATOS IMPORTADOS'!C134 -> PromedioDeCL ALI LOTES ALIMENTACION | D134: ='[1]HOJA GENERAL DATOS IMPORTADOS'!D134 -> PromedioDeCL ALI APROVECHAMIENTO RECURSOS | E134: ='[1]HOJA GENERAL DATOS IMPORTADOS'!E134 -> PromedioDeCL ALI AUTOMATIZACION | F134: ='[1]HOJA GENERAL DATOS IMPORTADOS'!F134 -> PromedioDeCL SA PROTOCOLO SANITARIO | G134: ='[1]HOJA GENERAL DATOS IMPORTADOS'!G134 -> PromedioDeCL SA MORTALIDAD EN CHIVOS | H134: ='[1]HOJA GENERAL DATOS IMPORTADOS'!H134 -> PromedioDeCL SA MORTALIDAD EN ADULTOS | I134: ='[1]HOJA GENERAL DATOS IMPORTADOS'!I134 -> PromedioDeCL SA INCIDENCIA PATOLOGIA MAS FRECUENTE | J134: ='[1]HOJA GENERAL DATOS IMPORTADOS'!J134 -> PromedioDeCL SA PORCENTAJE DE MAMITIS | K134: ='[1]HOJA GENERAL DATOS IMPORTADOS'!K134 -> PromedioDeCL IBA LACTANCIA ARTIFICIAL | L134: ='[1]HOJA GENERAL DATOS IMPORTADOS'!L134 -> PromedioDeCL IBA TIPO SALA ORDEÑO | M134: ='[1]HOJA GENERAL DATOS IMPORTADOS'!M134 -> PromedioDeCL IBA CONTROL AMBIENTAL NAVES | N134: ='[1]HOJA GENERAL DATOS IMPORTADOS'!N134 -> PromedioDeCL IBA PAEQUES POR LOTES | O134: ='[1]HOJA GENERAL DATOS IMPORTADOS'!O134 -> PromedioDeCL IBA COMEDEROS BEBEDEROS | P134: ='[1]HOJA GENERAL DATOS IMPORTADOS'!P134 -> PromedioDeCL PRI PORCENTAJE REPOSICION | Q134: ='[1]HOJA GENERAL DATOS IMPORTADOS'!Q134 -> PromedioDeCL PRI PRODUCCION MEDIA | R134: ='[1]HOJA GENERAL DATOS IMPORTADOS'!R134 -> PromedioDeCL PRI CALIDAD MEDIA | S134: ='[1]HOJA GENERAL DATOS IMPORTADOS'!S134 -> PromedioDeCL PRI CABRITOS VENDIDOS | T134: ='[1]HOJA GENERAL DATOS IMPORTADOS'!T134 -> PromedioDeCL PRI CABRAS POR UHT | U134: ='[1]HOJA GENERAL DATOS IMPORTADOS'!U134 -> PromedioDeCL REC INGRESOS BRUTOS LECHE | V134: ='[1]HOJA GENERAL DATOS IMPORTADOS'!V134 -> PromedioDeCL REC INGRESOS BRUTOS VENTA ANIMALES | W134: ='[1]HOJA GENERAL DATOS IMPORTADOS'!W134 -> PromedioDeCL REC COSTE MANO DE OBRA | X134: ='[1]HOJA GENERAL DATOS IMPORTADOS'!X134 -> PromedioDeCL REC COSTE ALIMENTACION | Y134: ='[1]HOJA GENERAL DATOS IMPORTADOS'!Y134 -> PromedioDeCL REC AMORTIZACIONES/SUBVENCIONES | Z134: ='[1]HOJA GENERAL DATOS IMPORTADOS'!Z134 -> CuentaDeNº REGISTRO | AA134: ='[1]HOJA GENERAL DATOS IMPORTADOS'!AA134 -> 0 | AB134: ='[1]HOJA GENERAL DATOS IMPORTADOS'!AB134 -> 0 | AC134: ='[1]HOJA GENERAL DATOS IMPORTADOS'!AC134 -> 0 | AD134: ='[1]HOJA GENERAL DATOS IMPORTADOS'!AD134 -> 0 | AE134: ='[1]HOJA GENERAL DATOS IMPORTADOS'!AE134 -> 0 | AF134: ='[1]HOJA GENERAL DATOS IMPORTADOS'!AF134 -> 0 | AG134: ='[1]HOJA GENERAL DATOS IMPORTADOS'!AG134 -> 0 | AH134: ='[1]HOJA GENERAL DATOS IMPORTADOS'!AH134 -> 0 | AI134: ='[1]HOJA GENERAL DATOS IMPORTADOS'!AI134 -> 0
A135: ='[1]HOJA GENERAL DATOS IMPORTADOS'!A135 -> 3.25 | B135: ='[1]HOJA GENERAL DATOS IMPORTADOS'!B135 -> 3.178571429 | C135: ='[1]HOJA GENERAL DATOS IMPORTADOS'!C135 -> 2.928571429 | D135: ='[1]HOJA GENERAL DATOS IMPORTADOS'!D135 -> 1.642857143 | E135: ='[1]HOJA GENERAL DATOS IMPORTADOS'!E135 -> 2.214285714 | F135: ='[1]HOJA GENERAL DATOS IMPORTADOS'!F135 -> 3.428571429 | G135: ='[1]HOJA GENERAL DATOS IMPORTADOS'!G135 -> 2.821428571 | H135: ='[1]HOJA GENERAL DATOS IMPORTADOS'!H135 -> 2.857142857 | I135: ='[1]HOJA GENERAL DATOS IMPORTADOS'!I135 -> 2.178571429 | J135: ='[1]HOJA GENERAL DATOS IMPORTADOS'!J135 -> 2.464285714 | K135: ='[1]HOJA GENERAL DATOS IMPORTADOS'!K135 -> 2.071428571 | L135: ='[1]HOJA GENERAL DATOS IMPORTADOS'!L135 -> 2.785714286 | M135: ='[1]HOJA GENERAL DATOS IMPORTADOS'!M135 -> 2.285714286 | N135: ='[1]HOJA GENERAL DATOS IMPORTADOS'!N135 -> 2.214285714 | O135: ='[1]HOJA GENERAL DATOS IMPORTADOS'!O135 -> 2.428571429 | P135: ='[1]HOJA GENERAL DATOS IMPORTADOS'!P135 -> 3.607142857 | Q135: ='[1]HOJA GENERAL DATOS IMPORTADOS'!Q135 -> 2.071428571 | R135: ='[1]HOJA GENERAL DATOS IMPORTADOS'!R135 -> 2.821428571 | S135: ='[1]HOJA GENERAL DATOS IMPORTADOS'!S135 -> 1.857142857 | T135: ='[1]HOJA GENERAL DATOS IMPORTADOS'!T135 -> 1.785714286 | U135: ='[1]HOJA GENERAL DATOS IMPORTADOS'!U135 -> 2.928571429 | V135: ='[1]HOJA GENERAL DATOS IMPORTADOS'!V135 -> 2.25 | W135: ='[1]HOJA GENERAL DATOS IMPORTADOS'!W135 -> 2.642857143 | X135: ='[1]HOJA GENERAL DATOS IMPORTADOS'!X135 -> 3.214285714 | Y135: ='[1]HOJA GENERAL DATOS IMPORTADOS'!Y135 -> 2.428571429 | Z135: ='[1]HOJA GENERAL DATOS IMPORTADOS'!Z135 -> 28 | AA135: ='[1]HOJA GENERAL DATOS IMPORTADOS'!AA135 -> 0 | AB135: ='[1]HOJA GENERAL DATOS IMPORTADOS'!AB135 -> 0 | AC135: ='[1]HOJA GENERAL DATOS IMPORTADOS'!AC135 -> 0 | AD135: ='[1]HOJA GENERAL DATOS IMPORTADOS'!AD135 -> 0 | AE135: ='[1]HOJA GENERAL DATOS IMPORTADOS'!AE135 -> 0 | AF135: ='[1]HOJA GENERAL DATOS IMPORTADOS'!AF135 -> 0 | AG135: ='[1]HOJA GENERAL DATOS IMPORTADOS'!AG135 -> 0 | AH135: ='[1]HOJA GENERAL DATOS IMPORTADOS'!AH135 -> 0 | AI135: ='[1]HOJA GENERAL DATOS IMPORTADOS'!AI135 -> 0
A136: ='[1]HOJA GENERAL DATOS IMPORTADOS'!A136 -> 0 | B136: ='[1]HOJA GENERAL DATOS IMPORTADOS'!B136 -> 0 | C136: ='[1]HOJA GENERAL DATOS IMPORTADOS'!C136 -> 0 | D136: ='[1]HOJA GENERAL DATOS IMPORTADOS'!D136 -> 0 | E136: ='[1]HOJA GENERAL DATOS IMPORTADOS'!E136 -> 0 | F136: ='[1]HOJA GENERAL DATOS IMPORTADOS'!F136 -> 0 | G136: ='[1]HOJA GENERAL DATOS IMPORTADOS'!G136 -> 0 | H136: ='[1]HOJA GENERAL DATOS IMPORTADOS'!H136 -> 0 | I136: ='[1]HOJA GENERAL DATOS IMPORTADOS'!I136 -> 0 | J136: ='[1]HOJA GENERAL DATOS IMPORTADOS'!J136 -> 0 | K136: ='[1]HOJA GENERAL DATOS IMPORTADOS'!K136 -> 0 | L136: ='[1]HOJA GENERAL DATOS IMPORTADOS'!L136 -> 0 | M136: ='[1]HOJA GENERAL DATOS IMPORTADOS'!M136 -> 0 | N136: ='[1]HOJA GENERAL DATOS IMPORTADOS'!N136 -> 0 | O136: ='[1]HOJA GENERAL DATOS IMPORTADOS'!O136 -> 0 | P136: ='[1]HOJA GENERAL DATOS IMPORTADOS'!P136 -> 0 | Q136: ='[1]HOJA GENERAL DATOS IMPORTADOS'!Q136 -> 0 | R136: ='[1]HOJA GENERAL DATOS IMPORTADOS'!R136 -> 0 | S136: ='[1]HOJA GENERAL DATOS IMPORTADOS'!S136 -> 0 | T136: ='[1]HOJA GENERAL DATOS IMPORTADOS'!T136 -> 0 | U136: ='[1]HOJA GENERAL DATOS IMPORTADOS'!U136 -> 0 | V136: ='[1]HOJA GENERAL DATOS IMPORTADOS'!V136 -> 0 | W136: ='[1]HOJA GENERAL DATOS IMPORTADOS'!W136 -> 0 | X136: ='[1]HOJA GENERAL DATOS IMPORTADOS'!X136 -> 0 | Y136: ='[1]HOJA GENERAL DATOS IMPORTADOS'!Y136 -> 0 | Z136: ='[1]HOJA GENERAL DATOS IMPORTADOS'!Z136 -> 0 | AA136: ='[1]HOJA GENERAL DATOS IMPORTADOS'!AA136 -> 0 | AB136: ='[1]HOJA GENERAL DATOS IMPORTADOS'!AB136 -> 0 | AC136: ='[1]HOJA GENERAL DATOS IMPORTADOS'!AC136 -> 0 | AD136: ='[1]HOJA GENERAL DATOS IMPORTADOS'!AD136 -> 0 | AE136: ='[1]HOJA GENERAL DATOS IMPORTADOS'!AE136 -> 0 | AF136: ='[1]HOJA GENERAL DATOS IMPORTADOS'!AF136 -> 0 | AG136: ='[1]HOJA GENERAL DATOS IMPORTADOS'!AG136 -> 0 | AH136: ='[1]HOJA GENERAL DATOS IMPORTADOS'!AH136 -> 0 | AI136: ='[1]HOJA GENERAL DATOS IMPORTADOS'!AI136 -> 0
A137: ='[1]HOJA GENERAL DATOS IMPORTADOS'!A137 -> DesvEstDeCL ALI SISTEMA ALIMENTACION | B137: ='[1]HOJA GENERAL DATOS IMPORTADOS'!B137 -> DesvEstDeCL ALI CALIDAD DISPONIBILIDAD FORRAJES | C137: ='[1]HOJA GENERAL DATOS IMPORTADOS'!C137 -> DesvEstDeCL ALI LOTES ALIMENTACION | D137: ='[1]HOJA GENERAL DATOS IMPORTADOS'!D137 -> DesvEstDeCL ALI APROVECHAMIENTO RECURSOS | E137: ='[1]HOJA GENERAL DATOS IMPORTADOS'!E137 -> DesvEstDeCL ALI AUTOMATIZACION | F137: ='[1]HOJA GENERAL DATOS IMPORTADOS'!F137 -> DesvEstDeCL SA PROTOCOLO SANITARIO | G137: ='[1]HOJA GENERAL DATOS IMPORTADOS'!G137 -> DesvEstDeCL SA MORTALIDAD EN CHIVOS | H137: ='[1]HOJA GENERAL DATOS IMPORTADOS'!H137 -> DesvEstDeCL SA MORTALIDAD EN ADULTOS | I137: ='[1]HOJA GENERAL DATOS IMPORTADOS'!I137 -> DesvEstDeCL SA INCIDENCIA PATOLOGIA MAS FRECUENTE | J137: ='[1]HOJA GENERAL DATOS IMPORTADOS'!J137 -> DesvEstDeCL SA PORCENTAJE DE MAMITIS | K137: ='[1]HOJA GENERAL DATOS IMPORTADOS'!K137 -> DesvEstDeCL IBA LACTANCIA ARTIFICIAL | L137: ='[1]HOJA GENERAL DATOS IMPORTADOS'!L137 -> DesvEstDeCL IBA TIPO SALA ORDEÑO | M137: ='[1]HOJA GENERAL DATOS IMPORTADOS'!M137 -> DesvEstDeCL IBA CONTROL AMBIENTAL NAVES | N137: ='[1]HOJA GENERAL DATOS IMPORTADOS'!N137 -> DesvEstDeCL IBA PAEQUES POR LOTES | O137: ='[1]HOJA GENERAL DATOS IMPORTADOS'!O137 -> DesvEstDeCL IBA COMEDEROS BEBEDEROS | P137: ='[1]HOJA GENERAL DATOS IMPORTADOS'!P137 -> DesvEstDeCL PRI PORCENTAJE REPOSICION | Q137: ='[1]HOJA GENERAL DATOS IMPORTADOS'!Q137 -> DesvEstDeCL PRI PRODUCCION MEDIA | R137: ='[1]HOJA GENERAL DATOS IMPORTADOS'!R137 -> DesvEstDeCL PRI CALIDAD MEDIA | S137: ='[1]HOJA GENERAL DATOS IMPORTADOS'!S137 -> DesvEstDeCL PRI CABRITOS VENDIDOS | T137: ='[1]HOJA GENERAL DATOS IMPORTADOS'!T137 -> DesvEstDeCL PRI CABRAS POR UHT | U137: ='[1]HOJA GENERAL DATOS IMPORTADOS'!U137 -> DesvEstDeCL REC INGRESOS BRUTOS LECHE | V137: ='[1]HOJA GENERAL DATOS IMPORTADOS'!V137 -> DesvEstDeCL REC INGRESOS BRUTOS VENTA ANIMALES | W137: ='[1]HOJA GENERAL DATOS IMPORTADOS'!W137 -> DesvEstDeCL REC COSTE MANO DE OBRA | X137: ='[1]HOJA GENERAL DATOS IMPORTADOS'!X137 -> DesvEstDeCL REC COSTE ALIMENTACION | Y137: ='[1]HOJA GENERAL DATOS IMPORTADOS'!Y137 -> DesvEstDeCL REC AMORTIZACIONES/SUBVENCIONES | Z137: ='[1]HOJA GENERAL DATOS IMPORTADOS'!Z137 -> CuentaDeNº REGISTRO | AA137: ='[1]HOJA GENERAL DATOS IMPORTADOS'!AA137 -> 0 | AB137: ='[1]HOJA GENERAL DATOS IMPORTADOS'!AB137 -> 0 | AC137: ='[1]HOJA GENERAL DATOS IMPORTADOS'!AC137 -> 0 | AD137: ='[1]HOJA GENERAL DATOS IMPORTADOS'!AD137 -> 0 | AE137: ='[1]HOJA GENERAL DATOS IMPORTADOS'!AE137 -> 0 | AF137: ='[1]HOJA GENERAL DATOS IMPORTADOS'!AF137 -> 0 | AG137: ='[1]HOJA GENERAL DATOS IMPORTADOS'!AG137 -> 0 | AH137: ='[1]HOJA GENERAL DATOS IMPORTADOS'!AH137 -> 0 | AI137: ='[1]HOJA GENERAL DATOS IMPORTADOS'!AI137 -> 0
A138: ='[1]HOJA GENERAL DATOS IMPORTADOS'!A138 -> 0.9279607271 | B138: ='[1]HOJA GENERAL DATOS IMPORTADOS'!B138 -> 0.7723735149 | C138: ='[1]HOJA GENERAL DATOS IMPORTADOS'!C138 -> 0.7163989902 | D138: ='[1]HOJA GENERAL DATOS IMPORTADOS'!D138 -> 1.568539914 | E138: ='[1]HOJA GENERAL DATOS IMPORTADOS'!E138 -> 0.5681120688 | F138: ='[1]HOJA GENERAL DATOS IMPORTADOS'!F138 -> 1.069044968 | G138: ='[1]HOJA GENERAL DATOS IMPORTADOS'!G138 -> 1.188013325 | H138: ='[1]HOJA GENERAL DATOS IMPORTADOS'!H138 -> 1.078898125 | I138: ='[1]HOJA GENERAL DATOS IMPORTADOS'!I138 -> 0.9048663265 | J138: ='[1]HOJA GENERAL DATOS IMPORTADOS'!J138 -> 1.104943198 | K138: ='[1]HOJA GENERAL DATOS IMPORTADOS'!K138 -> 1.184109962 | L138: ='[1]HOJA GENERAL DATOS IMPORTADOS'!L138 -> 0.7382232352 | M138: ='[1]HOJA GENERAL DATOS IMPORTADOS'!M138 -> 0.7628961804 | N138: ='[1]HOJA GENERAL DATOS IMPORTADOS'!N138 -> 0.6862211531 | O138: ='[1]HOJA GENERAL DATOS IMPORTADOS'!O138 -> 0.9200874125 | P138: ='[1]HOJA GENERAL DATOS IMPORTADOS'!P138 -> 0.6288900107 | Q138: ='[1]HOJA GENERAL DATOS IMPORTADOS'!Q138 -> 1.184109962 | R138: ='[1]HOJA GENERAL DATOS IMPORTADOS'!R138 -> 0.9833266075 | S138: ='[1]HOJA GENERAL DATOS IMPORTADOS'!S138 -> 1.112697281 | T138: ='[1]HOJA GENERAL DATOS IMPORTADOS'!T138 -> 1.100745298 | U138: ='[1]HOJA GENERAL DATOS IMPORTADOS'!U138 -> 0.8132500608 | V138: ='[1]HOJA GENERAL DATOS IMPORTADOS'!V138 -> 0.8443713419 | W138: ='[1]HOJA GENERAL DATOS IMPORTADOS'!W138 -> 1.026114055 | X138: ='[1]HOJA GENERAL DATOS IMPORTADOS'!X138 -> 0.6862211531 | Y138: ='[1]HOJA GENERAL DATOS IMPORTADOS'!Y138 -> 1.230133128 | Z138: ='[1]HOJA GENERAL DATOS IMPORTADOS'!Z138 -> 28 | AA138: ='[1]HOJA GENERAL DATOS IMPORTADOS'!AA138 -> 0 | AB138: ='[1]HOJA GENERAL DATOS IMPORTADOS'!AB138 -> 0 | AC138: ='[1]HOJA GENERAL DATOS IMPORTADOS'!AC138 -> 0 | AD138: ='[1]HOJA GENERAL DATOS IMPORTADOS'!AD138 -> 0 | AE138: ='[1]HOJA GENERAL DATOS IMPORTADOS'!AE138 -> 0 | AF138: ='[1]HOJA GENERAL DATOS IMPORTADOS'!AF138 -> 0 | AG138: ='[1]HOJA GENERAL DATOS IMPORTADOS'!AG138 -> 0 | AH138: ='[1]HOJA GENERAL DATOS IMPORTADOS'!AH138 -> 0 | AI138: ='[1]HOJA GENERAL DATOS IMPORTADOS'!AI138 -> 0
A139: ='[1]HOJA GENERAL DATOS IMPORTADOS'!A139 -> 0 | B139: ='[1]HOJA GENERAL DATOS IMPORTADOS'!B139 -> 0 | C139: ='[1]HOJA GENERAL DATOS IMPORTADOS'!C139 -> 0 | D139: ='[1]HOJA GENERAL DATOS IMPORTADOS'!D139 -> 0 | E139: ='[1]HOJA GENERAL DATOS IMPORTADOS'!E139 -> 0 | F139: ='[1]HOJA GENERAL DATOS IMPORTADOS'!F139 -> 0 | G139: ='[1]HOJA GENERAL DATOS IMPORTADOS'!G139 -> 0 | H139: ='[1]HOJA GENERAL DATOS IMPORTADOS'!H139 -> 0 | I139: ='[1]HOJA GENERAL DATOS IMPORTADOS'!I139 -> 0 | J139: ='[1]HOJA GENERAL DATOS IMPORTADOS'!J139 -> 0 | K139: ='[1]HOJA GENERAL DATOS IMPORTADOS'!K139 -> 0 | L139: ='[1]HOJA GENERAL DATOS IMPORTADOS'!L139 -> 0 | M139: ='[1]HOJA GENERAL DATOS IMPORTADOS'!M139 -> 0 | N139: ='[1]HOJA GENERAL DATOS IMPORTADOS'!N139 -> 0 | O139: ='[1]HOJA GENERAL DATOS IMPORTADOS'!O139 -> 0 | P139: ='[1]HOJA GENERAL DATOS IMPORTADOS'!P139 -> 0 | Q139: ='[1]HOJA GENERAL DATOS IMPORTADOS'!Q139 -> 0 | R139: ='[1]HOJA GENERAL DATOS IMPORTADOS'!R139 -> 0 | S139: ='[1]HOJA GENERAL DATOS IMPORTADOS'!S139 -> 0 | T139: ='[1]HOJA GENERAL DATOS IMPORTADOS'!T139 -> 0 | U139: ='[1]HOJA GENERAL DATOS IMPORTADOS'!U139 -> 0 | V139: ='[1]HOJA GENERAL DATOS IMPORTADOS'!V139 -> 0 | W139: ='[1]HOJA GENERAL DATOS IMPORTADOS'!W139 -> 0 | X139: ='[1]HOJA GENERAL DATOS IMPORTADOS'!X139 -> 0 | Y139: ='[1]HOJA GENERAL DATOS IMPORTADOS'!Y139 -> 0 | Z139: ='[1]HOJA GENERAL DATOS IMPORTADOS'!Z139 -> 0 | AA139: ='[1]HOJA GENERAL DATOS IMPORTADOS'!AA139 -> 0 | AB139: ='[1]HOJA GENERAL DATOS IMPORTADOS'!AB139 -> 0 | AC139: ='[1]HOJA GENERAL DATOS IMPORTADOS'!AC139 -> 0 | AD139: ='[1]HOJA GENERAL DATOS IMPORTADOS'!AD139 -> 0 | AE139: ='[1]HOJA GENERAL DATOS IMPORTADOS'!AE139 -> 0 | AF139: ='[1]HOJA GENERAL DATOS IMPORTADOS'!AF139 -> 0 | AG139: ='[1]HOJA GENERAL DATOS IMPORTADOS'!AG139 -> 0 | AH139: ='[1]HOJA GENERAL DATOS IMPORTADOS'!AH139 -> 0 | AI139: ='[1]HOJA GENERAL DATOS IMPORTADOS'!AI139 -> 0
A140: ='[1]HOJA GENERAL DATOS IMPORTADOS'!A140 -> 0 | B140: ='[1]HOJA GENERAL DATOS IMPORTADOS'!B140 -> 0 | C140: ='[1]HOJA GENERAL DATOS IMPORTADOS'!C140 -> 0 | D140: ='[1]HOJA GENERAL DATOS IMPORTADOS'!D140 -> 0 | E140: ='[1]HOJA GENERAL DATOS IMPORTADOS'!E140 -> 0 | F140: ='[1]HOJA GENERAL DATOS IMPORTADOS'!F140 -> 0 | G140: ='[1]HOJA GENERAL DATOS IMPORTADOS'!G140 -> 0 | H140: ='[1]HOJA GENERAL DATOS IMPORTADOS'!H140 -> 0 | I140: ='[1]HOJA GENERAL DATOS IMPORTADOS'!I140 -> 0 | J140: ='[1]HOJA GENERAL DATOS IMPORTADOS'!J140 -> 0 | K140: ='[1]HOJA GENERAL DATOS IMPORTADOS'!K140 -> 0 | L140: ='[1]HOJA GENERAL DATOS IMPORTADOS'!L140 -> 0 | M140: ='[1]HOJA GENERAL DATOS IMPORTADOS'!M140 -> 0 | N140: ='[1]HOJA GENERAL DATOS IMPORTADOS'!N140 -> 0 | O140: ='[1]HOJA GENERAL DATOS IMPORTADOS'!O140 -> 0 | P140: ='[1]HOJA GENERAL DATOS IMPORTADOS'!P140 -> 0 | Q140: ='[1]HOJA GENERAL DATOS IMPORTADOS'!Q140 -> 0 | R140: ='[1]HOJA GENERAL DATOS IMPORTADOS'!R140 -> 0 | S140: ='[1]HOJA GENERAL DATOS IMPORTADOS'!S140 -> 0 | T140: ='[1]HOJA GENERAL DATOS IMPORTADOS'!T140 -> 0 | U140: ='[1]HOJA GENERAL DATOS IMPORTADOS'!U140 -> 0 | V140: ='[1]HOJA GENERAL DATOS IMPORTADOS'!V140 -> 0 | W140: ='[1]HOJA GENERAL DATOS IMPORTADOS'!W140 -> 0 | X140: ='[1]HOJA GENERAL DATOS IMPORTADOS'!X140 -> 0 | Y140: ='[1]HOJA GENERAL DATOS IMPORTADOS'!Y140 -> 0 | Z140: ='[1]HOJA GENERAL DATOS IMPORTADOS'!Z140 -> 0 | AA140: ='[1]HOJA GENERAL DATOS IMPORTADOS'!AA140 -> 0 | AB140: ='[1]HOJA GENERAL DATOS IMPORTADOS'!AB140 -> 0 | AC140: ='[1]HOJA GENERAL DATOS IMPORTADOS'!AC140 -> 0 | AD140: ='[1]HOJA GENERAL DATOS IMPORTADOS'!AD140 -> 0 | AE140: ='[1]HOJA GENERAL DATOS IMPORTADOS'!AE140 -> 0 | AF140: ='[1]HOJA GENERAL DATOS IMPORTADOS'!AF140 -> 0 | AG140: ='[1]HOJA GENERAL DATOS IMPORTADOS'!AG140 -> 0 | AH140: ='[1]HOJA GENERAL DATOS IMPORTADOS'!AH140 -> 0 | AI140: ='[1]HOJA GENERAL DATOS IMPORTADOS'!AI140 -> 0
A141: ='[1]HOJA GENERAL DATOS IMPORTADOS'!A141 -> NUMEROREGISTRO | B141: ='[1]HOJA GENERAL DATOS IMPORTADOS'!B141 -> GANADO | C141: ='[1]HOJA GENERAL DATOS IMPORTADOS'!C141 -> CODIGO IRIS | D141: ='[1]HOJA GENERAL DATOS IMPORTADOS'!D141 -> NOMBRE PRODUCTO | E141: ='[1]HOJA GENERAL DATOS IMPORTADOS'!E141 -> PRESENTACION | F141: ='[1]HOJA GENERAL DATOS IMPORTADOS'!F141 -> UFL/UFV | G141: ='[1]HOJA GENERAL DATOS IMPORTADOS'!G141 -> PROTEINA BRUTA | H141: ='[1]HOJA GENERAL DATOS IMPORTADOS'!H141 -> FIBRA BRUTA | I141: ='[1]HOJA GENERAL DATOS IMPORTADOS'!I141 -> GRASA BRUTA | J141: ='[1]HOJA GENERAL DATOS IMPORTADOS'!J141 -> CENIZAS | K141: ='[1]HOJA GENERAL DATOS IMPORTADOS'!K141 -> MODO DE EMPLEO | L141: ='[1]HOJA GENERAL DATOS IMPORTADOS'!L141 -> OBSERVACIONES | M141: ='[1]HOJA GENERAL DATOS IMPORTADOS'!M141 -> 0 | N141: ='[1]HOJA GENERAL DATOS IMPORTADOS'!N141 -> 0 | O141: ='[1]HOJA GENERAL DATOS IMPORTADOS'!O141 -> 0 | P141: ='[1]HOJA GENERAL DATOS IMPORTADOS'!P141 -> 0 | Q141: ='[1]HOJA GENERAL DATOS IMPORTADOS'!Q141 -> 0 | R141: ='[1]HOJA GENERAL DATOS IMPORTADOS'!R141 -> 0 | S141: ='[1]HOJA GENERAL DATOS IMPORTADOS'!S141 -> 0 | T141: ='[1]HOJA GENERAL DATOS IMPORTADOS'!T141 -> 0 | U141: ='[1]HOJA GENERAL DATOS IMPORTADOS'!U141 -> 0 | V141: ='[1]HOJA GENERAL DATOS IMPORTADOS'!V141 -> 0 | W141: ='[1]HOJA GENERAL DATOS IMPORTADOS'!W141 -> 0 | X141: ='[1]HOJA GENERAL DATOS IMPORTADOS'!X141 -> 0 | Y141: ='[1]HOJA GENERAL DATOS IMPORTADOS'!Y141 -> 0 | Z141: ='[1]HOJA GENERAL DATOS IMPORTADOS'!Z141 -> 0 | AA141: ='[1]HOJA GENERAL DATOS IMPORTADOS'!AA141 -> 0 | AB141: ='[1]HOJA GENERAL DATOS IMPORTADOS'!AB141 -> 0 | AC141: ='[1]HOJA GENERAL DATOS IMPORTADOS'!AC141 -> 0 | AD141: ='[1]HOJA GENERAL DATOS IMPORTADOS'!AD141 -> 0 | AE141: ='[1]HOJA GENERAL DATOS IMPORTADOS'!AE141 -> 0 | AF141: ='[1]HOJA GENERAL DATOS IMPORTADOS'!AF141 -> 0 | AG141: ='[1]HOJA GENERAL DATOS IMPORTADOS'!AG141 -> 0 | AH141: ='[1]HOJA GENERAL DATOS IMPORTADOS'!AH141 -> 0 | AI141: ='[1]HOJA GENERAL DATOS IMPORTADOS'!AI141 -> 0
A142: ='[1]HOJA GENERAL DATOS IMPORTADOS'!A142 -> 278 | B142: ='[1]HOJA GENERAL DATOS IMPORTADOS'!B142 -> OVINO | C142: ='[1]HOJA GENERAL DATOS IMPORTADOS'!C142 -> 1808 GGR | D142: ='[1]HOJA GENERAL DATOS IMPORTADOS'!D142 -> OVIRECRIA | E142: ='[1]HOJA GENERAL DATOS IMPORTADOS'!E142 -> GRANULADO 3,5 | F142: ='[1]HOJA GENERAL DATOS IMPORTADOS'!F142 -> 88 | G142: ='[1]HOJA GENERAL DATOS IMPORTADOS'!G142 -> 165 | H142: ='[1]HOJA GENERAL DATOS IMPORTADOS'!H142 -> 82 | I142: ='[1]HOJA GENERAL DATOS IMPORTADOS'!I142 -> 35 | J142: ='[1]HOJA GENERAL DATOS IMPORTADOS'!J142 -> 78 | K142: ='[1]HOJA GENERAL DATOS IMPORTADOS'!K142 -> Pienso complementario destinados a corderas de reposición desde los 3 a los 6-7 meses. Se puede suministar a voluntad con paja ad libitumn pero es aconsejable el aporte de forrajes | L142: ='[1]HOJA GENERAL DATOS IMPORTADOS'!L142 -> Los animales dispondrán en todo momento de agua limpia y fresca a libre servicio. Consultar a los servicios técnicos. | M142: ='[1]HOJA GENERAL DATOS IMPORTADOS'!M142 -> 0 | N142: ='[1]HOJA GENERAL DATOS IMPORTADOS'!N142 -> 0 | O142: ='[1]HOJA GENERAL DATOS IMPORTADOS'!O142 -> 0 | P142: ='[1]HOJA GENERAL DATOS IMPORTADOS'!P142 -> 0 | Q142: ='[1]HOJA GENERAL DATOS IMPORTADOS'!Q142 -> 0 | R142: ='[1]HOJA GENERAL DATOS IMPORTADOS'!R142 -> 0 | S142: ='[1]HOJA GENERAL DATOS IMPORTADOS'!S142 -> 0 | T142: ='[1]HOJA GENERAL DATOS IMPORTADOS'!T142 -> 0 | U142: ='[1]HOJA GENERAL DATOS IMPORTADOS'!U142 -> 0 | V142: ='[1]HOJA GENERAL DATOS IMPORTADOS'!V142 -> 0 | W142: ='[1]HOJA GENERAL DATOS IMPORTADOS'!W142 -> 0 | X142: ='[1]HOJA GENERAL DATOS IMPORTADOS'!X142 -> 0 | Y142: ='[1]HOJA GENERAL DATOS IMPORTADOS'!Y142 -> 0 | Z142: ='[1]HOJA GENERAL DATOS IMPORTADOS'!Z142 -> 0 | AA142: ='[1]HOJA GENERAL DATOS IMPORTADOS'!AA142 -> 0 | AB142: ='[1]HOJA GENERAL DATOS IMPORTADOS'!AB142 -> 0 | AC142: ='[1]HOJA GENERAL DATOS IMPORTADOS'!AC142 -> 0 | AD142: ='[1]HOJA GENERAL DATOS IMPORTADOS'!AD142 -> 0 | AE142: ='[1]HOJA GENERAL DATOS IMPORTADOS'!AE142 -> 0 | AF142: ='[1]HOJA GENERAL DATOS IMPORTADOS'!AF142 -> 0 | AG142: ='[1]HOJA GENERAL DATOS IMPORTADOS'!AG142 -> 0 | AH142: ='[1]HOJA GENERAL DATOS IMPORTADOS'!AH142 -> 0 | AI142: ='[1]HOJA GENERAL DATOS IMPORTADOS'!AI142 -> 0
A143: ='[1]HOJA GENERAL DATOS IMPORTADOS'!A143 -> 285 | B143: ='[1]HOJA GENERAL DATOS IMPORTADOS'!B143 -> CAPRINO | C143: ='[1]HOJA GENERAL DATOS IMPORTADOS'!C143 -> 1610 GGR | D143: ='[1]HOJA GENERAL DATOS IMPORTADOS'!D143 -> CAPRIRECRIA | E143: ='[1]HOJA GENERAL DATOS IMPORTADOS'!E143 -> GRANULADO 3,5 | F143: ='[1]HOJA GENERAL DATOS IMPORTADOS'!F143 -> 89 | G143: ='[1]HOJA GENERAL DATOS IMPORTADOS'!G143 -> 165 | H143: ='[1]HOJA GENERAL DATOS IMPORTADOS'!H143 -> 82 | I143: ='[1]HOJA GENERAL DATOS IMPORTADOS'!I143 -> 35 | J143: ='[1]HOJA GENERAL DATOS IMPORTADOS'!J143 -> 78 | K143: ='[1]HOJA GENERAL DATOS IMPORTADOS'!K143 -> Pienso complementario destinados a chivas de reposición desde los 3 a los 6-7 meses. Se puede suministar a voluntad con paja ad libitumn pero es aconsejable el aporte de forrajes | L143: ='[1]HOJA GENERAL DATOS IMPORTADOS'!L143 -> Los animales dispondrán en todo momento de agua limpia y fresca a libre servicio. Consultar a los servicios técnicos. | M143: ='[1]HOJA GENERAL DATOS IMPORTADOS'!M143 -> 0 | N143: ='[1]HOJA GENERAL DATOS IMPORTADOS'!N143 -> 0 | O143: ='[1]HOJA GENERAL DATOS IMPORTADOS'!O143 -> 0 | P143: ='[1]HOJA GENERAL DATOS IMPORTADOS'!P143 -> 0 | Q143: ='[1]HOJA GENERAL DATOS IMPORTADOS'!Q143 -> 0 | R143: ='[1]HOJA GENERAL DATOS IMPORTADOS'!R143 -> 0 | S143: ='[1]HOJA GENERAL DATOS IMPORTADOS'!S143 -> 0 | T143: ='[1]HOJA GENERAL DATOS IMPORTADOS'!T143 -> 0 | U143: ='[1]HOJA GENERAL DATOS IMPORTADOS'!U143 -> 0 | V143: ='[1]HOJA GENERAL DATOS IMPORTADOS'!V143 -> 0 | W143: ='[1]HOJA GENERAL DATOS IMPORTADOS'!W143 -> 0 | X143: ='[1]HOJA GENERAL DATOS IMPORTADOS'!X143 -> 0 | Y143: ='[1]HOJA GENERAL DATOS IMPORTADOS'!Y143 -> 0 | Z143: ='[1]HOJA GENERAL DATOS IMPORTADOS'!Z143 -> 0 | AA143: ='[1]HOJA GENERAL DATOS IMPORTADOS'!AA143 -> 0 | AB143: ='[1]HOJA GENERAL DATOS IMPORTADOS'!AB143 -> 0 | AC143: ='[1]HOJA GENERAL DATOS IMPORTADOS'!AC143 -> 0 | AD143: ='[1]HOJA GENERAL DATOS IMPORTADOS'!AD143 -> 0 | AE143: ='[1]HOJA GENERAL DATOS IMPORTADOS'!AE143 -> 0 | AF143: ='[1]HOJA GENERAL DATOS IMPORTADOS'!AF143 -> 0 | AG143: ='[1]HOJA GENERAL DATOS IMPORTADOS'!AG143 -> 0 | AH143: ='[1]HOJA GENERAL DATOS IMPORTADOS'!AH143 -> 0 | AI143: ='[1]HOJA GENERAL DATOS IMPORTADOS'!AI143 -> 0
A144: ='[1]HOJA GENERAL DATOS IMPORTADOS'!A144 -> 298 | B144: ='[1]HOJA GENERAL DATOS IMPORTADOS'!B144 -> CAPRINO | C144: ='[1]HOJA GENERAL DATOS IMPORTADOS'!C144 -> 1512 GGR | D144: ='[1]HOJA GENERAL DATOS IMPORTADOS'!D144 -> CAPRI KOMPLET ESTANDAR | E144: ='[1]HOJA GENERAL DATOS IMPORTADOS'!E144 -> GRANULADO 3,5 | F144: ='[1]HOJA GENERAL DATOS IMPORTADOS'!F144 -> 90 | G144: ='[1]HOJA GENERAL DATOS IMPORTADOS'!G144 -> 170 | H144: ='[1]HOJA GENERAL DATOS IMPORTADOS'!H144 -> 120 | I144: ='[1]HOJA GENERAL DATOS IMPORTADOS'!I144 -> 35 | J144: ='[1]HOJA GENERAL DATOS IMPORTADOS'!J144 -> 75 | K144: ='[1]HOJA GENERAL DATOS IMPORTADOS'!K144 -> Pienso complementario destinado a cabras de leche para ser suministrado con paja a voluntad. La paja deberá ser limpia y seca y se administrará ad libitum. Los animales dispondrán de agua limpia y fresca. | L144: ='[1]HOJA GENERAL DATOS IMPORTADOS'!L144 -> Preferiblemente administrar varias veces al día pero que siempre lo tengan disponible. La transición a este alñimento debe ser lenta (15 días mínimo) y paulatina. Recomendamos tener a los animales desparasitados y vacunados de Enterotoxemia. | M144: ='[1]HOJA GENERAL DATOS IMPORTADOS'!M144 -> 0 | N144: ='[1]HOJA GENERAL DATOS IMPORTADOS'!N144 -> 0 | O144: ='[1]HOJA GENERAL DATOS IMPORTADOS'!O144 -> 0 | P144: ='[1]HOJA GENERAL DATOS IMPORTADOS'!P144 -> 0 | Q144: ='[1]HOJA GENERAL DATOS IMPORTADOS'!Q144 -> 0 | R144: ='[1]HOJA GENERAL DATOS IMPORTADOS'!R144 -> 0 | S144: ='[1]HOJA GENERAL DATOS IMPORTADOS'!S144 -> 0 | T144: ='[1]HOJA GENERAL DATOS IMPORTADOS'!T144 -> 0 | U144: ='[1]HOJA GENERAL DATOS IMPORTADOS'!U144 -> 0 | V144: ='[1]HOJA GENERAL DATOS IMPORTADOS'!V144 -> 0 | W144: ='[1]HOJA GENERAL DATOS IMPORTADOS'!W144 -> 0 | X144: ='[1]HOJA GENERAL DATOS IMPORTADOS'!X144 -> 0 | Y144: ='[1]HOJA GENERAL DATOS IMPORTADOS'!Y144 -> 0 | Z144: ='[1]HOJA GENERAL DATOS IMPORTADOS'!Z144 -> 0 | AA144: ='[1]HOJA GENERAL DATOS IMPORTADOS'!AA144 -> 0 | AB144: ='[1]HOJA GENERAL DATOS IMPORTADOS'!AB144 -> 0 | AC144: ='[1]HOJA GENERAL DATOS IMPORTADOS'!AC144 -> 0 | AD144: ='[1]HOJA GENERAL DATOS IMPORTADOS'!AD144 -> 0 | AE144: ='[1]HOJA GENERAL DATOS IMPORTADOS'!AE144 -> 0 | AF144: ='[1]HOJA GENERAL DATOS IMPORTADOS'!AF144 -> 0 | AG144: ='[1]HOJA GENERAL DATOS IMPORTADOS'!AG144 -> 0 | AH144: ='[1]HOJA GENERAL DATOS IMPORTADOS'!AH144 -> 0 | AI144: ='[1]HOJA GENERAL DATOS IMPORTADOS'!AI144 -> 0
A145: ='[1]HOJA GENERAL DATOS IMPORTADOS'!A145 -> 299 | B145: ='[1]HOJA GENERAL DATOS IMPORTADOS'!B145 -> CAPRINO | C145: ='[1]HOJA GENERAL DATOS IMPORTADOS'!C145 -> 1515 GGR | D145: ='[1]HOJA GENERAL DATOS IMPORTADOS'!D145 -> CAPRI KOMPLET ESPECIAL | E145: ='[1]HOJA GENERAL DATOS IMPORTADOS'!E145 -> GRANULADO 10 | F145: ='[1]HOJA GENERAL DATOS IMPORTADOS'!F145 -> 92 | G145: ='[1]HOJA GENERAL DATOS IMPORTADOS'!G145 -> 170 | H145: ='[1]HOJA GENERAL DATOS IMPORTADOS'!H145 -> 120 | I145: ='[1]HOJA GENERAL DATOS IMPORTADOS'!I145 -> 40 | J145: ='[1]HOJA GENERAL DATOS IMPORTADOS'!J145 -> 83 | K145: ='[1]HOJA GENERAL DATOS IMPORTADOS'!K145 -> Pienso complementario de paja para cabras en ordeño. Los animales dispondrán en todo momento de paja de cereales limpia y agua limpia y fresca. Puede emplearse racionado o a voluntad. Diseñado especialmente para cabras tipo murciano. | L145: ='[1]HOJA GENERAL DATOS IMPORTADOS'!L145 -> Preferiblemente administrar varias veces al día pero que siempre lo tengan disponible. La transición a este alimento debe ser lenta (15 días mínimo) y paulatina. Recomendamos tener a los animales desparasitados y vacunados de Enterotoxemia. | M145: ='[1]HOJA GENERAL DATOS IMPORTADOS'!M145 -> 0 | N145: ='[1]HOJA GENERAL DATOS IMPORTADOS'!N145 -> 0 | O145: ='[1]HOJA GENERAL DATOS IMPORTADOS'!O145 -> 0 | P145: ='[1]HOJA GENERAL DATOS IMPORTADOS'!P145 -> 0 | Q145: ='[1]HOJA GENERAL DATOS IMPORTADOS'!Q145 -> 0 | R145: ='[1]HOJA GENERAL DATOS IMPORTADOS'!R145 -> 0 | S145: ='[1]HOJA GENERAL DATOS IMPORTADOS'!S145 -> 0 | T145: ='[1]HOJA GENERAL DATOS IMPORTADOS'!T145 -> 0 | U145: ='[1]HOJA GENERAL DATOS IMPORTADOS'!U145 -> 0 | V145: ='[1]HOJA GENERAL DATOS IMPORTADOS'!V145 -> 0 | W145: ='[1]HOJA GENERAL DATOS IMPORTADOS'!W145 -> 0 | X145: ='[1]HOJA GENERAL DATOS IMPORTADOS'!X145 -> 0 | Y145: ='[1]HOJA GENERAL DATOS IMPORTADOS'!Y145 -> 0 | Z145: ='[1]HOJA GENERAL DATOS IMPORTADOS'!Z145 -> 0 | AA145: ='[1]HOJA GENERAL DATOS IMPORTADOS'!AA145 -> 0 | AB145: ='[1]HOJA GENERAL DATOS IMPORTADOS'!AB145 -> 0 | AC145: ='[1]HOJA GENERAL DATOS IMPORTADOS'!AC145 -> 0 | AD145: ='[1]HOJA GENERAL DATOS IMPORTADOS'!AD145 -> 0 | AE145: ='[1]HOJA GENERAL DATOS IMPORTADOS'!AE145 -> 0 | AF145: ='[1]HOJA GENERAL DATOS IMPORTADOS'!AF145 -> 0 | AG145: ='[1]HOJA GENERAL DATOS IMPORTADOS'!AG145 -> 0 | AH145: ='[1]HOJA GENERAL DATOS IMPORTADOS'!AH145 -> 0 | AI145: ='[1]HOJA GENERAL DATOS IMPORTADOS'!AI145 -> 0
A146: ='[1]HOJA GENERAL DATOS IMPORTADOS'!A146 -> 374 | B146: ='[1]HOJA GENERAL DATOS IMPORTADOS'!B146 -> OVINO/CAPRINO | C146: ='[1]HOJA GENERAL DATOS IMPORTADOS'!C146 -> 1669 GGR | D146: ='[1]HOJA GENERAL DATOS IMPORTADOS'!D146 -> INOGEST | E146: ='[1]HOJA GENERAL DATOS IMPORTADOS'!E146 -> GRANULADO 3,5 | F146: ='[1]HOJA GENERAL DATOS IMPORTADOS'!F146 -> 92 | G146: ='[1]HOJA GENERAL DATOS IMPORTADOS'!G146 -> 143 | H146: ='[1]HOJA GENERAL DATOS IMPORTADOS'!H146 -> 71 | I146: ='[1]HOJA GENERAL DATOS IMPORTADOS'!I146 -> 28 | J146: ='[1]HOJA GENERAL DATOS IMPORTADOS'!J146 -> 67 | K146: ='[1]HOJA GENERAL DATOS IMPORTADOS'!K146 -> Pienso complementario especial para el preparto de ovejas y cabras de ordeño . Utilizar como complementario de forrajes los últimos 45 días de antes del parto. | L146: ='[1]HOJA GENERAL DATOS IMPORTADOS'!L146 -> No se recomienda la utilización de paja en esta fase sobre todo en razas muy lecheras y prolíficas.Los animales dispondrán de agua limpia y fresca a libre disposición. | M146: ='[1]HOJA GENERAL DATOS IMPORTADOS'!M146 -> 0 | N146: ='[1]HOJA GENERAL DATOS IMPORTADOS'!N146 -> 0 | O146: ='[1]HOJA GENERAL DATOS IMPORTADOS'!O146 -> 0 | P146: ='[1]HOJA GENERAL DATOS IMPORTADOS'!P146 -> 0 | Q146: ='[1]HOJA GENERAL DATOS IMPORTADOS'!Q146 -> 0 | R146: ='[1]HOJA GENERAL DATOS IMPORTADOS'!R146 -> 0 | S146: ='[1]HOJA GENERAL DATOS IMPORTADOS'!S146 -> 0 | T146: ='[1]HOJA GENERAL DATOS IMPORTADOS'!T146 -> 0 | U146: ='[1]HOJA GENERAL DATOS IMPORTADOS'!U146 -> 0 | V146: ='[1]HOJA GENERAL DATOS IMPORTADOS'!V146 -> 0 | W146: ='[1]HOJA GENERAL DATOS IMPORTADOS'!W146 -> 0 | X146: ='[1]HOJA GENERAL DATOS IMPORTADOS'!X146 -> 0 | Y146: ='[1]HOJA GENERAL DATOS IMPORTADOS'!Y146 -> 0 | Z146: ='[1]HOJA GENERAL DATOS IMPORTADOS'!Z146 -> 0 | AA146: ='[1]HOJA GENERAL DATOS IMPORTADOS'!AA146 -> 0 | AB146: ='[1]HOJA GENERAL DATOS IMPORTADOS'!AB146 -> 0 | AC146: ='[1]HOJA GENERAL DATOS IMPORTADOS'!AC146 -> 0 | AD146: ='[1]HOJA GENERAL DATOS IMPORTADOS'!AD146 -> 0 | AE146: ='[1]HOJA GENERAL DATOS IMPORTADOS'!AE146 -> 0 | AF146: ='[1]HOJA GENERAL DATOS IMPORTADOS'!AF146 -> 0 | AG146: ='[1]HOJA GENERAL DATOS IMPORTADOS'!AG146 -> 0 | AH146: ='[1]HOJA GENERAL DATOS IMPORTADOS'!AH146 -> 0 | AI146: ='[1]HOJA GENERAL DATOS IMPORTADOS'!AI146 -> 0
A147: ='[1]HOJA GENERAL DATOS IMPORTADOS'!A147 -> 383 | B147: ='[1]HOJA GENERAL DATOS IMPORTADOS'!B147 -> OVINO | C147: ='[1]HOJA GENERAL DATOS IMPORTADOS'!C147 -> 1705 GGR | D147: ='[1]HOJA GENERAL DATOS IMPORTADOS'!D147 -> OVIKOMPLET | E147: ='[1]HOJA GENERAL DATOS IMPORTADOS'!E147 -> GRANULADO 10 | F147: ='[1]HOJA GENERAL DATOS IMPORTADOS'!F147 -> 88 | G147: ='[1]HOJA GENERAL DATOS IMPORTADOS'!G147 -> 180 | H147: ='[1]HOJA GENERAL DATOS IMPORTADOS'!H147 -> 120 | I147: ='[1]HOJA GENERAL DATOS IMPORTADOS'!I147 -> 40 | J147: ='[1]HOJA GENERAL DATOS IMPORTADOS'!J147 -> 80 | K147: ='[1]HOJA GENERAL DATOS IMPORTADOS'!K147 -> Pienso complementario de paja para ovejas en ordeño. Los animales dispondrán en todo momento de paja de cereales limpia y agua limpia y fresca. Puede emplearse racionado o a voluntad. Consultar cada caso con los servicios técnicos. | L147: ='[1]HOJA GENERAL DATOS IMPORTADOS'!L147 -> Preferiblemente administrar varias veces al día pero que siempre lo tengan disponible.La transición a este alimento debe ser lenta (15 días mínimo) y paulatina. Necesaria vacunacion Enterotoxemia. | M147: ='[1]HOJA GENERAL DATOS IMPORTADOS'!M147 -> 0 | N147: ='[1]HOJA GENERAL DATOS IMPORTADOS'!N147 -> 0 | O147: ='[1]HOJA GENERAL DATOS IMPORTADOS'!O147 -> 0 | P147: ='[1]HOJA GENERAL DATOS IMPORTADOS'!P147 -> 0 | Q147: ='[1]HOJA GENERAL DATOS IMPORTADOS'!Q147 -> 0 | R147: ='[1]HOJA GENERAL DATOS IMPORTADOS'!R147 -> 0 | S147: ='[1]HOJA GENERAL DATOS IMPORTADOS'!S147 -> 0 | T147: ='[1]HOJA GENERAL DATOS IMPORTADOS'!T147 -> 0 | U147: ='[1]HOJA GENERAL DATOS IMPORTADOS'!U147 -> 0 | V147: ='[1]HOJA GENERAL DATOS IMPORTADOS'!V147 -> 0 | W147: ='[1]HOJA GENERAL DATOS IMPORTADOS'!W147 -> 0 | X147: ='[1]HOJA GENERAL DATOS IMPORTADOS'!X147 -> 0 | Y147: ='[1]HOJA GENERAL DATOS IMPORTADOS'!Y147 -> 0 | Z147: ='[1]HOJA GENERAL DATOS IMPORTADOS'!Z147 -> 0 | AA147: ='[1]HOJA GENERAL DATOS IMPORTADOS'!AA147 -> 0 | AB147: ='[1]HOJA GENERAL DATOS IMPORTADOS'!AB147 -> 0 | AC147: ='[1]HOJA GENERAL DATOS IMPORTADOS'!AC147 -> 0 | AD147: ='[1]HOJA GENERAL DATOS IMPORTADOS'!AD147 -> 0 | AE147: ='[1]HOJA GENERAL DATOS IMPORTADOS'!AE147 -> 0 | AF147: ='[1]HOJA GENERAL DATOS IMPORTADOS'!AF147 -> 0 | AG147: ='[1]HOJA GENERAL DATOS IMPORTADOS'!AG147 -> 0 | AH147: ='[1]HOJA GENERAL DATOS IMPORTADOS'!AH147 -> 0 | AI147: ='[1]HOJA GENERAL DATOS IMPORTADOS'!AI147 -> 0
A148: ='[1]HOJA GENERAL DATOS IMPORTADOS'!A148 -> 391 | B148: ='[1]HOJA GENERAL DATOS IMPORTADOS'!B148 -> OVINO | C148: ='[1]HOJA GENERAL DATOS IMPORTADOS'!C148 -> 1777 GGR | D148: ='[1]HOJA GENERAL DATOS IMPORTADOS'!D148 -> OVIKOMPLET BASIC | E148: ='[1]HOJA GENERAL DATOS IMPORTADOS'!E148 -> GRANULADO 10 | F148: ='[1]HOJA GENERAL DATOS IMPORTADOS'!F148 -> 81 | G148: ='[1]HOJA GENERAL DATOS IMPORTADOS'!G148 -> 165 | H148: ='[1]HOJA GENERAL DATOS IMPORTADOS'!H148 -> 135 | I148: ='[1]HOJA GENERAL DATOS IMPORTADOS'!I148 -> 30 | J148: ='[1]HOJA GENERAL DATOS IMPORTADOS'!J148 -> 87 | K148: ='[1]HOJA GENERAL DATOS IMPORTADOS'!K148 -> Pienso complementario de paja para ovejas en ordeño. Los animales dispondrán en todo momento de paja de cereales limpia y agua limpia y fresca. Puede emplearse racionado. Consultar cada caso con los servicios técnicos. | L148: ='[1]HOJA GENERAL DATOS IMPORTADOS'!L148 -> Preferiblemente administrar varias veces al día pero que siempre lo tengan disponible.La transición a este alimento debe ser lenta (15 días mínimo) y paulatina. Necesaria vacunacion Enterotoxemia. | M148: ='[1]HOJA GENERAL DATOS IMPORTADOS'!M148 -> 0 | N148: ='[1]HOJA GENERAL DATOS IMPORTADOS'!N148 -> 0 | O148: ='[1]HOJA GENERAL DATOS IMPORTADOS'!O148 -> 0 | P148: ='[1]HOJA GENERAL DATOS IMPORTADOS'!P148 -> 0 | Q148: ='[1]HOJA GENERAL DATOS IMPORTADOS'!Q148 -> 0 | R148: ='[1]HOJA GENERAL DATOS IMPORTADOS'!R148 -> 0 | S148: ='[1]HOJA GENERAL DATOS IMPORTADOS'!S148 -> 0 | T148: ='[1]HOJA GENERAL DATOS IMPORTADOS'!T148 -> 0 | U148: ='[1]HOJA GENERAL DATOS IMPORTADOS'!U148 -> 0 | V148: ='[1]HOJA GENERAL DATOS IMPORTADOS'!V148 -> 0 | W148: ='[1]HOJA GENERAL DATOS IMPORTADOS'!W148 -> 0 | X148: ='[1]HOJA GENERAL DATOS IMPORTADOS'!X148 -> 0 | Y148: ='[1]HOJA GENERAL DATOS IMPORTADOS'!Y148 -> 0 | Z148: ='[1]HOJA GENERAL DATOS IMPORTADOS'!Z148 -> 0 | AA148: ='[1]HOJA GENERAL DATOS IMPORTADOS'!AA148 -> 0 | AB148: ='[1]HOJA GENERAL DATOS IMPORTADOS'!AB148 -> 0 | AC148: ='[1]HOJA GENERAL DATOS IMPORTADOS'!AC148 -> 0 | AD148: ='[1]HOJA GENERAL DATOS IMPORTADOS'!AD148 -> 0 | AE148: ='[1]HOJA GENERAL DATOS IMPORTADOS'!AE148 -> 0 | AF148: ='[1]HOJA GENERAL DATOS IMPORTADOS'!AF148 -> 0 | AG148: ='[1]HOJA GENERAL DATOS IMPORTADOS'!AG148 -> 0 | AH148: ='[1]HOJA GENERAL DATOS IMPORTADOS'!AH148 -> 0 | AI148: ='[1]HOJA GENERAL DATOS IMPORTADOS'!AI148 -> 0
A149: ='[1]HOJA GENERAL DATOS IMPORTADOS'!A149 -> 396 | B149: ='[1]HOJA GENERAL DATOS IMPORTADOS'!B149 -> OVINO | C149: ='[1]HOJA GENERAL DATOS IMPORTADOS'!C149 -> 1797 GGR | D149: ='[1]HOJA GENERAL DATOS IMPORTADOS'!D149 -> OVIKOMPLET EQ | E149: ='[1]HOJA GENERAL DATOS IMPORTADOS'!E149 -> GRANULADO 10 | F149: ='[1]HOJA GENERAL DATOS IMPORTADOS'!F149 -> 86 | G149: ='[1]HOJA GENERAL DATOS IMPORTADOS'!G149 -> 180 | H149: ='[1]HOJA GENERAL DATOS IMPORTADOS'!H149 -> 155 | I149: ='[1]HOJA GENERAL DATOS IMPORTADOS'!I149 -> 40 | J149: ='[1]HOJA GENERAL DATOS IMPORTADOS'!J149 -> 90 | K149: ='[1]HOJA GENERAL DATOS IMPORTADOS'!K149 -> Pienso complementario de paja para ovejas en ordeño. Los animales dispondrán en todo momento de paja de cereales limpia y agua limpia y fresca. Puede emplearse racionado o a voluntad. Consultar cada caso con los servicios técnicos. | L149: ='[1]HOJA GENERAL DATOS IMPORTADOS'!L149 -> Preferiblemente administrar varias veces al día pero que siempre lo tengan disponible.La transición a este alimento debe ser lenta (15 días mínimo) y paulatina. Necesaria vacunacion Enterotoxemia. | M149: ='[1]HOJA GENERAL DATOS IMPORTADOS'!M149 -> 0 | N149: ='[1]HOJA GENERAL DATOS IMPORTADOS'!N149 -> 0 | O149: ='[1]HOJA GENERAL DATOS IMPORTADOS'!O149 -> 0 | P149: ='[1]HOJA GENERAL DATOS IMPORTADOS'!P149 -> 0 | Q149: ='[1]HOJA GENERAL DATOS IMPORTADOS'!Q149 -> 0 | R149: ='[1]HOJA GENERAL DATOS IMPORTADOS'!R149 -> 0 | S149: ='[1]HOJA GENERAL DATOS IMPORTADOS'!S149 -> 0 | T149: ='[1]HOJA GENERAL DATOS IMPORTADOS'!T149 -> 0 | U149: ='[1]HOJA GENERAL DATOS IMPORTADOS'!U149 -> 0 | V149: ='[1]HOJA GENERAL DATOS IMPORTADOS'!V149 -> 0 | W149: ='[1]HOJA GENERAL DATOS IMPORTADOS'!W149 -> 0 | X149: ='[1]HOJA GENERAL DATOS IMPORTADOS'!X149 -> 0 | Y149: ='[1]HOJA GENERAL DATOS IMPORTADOS'!Y149 -> 0 | Z149: ='[1]HOJA GENERAL DATOS IMPORTADOS'!Z149 -> 0 | AA149: ='[1]HOJA GENERAL DATOS IMPORTADOS'!AA149 -> 0 | AB149: ='[1]HOJA GENERAL DATOS IMPORTADOS'!AB149 -> 0 | AC149: ='[1]HOJA GENERAL DATOS IMPORTADOS'!AC149 -> 0 | AD149: ='[1]HOJA GENERAL DATOS IMPORTADOS'!AD149 -> 0 | AE149: ='[1]HOJA GENERAL DATOS IMPORTADOS'!AE149 -> 0 | AF149: ='[1]HOJA GENERAL DATOS IMPORTADOS'!AF149 -> 0 | AG149: ='[1]HOJA GENERAL DATOS IMPORTADOS'!AG149 -> 0 | AH149: ='[1]HOJA GENERAL DATOS IMPORTADOS'!AH149 -> 0 | AI149: ='[1]HOJA GENERAL DATOS IMPORTADOS'!AI149 -> 0
A150: ='[1]HOJA GENERAL DATOS IMPORTADOS'!A150 -> 397 | B150: ='[1]HOJA GENERAL DATOS IMPORTADOS'!B150 -> CAPRINO | C150: ='[1]HOJA GENERAL DATOS IMPORTADOS'!C150 ->  | D150: ='[1]HOJA GENERAL DATOS IMPORTADOS'!D150 -> CAPRIKOMPLET PLUS | E150: ='[1]HOJA GENERAL DATOS IMPORTADOS'!E150 -> GRANULADO 3,5 | F150: ='[1]HOJA GENERAL DATOS IMPORTADOS'!F150 -> 94 | G150: ='[1]HOJA GENERAL DATOS IMPORTADOS'!G150 -> 180 | H150: ='[1]HOJA GENERAL DATOS IMPORTADOS'!H150 -> 100 | I150: ='[1]HOJA GENERAL DATOS IMPORTADOS'!I150 -> 38 | J150: ='[1]HOJA GENERAL DATOS IMPORTADOS'!J150 -> 74 | K150: ='[1]HOJA GENERAL DATOS IMPORTADOS'!K150 -> Pienso complementario de paja para cabras en ordeño. Los animales dispondrán en todo momento de paja de cereales y algo de forraje y agua limpia y fresca . Puede emplearse racionado o a voluntad. Diseñado especialmente para cabras tipo murciano. | L150: ='[1]HOJA GENERAL DATOS IMPORTADOS'!L150 -> Preferiblemente administrar varias veces al día pero que siempre lo tengan disponible. La transición a este alimento debe ser lenta (15 días mínimo) y paulatina. Recomendamos tener a los animales desparasitados y vacunados de Enterotoxemia. | M150: ='[1]HOJA GENERAL DATOS IMPORTADOS'!M150 -> 0 | N150: ='[1]HOJA GENERAL DATOS IMPORTADOS'!N150 -> 0 | O150: ='[1]HOJA GENERAL DATOS IMPORTADOS'!O150 -> 0 | P150: ='[1]HOJA GENERAL DATOS IMPORTADOS'!P150 -> 0 | Q150: ='[1]HOJA GENERAL DATOS IMPORTADOS'!Q150 -> 0 | R150: ='[1]HOJA GENERAL DATOS IMPORTADOS'!R150 -> 0 | S150: ='[1]HOJA GENERAL DATOS IMPORTADOS'!S150 -> 0 | T150: ='[1]HOJA GENERAL DATOS IMPORTADOS'!T150 -> 0 | U150: ='[1]HOJA GENERAL DATOS IMPORTADOS'!U150 -> 0 | V150: ='[1]HOJA GENERAL DATOS IMPORTADOS'!V150 -> 0 | W150: ='[1]HOJA GENERAL DATOS IMPORTADOS'!W150 -> 0 | X150: ='[1]HOJA GENERAL DATOS IMPORTADOS'!X150 -> 0 | Y150: ='[1]HOJA GENERAL DATOS IMPORTADOS'!Y150 -> 0 | Z150: ='[1]HOJA GENERAL DATOS IMPORTADOS'!Z150 -> 0 | AA150: ='[1]HOJA GENERAL DATOS IMPORTADOS'!AA150 -> 0 | AB150: ='[1]HOJA GENERAL DATOS IMPORTADOS'!AB150 -> 0 | AC150: ='[1]HOJA GENERAL DATOS IMPORTADOS'!AC150 -> 0 | AD150: ='[1]HOJA GENERAL DATOS IMPORTADOS'!AD150 -> 0 | AE150: ='[1]HOJA GENERAL DATOS IMPORTADOS'!AE150 -> 0 | AF150: ='[1]HOJA GENERAL DATOS IMPORTADOS'!AF150 -> 0 | AG150: ='[1]HOJA GENERAL DATOS IMPORTADOS'!AG150 -> 0 | AH150: ='[1]HOJA GENERAL DATOS IMPORTADOS'!AH150 -> 0 | AI150: ='[1]HOJA GENERAL DATOS IMPORTADOS'!AI150 -> 0
A151: ='[1]HOJA GENERAL DATOS IMPORTADOS'!A151 -> 413 | B151: ='[1]HOJA GENERAL DATOS IMPORTADOS'!B151 -> OVINO/CAPRINO | C151: ='[1]HOJA GENERAL DATOS IMPORTADOS'!C151 -> 1818 GGR | D151: ='[1]HOJA GENERAL DATOS IMPORTADOS'!D151 -> KOMPLET GESTACION | E151: ='[1]HOJA GENERAL DATOS IMPORTADOS'!E151 -> GRANULADO 3,5 | F151: ='[1]HOJA GENERAL DATOS IMPORTADOS'!F151 -> 90 | G151: ='[1]HOJA GENERAL DATOS IMPORTADOS'!G151 -> 175 | H151: ='[1]HOJA GENERAL DATOS IMPORTADOS'!H151 -> 90 | I151: ='[1]HOJA GENERAL DATOS IMPORTADOS'!I151 -> 25 | J151: ='[1]HOJA GENERAL DATOS IMPORTADOS'!J151 -> 83 | K151: ='[1]HOJA GENERAL DATOS IMPORTADOS'!K151 -> Pienso complementario especial para el preparto de ovejas y cabras de ordeño . Utilizar como complementario de forrajes (incluido paja) los últimos 45 días de antes del parto. | L151: ='[1]HOJA GENERAL DATOS IMPORTADOS'!L151 -> racionar adecuadamente según peso vivo y prolificidad. .Los animales dispondrán de agua limpia y fresca a libre disposición. | M151: ='[1]HOJA GENERAL DATOS IMPORTADOS'!M151 -> 0 | N151: ='[1]HOJA GENERAL DATOS IMPORTADOS'!N151 -> 0 | O151: ='[1]HOJA GENERAL DATOS IMPORTADOS'!O151 -> 0 | P151: ='[1]HOJA GENERAL DATOS IMPORTADOS'!P151 -> 0 | Q151: ='[1]HOJA GENERAL DATOS IMPORTADOS'!Q151 -> 0 | R151: ='[1]HOJA GENERAL DATOS IMPORTADOS'!R151 -> 0 | S151: ='[1]HOJA GENERAL DATOS IMPORTADOS'!S151 -> 0 | T151: ='[1]HOJA GENERAL DATOS IMPORTADOS'!T151 -> 0 | U151: ='[1]HOJA GENERAL DATOS IMPORTADOS'!U151 -> 0 | V151: ='[1]HOJA GENERAL DATOS IMPORTADOS'!V151 -> 0 | W151: ='[1]HOJA GENERAL DATOS IMPORTADOS'!W151 -> 0 | X151: ='[1]HOJA GENERAL DATOS IMPORTADOS'!X151 -> 0 | Y151: ='[1]HOJA GENERAL DATOS IMPORTADOS'!Y151 -> 0 | Z151: ='[1]HOJA GENERAL DATOS IMPORTADOS'!Z151 -> 0 | AA151: ='[1]HOJA GENERAL DATOS IMPORTADOS'!AA151 -> 0 | AB151: ='[1]HOJA GENERAL DATOS IMPORTADOS'!AB151 -> 0 | AC151: ='[1]HOJA GENERAL DATOS IMPORTADOS'!AC151 -> 0 | AD151: ='[1]HOJA GENERAL DATOS IMPORTADOS'!AD151 -> 0 | AE151: ='[1]HOJA GENERAL DATOS IMPORTADOS'!AE151 -> 0 | AF151: ='[1]HOJA GENERAL DATOS IMPORTADOS'!AF151 -> 0 | AG151: ='[1]HOJA GENERAL DATOS IMPORTADOS'!AG151 -> 0 | AH151: ='[1]HOJA GENERAL DATOS IMPORTADOS'!AH151 -> 0 | AI151: ='[1]HOJA GENERAL DATOS IMPORTADOS'!AI151 -> 0
A152: ='[1]HOJA GENERAL DATOS IMPORTADOS'!A152 -> 414 | B152: ='[1]HOJA GENERAL DATOS IMPORTADOS'!B152 -> OVINO/CAPRINO | C152: ='[1]HOJA GENERAL DATOS IMPORTADOS'!C152 -> 1819 GGR | D152: ='[1]HOJA GENERAL DATOS IMPORTADOS'!D152 -> KOMPLET RECRIA | E152: ='[1]HOJA GENERAL DATOS IMPORTADOS'!E152 -> GRANULADO 3,5 | F152: ='[1]HOJA GENERAL DATOS IMPORTADOS'!F152 -> 91 | G152: ='[1]HOJA GENERAL DATOS IMPORTADOS'!G152 -> 170 | H152: ='[1]HOJA GENERAL DATOS IMPORTADOS'!H152 -> 100 | I152: ='[1]HOJA GENERAL DATOS IMPORTADOS'!I152 -> 38 | J152: ='[1]HOJA GENERAL DATOS IMPORTADOS'!J152 -> 74 | K152: ='[1]HOJA GENERAL DATOS IMPORTADOS'!K152 -> Pienso complementario destinados a corderas y chivas de reposición desde los 3 hasta el preparto. Se puede suministar a voluntad con paja ad libitumn en la primera fase- Despues racionado. El aporte de forrajes es siempre preferible. | L152: ='[1]HOJA GENERAL DATOS IMPORTADOS'!L152 -> Los animales dispondrán en todo momento de agua limpia y fresca a libre servicio. Consultar a los servicios técnicos. | M152: ='[1]HOJA GENERAL DATOS IMPORTADOS'!M152 -> 0 | N152: ='[1]HOJA GENERAL DATOS IMPORTADOS'!N152 -> 0 | O152: ='[1]HOJA GENERAL DATOS IMPORTADOS'!O152 -> 0 | P152: ='[1]HOJA GENERAL DATOS IMPORTADOS'!P152 -> 0 | Q152: ='[1]HOJA GENERAL DATOS IMPORTADOS'!Q152 -> 0 | R152: ='[1]HOJA GENERAL DATOS IMPORTADOS'!R152 -> 0 | S152: ='[1]HOJA GENERAL DATOS IMPORTADOS'!S152 -> 0 | T152: ='[1]HOJA GENERAL DATOS IMPORTADOS'!T152 -> 0 | U152: ='[1]HOJA GENERAL DATOS IMPORTADOS'!U152 -> 0 | V152: ='[1]HOJA GENERAL DATOS IMPORTADOS'!V152 -> 0 | W152: ='[1]HOJA GENERAL DATOS IMPORTADOS'!W152 -> 0 | X152: ='[1]HOJA GENERAL DATOS IMPORTADOS'!X152 -> 0 | Y152: ='[1]HOJA GENERAL DATOS IMPORTADOS'!Y152 -> 0 | Z152: ='[1]HOJA GENERAL DATOS IMPORTADOS'!Z152 -> 0 | AA152: ='[1]HOJA GENERAL DATOS IMPORTADOS'!AA152 -> 0 | AB152: ='[1]HOJA GENERAL DATOS IMPORTADOS'!AB152 -> 0 | AC152: ='[1]HOJA GENERAL DATOS IMPORTADOS'!AC152 -> 0 | AD152: ='[1]HOJA GENERAL DATOS IMPORTADOS'!AD152 -> 0 | AE152: ='[1]HOJA GENERAL DATOS IMPORTADOS'!AE152 -> 0 | AF152: ='[1]HOJA GENERAL DATOS IMPORTADOS'!AF152 -> 0 | AG152: ='[1]HOJA GENERAL DATOS IMPORTADOS'!AG152 -> 0 | AH152: ='[1]HOJA GENERAL DATOS IMPORTADOS'!AH152 -> 0 | AI152: ='[1]HOJA GENERAL DATOS IMPORTADOS'!AI152 -> 0
A153: ='[1]HOJA GENERAL DATOS IMPORTADOS'!A153 -> 420 | B153: ='[1]HOJA GENERAL DATOS IMPORTADOS'!B153 -> OVINO | C153: ='[1]HOJA GENERAL DATOS IMPORTADOS'!C153 -> 1856 GGR | D153: ='[1]HOJA GENERAL DATOS IMPORTADOS'!D153 -> OVIKOMPLET PLUS | E153: ='[1]HOJA GENERAL DATOS IMPORTADOS'!E153 -> GRANULADO 10 | F153: ='[1]HOJA GENERAL DATOS IMPORTADOS'!F153 -> 90 | G153: ='[1]HOJA GENERAL DATOS IMPORTADOS'!G153 -> 185 | H153: ='[1]HOJA GENERAL DATOS IMPORTADOS'!H153 -> 110 | I153: ='[1]HOJA GENERAL DATOS IMPORTADOS'!I153 -> 38 | J153: ='[1]HOJA GENERAL DATOS IMPORTADOS'!J153 -> 81 | K153: ='[1]HOJA GENERAL DATOS IMPORTADOS'!K153 -> Pienso complementario de paja y forrajes para ovejas en ordeño. Los animales dispondrán en todo momento de paja de cereales limpia y agua limpia y fresca. Puede emplearse racionado o a voluntad. Consultar cada caso con los servicios técnicos. | L153: ='[1]HOJA GENERAL DATOS IMPORTADOS'!L153 -> Preferiblemente administrar varias veces al día pero que siempre lo tengan disponible.La transición a este alimento debe ser lenta (15 días mínimo) y paulatina. Necesaria vacunacion Enterotoxemia. | M153: ='[1]HOJA GENERAL DATOS IMPORTADOS'!M153 -> 0 | N153: ='[1]HOJA GENERAL DATOS IMPORTADOS'!N153 -> 0 | O153: ='[1]HOJA GENERAL DATOS IMPORTADOS'!O153 -> 0 | P153: ='[1]HOJA GENERAL DATOS IMPORTADOS'!P153 -> 0 | Q153: ='[1]HOJA GENERAL DATOS IMPORTADOS'!Q153 -> 0 | R153: ='[1]HOJA GENERAL DATOS IMPORTADOS'!R153 -> 0 | S153: ='[1]HOJA GENERAL DATOS IMPORTADOS'!S153 -> 0 | T153: ='[1]HOJA GENERAL DATOS IMPORTADOS'!T153 -> 0 | U153: ='[1]HOJA GENERAL DATOS IMPORTADOS'!U153 -> 0 | V153: ='[1]HOJA GENERAL DATOS IMPORTADOS'!V153 -> 0 | W153: ='[1]HOJA GENERAL DATOS IMPORTADOS'!W153 -> 0 | X153: ='[1]HOJA GENERAL DATOS IMPORTADOS'!X153 -> 0 | Y153: ='[1]HOJA GENERAL DATOS IMPORTADOS'!Y153 -> 0 | Z153: ='[1]HOJA GENERAL DATOS IMPORTADOS'!Z153 -> 0 | AA153: ='[1]HOJA GENERAL DATOS IMPORTADOS'!AA153 -> 0 | AB153: ='[1]HOJA GENERAL DATOS IMPORTADOS'!AB153 -> 0 | AC153: ='[1]HOJA GENERAL DATOS IMPORTADOS'!AC153 -> 0 | AD153: ='[1]HOJA GENERAL DATOS IMPORTADOS'!AD153 -> 0 | AE153: ='[1]HOJA GENERAL DATOS IMPORTADOS'!AE153 -> 0 | AF153: ='[1]HOJA GENERAL DATOS IMPORTADOS'!AF153 -> 0 | AG153: ='[1]HOJA GENERAL DATOS IMPORTADOS'!AG153 -> 0 | AH153: ='[1]HOJA GENERAL DATOS IMPORTADOS'!AH153 -> 0 | AI153: ='[1]HOJA GENERAL DATOS IMPORTADOS'!AI153 -> 0
A154: ='[1]HOJA GENERAL DATOS IMPORTADOS'!A154 -> 0 | B154: ='[1]HOJA GENERAL DATOS IMPORTADOS'!B154 -> 0 | C154: ='[1]HOJA GENERAL DATOS IMPORTADOS'!C154 -> 0 | D154: ='[1]HOJA GENERAL DATOS IMPORTADOS'!D154 -> 0 | E154: ='[1]HOJA GENERAL DATOS IMPORTADOS'!E154 -> 0 | F154: ='[1]HOJA GENERAL DATOS IMPORTADOS'!F154 -> 0 | G154: ='[1]HOJA GENERAL DATOS IMPORTADOS'!G154 -> 0 | H154: ='[1]HOJA GENERAL DATOS IMPORTADOS'!H154 -> 0 | I154: ='[1]HOJA GENERAL DATOS IMPORTADOS'!I154 -> 0 | J154: ='[1]HOJA GENERAL DATOS IMPORTADOS'!J154 -> 0 | K154: ='[1]HOJA GENERAL DATOS IMPORTADOS'!K154 -> 0 | L154: ='[1]HOJA GENERAL DATOS IMPORTADOS'!L154 -> 0 | M154: ='[1]HOJA GENERAL DATOS IMPORTADOS'!M154 -> 0 | N154: ='[1]HOJA GENERAL DATOS IMPORTADOS'!N154 -> 0 | O154: ='[1]HOJA GENERAL DATOS IMPORTADOS'!O154 -> 0 | P154: ='[1]HOJA GENERAL DATOS IMPORTADOS'!P154 -> 0 | Q154: ='[1]HOJA GENERAL DATOS IMPORTADOS'!Q154 -> 0 | R154: ='[1]HOJA GENERAL DATOS IMPORTADOS'!R154 -> 0 | S154: ='[1]HOJA GENERAL DATOS IMPORTADOS'!S154 -> 0 | T154: ='[1]HOJA GENERAL DATOS IMPORTADOS'!T154 -> 0 | U154: ='[1]HOJA GENERAL DATOS IMPORTADOS'!U154 -> 0 | V154: ='[1]HOJA GENERAL DATOS IMPORTADOS'!V154 -> 0 | W154: ='[1]HOJA GENERAL DATOS IMPORTADOS'!W154 -> 0 | X154: ='[1]HOJA GENERAL DATOS IMPORTADOS'!X154 -> 0 | Y154: ='[1]HOJA GENERAL DATOS IMPORTADOS'!Y154 -> 0 | Z154: ='[1]HOJA GENERAL DATOS IMPORTADOS'!Z154 -> 0 | AA154: ='[1]HOJA GENERAL DATOS IMPORTADOS'!AA154 -> 0 | AB154: ='[1]HOJA GENERAL DATOS IMPORTADOS'!AB154 -> 0 | AC154: ='[1]HOJA GENERAL DATOS IMPORTADOS'!AC154 -> 0 | AD154: ='[1]HOJA GENERAL DATOS IMPORTADOS'!AD154 -> 0 | AE154: ='[1]HOJA GENERAL DATOS IMPORTADOS'!AE154 -> 0 | AF154: ='[1]HOJA GENERAL DATOS IMPORTADOS'!AF154 -> 0 | AG154: ='[1]HOJA GENERAL DATOS IMPORTADOS'!AG154 -> 0 | AH154: ='[1]HOJA GENERAL DATOS IMPORTADOS'!AH154 -> 0 | AI154: ='[1]HOJA GENERAL DATOS IMPORTADOS'!AI154 -> 0
A155: ='[1]HOJA GENERAL DATOS IMPORTADOS'!A155 -> 0 | B155: ='[1]HOJA GENERAL DATOS IMPORTADOS'!B155 -> 0 | C155: ='[1]HOJA GENERAL DATOS IMPORTADOS'!C155 -> 0 | D155: ='[1]HOJA GENERAL DATOS IMPORTADOS'!D155 -> 0 | E155: ='[1]HOJA GENERAL DATOS IMPORTADOS'!E155 -> 0 | F155: ='[1]HOJA GENERAL DATOS IMPORTADOS'!F155 -> 0 | G155: ='[1]HOJA GENERAL DATOS IMPORTADOS'!G155 -> 0 | H155: ='[1]HOJA GENERAL DATOS IMPORTADOS'!H155 -> 0 | I155: ='[1]HOJA GENERAL DATOS IMPORTADOS'!I155 -> 0 | J155: ='[1]HOJA GENERAL DATOS IMPORTADOS'!J155 -> 0 | K155: ='[1]HOJA GENERAL DATOS IMPORTADOS'!K155 -> 0 | L155: ='[1]HOJA GENERAL DATOS IMPORTADOS'!L155 -> 0 | M155: ='[1]HOJA GENERAL DATOS IMPORTADOS'!M155 -> 0 | N155: ='[1]HOJA GENERAL DATOS IMPORTADOS'!N155 -> 0 | O155: ='[1]HOJA GENERAL DATOS IMPORTADOS'!O155 -> 0 | P155: ='[1]HOJA GENERAL DATOS IMPORTADOS'!P155 -> 0 | Q155: ='[1]HOJA GENERAL DATOS IMPORTADOS'!Q155 -> 0 | R155: ='[1]HOJA GENERAL DATOS IMPORTADOS'!R155 -> 0 | S155: ='[1]HOJA GENERAL DATOS IMPORTADOS'!S155 -> 0 | T155: ='[1]HOJA GENERAL DATOS IMPORTADOS'!T155 -> 0 | U155: ='[1]HOJA GENERAL DATOS IMPORTADOS'!U155 -> 0 | V155: ='[1]HOJA GENERAL DATOS IMPORTADOS'!V155 -> 0 | W155: ='[1]HOJA GENERAL DATOS IMPORTADOS'!W155 -> 0 | X155: ='[1]HOJA GENERAL DATOS IMPORTADOS'!X155 -> 0 | Y155: ='[1]HOJA GENERAL DATOS IMPORTADOS'!Y155 -> 0 | Z155: ='[1]HOJA GENERAL DATOS IMPORTADOS'!Z155 -> 0 | AA155: ='[1]HOJA GENERAL DATOS IMPORTADOS'!AA155 -> 0 | AB155: ='[1]HOJA GENERAL DATOS IMPORTADOS'!AB155 -> 0 | AC155: ='[1]HOJA GENERAL DATOS IMPORTADOS'!AC155 -> 0 | AD155: ='[1]HOJA GENERAL DATOS IMPORTADOS'!AD155 -> 0 | AE155: ='[1]HOJA GENERAL DATOS IMPORTADOS'!AE155 -> 0 | AF155: ='[1]HOJA GENERAL DATOS IMPORTADOS'!AF155 -> 0 | AG155: ='[1]HOJA GENERAL DATOS IMPORTADOS'!AG155 -> 0 | AH155: ='[1]HOJA GENERAL DATOS IMPORTADOS'!AH155 -> 0 | AI155: ='[1]HOJA GENERAL DATOS IMPORTADOS'!AI155 -> 0
A156: ='[1]HOJA GENERAL DATOS IMPORTADOS'!A156 -> 0 | B156: ='[1]HOJA GENERAL DATOS IMPORTADOS'!B156 -> 0 | C156: ='[1]HOJA GENERAL DATOS IMPORTADOS'!C156 -> 0 | D156: ='[1]HOJA GENERAL DATOS IMPORTADOS'!D156 -> 0 | E156: ='[1]HOJA GENERAL DATOS IMPORTADOS'!E156 -> 0 | F156: ='[1]HOJA GENERAL DATOS IMPORTADOS'!F156 -> 0 | G156: ='[1]HOJA GENERAL DATOS IMPORTADOS'!G156 -> 0 | H156: ='[1]HOJA GENERAL DATOS IMPORTADOS'!H156 -> 0 | I156: ='[1]HOJA GENERAL DATOS IMPORTADOS'!I156 -> 0 | J156: ='[1]HOJA GENERAL DATOS IMPORTADOS'!J156 -> 0 | K156: ='[1]HOJA GENERAL DATOS IMPORTADOS'!K156 -> 0 | L156: ='[1]HOJA GENERAL DATOS IMPORTADOS'!L156 -> 0 | M156: ='[1]HOJA GENERAL DATOS IMPORTADOS'!M156 -> 0 | N156: ='[1]HOJA GENERAL DATOS IMPORTADOS'!N156 -> 0 | O156: ='[1]HOJA GENERAL DATOS IMPORTADOS'!O156 -> 0 | P156: ='[1]HOJA GENERAL DATOS IMPORTADOS'!P156 -> 0 | Q156: ='[1]HOJA GENERAL DATOS IMPORTADOS'!Q156 -> 0 | R156: ='[1]HOJA GENERAL DATOS IMPORTADOS'!R156 -> 0 | S156: ='[1]HOJA GENERAL DATOS IMPORTADOS'!S156 -> 0 | T156: ='[1]HOJA GENERAL DATOS IMPORTADOS'!T156 -> 0 | U156: ='[1]HOJA GENERAL DATOS IMPORTADOS'!U156 -> 0 | V156: ='[1]HOJA GENERAL DATOS IMPORTADOS'!V156 -> 0 | W156: ='[1]HOJA GENERAL DATOS IMPORTADOS'!W156 -> 0 | X156: ='[1]HOJA GENERAL DATOS IMPORTADOS'!X156 -> 0 | Y156: ='[1]HOJA GENERAL DATOS IMPORTADOS'!Y156 -> 0 | Z156: ='[1]HOJA GENERAL DATOS IMPORTADOS'!Z156 -> 0 | AA156: ='[1]HOJA GENERAL DATOS IMPORTADOS'!AA156 -> 0 | AB156: ='[1]HOJA GENERAL DATOS IMPORTADOS'!AB156 -> 0 | AC156: ='[1]HOJA GENERAL DATOS IMPORTADOS'!AC156 -> 0 | AD156: ='[1]HOJA GENERAL DATOS IMPORTADOS'!AD156 -> 0 | AE156: ='[1]HOJA GENERAL DATOS IMPORTADOS'!AE156 -> 0 | AF156: ='[1]HOJA GENERAL DATOS IMPORTADOS'!AF156 -> 0 | AG156: ='[1]HOJA GENERAL DATOS IMPORTADOS'!AG156 -> 0 | AH156: ='[1]HOJA GENERAL DATOS IMPORTADOS'!AH156 -> 0 | AI156: ='[1]HOJA GENERAL DATOS IMPORTADOS'!AI156 -> 0
A157: ='[1]HOJA GENERAL DATOS IMPORTADOS'!A157 -> 0 | B157: ='[1]HOJA GENERAL DATOS IMPORTADOS'!B157 -> 0 | C157: ='[1]HOJA GENERAL DATOS IMPORTADOS'!C157 -> 0 | D157: ='[1]HOJA GENERAL DATOS IMPORTADOS'!D157 -> 0 | E157: ='[1]HOJA GENERAL DATOS IMPORTADOS'!E157 -> 0 | F157: ='[1]HOJA GENERAL DATOS IMPORTADOS'!F157 -> 0 | G157: ='[1]HOJA GENERAL DATOS IMPORTADOS'!G157 -> 0 | H157: ='[1]HOJA GENERAL DATOS IMPORTADOS'!H157 -> 0 | I157: ='[1]HOJA GENERAL DATOS IMPORTADOS'!I157 -> 0 | J157: ='[1]HOJA GENERAL DATOS IMPORTADOS'!J157 -> 0 | K157: ='[1]HOJA GENERAL DATOS IMPORTADOS'!K157 -> 0 | L157: ='[1]HOJA GENERAL DATOS IMPORTADOS'!L157 -> 0 | M157: ='[1]HOJA GENERAL DATOS IMPORTADOS'!M157 -> 0 | N157: ='[1]HOJA GENERAL DATOS IMPORTADOS'!N157 -> 0 | O157: ='[1]HOJA GENERAL DATOS IMPORTADOS'!O157 -> 0 | P157: ='[1]HOJA GENERAL DATOS IMPORTADOS'!P157 -> 0 | Q157: ='[1]HOJA GENERAL DATOS IMPORTADOS'!Q157 -> 0 | R157: ='[1]HOJA GENERAL DATOS IMPORTADOS'!R157 -> 0 | S157: ='[1]HOJA GENERAL DATOS IMPORTADOS'!S157 -> 0 | T157: ='[1]HOJA GENERAL DATOS IMPORTADOS'!T157 -> 0 | U157: ='[1]HOJA GENERAL DATOS IMPORTADOS'!U157 -> 0 | V157: ='[1]HOJA GENERAL DATOS IMPORTADOS'!V157 -> 0 | W157: ='[1]HOJA GENERAL DATOS IMPORTADOS'!W157 -> 0 | X157: ='[1]HOJA GENERAL DATOS IMPORTADOS'!X157 -> 0 | Y157: ='[1]HOJA GENERAL DATOS IMPORTADOS'!Y157 -> 0 | Z157: ='[1]HOJA GENERAL DATOS IMPORTADOS'!Z157 -> 0 | AA157: ='[1]HOJA GENERAL DATOS IMPORTADOS'!AA157 -> 0 | AB157: ='[1]HOJA GENERAL DATOS IMPORTADOS'!AB157 -> 0 | AC157: ='[1]HOJA GENERAL DATOS IMPORTADOS'!AC157 -> 0 | AD157: ='[1]HOJA GENERAL DATOS IMPORTADOS'!AD157 -> 0 | AE157: ='[1]HOJA GENERAL DATOS IMPORTADOS'!AE157 -> 0 | AF157: ='[1]HOJA GENERAL DATOS IMPORTADOS'!AF157 -> 0 | AG157: ='[1]HOJA GENERAL DATOS IMPORTADOS'!AG157 -> 0 | AH157: ='[1]HOJA GENERAL DATOS IMPORTADOS'!AH157 -> 0 | AI157: ='[1]HOJA GENERAL DATOS IMPORTADOS'!AI157 -> 0
A158: ='[1]HOJA GENERAL DATOS IMPORTADOS'!A158 -> 0 | B158: ='[1]HOJA GENERAL DATOS IMPORTADOS'!B158 -> 0 | C158: ='[1]HOJA GENERAL DATOS IMPORTADOS'!C158 -> 0 | D158: ='[1]HOJA GENERAL DATOS IMPORTADOS'!D158 -> 0 | E158: ='[1]HOJA GENERAL DATOS IMPORTADOS'!E158 -> 0 | F158: ='[1]HOJA GENERAL DATOS IMPORTADOS'!F158 -> 0 | G158: ='[1]HOJA GENERAL DATOS IMPORTADOS'!G158 -> 0 | H158: ='[1]HOJA GENERAL DATOS IMPORTADOS'!H158 -> 0 | I158: ='[1]HOJA GENERAL DATOS IMPORTADOS'!I158 -> 0 | J158: ='[1]HOJA GENERAL DATOS IMPORTADOS'!J158 -> 0 | K158: ='[1]HOJA GENERAL DATOS IMPORTADOS'!K158 -> 0 | L158: ='[1]HOJA GENERAL DATOS IMPORTADOS'!L158 -> 0 | M158: ='[1]HOJA GENERAL DATOS IMPORTADOS'!M158 -> 0 | N158: ='[1]HOJA GENERAL DATOS IMPORTADOS'!N158 -> 0 | O158: ='[1]HOJA GENERAL DATOS IMPORTADOS'!O158 -> 0 | P158: ='[1]HOJA GENERAL DATOS IMPORTADOS'!P158 -> 0 | Q158: ='[1]HOJA GENERAL DATOS IMPORTADOS'!Q158 -> 0 | R158: ='[1]HOJA GENERAL DATOS IMPORTADOS'!R158 -> 0 | S158: ='[1]HOJA GENERAL DATOS IMPORTADOS'!S158 -> 0 | T158: ='[1]HOJA GENERAL DATOS IMPORTADOS'!T158 -> 0 | U158: ='[1]HOJA GENERAL DATOS IMPORTADOS'!U158 -> 0 | V158: ='[1]HOJA GENERAL DATOS IMPORTADOS'!V158 -> 0 | W158: ='[1]HOJA GENERAL DATOS IMPORTADOS'!W158 -> 0 | X158: ='[1]HOJA GENERAL DATOS IMPORTADOS'!X158 -> 0 | Y158: ='[1]HOJA GENERAL DATOS IMPORTADOS'!Y158 -> 0 | Z158: ='[1]HOJA GENERAL DATOS IMPORTADOS'!Z158 -> 0 | AA158: ='[1]HOJA GENERAL DATOS IMPORTADOS'!AA158 -> 0 | AB158: ='[1]HOJA GENERAL DATOS IMPORTADOS'!AB158 -> 0 | AC158: ='[1]HOJA GENERAL DATOS IMPORTADOS'!AC158 -> 0 | AD158: ='[1]HOJA GENERAL DATOS IMPORTADOS'!AD158 -> 0 | AE158: ='[1]HOJA GENERAL DATOS IMPORTADOS'!AE158 -> 0 | AF158: ='[1]HOJA GENERAL DATOS IMPORTADOS'!AF158 -> 0 | AG158: ='[1]HOJA GENERAL DATOS IMPORTADOS'!AG158 -> 0 | AH158: ='[1]HOJA GENERAL DATOS IMPORTADOS'!AH158 -> 0 | AI158: ='[1]HOJA GENERAL DATOS IMPORTADOS'!AI158 -> 0
A159: ='[1]HOJA GENERAL DATOS IMPORTADOS'!A159 -> NUMEROREGISTRO | B159: ='[1]HOJA GENERAL DATOS IMPORTADOS'!B159 -> HOMOLOGADO | C159: ='[1]HOJA GENERAL DATOS IMPORTADOS'!C159 -> NOMBRE PRODUCTO | D159: ='[1]HOJA GENERAL DATOS IMPORTADOS'!D159 -> GANADO | E159: ='[1]HOJA GENERAL DATOS IMPORTADOS'!E159 -> CLASE | F159: ='[1]HOJA GENERAL DATOS IMPORTADOS'!F159 -> TIPO | G159: ='[1]HOJA GENERAL DATOS IMPORTADOS'!G159 -> PRESENTACION | H159: ='[1]HOJA GENERAL DATOS IMPORTADOS'!H159 -> TIPO DE PIENSO | I159: ='[1]HOJA GENERAL DATOS IMPORTADOS'!I159 -> DESTINO PIENSO | J159: ='[1]HOJA GENERAL DATOS IMPORTADOS'!J159 -> HUMEDAD | K159: ='[1]HOJA GENERAL DATOS IMPORTADOS'!K159 -> PROTEINA BRUTA | L159: ='[1]HOJA GENERAL DATOS IMPORTADOS'!L159 -> FIBRA BRUTA | M159: ='[1]HOJA GENERAL DATOS IMPORTADOS'!M159 -> GRASA BRUTA | N159: ='[1]HOJA GENERAL DATOS IMPORTADOS'!N159 -> CENIZAS | O159: ='[1]HOJA GENERAL DATOS IMPORTADOS'!O159 -> A+A | P159: ='[1]HOJA GENERAL DATOS IMPORTADOS'!P159 -> UFL/UFV | Q159: ='[1]HOJA GENERAL DATOS IMPORTADOS'!Q159 -> MODO DE EMPLEO | R159: ='[1]HOJA GENERAL DATOS IMPORTADOS'!R159 -> OBSERVACIONES | S159: ='[1]HOJA GENERAL DATOS IMPORTADOS'!S159 -> MODO EMPLEO ETIQUETA | T159: ='[1]HOJA GENERAL DATOS IMPORTADOS'!T159 -> %HUM | U159: ='[1]HOJA GENERAL DATOS IMPORTADOS'!U159 -> %PB | V159: ='[1]HOJA GENERAL DATOS IMPORTADOS'!V159 -> %FB | W159: ='[1]HOJA GENERAL DATOS IMPORTADOS'!W159 -> GB | X159: ='[1]HOJA GENERAL DATOS IMPORTADOS'!X159 -> %MM | Y159: ='[1]HOJA GENERAL DATOS IMPORTADOS'!Y159 -> %A+A | Z159: ='[1]HOJA GENERAL DATOS IMPORTADOS'!Z159 -> 0 | AA159: ='[1]HOJA GENERAL DATOS IMPORTADOS'!AA159 -> 0 | AB159: ='[1]HOJA GENERAL DATOS IMPORTADOS'!AB159 -> 0 | AC159: ='[1]HOJA GENERAL DATOS IMPORTADOS'!AC159 -> 0 | AD159: ='[1]HOJA GENERAL DATOS IMPORTADOS'!AD159 -> 0 | AE159: ='[1]HOJA GENERAL DATOS IMPORTADOS'!AE159 -> 0 | AF159: ='[1]HOJA GENERAL DATOS IMPORTADOS'!AF159 -> 0 | AG159: ='[1]HOJA GENERAL DATOS IMPORTADOS'!AG159 -> 0 | AH159: ='[1]HOJA GENERAL DATOS IMPORTADOS'!AH159 -> 0 | AI159: ='[1]HOJA GENERAL DATOS IMPORTADOS'!AI159 -> 0
Z160: ='[1]HOJA GENERAL DATOS IMPORTADOS'!Z160 -> 0 | AA160: ='[1]HOJA GENERAL DATOS IMPORTADOS'!AA160 -> 0 | AB160: ='[1]HOJA GENERAL DATOS IMPORTADOS'!AB160 -> 0 | AC160: ='[1]HOJA GENERAL DATOS IMPORTADOS'!AC160 -> 0 | AD160: ='[1]HOJA GENERAL DATOS IMPORTADOS'!AD160 -> 0 | AE160: ='[1]HOJA GENERAL DATOS IMPORTADOS'!AE160 -> 0 | AF160: ='[1]HOJA GENERAL DATOS IMPORTADOS'!AF160 -> 0 | AG160: ='[1]HOJA GENERAL DATOS IMPORTADOS'!AG160 -> 0 | AH160: ='[1]HOJA GENERAL DATOS IMPORTADOS'!AH160 -> 0 | AI160: ='[1]HOJA GENERAL DATOS IMPORTADOS'!AI160 -> 0
Z161: ='[1]HOJA GENERAL DATOS IMPORTADOS'!Z161 -> 0 | AA161: ='[1]HOJA GENERAL DATOS IMPORTADOS'!AA161 -> 0 | AB161: ='[1]HOJA GENERAL DATOS IMPORTADOS'!AB161 -> 0 | AC161: ='[1]HOJA GENERAL DATOS IMPORTADOS'!AC161 -> 0 | AD161: ='[1]HOJA GENERAL DATOS IMPORTADOS'!AD161 -> 0 | AE161: ='[1]HOJA GENERAL DATOS IMPORTADOS'!AE161 -> 0 | AF161: ='[1]HOJA GENERAL DATOS IMPORTADOS'!AF161 -> 0 | AG161: ='[1]HOJA GENERAL DATOS IMPORTADOS'!AG161 -> 0 | AH161: ='[1]HOJA GENERAL DATOS IMPORTADOS'!AH161 -> 0 | AI161: ='[1]HOJA GENERAL DATOS IMPORTADOS'!AI161 -> 0
Z162: ='[1]HOJA GENERAL DATOS IMPORTADOS'!Z162 -> 0 | AA162: ='[1]HOJA GENERAL DATOS IMPORTADOS'!AA162 -> 0 | AB162: ='[1]HOJA GENERAL DATOS IMPORTADOS'!AB162 -> 0 | AC162: ='[1]HOJA GENERAL DATOS IMPORTADOS'!AC162 -> 0 | AD162: ='[1]HOJA GENERAL DATOS IMPORTADOS'!AD162 -> 0 | AE162: ='[1]HOJA GENERAL DATOS IMPORTADOS'!AE162 -> 0 | AF162: ='[1]HOJA GENERAL DATOS IMPORTADOS'!AF162 -> 0 | AG162: ='[1]HOJA GENERAL DATOS IMPORTADOS'!AG162 -> 0 | AH162: ='[1]HOJA GENERAL DATOS IMPORTADOS'!AH162 -> 0 | AI162: ='[1]HOJA GENERAL DATOS IMPORTADOS'!AI162 -> 0
Z163: ='[1]HOJA GENERAL DATOS IMPORTADOS'!Z163 -> 0 | AA163: ='[1]HOJA GENERAL DATOS IMPORTADOS'!AA163 -> 0 | AB163: ='[1]HOJA GENERAL DATOS IMPORTADOS'!AB163 -> 0 | AC163: ='[1]HOJA GENERAL DATOS IMPORTADOS'!AC163 -> 0 | AD163: ='[1]HOJA GENERAL DATOS IMPORTADOS'!AD163 -> 0 | AE163: ='[1]HOJA GENERAL DATOS IMPORTADOS'!AE163 -> 0 | AF163: ='[1]HOJA GENERAL DATOS IMPORTADOS'!AF163 -> 0 | AG163: ='[1]HOJA GENERAL DATOS IMPORTADOS'!AG163 -> 0 | AH163: ='[1]HOJA GENERAL DATOS IMPORTADOS'!AH163 -> 0 | AI163: ='[1]HOJA GENERAL DATOS IMPORTADOS'!AI163 -> 0
Z164: ='[1]HOJA GENERAL DATOS IMPORTADOS'!Z164 -> 0 | AA164: ='[1]HOJA GENERAL DATOS IMPORTADOS'!AA164 -> 0 | AB164: ='[1]HOJA GENERAL DATOS IMPORTADOS'!AB164 -> 0 | AC164: ='[1]HOJA GENERAL DATOS IMPORTADOS'!AC164 -> 0 | AD164: ='[1]HOJA GENERAL DATOS IMPORTADOS'!AD164 -> 0 | AE164: ='[1]HOJA GENERAL DATOS IMPORTADOS'!AE164 -> 0 | AF164: ='[1]HOJA GENERAL DATOS IMPORTADOS'!AF164 -> 0 | AG164: ='[1]HOJA GENERAL DATOS IMPORTADOS'!AG164 -> 0 | AH164: ='[1]HOJA GENERAL DATOS IMPORTADOS'!AH164 -> 0 | AI164: ='[1]HOJA GENERAL DATOS IMPORTADOS'!AI164 -> 0
Z165: ='[1]HOJA GENERAL DATOS IMPORTADOS'!Z165 -> 0 | AA165: ='[1]HOJA GENERAL DATOS IMPORTADOS'!AA165 -> 0 | AB165: ='[1]HOJA GENERAL DATOS IMPORTADOS'!AB165 -> 0 | AC165: ='[1]HOJA GENERAL DATOS IMPORTADOS'!AC165 -> 0 | AD165: ='[1]HOJA GENERAL DATOS IMPORTADOS'!AD165 -> 0 | AE165: ='[1]HOJA GENERAL DATOS IMPORTADOS'!AE165 -> 0 | AF165: ='[1]HOJA GENERAL DATOS IMPORTADOS'!AF165 -> 0 | AG165: ='[1]HOJA GENERAL DATOS IMPORTADOS'!AG165 -> 0 | AH165: ='[1]HOJA GENERAL DATOS IMPORTADOS'!AH165 -> 0 | AI165: ='[1]HOJA GENERAL DATOS IMPORTADOS'!AI165 -> 0
Z166: ='[1]HOJA GENERAL DATOS IMPORTADOS'!Z166 -> 0 | AA166: ='[1]HOJA GENERAL DATOS IMPORTADOS'!AA166 -> 0 | AB166: ='[1]HOJA GENERAL DATOS IMPORTADOS'!AB166 -> 0 | AC166: ='[1]HOJA GENERAL DATOS IMPORTADOS'!AC166 -> 0 | AD166: ='[1]HOJA GENERAL DATOS IMPORTADOS'!AD166 -> 0 | AE166: ='[1]HOJA GENERAL DATOS IMPORTADOS'!AE166 -> 0 | AF166: ='[1]HOJA GENERAL DATOS IMPORTADOS'!AF166 -> 0 | AG166: ='[1]HOJA GENERAL DATOS IMPORTADOS'!AG166 -> 0 | AH166: ='[1]HOJA GENERAL DATOS IMPORTADOS'!AH166 -> 0 | AI166: ='[1]HOJA GENERAL DATOS IMPORTADOS'!AI166 -> 0
Z167: ='[1]HOJA GENERAL DATOS IMPORTADOS'!Z167 -> 0 | AA167: ='[1]HOJA GENERAL DATOS IMPORTADOS'!AA167 -> 0 | AB167: ='[1]HOJA GENERAL DATOS IMPORTADOS'!AB167 -> 0 | AC167: ='[1]HOJA GENERAL DATOS IMPORTADOS'!AC167 -> 0 | AD167: ='[1]HOJA GENERAL DATOS IMPORTADOS'!AD167 -> 0 | AE167: ='[1]HOJA GENERAL DATOS IMPORTADOS'!AE167 -> 0 | AF167: ='[1]HOJA GENERAL DATOS IMPORTADOS'!AF167 -> 0 | AG167: ='[1]HOJA GENERAL DATOS IMPORTADOS'!AG167 -> 0 | AH167: ='[1]HOJA GENERAL DATOS IMPORTADOS'!AH167 -> 0 | AI167: ='[1]HOJA GENERAL DATOS IMPORTADOS'!AI167 -> 0
Z168: ='[1]HOJA GENERAL DATOS IMPORTADOS'!Z168 -> 0 | AA168: ='[1]HOJA GENERAL DATOS IMPORTADOS'!AA168 -> 0 | AB168: ='[1]HOJA GENERAL DATOS IMPORTADOS'!AB168 -> 0 | AC168: ='[1]HOJA GENERAL DATOS IMPORTADOS'!AC168 -> 0 | AD168: ='[1]HOJA GENERAL DATOS IMPORTADOS'!AD168 -> 0 | AE168: ='[1]HOJA GENERAL DATOS IMPORTADOS'!AE168 -> 0 | AF168: ='[1]HOJA GENERAL DATOS IMPORTADOS'!AF168 -> 0 | AG168: ='[1]HOJA GENERAL DATOS IMPORTADOS'!AG168 -> 0 | AH168: ='[1]HOJA GENERAL DATOS IMPORTADOS'!AH168 -> 0 | AI168: ='[1]HOJA GENERAL DATOS IMPORTADOS'!AI168 -> 0
Z169: ='[1]HOJA GENERAL DATOS IMPORTADOS'!Z169 -> 0 | AA169: ='[1]HOJA GENERAL DATOS IMPORTADOS'!AA169 -> 0 | AB169: ='[1]HOJA GENERAL DATOS IMPORTADOS'!AB169 -> 0 | AC169: ='[1]HOJA GENERAL DATOS IMPORTADOS'!AC169 -> 0 | AD169: ='[1]HOJA GENERAL DATOS IMPORTADOS'!AD169 -> 0 | AE169: ='[1]HOJA GENERAL DATOS IMPORTADOS'!AE169 -> 0 | AF169: ='[1]HOJA GENERAL DATOS IMPORTADOS'!AF169 -> 0 | AG169: ='[1]HOJA GENERAL DATOS IMPORTADOS'!AG169 -> 0 | AH169: ='[1]HOJA GENERAL DATOS IMPORTADOS'!AH169 -> 0 | AI169: ='[1]HOJA GENERAL DATOS IMPORTADOS'!AI169 -> 0
